Workbook

Sheet Classement matriciel (hidden)
A1: hippo | B1: prono | C1: turfpro | D1: 2009 | E1: 2010 | F1: 2011 | G1: 2012 | H1: 2013 | I1: 2014 | M1: Clt
A2: =Clthippo!GS65 -> 1 | B2: =Clthippo!FJ65 -> 7 | C2: =Clthippo!EK65 -> 0 | D2: =macro!P6 -> 9 | E2: =macro!O6 -> 2 | F2: =macro!N6 -> 3 | G2: =macro!M6 -> 4 | H2: =macro!L6 -> 6 | I2: =macro!K6 -> 14 | M2: =MATCH(LARGE(COUNTIF($A$2:$J$9,ROW(1:20))+(21-ROW())/100,ROW()-1),COUNTIF($A$2:$J$9,ROW(1:20))+(21-ROW())/100,0) -> 3
A3: =Clthippo!GS66 -> 4 | B3: =Clthippo!FJ66 -> 9 | C3: =Clthippo!EK66 -> 0 | D3: =macro!P8 -> 3 | E3: =macro!O8 -> 13 | F3: =macro!N8 -> 2 | G3: =macro!M8 -> 5 | H3: =macro!L8 -> 5 | I3: =macro!K8 -> 3 | M3: 4
A4: =Clthippo!GS67 -> 5 | B4: =Clthippo!FJ67 -> 13 | C4: =Clthippo!EK67 -> 0 | D4: =macro!P10 -> 8 | E4: =macro!O10 -> 3 | F4: =macro!N10 -> 1 | G4: =macro!M10 -> 6 | H4: =macro!L10 -> 2 | I4: =macro!K10 -> 3 | M4: 10
A5: =Clthippo!GS68 -> 15 | B5: =Clthippo!FJ68 -> 14 | C5: =Clthippo!EK68 -> 0 | D5: =macro!P12 -> 14 | E5: =macro!O12 -> 10 | F5: =macro!N12 -> 12 | G5: =macro!M12 -> 7 | H5: =macro!L12 -> 11 | I5: =macro!K12 -> 4 | M5: 2
A6: =Clthippo!GS69 -> 2 | B6: =Clthippo!FJ69 -> 1 | C6: =Clthippo!EK69 -> 0 | D6: =macro!P14 -> 5 | E6: =macro!O14 -> 6 | F6: =macro!N14 -> 6 | G6: =macro!M14 -> 3 | H6: =macro!L14 -> 10 | I6: =macro!K14 -> 5 | M6: 5
A7: =Clthippo!GS70 -> 3 | B7: =Clthippo!FJ70 -> 4 | C7: =Clthippo!EK70 -> 0 | D7: =macro!P16 -> 6 | E7: =macro!O16 -> 7 | F7: =macro!N16 -> 10 | G7: =macro!M16 -> 2 | H7: =macro!L16 -> 3 | I7: =macro!K16 -> 16 | M7: 6
A8: =Clthippo!GS71 -> 8 | B8: =Clthippo!FJ71 -> 17 | C8: =Clthippo!EK71 -> 0 | D8: =macro!P18 -> 10 | E8: =macro!O18 -> 4 | F8: =macro!N18 -> 9 | G8: =macro!M18 -> 9 | H8: =macro!L18 -> 8 | I8: =macro!K18 -> 7 | M8: 9
A9: =Clthippo!GS72 -> 9 | B9: =Clthippo!FJ72 -> 10 | C9: =Clthippo!EK72 -> 0 | D9: =macro!P20 -> 12 | E9: =macro!O20 -> 12 | F9: =macro!N20 -> 13 | G9: =macro!M20 -> 8 | H9: =macro!L20 -> 4 | I9: =macro!K20 -> 10 | M9: 7
M10: 8
M11: 1
M12: 12
M13: 13
M14: 14
M15: 11
M16: 15
M17: 16
M18: 17
M19: 18 | O19: 1
M20: 19
M21: 20
O43: =MATCH(LARGE(COUNTIF($A$2:$D$9,ROW(1:20))+(21-ROW(­))/100,ROW()-1),COUNTIF($A$2:$D$9,ROW(1:20))+(21-ROW())/­100,0) -> 

Sheet courses
N1: Appel tableau | AG1: 2011 | BD1: 10+11 | BF1: 2011 | BZ1: 10 + 11 | CB1: 2011 | CE1: cgt | CG1: 1 | CH1: 2 | CI1: 3 | CJ1: 4 | CK1: 5 | CL1: 6 | CM1: 7 | CN1: 8 | CO1: 9 | CP1: J2 | CQ1: Mise | CR1: Gain | CS1: balance | EM1: =TODAY() -> 2014-08-08
H2: Date | I2: AOUT | O2: 2010 | R2: 2009 | U2: VCS | W2: tot c1 | X2: tot c2 | Y2: tot c3 | Z2: Tiercé | AA2: =FX14 -> tot c4 | AB2: =FY14 -> tot c5 | AC2: quinté | AE2: ttx | AF2: clt | AG2: ttx | AH2: Clt > | AI2: 2009/14 | BC2: 8,9,10 | BD2: ttx | BE2: clt | BF2: ttx | BG2: clt | BR2: =GM751 -> tot c1 | BS2: tot c2 | BT2: tot c3 | BU2: Tierce | BV2: =GP751 -> tot c4 | BW2: =GQ751 -> tot c5 | BX2: quinté | BY2: 8,/12 | BZ2: ttx | CA2: clt | CB2: ttx | CC2: clt | CF2: 2014-08-01 | CM2: =IF(CQ2=10.5,"X","") -> X | CN2: =IF(CQ2=12,"X","") ->  | CO2: =IF(CQ2=13.5,"X","") ->  | CP2: =IF(CQ2=15,"X","") ->  | CQ2: =CU6 -> 10.5 | CU2: =TODAY() -> 2014-08-08
B3: mois | C3: hippo | D3: prono | F3: ttx | G3: N° | H3: 2014-08-01 | I3: CBG | M3: VCS | O3: Janvier | Q3: Agen | R3: Janvier | V3: 1 | W3: =FU15 -> 27 | X3: =FV15 -> 27 | Y3: 22 | Z3: =SUM(W3:Y3) -> 76 | AA3: 33 | AB3: 49 | AC3: =SUM(Z3:AB3) -> 158 | AE3: =AG3+AD3 -> 158 | AF3: 8 | AG3: =AC3 -> 158 | AH3: 1 | AI3: =ARRIVEES!AA3 -> 4 | AO3: Agen | AP3: 09 14 01 02 05 | AT3: B 2 | AU3: 1 | AV3: =GM482 -> 9 | AW3: =GN482 -> 7 | AX3: =GO482 -> 11 | AY3: =AV3+AW3+AX3 -> 27 | AZ3: =GP482 -> 7 | BA3: =GQ482 -> 8 | BB3: =AY3+AZ3+BA3 -> 42 | BC3: 15 | BD3: =BC3+BB3 -> 57 | BE3: 3 | BF3: =BB3 -> 42 | BG3: 8 | BH3: =ARRIVEES!AW3 -> 3 | BO3: 32 | BQ3: 1 | BR3: 8 | BS3: 9 | BT3: 11 | BU3: =BR3+BS3+BT3 -> 28 | BV3: 3 | BW3: 4 | BX3: =BW3+BV3+BU3 -> 35 | BY3: 32 | BZ3: =BX3+BY3 -> 67 | CA3: 1 | CB3: =BX3 -> 35 | CC3: 8 | CD3: =ARRIVEES!BT3 -> 3 | CE3: 12 | CG3: =OFFSET($CX$4,COLUMNS($A:A)-1,,,) -> 0 | CH3: =OFFSET($CX$4,COLUMNS($A:B)-1,,,) -> 0 | CI3: =OFFSET($CX$4,COLUMNS($A:C)-1,,,) -> 2.55 | CJ3: =OFFSET($CX$4,COLUMNS($A:D)-1,,,) -> 0 | CK3: =OFFSET($CX$4,COLUMNS($A:E)-1,,,) -> 0 | CL3: =OFFSET($CX$4,COLUMNS($A:F)-1,,,) -> 0 | CM3: =OFFSET($CX$4,COLUMNS($A:G)-1,,,) -> 2.7 | CN3: =OFFSET($CX$4,COLUMNS($A:H)-1,,,) -> 0 | CO3: =OFFSET($CX$4,COLUMNS($A:I)-1,,,) -> 0 | CR3: =SUM(CG3:CO3) -> 5.25 | CS3: =CR3-CQ2 -> -5.25 | CX3: jeu 1 | CZ3: jeu 2 | DE3: jeu 1 | DG3: jeu 2 | DM3: jeu 1 | DO3: jeu 2 | DU3: jeu1 | DW3: jeu 2 | EC3: jeu 1 | EE3: jeu 2
A4: 1 | B4: =AV60 -> 7 | C4: =AW60 -> 2 | D4: =AX60 -> 9 | E4: 1 | F4: =B4+C4+D4 -> 18 | G4: 4 | H4: 2014-08-02 | I4: DVE | M4: ATL | O4: Février | Q4: Amiens | R4: Février | V4: 2 | W4: =FU16 -> 33 | X4: 31 | Y4: 34 | Z4: =SUM(W4:Y4) -> 98 | AA4: 41 | AB4: 38 | AC4: =SUM(Z4:AB4) -> 177 | AE4: 177 | AF4: 14 | AG4: =AC4 -> 177 | AH4: 2 | AI4: =ARRIVEES!AA4 -> 10 | AU4: 2 | AV4: 7 | AW4: 10 | AX4: 9 | AY4: 26 | AZ4: 10 | BA4: 11 | BB4: 47 | BC4: 19 | BD4: =BC4+BB4 -> 66 | BE4: 8 | BF4: 47 | BG4: 3 | BH4: =ARRIVEES!AW4 -> 5 | BO4: 26 | BQ4: 2 | BR4: =GM753 -> 7 | BS4: =GN753 -> 9 | BT4: =GO753 -> 3 | BU4: =BR4+BS4+BT4 -> 19 | BV4: 6 | BW4: 3 | BX4: 28 | BY4: 26 | BZ4: =BX4+BY4 -> 54 | CA4: 2 | CB4: =BX4 -> 28 | CC4: 12 | CD4: =ARRIVEES!BT4 -> 8 | CE4: 10 | CF4: 2014-08-02 | CM4: =IF(CQ4=10.5,"X","") ->  | CN4: =IF(CQ4=12,"X","") ->  | CO4: =IF(CQ4=13.5,"X","") -> X | CP4: =IF(CQ4=15,"X","") ->  | CQ4: =CU16 -> 13.5 | CU4: 2014-08-01 | CV4: 110/15 | CY4: 15 | CZ4: 3.6 | DB4: 2014-08-08 | DJ4: 2014-08-15 | DR4: 2014-08-22 | DZ4: 2014-08-29
A5: 2 | B5: =AV61 -> 14 | C5: =AW61 -> 1 | D5: =AX61 -> 1 | E5: 2 | F5: 16 | G5: 14 | H5: 2014-08-03 | I5: DVE | M5: C/M | O5: Mars | Q5: Angers | R5: Mars | V5: 3 | W5: 32 | X5: 25 | Y5: 32 | Z5: 89 | AA5: 31 | AB5: 32 | AC5: 152 | AE5: 152 | AF5: 4 | AG5: 152 | AH5: 3 | AI5: =ARRIVEES!AA5 -> 14 | AU5: 3 | AV5: 13 | AW5: 16 | AX5: 8 | AY5: 37 | AZ5: 15 | BA5: 6 | BB5: 58 | BC5: 30 | BD5: 88 | BE5: 5 | BF5: 58 | BG5: 11 | BH5: =ARRIVEES!AW5 -> 7 | BO5: 49 | BP5: C/M | BQ5: 3 | BR5: 13 | BS5: 9 | BT5: 8 | BU5: 30 | BV5: 11 | BW5: 7 | BX5: 48 | BY5: 49 | BZ5: 97 | CA5: 3 | CB5: 48 | CC5: 3 | CD5: =ARRIVEES!BT5 -> 1 | CE5: 18 | CG5: =OFFSET($CX$14,COLUMNS($A:A)-1,,,) -> 1.65 | CH5: =OFFSET($CX$14,COLUMNS($A:B)-1,,,) -> 0 | CI5: =OFFSET($CX$14,COLUMNS($A:C)-1,,,) -> 3.45 | CJ5: =OFFSET($CX$14,COLUMNS($A:D)-1,,,) -> 0 | CK5: =OFFSET($CX$14,COLUMNS($A:E)-1,,,) -> 0 | CL5: =OFFSET($CX$14,COLUMNS($A:F)-1,,,) -> 0 | CM5: =OFFSET($CX$14,COLUMNS($A:G)-1,,,) -> 0 | CN5: =OFFSET($CX$14,COLUMNS($A:H)-1,,,) -> 3 | CO5: =OFFSET($CX$14,COLUMNS($A:I)-1,,,) -> 3.75 | CR5: =SUM(CG5:CO5) -> 11.85 | CS5: =CR5-CQ4 -> -1.65 | CU5: cbg | CV5: 202/13
A6: 3 | B6: 1 | C6: 1 | D6: 0 | E6: 3 | F6: 2 | G6: 3 | H6: 2014-08-04 | I6: CLFNE | M6: LCP | O6: Avril | Q6: Beaumont | R6: Avril | U6: cag | V6: 4 | W6: 37 | X6: 42 | Y6: 37 | Z6: 116 | AA6: 47 | AB6: 35 | AC6: 198 | AE6: 198 | AF6: 6 | AG6: 198 | AH6: 4 | AI6: =ARRIVEES!AA6 -> 6 | AU6: 4 | AV6: 10 | AW6: 11 | AX6: 11 | AY6: 32 | AZ6: 9 | BA6: 8 | BB6: 49 | BC6: 18 | BD6: 67 | BE6: 15 | BF6: 49 | BG6: 9 | BH6: =ARRIVEES!AW6 -> 2 | BO6: 28 | BP6: cag | BQ6: 4 | BR6: 8 | BS6: 6 | BT6: 6 | BU6: 20 | BV6: 4 | BW6: 7 | BX6: 31 | BY6: 28 | BZ6: 59 | CA6: 4 | CB6: 31 | CC6: 2 | CD6: =ARRIVEES!BT6 -> 6 | CE6: 11 | CF6: 2014-08-03 | CM6: =IF(CQ6=10.5,"X","") ->  | CN6: =IF(CQ6=12,"X","") ->  | CO6: =IF(CQ6=13.5,"X","") -> X | CP6: =IF(CQ6=15,"X","") ->  | CQ6: =CU26 -> 13.5 | CU6: 10.5 | CV6: 314/8 | CW6: 14 | CX6: 2.55 | DB6: 0 | DJ6: 0 | DR6: 0 | DZ6: 0
A7: 4 | B7: 3 | C7: 2 | D7: 9 | E7: 4 | F7: 14 | G7: 7 | H7: 2014-08-05 | I7: DVE | M7: DVE | O7: Mai | Q7: Bordeaux | R7: Mai | V7: 5 | W7: 41 | X7: 38 | Y7: 35 | Z7: 114 | AA7: 36 | AB7: 41 | AC7: 191 | AE7: 191 | AF7: 7 | AG7: 191 | AH7: 5 | AI7: =ARRIVEES!AA7 -> 8 | AU7: 5 | AV7: 11 | AW7: 6 | AX7: 9 | AY7: 26 | AZ7: 6 | BA7: 18 | BB7: 50 | BC7: 21 | BD7: 71 | BE7: 4 | BF7: 50 | BG7: 12 | BH7: =ARRIVEES!AW7 -> 4 | BO7: 27 | BQ7: 5 | BR7: 7 | BS7: 3 | BT7: 5 | BU7: 15 | BV7: 7 | BW7: 4 | BX7: 26 | BY7: 27 | BZ7: 53 | CA7: 5 | CB7: 26 | CC7: 5 | CD7: =ARRIVEES!BT7 -> 12 | CE7: 10 | CG7: =OFFSET($CX$24,COLUMNS($A:A)-1,,,) -> 0 | CH7: =OFFSET($CX$24,COLUMNS($A:B)-1,,,) -> 0 | CI7: =OFFSET($CX$24,COLUMNS($A:C)-1,,,) -> 0 | CJ7: =OFFSET($CX$24,COLUMNS($A:D)-1,,,) -> 0 | CK7: =OFFSET($CX$24,COLUMNS($A:E)-1,,,) -> 2.7 | CL7: =OFFSET($CX$24,COLUMNS($A:F)-1,,,) -> 0 | CM7: =OFFSET($CX$24,COLUMNS($A:G)-1,,,) -> 0 | CN7: =OFFSET($CX$24,COLUMNS($A:H)-1,,,) -> 3.15 | CO7: =OFFSET($CX$24,COLUMNS($A:I)-1,,,) -> 0 | CR7: =SUM(CG7:CO7) -> 5.85 | CS7: -7.65 | CU7: =CU6 -> 10.5 | CV7: 407/8 | DB7: =DB6 -> 0 | DJ7: =DJ6 -> 0 | DR7: =DR6 -> 0 | DZ7: =DZ6 -> 0
A8: 5 | B8: 6 | C8: 2 | D8: 2 | E8: 5 | F8: 10 | G8: 11 | H8: 2014-08-06 | I8: St Malo | M8: CPGNE | O8: Juin | Q8: Caen | R8: Juin | V8: 6 | W8: 46 | X8: 41 | Y8: 41 | Z8: 128 | AA8: 34 | AB8: 29 | AC8: 191 | AE8: 191 | AF8: 13 | AG8: 191 | AH8: 6 | AI8: =ARRIVEES!AA8 -> 5 | AU8: 6 | AV8: 7 | AW8: 13 | AX8: 11 | AY8: 31 | AZ8: 9 | BA8: 6 | BB8: 46 | BC8: 17 | BD8: 63 | BE8: 11 | BF8: 46 | BG8: 15 | BH8: =ARRIVEES!AW8 -> 6 | BO8: 27 | BQ8: 6 | BR8: 6 | BS8: 2 | BT8: 15 | BU8: 23 | BV8: 6 | BW8: 2 | BX8: 31 | BY8: 27 | BZ8: 58 | CA8: 6 | CB8: 31 | CC8: 14 | CD8: =ARRIVEES!BT8 -> 7 | CE8: 12 | CF8: 2014-08-04 | CM8: =IF(CQ8=10.5,"X","") ->  | CN8: =IF(CQ8=12,"X","") -> X | CO8: =IF(CQ8=13.5,"X","") ->  | CQ8: =CU36 -> 12 | CV8: 510/11 | CY8: 11 | CZ8: 2.25
A9: 6 | B9: 10 | C9: 0 | D9: 3 | E9: 6 | F9: 13 | G9: 12 | H9: 2014-08-07 | I9: EGN | M9: MARS | O9: Juillet | Q9: Chateaubriant | R9: Juillet | V9: 7 | W9: 34 | X9: 38 | Y9: 39 | Z9: 111 | AA9: 36 | AB9: 37 | AC9: 184 | AE9: 184 | AF9: 5 | AG9: 184 | AH9: 7 | AI9: =ARRIVEES!AA9 -> 9 | AT9: ATL 2009 | AU9: 7 | AV9: 9 | AW9: 11 | AX9: 11 | AY9: 31 | AZ9: 4 | BA9: 13 | BB9: 48 | BC9: 17 | BD9: 65 | BE9: 12 | BF9: 48 | BG9: 2 | BH9: =ARRIVEES!AW9 -> 8 | BO9: 31 | BQ9: 7 | BR9: 6 | BS9: 5 | BT9: 10 | BU9: 21 | BV9: 3 | BW9: 9 | BX9: 33 | BY9: 31 | BZ9: 64 | CA9: 7 | CB9: 33 | CC9: 1 | CD9: =ARRIVEES!BT9 -> 10 | CE9: 13 | CG9: =OFFSET($CX$34,COLUMNS($A:A)-1,,,) -> 0 | CH9: =OFFSET($CX$34,COLUMNS($A:B)-1,,,) -> 2.1 | CI9: =OFFSET($CX$34,COLUMNS($A:C)-1,,,) -> 0 | CJ9: =OFFSET($CX$34,COLUMNS($A:D)-1,,,) -> 0 | CK9: =OFFSET($CX$34,COLUMNS($A:E)-1,,,) -> 0 | CL9: =OFFSET($CX$34,COLUMNS($A:F)-1,,,) -> 2.25 | CM9: =OFFSET($CX$34,COLUMNS($A:G)-1,,,) -> 3 | CN9: =OFFSET($CX$34,COLUMNS($A:H)-1,,,) -> 2.4 | CO9: =OFFSET($CX$34,COLUMNS($A:I)-1,,,) -> 0 | CR9: =SUM(CG9:CO9) -> 9.75 | CS9: -2.25 | CV9: 605/6
A10: 7 | B10: 11 | C10: 0 | D10: 12 | E10: 7 | F10: 23 | G10: 6 | H10: 2014-08-08 | I10: CBG | M10: MLF | O10: Août | Q10: Cherbourg | R10: Août | V10: 8 | W10: 48 | X10: 48 | Y10: 34 | Z10: 130 | AA10: 41 | AB10: 30 | AC10: 201 | AE10: 201 | AF10: 9 | AG10: 201 | AH10: 8 | AI10: =ARRIVEES!AA10 -> 12 | AO10: Angers | AP10: 11 06 04 13 03 | AU10: 8 | AV10: 14 | AW10: 10 | AX10: 11 | AY10: 35 | AZ10: 9 | BA10: 5 | BB10: 49 | BC10: 33 | BD10: 82 | BE10: 9 | BF10: 49 | BG10: 4 | BH10: =ARRIVEES!AW10 -> 1 | BO10: 35 | BQ10: 8 | BR10: 7 | BS10: 5 | BT10: 9 | BU10: 21 | BV10: 7 | BW10: 11 | BX10: 39 | BY10: 35 | BZ10: 74 | CA10: 8 | CB10: 39 | CC10: 7 | CD10: =ARRIVEES!BT10 -> 11 | CE10: 14 | CF10: 2014-08-05 | CM10: =IF(CQ10=10.5,"X","") ->  | CN10: =IF(CQ10=12,"X","") -> X | CO10: =IF(CQ10=13.5,"X","") ->  | CQ10: =CU46 -> 12 | CV10: 702/1 | CW10: 2 | CX10: 2.7 | FR10: VCS 2009 | GI10: LCP 2009/2012
A11: 8 | B11: 12 | C11: 1 | D11: 2 | E11: 8 | F11: 15 | G11: 13 | H11: 2014-08-09 | I11: CLFNE | M11: LYON | O11: Septembre | Q11: Cordemais | R11: Septembre | V11: 9 | W11: 34 | X11: 41 | Y11: 48 | Z11: 123 | AA11: 29 | AB11: 32 | AC11: 184 | AE11: 184 | AF11: 2 | AG11: 184 | AH11: 9 | AP11: 10 13 15 07 12 | AU11: 9 | AV11: 9 | AW11: 6 | AX11: 2 | AY11: 17 | AZ11: 10 | BA11: 9 | BB11: 36 | BC11: 21 | BD11: 57 | BE11: 6 | BF11: 36 | BG11: 5 | BO11: 27 | BQ11: 9 | BR11: 4 | BS11: 5 | BT11: 6 | BU11: 15 | BV11: 8 | BW11: 7 | BX11: 30 | BY11: 27 | BZ11: 57 | CA11: 9 | CB11: 30 | CC11: 6 | CD11: =ARRIVEES!BT11 -> 16 | CE11: 12 | CG11: =OFFSET($CX$44,COLUMNS($A:A)-1,,,) -> 0 | CH11: =OFFSET($CX$44,COLUMNS($A:B)-1,,,) -> 0 | CI11: =OFFSET($CX$44,COLUMNS($A:C)-1,,,) -> 0 | CJ11: =OFFSET($CX$44,COLUMNS($A:D)-1,,,) -> 2.25 | CK11: =OFFSET($CX$44,COLUMNS($A:E)-1,,,) -> 3.3 | CL11: =OFFSET($CX$44,COLUMNS($A:F)-1,,,) -> 0 | CM11: =OFFSET($CX$44,COLUMNS($A:G)-1,,,) -> 0 | CN11: =OFFSET($CX$44,COLUMNS($A:H)-1,,,) -> 5.1 | CO11: =OFFSET($CX$44,COLUMNS($A:I)-1,,,) -> 0 | CR11: =SUM(CG11:CO11) -> 10.65 | CS11: -1.35 | GZ11: Vcs 2009 | HB11: Lcp 2009
A12: 9 | B12: 15 | C12: 1 | D12: 11 | E12: 9 | F12: 27 | G12: 15 | H12: 2014-08-10 | I12: DVE | M12: EGN | O12: Octobre | Q12: Croisé laroche | R12: Octobre | V12: 10 | W12: 38 | X12: 38 | Y12: 35 | Z12: 111 | AA12: 34 | AB12: 46 | AC12: 191 | AE12: 191 | AF12: 10 | AG12: 191 | AH12: 10 | AI12: 2014 | AJ12: 0 | AP12: 15 06 05 09 01 | AU12: 10 | AV12: 11 | AW12: 8 | AX12: 7 | AY12: 26 | AZ12: 8 | BA12: 5 | BB12: 39 | BC12: 18 | BD12: 57 | BE12: 10 | BF12: 39 | BG12: 10 | BO12: 25 | BQ12: 10 | BR12: 11 | BS12: 9 | BT12: 3 | BU12: 23 | BV12: 5 | BW12: 7 | BX12: 35 | BY12: 25 | BZ12: 60 | CA12: 10 | CB12: 35 | CC12: 4 | CE12: 11 | CF12: 2014-08-06 | CM12: =IF(CQ12=10.5,"X","") ->  | CN12: =IF(CQ12=12,"X","") ->  | CO12: =IF(CQ12=13.5,"X","") ->  | CQ12: =CU56 -> 0 | FM12: C1 | FN12: C2 | FO12: C3 | FP12: C4 | FQ12: C5
A13: 10 | B13: 2 | C13: 0 | D13: 7 | E13: 10 | F13: 9 | G13: 9 | H13: 2014-08-11 | I13: CLFNE | M13: CTY | O13: Novembre | Q13: Craon | R13: Novembre | V13: 11 | W13: 38 | X13: 41 | Y13: 33 | Z13: 112 | AA13: 36 | AB13: 36 | AC13: 184 | AE13: 184 | AF13: 12 | AG13: 184 | AH13: 11 | AI13: =ARRIVEES!AC26 -> 14 | AJ13: 0 | AU13: 11 | AV13: 8 | AW13: 8 | AX13: 9 | AY13: 25 | AZ13: 9 | BA13: 5 | BB13: 39 | BC13: 26 | BD13: 65 | BE13: 7 | BF13: 39 | BG13: 1 | BH13: =ARRIVEES!AY26 -> 8 | BO13: 28 | BQ13: 11 | BR13: 4 | BS13: 5 | BT13: 7 | BU13: 16 | BV13: 7 | BW13: 11 | BX13: 34 | BY13: 28 | BZ13: 62 | CA13: 11 | CB13: 34 | CC13: 11 | CD13: 0 | CE13: 11 | CG13: =OFFSET($CX$54,COLUMNS($A:A)-1,,,) -> 0 | CH13: =OFFSET($CX$54,COLUMNS($A:B)-1,,,) -> 0 | CI13: =OFFSET($CX$54,COLUMNS($A:C)-1,,,) -> 0 | CJ13: =OFFSET($CX$54,COLUMNS($A:D)-1,,,) -> 0 | CK13: =OFFSET($CX$54,COLUMNS($A:E)-1,,,) -> 0 | CL13: =OFFSET($CX$54,COLUMNS($A:F)-1,,,) -> 0 | CM13: =OFFSET($CX$54,COLUMNS($A:G)-1,,,) -> 0 | CN13: =OFFSET($CX$54,COLUMNS($A:H)-1,,,) -> 0 | CO13: =OFFSET($CX$54,COLUMNS($A:I)-1,,,) -> 0 | CR13: =SUM(CG13:CO13) -> 0 | CS13: 0 | CX13: =SUM(CX4:CX12) -> 5.25 | CZ13: =SUM(CZ4:CZ12) -> 5.85 | DE13: =SUM(DE4:DE12) -> 0 | DG13: =SUM(DG4:DG12) -> 0 | DM13: =SUM(DM4:DM12) -> 0 | DO13: =SUM(DO4:DO12) -> 0 | DU13: =SUM(DU4:DU12) -> 0 | DW13: =SUM(DW4:DW12) -> 0 | EC13: =SUM(EC4:EC12) -> 0 | EE13: =SUM(EE4:EE12) -> 0 | FT13: 2009/2014 | GZ13: 05 14 07 08 16 | HB13: 03 16 10 14 05
A14: 11 | B14: 5 | C14: 0 | D14: 3 | E14: 11 | F14: 8 | G14: 8 | H14: 2014-08-12 | I14: DVE | M14: CBG | O14: Décembre | Q14: Dieppe | R14: Décembre | V14: 12 | W14: 38 | X14: 30 | Y14: 43 | Z14: 111 | AA14: 35 | AB14: 39 | AC14: 185 | AE14: 185 | AF14: 11 | AG14: 185 | AH14: 12 | AI14: =ARRIVEES!AC27 -> 4 | AJ14: 0 | AU14: 12 | AV14: 9 | AW14: 5 | AX14: 5 | AY14: 19 | AZ14: 7 | BA14: 7 | BB14: 33 | BC14: 20 | BD14: 53 | BE14: 13 | BF14: 33 | BG14: 6 | BH14: =ARRIVEES!AY27 -> 3 | BO14: 27 | BQ14: 12 | BR14: 4 | BS14: 6 | BT14: 4 | BU14: 14 | BV14: 10 | BW14: 8 | BX14: 32 | BY14: 27 | BZ14: 59 | CA14: 12 | CB14: 32 | CC14: 13 | CD14: =ARRIVEES!BV26 -> 1 | CE14: 11 | CF14: 2014-08-07 | CM14: =IF(CQ14=10.5,"X","") ->  | CN14: =IF(CQ14=12,"X","") ->  | CO14: =IF(CQ14=13.5,"X","") ->  | CQ14: =CU66 -> 0 | CU14: 2014-08-02 | CV14: 104/7 | CW14: 4 | CX14: 1.65 | DB14: 2014-08-09 | DJ14: 2014-08-16 | DR14: 2014-08-23 | DZ14: 2014-08-30 | FL14: 2009 | FM14: 5 | FN14: 14 | FO14: 7 | FP14: 8 | FQ14: 16 | FR14: 1 | FS14: =COUNTIF(FM$14:FQ$233,$FT15) -> 63 | FU14: tot c1 | FV14: tot c2 | FW14: tot c3 | FX14: tot c4 | FY14: tot c5 | FZ14: A09/10 | GA14: Clt | GC14: 3 | GD14: 16 | GE14: 10 | GF14: 14 | GG14: 5 | GH14: 2009 | GK14: 2009/2014 | GL14: N° | GM14: tot c1 | GN14: tot c2 | GO14: tot c3 | GP14: tot c4 | GQ14: tot c5 | GR14: Tot g | GS14: Clt | GZ14: 08 11 14 09 01 | HB14: 18 01 16 02 10
A15: 12 | B15: 8 | C15: 1 | D15: 0 | E15: 12 | F15: 9 | G15: 16 | H15: 2014-08-13 | I15: EGN | M15: PAU | O15: 2011 | Q15: Feurs | V15: 13 | W15: 36 | X15: 38 | Y15: 31 | Z15: 105 | AA15: 36 | AB15: 36 | AC15: 177 | AE15: 177 | AF15: 15 | AG15: 177 | AH15: 13 | AI15: =ARRIVEES!AC28 -> 5 | AJ15: 0 | AU15: 13 | AV15: 7 | AW15: 7 | AX15: 7 | AY15: 21 | AZ15: 6 | BA15: 7 | BB15: 34 | BC15: 14 | BD15: 48 | BE15: 2 | BF15: 34 | BG15: 7 | BH15: =ARRIVEES!AY28 -> 7 | BO15: 20 | BQ15: 13 | BR15: 5 | BS15: 2 | BT15: 6 | BU15: 13 | BV15: 4 | BW15: 7 | BX15: 24 | BY15: 20 | BZ15: 44 | CA15: 13 | CB15: 24 | CC15: 15 | CD15: =ARRIVEES!BV27 -> 7 | CE15: 9 | CG15: =OFFSET($CX$64,COLUMNS($A:A)-1,,,) -> 0 | CH15: =OFFSET($CX$64,COLUMNS($A:B)-1,,,) -> 0 | CI15: =OFFSET($CX$64,COLUMNS($A:C)-1,,,) -> 0 | CJ15: =OFFSET($CX$64,COLUMNS($A:D)-1,,,) -> 0 | CK15: =OFFSET($CX$64,COLUMNS($A:E)-1,,,) -> 0 | CL15: =OFFSET($CX$64,COLUMNS($A:F)-1,,,) -> 0 | CM15: =OFFSET($CX$64,COLUMNS($A:G)-1,,,) -> 0 | CN15: =OFFSET($CX$64,COLUMNS($A:H)-1,,,) -> 0 | CO15: =OFFSET($CX$64,COLUMNS($A:I)-1,,,) -> 0 | CR15: =SUM(CG15:CO15) -> 0 | CS15: 0 | CU15: dve | CV15: 204/2 | CY15: 2 | CZ15: 3 | FM15: 8 | FN15: 11 | FO15: 14 | FP15: 9 | FQ15: 1 | FR15: 2 | FS15: 66 | FT15: 1 | FU15: =COUNTIF(FM$14:FM$799,$FT15) -> 27 | FV15: =COUNTIF(FN$14:FN$799,$FT15) -> 27 | FW15: =COUNTIF(FO$14:FO$799,$FT15) -> 22 | FX15: =COUNTIF(FP$14:FP$799,$FT15) -> 33 | FY15: =COUNTIF(FQ$14:FQ$799,$FT15) -> 49 | FZ15: =SUM(FU15:FY15) -> 158 | GA15: 8 | GC15: 18 | GD15: 1 | GE15: 16 | GF15: 2 | GG15: 10 | GL15: 1 | GM15: =COUNTIF(GC$14:GC$177,$GL15) -> 12 | GN15: =COUNTIF(GD$14:GD$177,$GL15) -> 15 | GO15: =COUNTIF(GE$14:GE$177,$GL15) -> 9 | GP15: =COUNTIF(GF$14:GF$177,$GL15) -> 9 | GQ15: =COUNTIF(GG$14:GG$177,$GL15) -> 5 | GR15: =SUM(GM15:GQ15) -> 50 | GS15: 1 | GZ15: 08 13 03 02 14 | HB15: 09 01 06 03 08
A16: 13 | B16: 13 | C16: 0 | D16: 12 | E16: 13 | F16: 25 | G16: 1 | H16: 2014-08-14 | I16: CLFNE | M16: SCLD | O16: Janvier | Q16: Fontainebleau | V16: 14 | W16: 33 | X16: 40 | Y16: 48 | Z16: 121 | AA16: 48 | AB16: 30 | AC16: 199 | AE16: 199 | AF16: 1 | AG16: 199 | AH16: 14 | AI16: =ARRIVEES!AC29 -> 10 | AJ16: 0 | AU16: 14 | AV16: 1 | AW16: 8 | AX16: 11 | AY16: 20 | AZ16: 6 | BA16: 7 | BB16: 33 | BC16: 6 | BD16: 39 | BE16: 16 | BF16: 33 | BG16: 16 | BH16: =ARRIVEES!AY29 -> 13 | BO16: 25 | BQ16: 14 | BR16: 3 | BS16: 10 | BT16: 2 | BU16: 15 | BV16: 7 | BW16: 5 | BX16: 27 | BY16: 25 | BZ16: 52 | CA16: 14 | CB16: 27 | CC16: 10 | CD16: =ARRIVEES!BV28 -> 3 | CE16: 9 | CF16: 2014-08-08 | CQ16: =DB6 -> 0 | CU16: 13.5 | CV16: 302/1 | CW16: 2 | CX16: 3.45 | DB16: 0 | DJ16: 0 | DR16: 0 | DZ16: 0 | FM16: 8 | FN16: 13 | FO16: 3 | FP16: 2 | FQ16: 14 | FR16: 3 | FS16: 54 | FT16: 2 | FU16: =COUNTIF(FM$14:FM$799,$FT16) -> 33 | FV16: =COUNTIF(FN$14:FN$799,$FT16) -> 31 | FW16: =COUNTIF(FO$14:FO$799,$FT16) -> 34 | FX16: =COUNTIF(FP$14:FP$799,$FT16) -> 41 | FY16: =COUNTIF(FQ$14:FQ$799,$FT16) -> 38 | FZ16: 177 | GA16: 13 | GC16: 9 | GD16: 1 | GE16: 6 | GF16: 3 | GG16: 8 | GL16: 2 | GM16: =COUNTIF(GC$14:GC$177,$GL16) -> 8 | GN16: =COUNTIF(GD$14:GD$177,$GL16) -> 4 | GO16: =COUNTIF(GE$14:GE$177,$GL16) -> 10 | GP16: =COUNTIF(GF$14:GF$177,$GL16) -> 9 | GQ16: =COUNTIF(GG$14:GG$177,$GL16) -> 11 | GR16: =SUM(GM16:GQ16) -> 42 | GS16: 2 | GZ16: 07 09 06 14 18 | HB16: 13 04 18 03 15
A17: 14 | B17: 16 | C17: 0 | D17: 12 | E17: 14 | F17: 28 | G17: 2 | H17: 2014-08-15 | I17: DVE | M17: VICHY | O17: Février | Q17: Graignes | V17: 15 | W17: 34 | X17: 35 | Y17: 39 | Z17: 108 | AA17: 42 | AB17: 28 | AC17: 178 | AE17: 178 | AF17: 3 | AG17: 178 | AH17: 15 | AI17: =ARRIVEES!AC30 -> 13 | AJ17: 0 | AU17: 15 | AV17: 7 | AW17: 7 | AX17: 5 | AY17: 19 | AZ17: 4 | BA17: 9 | BB17: 32 | BC17: 23 | BD17: 55 | BE17: 18 | BF17: 32 | BG17: 18 | BH17: =ARRIVEES!AY30 -> 15 | BO17: 19 | BQ17: 15 | BR17: 5 | BS17: 8 | BT17: 5 | BU17: 18 | BV17: 2 | BW17: 4 | BX17: 24 | BY17: 19 | BZ17: 43 | CA17: 15 | CB17: 24 | CC17: 9 | CD17: =ARRIVEES!BV29 -> 11 | CE17: 8 | CG17: =OFFSET($DE$4,COLUMNS($A:A)-1,,,) -> 0 | CH17: =OFFSET($DE$4,COLUMNS($A:B)-1,,,) -> 0 | CI17: =OFFSET($DE$4,COLUMNS($A:C)-1,,,) -> 0 | CJ17: =OFFSET($DE$4,COLUMNS($A:D)-1,,,) -> 0 | CK17: =OFFSET($DE$4,COLUMNS($A:E)-1,,,) -> 0 | CL17: =OFFSET($DE$4,COLUMNS($A:F)-1,,,) -> 0 | CM17: =OFFSET($DE$4,COLUMNS($A:G)-1,,,) -> 0 | CN17: =OFFSET($DE$4,COLUMNS($A:H)-1,,,) -> 0 | CO17: =OFFSET($DE$4,COLUMNS($A:I)-1,,,) -> 0 | CR17: =SUM(CG17:CO17) -> 0 | CS17: 0 | CU17: =CU16 -> 13.5 | CV17: 402/7 | DB17: =DB16 -> 0 | DJ17: =DJ16 -> 0 | DR17: =DR16 -> 0 | DZ17: =DZ16 -> 0 | FM17: 7 | FN17: 9 | FO17: 6 | FP17: 14 | FQ17: 18 | FR17: 4 | FS17: 56 | FT17: 3 | FU17: 32 | FV17: 25 | FW17: 32 | FX17: 31 | FY17: 32 | FZ17: 152 | GA17: 6 | GC17: 13 | GD17: 4 | GE17: 18 | GF17: 3 | GG17: 15 | GL17: 3 | GM17: 14 | GN17: 10 | GO17: 9 | GP17: 10 | GQ17: 12 | GR17: 55 | GS17: 3 | GZ17: 11 06 07 05 12 | HB17: 09 16 15 04 06
A18: 15 | B18: 4 | C18: 2 | D18: 1 | E18: 15 | F18: 7 | G18: 10 | H18: 2014-08-16 | I18: DVE | M18: CLFTNE | O18: Mars | Q18: La Capelle | V18: 16 | W18: 25 | X18: 21 | Y18: 28 | Z18: 74 | AA18: 24 | AB18: 31 | AC18: 129 | AE18: 129 | AF18: 16 | AG18: 129 | AH18: 16 | AI18: =ARRIVEES!AC31 -> 15 | AJ18: 0 | AU18: 16 | AV18: 5 | AW18: 5 | AX18: 3 | AY18: 13 | AZ18: 8 | BA18: 4 | BB18: 25 | BC18: 13 | BD18: 38 | BE18: 17 | BF18: 25 | BG18: 13 | BH18: =ARRIVEES!AY31 -> 1 | BO18: 24 | BQ18: 16 | BR18: 5 | BS18: 6 | BT18: 4 | BU18: 15 | BV18: 10 | BW18: 7 | BX18: 32 | BY18: 24 | BZ18: 56 | CA18: 16 | CB18: 32 | CC18: 16 | CD18: =ARRIVEES!BV30 -> 6 | CE18: 9 | CF18: 2014-08-09 | CQ18: =DB16 -> 0 | CV18: 502/4 | FM18: 11 | FN18: 6 | FO18: 7 | FP18: 5 | FQ18: 12 | FR18: 5 | FS18: 66 | FT18: 4 | FU18: 37 | FV18: 42 | FW18: 37 | FX18: 47 | FY18: 35 | FZ18: 198 | GA18: 14 | GC18: 9 | GD18: 16 | GE18: 15 | GF18: 4 | GG18: 6 | GL18: 4 | GM18: 4 | GN18: 8 | GO18: 5 | GP18: 14 | GQ18: 9 | GR18: 40 | GS18: 4 | GZ18: 04 12 11 13 10 | HB18: 03 13 04 09 16
A19: 16 | B19: 9 | C19: 1 | D19: 0 | E19: 16 | F19: 10 | G19: 17 | H19: 2014-08-17 | I19: DVE | M19: Scores | O19: Avril | Q19: Laval | V19: 17 | W19: 18 | X19: =FV31 -> 22 | Y19: 26 | Z19: 66 | AA19: 19 | AB19: 16 | AC19: 101 | AE19: 101 | AF19: 17 | AG19: 101 | AH19: 17 | AI19: =ARRIVEES!AC32 -> 1 | AJ19: 0 | AU19: 17 | AV19: 1 | AW19: 0 | AX19: 5 | AY19: 6 | AZ19: 4 | BA19: 3 | BB19: 13 | BC19: 9 | BD19: 22 | BE19: 1 | BF19: 13 | BG19: 17 | BH19: =ARRIVEES!AY32 -> 2 | BO19: 7 | BQ19: 17 | BR19: 2 | BS19: 3 | BT19: 0 | BU19: 5 | BV19: 4 | BW19: 2 | BX19: 11 | BY19: 7 | BZ19: 18 | CA19: 17 | CB19: 11 | CC19: 18 | CD19: =ARRIVEES!BV31 -> 9 | CE19: 3 | CG19: =OFFSET($DE$14,COLUMNS($A:A)-1,,,) -> 0 | CH19: =OFFSET($DE$14,COLUMNS($A:B)-1,,,) -> 0 | CI19: =OFFSET($DE$14,COLUMNS($A:C)-1,,,) -> 0 | CJ19: =OFFSET($DE$14,COLUMNS($A:D)-1,,,) -> 0 | CK19: =OFFSET($DE$14,COLUMNS($A:E)-1,,,) -> 0 | CL19: =OFFSET($DE$14,COLUMNS($A:F)-1,,,) -> 0 | CM19: =OFFSET($DE$14,COLUMNS($A:G)-1,,,) -> 0 | CN19: =OFFSET($DE$14,COLUMNS($A:H)-1,,,) -> 0 | CO19: =OFFSET($DE$14,COLUMNS($A:I)-1,,,) -> 0 | CR19: =SUM(CG19:CO19) -> 0 | CS19: 0 | CV19: 604/2 | FM19: 4 | FN19: 12 | FO19: 11 | FP19: 13 | FQ19: 10 | FR19: 6 | FS19: 72 | FT19: 5 | FU19: 41 | FV19: 38 | FW19: 35 | FX19: 36 | FY19: 41 | FZ19: 191 | GA19: 7 | GC19: 3 | GD19: 13 | GE19: 4 | GF19: 9 | GG19: 16 | GL19: 5 | GM19: 13 | GN19: 10 | GO19: 8 | GP19: 8 | GQ19: 11 | GR19: 50 | GS19: 5 | GZ19: 13 14 12 02 07 | HB19: 12 06 03 11 09
A20: 17 | B20: 17 | C20: 0 | D20: 10 | E20: 17 | F20: 27 | G20: 18 | H20: 2014-08-18 | I20: Chateaubriant | M20: simple | O20: Mai | Q20: Lisieux | V20: 18 | W20: 19 | X20: 13 | Y20: 7 | Z20: 39 | AA20: 11 | AB20: 22 | AC20: 72 | AE20: 72 | AF20: 18 | AG20: 72 | AH20: 18 | AI20: =ARRIVEES!AC33 -> 2 | AJ20: 0 | AU20: 18 | AV20: 1 | AW20: 1 | AX20: 2 | AY20: 4 | AZ20: 3 | BA20: 6 | BB20: 13 | BC20: 12 | BD20: 25 | BE20: 14 | BF20: 13 | BG20: 14 | BH20: =ARRIVEES!AY33 -> 4 | BO20: 8 | BQ20: 18 | BR20: 1 | BS20: 4 | BT20: 2 | BU20: 7 | BV20: 2 | BW20: 1 | BX20: 10 | BY20: 8 | BZ20: 18 | CA20: 18 | CB20: 10 | CC20: 17 | CD20: =ARRIVEES!BV32 -> 8 | CE20: 2 | CF20: 2014-08-10 | CQ20: =DB26 -> 0 | CV20: 710/8 | FM20: 2.7 | FN20: 14 | FO20: 12 | FP20: 2 | FQ20: 7 | FR20: 7 | FS20: 70 | FT20: 6 | FU20: 46 | FV20: 41 | FW20: 41 | FX20: 34 | FY20: 29 | FZ20: 191 | GA20: 10 | GC20: 2.4 | GD20: 6 | GE20: 3 | GF20: 11 | GG20: 9 | GL20: 6 | GM20: 7 | GN20: 17 | GO20: 9 | GP20: 11 | GQ20: 10 | GR20: 54 | GS20: 6 | GZ20: 09 06 17 01 15 | HB20: 12 05 09 02 08
A21: 18 | B21: 18 | C21: 1 | D21: 2 | E21: 18 | F21: 21 | G21: 19 | H21: 2014-08-19 | I21: DVE | M21: Année | O21: Juin | Q21: Mauquency | V21: 19 | W21: 2 | X21: 4 | Y21: 2 | Z21: 8 | AA21: 2 | AB21: 5 | AC21: 15 | AE21: 15 | AF21: 20 | AG21: 15 | AH21: 19 | AJ21: 0 | AU21: 19 | AV21: 0 | AW21: 0 | AX21: 0 | AY21: 0 | AZ21: 5 | BA21: 0 | BB21: 5 | BC21: 3 | BD21: 8 | BE21: 20 | BF21: 5 | BG21: 19 | BO21: 0 | BQ21: 19 | BR21: 0 | BS21: 0 | BT21: 0 | BU21: 0 | BV21: 0 | BW21: 0 | BX21: 0 | BY21: 0 | BZ21: 0 | CA21: 19 | CB21: 0 | CC21: 19 | CD21: =ARRIVEES!BV33 -> 14 | CE21: 0 | CG21: =OFFSET($DE$24,COLUMNS($A:A)-1,,,) -> 0 | CH21: =OFFSET($DE$24,COLUMNS($A:B)-1,,,) -> 0 | CI21: =OFFSET($DE$24,COLUMNS($A:C)-1,,,) -> 0 | CJ21: =OFFSET($DE$24,COLUMNS($A:D)-1,,,) -> 0 | CK21: =OFFSET($DE$24,COLUMNS($A:E)-1,,,) -> 0 | CL21: =OFFSET($DE$24,COLUMNS($A:F)-1,,,) -> 0 | CM21: =OFFSET($DE$24,COLUMNS($A:G)-1,,,) -> 0 | CN21: =OFFSET($DE$24,COLUMNS($A:H)-1,,,) -> 0 | CO21: =OFFSET($DE$24,COLUMNS($A:I)-1,,,) -> 0 | CR21: =SUM(CG21:CO21) -> 0 | CS21: 0 | CV21: 808/10 | CW21: 8 | CX21: 3 | CY21: 10 | CZ21: 2.55 | FM21: 9 | FN21: 6 | FO21: 17 | FP21: 1 | FQ21: 15 | FR21: 8 | FS21: 78 | FT21: 7 | FU21: 34 | FV21: 38 | FW21: 39 | FX21: 36 | FY21: 37 | FZ21: 184 | GA21: 9 | GC21: 12 | GD21: 5 | GE21: 9 | GF21: 2 | GG21: 8 | GL21: 7 | GM21: 12 | GN21: 5 | GO21: 9 | GP21: 7 | GQ21: 10 | GR21: 43 | GS21: 7 | GZ21: 08 05 01 07 16 | HB21: 12 18 10 16 02
A22: 19 | B22: 19 | C22: 0 | D22: 0 | E22: 19 | F22: 19 | G22: 4 | H22: 2014-08-20 | I22: VCS | M22: prono | O22: Juillet | Q22: Meslay du M | V22: 20 | W22: 2 | X22: 3 | Y22: 2 | Z22: 7 | AA22: 1 | AB22: 4 | AC22: 12 | AE22: 12 | AF22: 19 | AG22: 12 | AH22: 20 | AJ22: 0 | AU22: 20 | AV22: 0 | AW22: 0 | AX22: 2 | AY22: 2 | AZ22: 0 | BA22: 2 | BB22: 4 | BC22: 3 | BD22: 7 | BE22: 19 | BF22: 4 | BG22: 20 | BO22: 0 | BQ22: 20 | BR22: 0 | BS22: 0 | BT22: 0 | BU22: 0 | BV22: 0 | BW22: 0 | BX22: 0 | BY22: 0 | BZ22: 0 | CA22: 20 | CB22: 0 | CC22: 20 | CD22: 0 | CF22: 2014-08-11 | CQ22: =DB36 -> 0 | CV22: 916/15 | CW22: 16 | CX22: 3.75 | FM22: 8 | FN22: 5 | FO22: 1 | FP22: 7 | FQ22: 16 | FR22: 9 | FS22: 65 | FT22: 8 | FU22: 48 | FV22: 48 | FW22: 34 | FX22: 41 | FY22: 30 | FZ22: 201 | GA22: 10 | GC22: 12 | GD22: 18 | GE22: 10 | GF22: 16 | GG22: 2 | GL22: 8 | GM22: 11 | GN22: 5 | GO22: 12 | GP22: 11 | GQ22: 6 | GR22: 45 | GS22: 8 | GZ22: 17 18 06 12 05 | HB22: 15 01 10 08 04
A23: 20 | B23: 20 | C23: 0 | D23: 0 | E23: 20 | F23: 20 | G23: 20 | H23: 2014-08-21 | I23: DVE | O23: Août | Q23: Mont St Michel | W23: =SUM(W3:W22) -> 615 | X23: =SUM(X3:X22) -> 616 | Y23: =SUM(Y3:Y22) -> 616 | Z23: =SUM(AA3:AA22) -> 616 | AA23: =SUM(AA2:AA22) -> 616 | AB23: =SUM(AB2:AB22) -> 616 | AC23: =SUM(AC3:AC22) -> 3079 | AE23: =SUM(AE3:AE22) -> 3079 | AG23: =SUM(AG3:AG22) -> 3079 | AV23: =SUM(AV3:AV22) -> 139 | AW23: 139 | AX23: 139 | AY23: 417 | AZ23: 139 | BA23: 139 | BB23: 695 | BC23: =SUM(BC3:BC22) -> 338 | BD23: =SUM(BD3:BD22) -> 1033 | BE23: X | BF23: =BB23 -> 695 | BG23: X | BO23: 465 | BR23: =SUM(BR3:BR22) -> 106 | BS23: =SUM(BS3:BS22) -> 106 | BT23: 106 | BU23: 318 | BV23: 106 | BW23: 106 | BX23: 530 | BY23: 465 | BZ23: 995 | CB23: =BX23 -> 530 | CG23: =OFFSET($DE$34,COLUMNS($A:A)-1,,,) -> 0 | CH23: =OFFSET($DE$34,COLUMNS($A:B)-1,,,) -> 0 | CI23: =OFFSET($DE$34,COLUMNS($A:C)-1,,,) -> 0 | CJ23: =OFFSET($DE$34,COLUMNS($A:D)-1,,,) -> 0 | CK23: =OFFSET($DE$34,COLUMNS($A:E)-1,,,) -> 0 | CL23: =OFFSET($DE$34,COLUMNS($A:F)-1,,,) -> 0 | CM23: =OFFSET($DE$34,COLUMNS($A:G)-1,,,) -> 0 | CN23: =OFFSET($DE$34,COLUMNS($A:H)-1,,,) -> 0 | CO23: =OFFSET($DE$34,COLUMNS($A:I)-1,,,) -> 0 | CR23: =SUM(CG23:CO23) -> 0 | CS23: 0 | CX23: =SUM(CX14:CX22) -> 11.85 | CZ23: =SUM(CZ14:CZ22) -> 5.55 | DE23: =SUM(DE14:DE22) -> 0 | DG23: =SUM(DG14:DG22) -> 0 | DM23: =SUM(DM14:DM22) -> 0 | DO23: =SUM(DO14:DO22) -> 0 | DU23: =SUM(DU14:DU22) -> 0 | DW23: =SUM(DW14:DW22) -> 0 | EC23: =SUM(EC14:EC22) -> 0 | EE23: =SUM(EE14:EE22) -> 0 | FM23: 17 | FN23: 18 | FO23: 6 | FP23: 12 | FQ23: 5 | FR23: 10 | FS23: 66 | FT23: 9 | FU23: 34 | FV23: 41 | FW23: 48 | FX23: 29 | FY23: 32 | FZ23: 184 | GA23: 2 | GC23: 15 | GD23: 1 | GE23: 10 | GF23: 8 | GG23: 4 | GL23: 9 | GM23: 12 | GN23: 6 | GO23: 6 | GP23: 11 | GQ23: 9 | GR23: 44 | GS23: 9 | GZ23: 06 11 13 08 09 | HB23: 03 11 18 02 05
B24: =SUM(B4:B23) -> 210 | C24: 435 | D24: =AX80 -> 96 | F24: =SUM(F4:F23) -> 321 | H24: 2014-08-22 | I24: CBG | O24: Septembre | Q24: Nancy | AE24: VCS | BD24: atl | BF24: ATL | BO24: C/M | BZ24: C/M | CD24: scld | CF24: 2014-08-12 | CQ24: =DB46 -> 0 | CU24: 2014-08-03 | CV24: 101/3 | DB24: 2014-08-10 | DJ24: 2014-08-17 | DR24: 2014-08-24 | DZ24: 2014-08-31 | FM24: 6 | FN24: 11 | FO24: 13 | FP24: 8 | FQ24: 9 | FR24: 11 | FS24: 62 | FT24: 10 | FU24: 38 | FV24: 38 | FW24: 35 | FX24: 34 | FY24: 46 | FZ24: 191 | GA24: 1 | GC24: 3 | GD24: 11 | GE24: 18 | GF24: 2 | GG24: 5 | GL24: 10 | GM24: 10 | GN24: 12 | GO24: 13 | GP24: 9 | GQ24: 9 | GR24: 53 | GS24: 10 | GZ24: 03 04 08 14 05 | HB24: 16 05 11 10 13
C25: st malo | H25: 2014-08-23 | I25: DVE | O25: Octobre | Q25: Nantes | CG25: =OFFSET($DE$44,COLUMNS($A:A)-1,,,) -> 0 | CH25: =OFFSET($DE$44,COLUMNS($A:B)-1,,,) -> 0 | CI25: =OFFSET($DE$44,COLUMNS($A:C)-1,,,) -> 0 | CJ25: =OFFSET($DE$44,COLUMNS($A:D)-1,,,) -> 0 | CK25: =OFFSET($DE$44,COLUMNS($A:E)-1,,,) -> 0 | CL25: =OFFSET($DE$44,COLUMNS($A:F)-1,,,) -> 0 | CM25: =OFFSET($DE$44,COLUMNS($A:G)-1,,,) -> 0 | CN25: =OFFSET($DE$44,COLUMNS($A:H)-1,,,) -> 0 | CO25: =OFFSET($DE$44,COLUMNS($A:I)-1,,,) -> 0 | CR25: =SUM(CG25:CO25) -> 0 | CS25: 0 | CU25: dve | CV25: 202/5 | FM25: 3 | FN25: 4 | FO25: 8 | FP25: 14 | FQ25: 5 | FR25: 12 | FS25: 62 | FT25: 11 | FU25: 38 | FV25: 41 | FW25: 33 | FX25: 36 | FY25: 36 | FZ25: 184 | GA25: 11 | GC25: 16 | GD25: 5 | GE25: 11 | GF25: 10 | GG25: 13 | GL25: 11 | GM25: 4 | GN25: 9 | GO25: 13 | GP25: 7 | GQ25: 7 | GR25: 40 | GS25: 11 | GZ25: 01 11 17 03 07 | HB25: 12 13 18 16 17
D26: ba60 | H26: 2014-08-24 | I26: DVE | O26: Novembre | Q26: Pontchateau | AO26: Beaumont de L | AP26: 01 02 07 05 04 | CF26: 2014-08-13 | CQ26: =DB56 -> 0 | CU26: 13.5 | CV26: 304/5 | CY26: 5 | CZ26: 3.3 | DB26: 0 | DJ26: 0 | DR26: 0 | DZ26: 0 | FM26: 1 | FN26: 11 | FO26: 17 | FP26: 3 | FQ26: 7 | FR26: 13 | FS26: 73 | FT26: 12 | FU26: 38 | FV26: 30 | FW26: 43 | FX26: 35 | FY26: 39 | FZ26: 185 | GA26: 12 | GC26: 12 | GD26: 13 | GE26: 18 | GF26: 16 | GG26: 17 | GL26: 12 | GM26: 10 | GN26: 15 | GO26: 10 | GP26: 7 | GQ26: 11 | GR26: 53 | GS26: 12 | GZ26: 08 14 04 03 01 | HB26: 02 04 17 18 14
C27: az60 | H27: 2014-08-25 | I27: VCS | O27: Décembre | Q27: Reims | AP27: 05 14 13 08 06 | CG27: =OFFSET($DE$54,COLUMNS($A:A)-1,,,) -> 0 | CH27: =OFFSET($DE$54,COLUMNS($A:B)-1,,,) -> 0 | CI27: =OFFSET($DE$54,COLUMNS($A:C)-1,,,) -> 0 | CJ27: =OFFSET($DE$54,COLUMNS($A:D)-1,,,) -> 0 | CK27: =OFFSET($DE$54,COLUMNS($A:E)-1,,,) -> 0 | CL27: =OFFSET($DE$54,COLUMNS($A:F)-1,,,) -> 0 | CM27: =OFFSET($DE$54,COLUMNS($A:G)-1,,,) -> 0 | CN27: =OFFSET($DE$54,COLUMNS($A:H)-1,,,) -> 0 | CO27: =OFFSET($DE$54,COLUMNS($A:I)-1,,,) -> 0 | CR27: =SUM(CG27:CO27) -> 0 | CS27: 0 | CU27: =CU26 -> 13.5 | CV27: 401/3 | DB27: =DB26 -> 0 | DJ27: =DJ26 -> 0 | DR27: =DR26 -> 0 | DZ27: =DZ26 -> 0 | FM27: 8 | FN27: 14 | FO27: 4 | FP27: 3 | FQ27: 1 | FR27: 14 | FS27: 72 | FT27: 13 | FU27: 36 | FV27: 38 | FW27: 31 | FX27: 36 | FY27: 36 | FZ27: 177 | GA27: 15 | GC27: 2 | GD27: 4 | GE27: 17 | GF27: 18 | GG27: 14 | GL27: 13 | GM27: 13 | GN27: 9 | GO27: 10 | GP27: 8 | GQ27: 12 | GR27: 52 | GS27: 13 | GZ27: 08 05 11 14 12 | HB27: 04 12 07 06 01
E28: =TODAY() -> 2014-08-08 | H28: 2014-08-26 | I28: CLFNE | O28: 2012 | Q28: St Galmier | CF28: 2014-08-14 | CQ28: =DB66 -> 0 | CV28: 505/7 | CW28: 5 | CX28: 2.7 | CY28: 7 | CZ28: 2.7 | FM28: 8 | FN28: 5 | FO28: 11 | FP28: 14 | FQ28: 12 | FR28: 15 | FS28: 63 | FT28: 14 | FU28: 33 | FV28: 40 | FW28: 48 | FX28: 48 | FY28: 30 | FZ28: 199 | GA28: 4 | GC28: 4 | GD28: 12 | GE28: 7 | GF28: 6 | GG28: 1 | GL28: 14 | GM28: 5 | GN28: 17 | GO28: 8 | GP28: 13 | GQ28: 15 | GR28: 58 | GS28: 14 | GZ28: 08 05 17 12 02 | HB28: 16 06 10 04 12
H29: 2014-08-27 | I29: DVE | O29: Janvier | Q29: St Malo | CG29: =OFFSET($DE$64,COLUMNS($A:A)-1,,,) -> 0 | CH29: =OFFSET($DE$64,COLUMNS($A:B)-1,,,) -> 0 | CI29: =OFFSET($DE$64,COLUMNS($A:C)-1,,,) -> 0 | CJ29: =OFFSET($DE$64,COLUMNS($A:D)-1,,,) -> 0 | CK29: =OFFSET($DE$64,COLUMNS($A:E)-1,,,) -> 0 | CL29: =OFFSET($DE$64,COLUMNS($A:F)-1,,,) -> 0 | CM29: =OFFSET($DE$64,COLUMNS($A:G)-1,,,) -> 0 | CN29: =OFFSET($DE$64,COLUMNS($A:H)-1,,,) -> 0 | CO29: =OFFSET($DE$64,COLUMNS($A:I)-1,,,) -> 0 | CR29: =SUM(CG29:CO29) -> 0 | CS29: 0 | CV29: 601/4 | CY29: 4 | CZ29: 3 | FM29: 8 | FN29: 5 | FO29: 17 | FP29: 12 | FQ29: 2 | FR29: 16 | FS29: 44 | FT29: 15 | FU29: 34 | FV29: 35 | FW29: 39 | FX29: 42 | FY29: 28 | FZ29: 178 | GA29: 3 | GC29: 16 | GD29: 6 | GE29: 10 | GF29: 4 | GG29: 12 | GL29: 15 | GM29: 4 | GN29: 2 | GO29: 9 | GP29: 7 | GQ29: 10 | GR29: 32 | GS29: 15 | GZ29: 12 11 05 14 02 | HB29: 02 14 10 13 04
H30: 2014-08-28 | I30: CLFNE | O30: Février | Q30: Sables d'Olonne | CF30: 2014-08-15 | CQ30: =DJ6 -> 0 | CV30: 705/2 | FM30: 12 | FN30: 11 | FO30: 5 | FP30: 14 | FQ30: 2 | FR30: 17 | FS30: 35 | FT30: 16 | FU30: 25 | FV30: 21 | FW30: 28 | FX30: 24 | FY30: 31 | FZ30: 129 | GA30: 16 | GC30: 2 | GD30: 14 | GE30: 10 | GF30: 13 | GG30: 4 | GL30: 16 | GM30: 11 | GN30: 7 | GO30: 6 | GP30: 11 | GQ30: 4 | GR30: 39 | GS30: 16 | GZ30: 14 04 10 13 08 | HB30: 04 10 17 12 07
H31: 2014-08-29 | I31: CBG | O31: Mars | Q31: Strasbourg | AE31: 10+11 | AG31: 2011 | BD31: 10+/12 | BF31: 2012 | BZ31: 08+09/10 | CB31: 2010 | CG31: =OFFSET($DM$4,COLUMNS($A:A)-1,,,) -> 0 | CH31: =OFFSET($DM$4,COLUMNS($A:B)-1,,,) -> 0 | CI31: =OFFSET($DM$4,COLUMNS($A:C)-1,,,) -> 0 | CJ31: =OFFSET($DM$4,COLUMNS($A:D)-1,,,) -> 0 | CK31: =OFFSET($DM$4,COLUMNS($A:E)-1,,,) -> 0 | CL31: =OFFSET($DM$4,COLUMNS($A:F)-1,,,) -> 0 | CM31: =OFFSET($DM$4,COLUMNS($A:G)-1,,,) -> 0 | CN31: =OFFSET($DM$4,COLUMNS($A:H)-1,,,) -> 0 | CO31: =OFFSET($DM$4,COLUMNS($A:I)-1,,,) -> 0 | CR31: =SUM(CG31:CO31) -> 0 | CS31: 0 | CV31: 804/2 | CW31: 4 | CX31: 3.15 | FM31: 14 | FN31: 4 | FO31: 10 | FP31: 13 | FQ31: 8 | FR31: 18 | FS31: 23 | FT31: 17 | FU31: 18 | FV31: 22 | FW31: 26 | FX31: 19 | FY31: 16 | FZ31: 101 | GA31: 17 | GC31: 4 | GD31: 10 | GE31: 17 | GF31: 12 | GG31: 7 | GL31: 17 | GM31: 4 | GN31: 1 | GO31: 5 | GP31: 1 | GQ31: 4 | GR31: 15 | GS31: 17 | GZ31: 12 17 06 02 05 | HB31: 16 06 08 11 07
H32: 2014-08-30 | I32: VCS | O32: Avril | Q32: Toulouse | U32: D 4 | AD32: 2010 | AE32: ttx | AF32: clt | AG32: ttx | AH32: clt | AT32: E 5 | BC32: 8,9,10 | BD32: ttx | BE32: < Clt | BF32: ttx | BG32: Clt > | BP32: F 6 | BZ32: ttx | CA32: clt | CB32: ttx | CC32: clt | CF32: 2014-08-16 | CQ32: =DJ16 -> 0 | CV32: 910/5 | FM32: 12 | FN32: 17 | FO32: 6 | FP32: 2 | FQ32: 5 | FR32: 19 | FS32: 6 | FT32: 18 | FU32: 19 | FV32: 13 | FW32: 7 | FX32: 11 | FY32: 22 | FZ32: 72 | GA32: 18 | GC32: 16 | GD32: 6 | GE32: 8 | GF32: 11 | GG32: 7 | GL32: 18 | GM32: 2 | GN32: 5 | GO32: 5 | GP32: 4 | GQ32: 2 | GR32: 18 | GS32: 18 | GZ32: 03 17 08 14 13 | HB32: 14 01 06 13 03
H33: 2014-08-31 | I33: DVE | O33: Mai | Q33: Vire | U33: LCP 2009 | V33: 1 | W33: =GM15 -> 12 | X33: 15 | Y33: 9 | Z33: 0 | AA33: =GP15 -> 9 | AB33: 5 | AC33: =SUM(W33:AB33) -> 50 | AD33: =GR41 -> 0 | AE33: =AD33+AG33 -> 50 | AF33: 3 | AG33: =AC33 -> 50 | AH33: 16 | AI33: =ARRIVEES!CP3 -> 14 | AT33: DVE2009 | AU33: 1 | AV33: =GM376 -> 4 | AW33: =GN376 -> 5 | AX33: =GO376 -> 3 | AY33: =SUM(AV33:AX33) -> 12 | AZ33: =GP376 -> 4 | BA33: =GQ376 -> 4 | BB33: =AY33+AZ33+BA33 -> 20 | BC33: 14 | BD33: =BB33+BC33 -> 34 | BE33: 8 | BF33: =BB33 -> 20 | BG33: 1 | BH33: =ARRIVEES!DL3 -> 2 | BP33: COMPIEGNE | BQ33: 1 | BR33: =GM945 -> 1 | BS33: =GN945 -> 5 | BT33: =GO945 -> 2 | BU33: =BR33+BS33+BT33 -> 8 | BV33: =GP945 -> 2 | BW33: =GQ945 -> 3 | BX33: =BU33+BV33+BW33 -> 13 | BY33: 8 | BZ33: =BX33+BY33 -> 21 | CA33: 1 | CB33: =BX33 -> 13 | CC33: 3 | CD33: =ARRIVEES!EG26 -> 1 | CG33: =OFFSET($DM$14,COLUMNS($A:A)-1,,,) -> 0 | CH33: =OFFSET($DM$14,COLUMNS($A:B)-1,,,) -> 0 | CI33: =OFFSET($DM$14,COLUMNS($A:C)-1,,,) -> 0 | CJ33: =OFFSET($DM$14,COLUMNS($A:D)-1,,,) -> 0 | CK33: =OFFSET($DM$14,COLUMNS($A:E)-1,,,) -> 0 | CL33: =OFFSET($DM$14,COLUMNS($A:F)-1,,,) -> 0 | CM33: =OFFSET($DM$14,COLUMNS($A:G)-1,,,) -> 0 | CN33: =OFFSET($DM$14,COLUMNS($A:H)-1,,,) -> 0 | CO33: =OFFSET($DM$14,COLUMNS($A:I)-1,,,) -> 0 | CR33: =SUM(CG33:CO33) -> 0 | CS33: 0 | CX33: =SUM(CX24:CX32) -> 5.85 | CZ33: =SUM(CZ24:CZ32) -> 9 | DE33: =SUM(DE24:DE32) -> 0 | DG33: =SUM(DG24:DG32) -> 0 | DM33: =SUM(DM24:DM32) -> 0 | DO33: =SUM(DO24:DO32) -> 0 | DU33: =SUM(DU24:DU32) -> 0 | DW33: =SUM(DW24:DW32) -> 0 | EC33: =SUM(EC24:EC32) -> 0 | EE33: =SUM(EE24:EE32) -> 0 | FM33: 3 | FN33: 17 | FO33: 8 | FP33: 14 | FQ33: 13 | FR33: 20 | FS33: 3 | FT33: 19 | FU33: 2 | FV33: 4 | FW33: 2 | FX33: 2 | FY33: 5 | FZ33: 15 | GA33: 19 | GC33: 14 | GD33: 1 | GE33: 6 | GF33: 13 | GG33: 3 | GL33: 19 | GM33: 0 | GN33: 0 | GO33: 0 | GP33: 0 | GQ33: 0 | GR33: 0 | GS33: 19 | GZ33: 15 13 03 17 01 | HB33: 07 17 03 09 04
O34: Juin | V34: 2 | W34: 8 | X34: 4 | Y34: 10 | Z34: 0 | AA34: 9 | AB34: 11 | AC34: =SUM(W34:AB34) -> 42 | AD34: =GR42 -> 0 | AE34: =AD34+AG34 -> 42 | AF34: 16 | AG34: 42 | AH34: 3 | AI34: =ARRIVEES!CP4 -> 3 | AU34: 2 | AV34: 4 | AW34: 2 | AX34: 2 | AY34: =SUM(AV34:AX34) -> 8 | AZ34: 2 | BA34: 4 | BB34: =AY34+AZ34+BA34 -> 14 | BC34: 15 | BD34: =BB34+BC34 -> 29 | BE34: 9 | BF34: =BB34 -> 14 | BG34: 2 | BH34: =ARRIVEES!DL4 -> 4 | BQ34: 2 | BR34: 1 | BS34: 2 | BT34: 4 | BU34: =BR34+BS34+BT34 -> 7 | BV34: 4 | BW34: 1 | BX34: =BU34+BV34+BW34 -> 12 | BY34: 2 | BZ34: 14 | CA34: 11 | CB34: 12 | CC34: 8 | CD34: =ARRIVEES!EG27 -> 3 | CF34: 2014-08-17 | CQ34: =DJ26 -> 0 | CU34: 2014-08-04 | CV34: 108/3 | DB34: 2014-08-11 | DJ34: 2014-08-18 | DR34: 2014-08-25 | FM34: 15 | FN34: 13 | FO34: 3 | FP34: 17 | FQ34: 1 | FR34: 21 | FS34: =SUM(FS14:FS33) -> 1099 | FT34: 20 | FU34: 2 | FV34: 3 | FW34: 2 | FX34: 1 | FY34: 4 | FZ34: 12 | GA34: 20 | GC34: 7 | GD34: 17 | GE34: 3 | GF34: 9 | GG34: 4 | GL34: 20 | GM34: 0 | GN34: 0 | GO34: 1 | GP34: 0 | GQ34: 0 | GR34: 1 | GS34: 20 | GZ34: 11 14 08 03 02 | HB34: 08 01 03 16 12
O35: Juillet | V35: 3 | W35: 14 | X35: 10 | Y35: 9 | Z35: 0 | AA35: 10 | AB35: 12 | AC35: 55 | AD35: 0 | AE35: 55 | AF35: 9 | AG35: 55 | AH35: 4 | AI35: =ARRIVEES!CP5 -> 12 | AU35: 3 | AV35: 4 | AW35: 4 | AX35: 4 | AY35: 12 | AZ35: 2 | BA35: 2 | BB35: 16 | BC35: 10 | BD35: 26 | BE35: 2 | BF35: 16 | BG35: 3 | BH35: =ARRIVEES!DL5 -> 6 | BP35: CPGNE | BQ35: 3 | BR35: 7 | BS35: 6 | BT35: 3 | BU35: 16 | BV35: 2 | BW35: 2 | BX35: 20 | BY35: 5 | BZ35: 25 | CA35: 3 | CB35: 20 | CC35: 9 | CD35: =ARRIVEES!EG28 -> 7 | CG35: =OFFSET($DM$24,COLUMNS($A:A)-1,,,) -> 0 | CH35: =OFFSET($DM$24,COLUMNS($A:B)-1,,,) -> 0 | CI35: =OFFSET($DM$24,COLUMNS($A:C)-1,,,) -> 0 | CJ35: =OFFSET($DM$24,COLUMNS($A:D)-1,,,) -> 0 | CK35: =OFFSET($DM$24,COLUMNS($A:E)-1,,,) -> 0 | CL35: =OFFSET($DM$24,COLUMNS($A:F)-1,,,) -> 0 | CM35: =OFFSET($DM$24,COLUMNS($A:G)-1,,,) -> 0 | CN35: =OFFSET($DM$24,COLUMNS($A:H)-1,,,) -> 0 | CO35: =OFFSET($DM$24,COLUMNS($A:I)-1,,,) -> 0 | CR35: =SUM(CG35:CO35) -> 0 | CS35: 0 | CU35: clfne | CV35: 202/1 | CW35: 2 | CX35: 2.1 | CY35: 1 | CZ35: 2.1 | FM35: 11 | FN35: 14 | FO35: 8 | FP35: 3 | FQ35: 2 | FR35: 22 | FU35: =SUM(FU15:FU34) -> 615 | FV35: 616 | FW35: 616 | FX35: 616 | FY35: 616 | FZ35: 3079 | GC35: 8 | GD35: 1 | GE35: 3 | GF35: 16 | GG35: 12 | GL35: T G | GM35: =SUM(GM15:GM34) -> 156 | GN35: =SUM(GN15:GN34) -> 157 | GO35: =SUM(GO15:GO34) -> 157 | GP35: =SUM(GP15:GP34) -> 157 | GQ35: =SUM(GQ15:GQ34) -> 157 | GR35: 784 | GZ35: 10 08 07 13 16 | HB35: 11 06 09 14 15
O36: Août | V36: 4 | W36: 4 | X36: 8 | Y36: 5 | Z36: 0 | AA36: 14 | AB36: 9 | AC36: 40 | AD36: 0 | AE36: 40 | AF36: 8 | AG36: 40 | AH36: 6 | AI36: =ARRIVEES!CP6 -> 6 | AO36: Caen | AP36: 2008/2009 | AU36: 4 | AV36: 2 | AW36: 2 | AX36: 1 | AY36: 5 | AZ36: 4 | BA36: 1 | BB36: 10 | BC36: 12 | BD36: 22 | BE36: 5 | BF36: 10 | BG36: 4 | BH36: =ARRIVEES!DL6 -> 7 | BQ36: 4 | BR36: 2 | BS36: 1 | BT36: 3 | BU36: 6 | BV36: 4 | BW36: 2 | BX36: 12 | BY36: 2 | BZ36: 14 | CA36: 5 | CB36: 12 | CC36: 11 | CD36: =ARRIVEES!EG29 -> 4 | CF36: 2014-08-18 | CQ36: =DJ36 -> 0 | CU36: 12 | CV36: 303/7 | DB36: 0 | DJ36: 0 | DR36: 0 | EC36: =EC33+EC23+EC13 -> 0 | EE36: =EE33+EE23+EE13 -> 0 | FM36: 10 | FN36: 8 | FO36: 7 | FP36: 13 | FQ36: 16 | FR36: 23 | GC36: 11 | GD36: 6 | GE36: 9 | GF36: 14 | GG36: 15 | GZ36: 06 17 15 03 08 | HB36: 09 08 15 03 13
O37: Septembre | V37: 5 | W37: 13 | X37: 10 | Y37: 8 | Z37: 0 | AA37: 8 | AB37: 11 | AC37: 50 | AD37: 0 | AE37: 50 | AF37: 5 | AG37: 50 | AH37: 9 | AI37: =ARRIVEES!CP7 -> 10 | AO37: cad | AP37: 18 17 09 01 03 | AU37: 5 | AV37: 4 | AW37: 4 | AX37: 3 | AY37: 11 | AZ37: 2 | BA37: 5 | BB37: 18 | BC37: 15 | BD37: 33 | BE37: 3 | BF37: 18 | BG37: 5 | BH37: =ARRIVEES!DL7 -> 1 | BQ37: 5 | BR37: 1 | BS37: 1 | BT37: 4 | BU37: 6 | BV37: 3 | BW37: 2 | BX37: 11 | BY37: 8 | BZ37: 19 | CA37: 7 | CB37: 11 | CC37: 16 | CD37: =ARRIVEES!EG30 -> 8 | CG37: =OFFSET($DM$34,COLUMNS($A:A)-1,,,) -> 0 | CH37: =OFFSET($DM$34,COLUMNS($A:B)-1,,,) -> 0 | CI37: =OFFSET($DM$34,COLUMNS($A:C)-1,,,) -> 0 | CJ37: =OFFSET($DM$34,COLUMNS($A:D)-1,,,) -> 0 | CK37: =OFFSET($DM$34,COLUMNS($A:E)-1,,,) -> 0 | CL37: =OFFSET($DM$34,COLUMNS($A:F)-1,,,) -> 0 | CM37: =OFFSET($DM$34,COLUMNS($A:G)-1,,,) -> 0 | CN37: =OFFSET($DM$34,COLUMNS($A:H)-1,,,) -> 0 | CO37: =OFFSET($DM$34,COLUMNS($A:I)-1,,,) -> 0 | CR37: =SUM(CG37:CO37) -> 0 | CS37: 0 | CU37: =CU36 -> 12 | CV37: 409/14 | CY37: 14 | CZ37: 3.6 | DB37: =DB36 -> 0 | DJ37: =DJ36 -> 0 | DR37: =DR36 -> 0 | FM37: 6 | FN37: 17 | FO37: 15 | FP37: 3 | FQ37: 8 | FR37: 24 | FV37: Accès | FW37: 2011 | GC37: 9 | GD37: 8 | GE37: 15 | GF37: 3 | GG37: 13 | GZ37: 13 09 10 07 05 | HB37: 07 14 05 01 09
O38: Octobre | V38: 6 | W38: 7 | X38: 17 | Y38: 9 | Z38: 0 | AA38: 11 | AB38: 10 | AC38: 54 | AD38: 0 | AE38: 54 | AF38: 7 | AG38: 54 | AH38: 10 | AI38: =ARRIVEES!CP8 -> 13 | AP38: 07 16 06 12 01 | AU38: 6 | AV38: 4 | AW38: 2 | AX38: 6 | AY38: 12 | AZ38: 3 | BA38: 2 | BB38: 17 | BC38: 13 | BD38: 30 | BE38: 6 | BF38: 17 | BG38: 6 | BH38: =ARRIVEES!DL8 -> 3 | BQ38: 6 | BR38: 6 | BS38: 4 | BT38: 4 | BU38: 14 | BV38: 0 | BW38: 2 | BX38: 16 | BY38: 2 | BZ38: 18 | CA38: 8 | CB38: 16 | CC38: 17 | CD38: =ARRIVEES!EG31 -> 10 | CF38: 2014-08-19 | CQ38: =DJ46 -> 0 | CV38: 509/11 | FM38: 13 | FN38: 9 | FO38: 10 | FP38: 7 | FQ38: 5 | FR38: 25 | GC38: 7 | GD38: 14 | GE38: 5 | GF38: 1 | GG38: 9 | GZ38: 14 11 05 09 08 | HB38: 08 03 16 05 09
O39: Novembre | V39: 7 | W39: 12 | X39: 5 | Y39: 9 | Z39: 0 | AA39: 7 | AB39: 10 | AC39: 43 | AD39: 0 | AE39: 43 | AF39: 11 | AG39: 43 | AH39: 12 | AI39: =ARRIVEES!CP9 -> 1 | AP39: 03 13 08 15 16 | AU39: 7 | AV39: 5 | AW39: 2 | AX39: 3 | AY39: 10 | AZ39: 4 | BA39: 2 | BB39: 16 | BC39: 11 | BD39: 27 | BE39: 11 | BF39: 16 | BG39: 7 | BH39: =ARRIVEES!DL9 -> 9 | BQ39: 7 | BR39: 2 | BS39: 0 | BT39: 3 | BU39: 5 | BV39: 6 | BW39: 3 | BX39: 14 | BY39: 7 | BZ39: 21 | CA39: 9 | CB39: 14 | CC39: 1 | CD39: =ARRIVEES!EG32 -> 11 | CG39: =OFFSET($DM$44,COLUMNS($A:A)-1,,,) -> 0 | CH39: =OFFSET($DM$44,COLUMNS($A:B)-1,,,) -> 0 | CI39: =OFFSET($DM$44,COLUMNS($A:C)-1,,,) -> 0 | CJ39: =OFFSET($DM$44,COLUMNS($A:D)-1,,,) -> 0 | CK39: =OFFSET($DM$44,COLUMNS($A:E)-1,,,) -> 0 | CL39: =OFFSET($DM$44,COLUMNS($A:F)-1,,,) -> 0 | CM39: =OFFSET($DM$44,COLUMNS($A:G)-1,,,) -> 0 | CN39: =OFFSET($DM$44,COLUMNS($A:H)-1,,,) -> 0 | CO39: =OFFSET($DM$44,COLUMNS($A:I)-1,,,) -> 0 | CR39: =SUM(CG39:CO39) -> 0 | CS39: 0 | CV39: 605/10 | CW39: 5 | CX39: 2.25 | CY39: 10 | CZ39: 2.85 | FM39: 14 | FN39: 11 | FO39: 5 | FP39: 9 | FQ39: 8 | FR39: 26 | GC39: 8 | GD39: 3 | GE39: 16 | GF39: 5 | GG39: 9 | GZ39: 10,13 05 15 14 | HB39: 10 08 07 14 06
O40: Décembre | V40: 8 | W40: 11 | X40: 5 | Y40: 12 | Z40: 0 | AA40: 11 | AB40: 6 | AC40: 45 | AD40: 0 | AE40: 45 | AF40: 4 | AG40: 45 | AH40: 1 | AI40: =ARRIVEES!CP10 -> 5 | AP40: 13 03 05 09 04 | AU40: 8 | AV40: 3 | AW40: 2 | AX40: 2 | AY40: 7 | AZ40: 2 | BA40: 4 | BB40: 13 | BC40: 9 | BD40: 22 | BE40: 14 | BF40: 13 | BG40: 8 | BH40: =ARRIVEES!DL10 -> 5 | BQ40: 8 | BR40: 2 | BS40: 1 | BT40: 3 | BU40: 6 | BV40: 2 | BW40: 3 | BX40: 11 | BY40: 4 | BZ40: 15 | CA40: 10 | CB40: 11 | CC40: 4 | CD40: =ARRIVEES!EG33 -> 2 | CF40: 2014-08-20 | CQ40: =DJ56 -> 0 | CV40: 706/4 | CW40: 6 | CX40: 3 | CY40: 4 | CZ40: 3 | FM40: 10 | FN40: 13 | FO40: 5 | FP40: 15 | FQ40: 14 | FR40: 27 | FS40: 2014 | FU40: tot c1 | FV40: tot c2 | FW40: tot c3 | FX40: tot c4 | FY40: tot c5 | FZ40: A09/10 | GA40: Clt | GC40: 10 | GD40: 8 | GE40: 7 | GF40: 14 | GG40: 6 | GZ40: 06 07 13 15 12 | HB40: 12 06 02 16 08
A41: Lien copie retourmois | O41: 2013 | V41: 9 | W41: 12 | X41: 6 | Y41: 6 | Z41: 0 | AA41: 11 | AB41: 9 | AC41: 44 | AD41: 0 | AE41: 44 | AF41: 12 | AG41: 44 | AH41: 2 | AP41: 06 09 10 15 18 | AU41: 9 | AV41: 3 | AW41: 6 | AX41: 1 | AY41: 10 | AZ41: 1 | BA41: 0 | BB41: 11 | BC41: 16 | BD41: 27 | BE41: 15 | BF41: 11 | BG41: 9 | BQ41: 9 | BR41: 3 | BS41: 2 | BT41: 3 | BU41: 8 | BV41: 3 | BW41: 0 | BX41: 11 | BY41: 4 | BZ41: 15 | CA41: 14 | CB41: 11 | CC41: 6 | CG41: =OFFSET($DM$54,COLUMNS($A:A)-1,,,) -> 0 | CH41: =OFFSET($DM$54,COLUMNS($A:B)-1,,,) -> 0 | CI41: =OFFSET($DM$54,COLUMNS($A:C)-1,,,) -> 0 | CJ41: =OFFSET($DM$54,COLUMNS($A:D)-1,,,) -> 0 | CK41: =OFFSET($DM$54,COLUMNS($A:E)-1,,,) -> 0 | CL41: =OFFSET($DM$54,COLUMNS($A:F)-1,,,) -> 0 | CM41: =OFFSET($DM$54,COLUMNS($A:G)-1,,,) -> 0 | CN41: =OFFSET($DM$54,COLUMNS($A:H)-1,,,) -> 0 | CO41: =OFFSET($DM$54,COLUMNS($A:I)-1,,,) -> 0 | CR41: =SUM(CG41:CO41) -> 0 | CS41: 0 | CV41: 802/9 | CW41: 2 | CX41: 2.4 | FM41: 6 | FN41: 7 | FO41: 13 | FP41: 15 | FQ41: 12 | FR41: 28 | FT41: 1 | FU41: =COUNTIF(FM$574:FM$657,$FT41) -> 3 | FV41: =COUNTIF(FN$574:FN$657,$FT41) -> 1 | FW41: 2 | FX41: 3 | FY41: 8 | FZ41: =SUM(FU41:FY41) -> 17 | GA41: 8 | GC41: 12 | GD41: 6 | GE41: 2 | GF41: 16 | GG41: 8 | GZ41: 11 04 12 06 07 | HB41: 11 05 01 07 14
O42: Janvier | V42: 10 | W42: 10 | X42: 12 | Y42: 13 | Z42: 0 | AA42: 9 | AB42: 9 | AC42: 53 | AD42: 0 | AE42: 53 | AF42: 14 | AG42: 53 | AH42: 8 | AP42: 15 10 06 09 01 | AU42: 10 | AV42: 2 | AW42: 3 | AX42: 1 | AY42: 6 | AZ42: 3 | BA42: 4 | BB42: 13 | BC42: 11 | BD42: 24 | BE42: 16 | BF42: 13 | BG42: 10 | BQ42: 10 | BR42: 1 | BS42: 3 | BT42: 3 | BU42: 7 | BV42: 2 | BW42: 3 | BX42: 12 | BY42: 5 | BZ42: 17 | CA42: 16 | CB42: 12 | CC42: 10 | CF42: 2014-08-21 | CQ42: =DJ66 -> 0 | FM42: 11 | FN42: 4 | FO42: 12 | FP42: 6 | FQ42: 7 | FR42: 29 | FT42: 2 | FU42: =COUNTIF(FM$574:FM$657,$FT42) -> 4 | FV42: 2 | FW42: 2 | FX42: 4 | FY42: 5 | FZ42: 17 | GA42: 6 | GC42: 11 | GD42: 5 | GE42: 1 | GF42: 7 | GG42: 14 | GZ42: 13 11 10 02 04
A43: :http://cjoint.com/?3EotufCAe0Z | O43: Février | V43: 11 | W43: 4 | X43: 9 | Y43: 13 | Z43: 0 | AA43: 7 | AB43: 7 | AC43: 40 | AD43: 0 | AE43: 40 | AF43: 15 | AG43: 40 | AH43: 14 | AI43: =ARRIVEES!CS26 -> 16 | AP43: 08 13 15 10 11 | AU43: 11 | AV43: 3 | AW43: 2 | AX43: 4 | AY43: 9 | AZ43: 7 | BA43: 3 | BB43: 19 | BC43: 9 | BD43: 28 | BE43: 7 | BF43: 19 | BG43: 11 | BH43: =ARRIVEES!DN26 -> 11 | BQ43: 11 | BR43: 5 | BS43: 2 | BT43: 3 | BU43: 10 | BV43: 0 | BW43: 2 | BX43: 12 | BY43: 6 | BZ43: 18 | CA43: 12 | CB43: 12 | CC43: 12 | CD43: =ARRIVEES!EJ26 -> 2 | CG43: =OFFSET($DM$64,COLUMNS($A:A)-1,,,) -> 0 | CH43: =OFFSET($DM$64,COLUMNS($A:B)-1,,,) -> 0 | CI43: =OFFSET($DM$64,COLUMNS($A:C)-1,,,) -> 0 | CJ43: =OFFSET($DM$64,COLUMNS($A:D)-1,,,) -> 0 | CK43: =OFFSET($DM$64,COLUMNS($A:E)-1,,,) -> 0 | CL43: =OFFSET($DM$64,COLUMNS($A:F)-1,,,) -> 0 | CM43: =OFFSET($DM$64,COLUMNS($A:G)-1,,,) -> 0 | CN43: =OFFSET($DM$64,COLUMNS($A:H)-1,,,) -> 0 | CO43: =OFFSET($DM$64,COLUMNS($A:I)-1,,,) -> 0 | CR43: =SUM(CG43:CO43) -> 0 | CS43: 0 | CX43: =SUM(CX34:CX42) -> 9.75 | CZ43: =SUM(CZ34:CZ42) -> 11.55 | DE43: =SUM(DE34:DE42) -> 0 | DG43: =SUM(DG34:DG42) -> 0 | DM43: =SUM(DM34:DM42) -> 0 | DO43: =SUM(DO34:DO42) -> 0 | DU43: =SUM(DU34:DU42) -> 0 | DW43: =SUM(DW34:DW42) -> 0 | FM43: 13 | FN43: 11 | FO43: 10 | FP43: 2 | FQ43: 4 | FR43: 30 | FT43: 3 | FU43: 5 | FV43: 6 | FW43: 2 | FX43: 0 | FY43: 2 | FZ43: 15 | GA43: 13 | GC43: =ARRIVEES!CB32 -> 17 | GD43: =ARRIVEES!CC32 -> 12 | GE43: =ARRIVEES!CD32 -> 15 | GF43: =ARRIVEES!CE32 -> 9 | GG43: =ARRIVEES!CF32 -> 4 | GH43: 2010 | GZ43: 12 16 07 09 05
O44: Mars | V44: 12 | W44: 10 | X44: 15 | Y44: 10 | Z44: 0 | AA44: 7 | AB44: 11 | AC44: 53 | AD44: 0 | AE44: 53 | AF44: 1 | AG44: 53 | AH44: 5 | AI44: =ARRIVEES!CS27 -> 1 | AO44: 2010 | AU44: 12 | AV44: 1 | AW44: 2 | AX44: 6 | AY44: 9 | AZ44: 1 | BA44: 2 | BB44: 12 | BC44: 9 | BD44: 21 | BE44: 10 | BF44: 12 | BG44: 12 | BH44: =ARRIVEES!DN27 -> 1 | BQ44: 12 | BR44: 2 | BS44: 2 | BT44: 2 | BU44: 6 | BV44: 3 | BW44: 5 | BX44: 14 | BY44: 3 | BZ44: 17 | CA44: 13 | CB44: 14 | CC44: 14 | CD44: =ARRIVEES!EJ27 -> 3 | CF44: 2014-08-22 | CQ44: =DR6 -> 0 | CU44: 2014-08-05 | CV44: 104/6 | CY44: 6 | CZ44: 6.9 | DB44: 2014-08-12 | DJ44: 2014-08-19 | DR44: 2014-08-26 | FM44: 12 | FN44: 16 | FO44: 7 | FP44: 9 | FQ44: 5 | FR44: 31 | FT44: 4 | FU44: 3 | FV44: 5 | FW44: 5 | FX44: 4 | FY44: 3 | FZ44: 20 | GA44: 7 | GC44: =ARRIVEES!CB33 -> 2 | GD44: =ARRIVEES!CC33 -> 6 | GE44: =ARRIVEES!CD33 -> 11 | GF44: =ARRIVEES!CE33 -> 3 | GG44: =ARRIVEES!CF33 -> 14 | GZ44: 02 09 07 11 14
A45: http://cjoint.com/?BEqiWek0qAS | O45: Avril | V45: 13 | W45: 13 | X45: 9 | Y45: 10 | Z45: 0 | AA45: 8 | AB45: 12 | AC45: 52 | AD45: 0 | AE45: 52 | AF45: 2 | AG45: 52 | AH45: 11 | AI45: =ARRIVEES!CS28 -> 4 | AU45: 13 | AV45: 1 | AW45: 2 | AX45: 3 | AY45: 6 | AZ45: 3 | BA45: 3 | BB45: 12 | BC45: 12 | BD45: 24 | BE45: 1 | BF45: 12 | BG45: 13 | BH45: =ARRIVEES!DN28 -> 16 | BQ45: 13 | BR45: 0 | BS45: 4 | BT45: 0 | BU45: 4 | BV45: 4 | BW45: 0 | BX45: 8 | BY45: 4 | BZ45: 12 | CA45: 15 | CB45: 8 | CC45: 15 | CD45: =ARRIVEES!EJ28 -> 5 | CG45: =OFFSET($DU$4,COLUMNS($A:A)-1,,,) -> 0 | CH45: =OFFSET($DU$4,COLUMNS($A:B)-1,,,) -> 0 | CI45: =OFFSET($DU$4,COLUMNS($A:C)-1,,,) -> 0 | CJ45: =OFFSET($DU$4,COLUMNS($A:D)-1,,,) -> 0 | CK45: =OFFSET($DU$4,COLUMNS($A:E)-1,,,) -> 0 | CL45: =OFFSET($DU$4,COLUMNS($A:F)-1,,,) -> 0 | CM45: =OFFSET($DU$4,COLUMNS($A:G)-1,,,) -> 0 | CN45: =OFFSET($DU$4,COLUMNS($A:H)-1,,,) -> 0 | CO45: =OFFSET($DU$4,COLUMNS($A:I)-1,,,) -> 0 | CR45: =SUM(CG45:CO45) -> 0 | CS45: 0 | CU45: dve | CV45: 206/7 | CY45: 7 | CZ45: 6.9 | FM45: 2 | FN45: 9 | FO45: 7 | FP45: 11 | FQ45: 14 | FR45: 32 | FT45: 5 | FU45: 4 | FV45: 2 | FW45: 4 | FX45: 5 | FY45: 4 | FZ45: 19 | GA45: 14 | GC45: =ARRIVEES!CB34 -> 13 | GD45: =ARRIVEES!CC34 -> 11 | GE45: =ARRIVEES!CD34 -> 4 | GF45: =ARRIVEES!CE34 -> 7 | GG45: =ARRIVEES!CF34 -> 15 | GZ45: 01 15 08 07 06
O46: Mai | V46: 14 | W46: 5 | X46: 17 | Y46: 8 | Z46: 0 | AA46: 13 | AB46: 15 | AC46: 58 | AD46: 0 | AE46: 58 | AF46: 6 | AG46: 58 | AH46: 18 | AI46: =ARRIVEES!CS29 -> 2 | AU46: 14 | AV46: 3 | AW46: 1 | AX46: 2 | AY46: 6 | AZ46: 2 | BA46: 5 | BB46: 13 | BC46: 16 | BD46: 29 | BE46: 4 | BF46: 13 | BG46: 14 | BH46: =ARRIVEES!DN29 -> 5 | BQ46: 14 | BR46: 4 | BS46: 4 | BT46: 2 | BU46: 10 | BV46: 2 | BW46: 4 | BX46: 16 | BY46: 5 | BZ46: 21 | CA46: 4 | CB46: 16 | CC46: 2 | CD46: =ARRIVEES!EJ29 -> 6 | CF46: 2014-08-23 | CQ46: =DR16 -> 0 | CU46: 12 | CV46: 302/12 | DB46: 0 | DJ46: 0 | DR46: 0 | FM46: 1 | FN46: 15 | FO46: 8 | FP46: 7 | FQ46: 6 | FR46: 33 | FT46: 6 | FU46: 2 | FV46: 4 | FW46: 3 | FX46: 4 | FY46: 2 | FZ46: 15 | GA46: 9 | GC46: =ARRIVEES!CB35 -> 1 | GD46: =ARRIVEES!CC35 -> 18 | GE46: =ARRIVEES!CD35 -> 12 | GF46: =ARRIVEES!CE35 -> 4 | GG46: =ARRIVEES!CF35 -> 15 | GZ46: 03 14 10 15 01
O47: Juin | V47: 15 | W47: 4 | X47: 2 | Y47: 9 | Z47: 0 | AA47: 7 | AB47: 10 | AC47: 32 | AD47: 0 | AE47: 32 | AF47: 10 | AG47: 32 | AH47: 7 | AI47: =ARRIVEES!CS30 -> 5 | AU47: 15 | AV47: 1 | AW47: 5 | AX47: 2 | AY47: 8 | AZ47: 5 | BA47: 3 | BB47: 16 | BC47: 10 | BD47: 26 | BE47: 13 | BF47: 16 | BG47: 15 | BH47: =ARRIVEES!DN30 -> 7 | BQ47: 15 | BR47: 4 | BS47: 0 | BT47: 1 | BU47: 5 | BV47: 1 | BW47: 2 | BX47: 8 | BY47: 3 | BZ47: 11 | CA47: 6 | CB47: 8 | CC47: 13 | CD47: =ARRIVEES!EJ30 -> 7 | CG47: =OFFSET($DU$14,COLUMNS($A:A)-1,,,) -> 0 | CH47: =OFFSET($DU$14,COLUMNS($A:B)-1,,,) -> 0 | CI47: =OFFSET($DU$14,COLUMNS($A:C)-1,,,) -> 0 | CJ47: =OFFSET($DU$14,COLUMNS($A:D)-1,,,) -> 0 | CK47: =OFFSET($DU$14,COLUMNS($A:E)-1,,,) -> 0 | CL47: =OFFSET($DU$14,COLUMNS($A:F)-1,,,) -> 0 | CM47: =OFFSET($DU$14,COLUMNS($A:G)-1,,,) -> 0 | CN47: =OFFSET($DU$14,COLUMNS($A:H)-1,,,) -> 0 | CO47: =OFFSET($DU$14,COLUMNS($A:I)-1,,,) -> 0 | CR47: =SUM(CG47:CO47) -> 0 | CS47: 0 | CU47: =CU46 -> 12 | CV47: 401/6 | CW47: 1 | CX47: 2.25 | DB47: =DB46 -> 0 | DJ47: =DJ46 -> 0 | DR47: =DR46 -> 0 | FM47: 3 | FN47: 14 | FO47: 10 | FP47: 15 | FQ47: 1 | FR47: 34 | FT47: 7 | FU47: 2 | FV47: 1 | FW47: 4 | FX47: 4 | FY47: 3 | FZ47: 14 | GA47: 10 | GC47: =ARRIVEES!CB36 -> 9 | GD47: =ARRIVEES!CC36 -> 10 | GE47: =ARRIVEES!CD36 -> 5 | GF47: =ARRIVEES!CE36 -> 1 | GG47: =ARRIVEES!CF36 -> 11 | GZ47: 02 09 11 15 18
O48: Juillet | V48: 16 | W48: 11 | X48: 7 | Y48: 6 | Z48: 0 | AA48: 11 | AB48: 4 | AC48: 39 | AD48: 0 | AE48: 39 | AF48: 13 | AG48: 39 | AH48: 13 | AI48: =ARRIVEES!CS31 -> 10 | AU48: 16 | AV48: 3 | AW48: 2 | AX48: 3 | AY48: 8 | AZ48: 2 | BA48: 3 | BB48: 13 | BC48: 10 | BD48: 23 | BE48: 18 | BF48: 13 | BG48: 16 | BH48: =ARRIVEES!DN31 -> 10 | BQ48: 16 | BR48: 0 | BS48: 4 | BT48: 2 | BU48: 6 | BV48: 1 | BW48: 4 | BX48: 11 | BY48: 3 | BZ48: 14 | CA48: 17 | CB48: 11 | CC48: 18 | CD48: =ARRIVEES!EJ31 -> 10 | CF48: 2014-08-24 | CQ48: =DR26 -> 0 | CV48: 503/4 | CW48: 3 | CX48: 3.3 | CY48: 4 | CZ48: 3.3 | FM48: 2 | FN48: 9 | FO48: 11 | FP48: 15 | FQ48: 18 | FR48: 35 | FT48: 8 | FU48: 2 | FV48: 5 | FW48: 4 | FX48: 1 | FY48: 2 | FZ48: 14 | GA48: 2 | GC48: =ARRIVEES!CB37 -> 16 | GD48: =ARRIVEES!CC37 -> 12 | GE48: =ARRIVEES!CD37 -> 15 | GF48: =ARRIVEES!CE37 -> 7 | GG48: =ARRIVEES!CF37 -> 14 | GZ48: 13 09 01 04 10
O49: Août | V49: 17 | W49: 4 | X49: 1 | Y49: 5 | Z49: 0 | AA49: 1 | AB49: 4 | AC49: 15 | AD49: 0 | AE49: 15 | AF49: 18 | AG49: 15 | AH49: 15 | AI49: =ARRIVEES!CS32 -> 11 | AU49: 17 | AV49: 0 | AW49: 0 | AX49: 1 | AY49: 1 | AZ49: 0 | BA49: 0 | BB49: 1 | BC49: 6 | BD49: 7 | BE49: 12 | BF49: 1 | BG49: 17 | BH49: =ARRIVEES!DN32 -> 12 | BQ49: 17 | BR49: 1 | BS49: 1 | BT49: 0 | BU49: 2 | BV49: 3 | BW49: 1 | BX49: 6 | BY49: 2 | BZ49: 8 | CA49: 2 | CB49: 6 | CC49: 5 | CD49: =ARRIVEES!EJ32 -> 14 | CG49: =OFFSET($DU$24,COLUMNS($A:A)-1,,,) -> 0 | CH49: =OFFSET($DU$24,COLUMNS($A:B)-1,,,) -> 0 | CI49: =OFFSET($DU$24,COLUMNS($A:C)-1,,,) -> 0 | CJ49: =OFFSET($DU$24,COLUMNS($A:D)-1,,,) -> 0 | CK49: =OFFSET($DU$24,COLUMNS($A:E)-1,,,) -> 0 | CL49: =OFFSET($DU$24,COLUMNS($A:F)-1,,,) -> 0 | CM49: =OFFSET($DU$24,COLUMNS($A:G)-1,,,) -> 0 | CN49: =OFFSET($DU$24,COLUMNS($A:H)-1,,,) -> 0 | CO49: =OFFSET($DU$24,COLUMNS($A:I)-1,,,) -> 0 | CR49: =SUM(CG49:CO49) -> 0 | CS49: 0 | CV49: 601/5 | CY49: 5 | CZ49: 2.4 | FM49: 13 | FN49: 9 | FO49: 1 | FP49: 4 | FQ49: 10 | FR49: 36 | FT49: 9 | FU49: 0 | FV49: 0 | FW49: 5 | FX49: 3 | FY49: 1 | FZ49: 9 | GA49: 5 | GC49: =ARRIVEES!CB38 -> 1 | GD49: =ARRIVEES!CC38 -> 10 | GE49: =ARRIVEES!CD38 -> 3 | GF49: =ARRIVEES!CE38 -> 11 | GG49: =ARRIVEES!CF38 -> 14 | GZ49: 07 05 12 04 02
O50: Septembre | V50: 18 | W50: 2 | X50: 5 | Y50: 5 | Z50: 0 | AA50: 4 | AB50: 2 | AC50: 18 | AD50: 0 | AE50: 18 | AF50: 17 | AG50: 18 | AH50: 17 | AI50: =ARRIVEES!CS33 -> 7 | AU50: 18 | AV50: 0 | AW50: 0 | AX50: 0 | AY50: 0 | AZ50: 0 | BA50: 0 | BB50: 0 | BC50: 5 | BD50: 5 | BE50: 17 | BF50: 0 | BG50: 18 | BH50: =ARRIVEES!DN33 -> 14 | BQ50: 18 | BR50: 0 | BS50: 0 | BT50: 0 | BU50: 0 | BV50: 0 | BW50: 3 | BX50: 3 | BY50: 2 | BZ50: 5 | CA50: 18 | CB50: 3 | CC50: 7 | CD50: =ARRIVEES!EJ33 -> 15 | CF50: 2014-08-25 | CQ50: =DR36 -> 0 | CV50: 702/4 | FM50: 7 | FN50: 5 | FO50: 12 | FP50: 4 | FQ50: 2 | FR50: 37 | FT50: 10 | FU50: 6 | FV50: 4 | FW50: 2 | FX50: 2 | FY50: 5 | FZ50: 19 | GA50: 11 | GC50: =ARRIVEES!CB39 -> 16 | GD50: =ARRIVEES!CC39 -> 14 | GE50: =ARRIVEES!CD39 -> 13 | GF50: =ARRIVEES!CE39 -> 18 | GG50: =ARRIVEES!CF39 -> 2 | GZ50: 07 04 01 16 03
O51: Octobre | V51: 19 | W51: 0 | X51: 0 | Y51: 0 | Z51: 0 | AA51: 0 | AB51: 0 | AC51: 0 | AD51: 0 | AE51: 0 | AF51: 19 | AG51: 0 | AH51: 19 | AU51: 19 | AV51: 0 | AW51: 1 | AX51: 0 | AY51: 1 | AZ51: 0 | BA51: 0 | BB51: 1 | BC51: 1 | BD51: 2 | BE51: 19 | BF51: 1 | BG51: 19 | BQ51: 19 | BR51: 0 | BS51: 0 | BT51: 0 | BU51: 0 | BV51: 0 | BW51: 0 | BX51: 0 | BY51: 0 | BZ51: 0 | CA51: 19 | CB51: 0 | CC51: 19 | CG51: =OFFSET($DU$34,COLUMNS($A:A)-1,,,) -> 0 | CH51: =OFFSET($DU$34,COLUMNS($A:B)-1,,,) -> 0 | CI51: =OFFSET($DU$34,COLUMNS($A:C)-1,,,) -> 0 | CJ51: =OFFSET($DU$34,COLUMNS($A:D)-1,,,) -> 0 | CK51: =OFFSET($DU$34,COLUMNS($A:E)-1,,,) -> 0 | CL51: =OFFSET($DU$34,COLUMNS($A:F)-1,,,) -> 0 | CM51: =OFFSET($DU$34,COLUMNS($A:G)-1,,,) -> 0 | CN51: =OFFSET($DU$34,COLUMNS($A:H)-1,,,) -> 0 | CO51: =OFFSET($DU$34,COLUMNS($A:I)-1,,,) -> 0 | CR51: =SUM(CG51:CO51) -> 0 | CS51: 0 | CV51: 801/3 | CW51: 1 | CX51: 5.1 | FM51: 7 | FN51: 4 | FO51: 1 | FP51: 16 | FQ51: 3 | FR51: 38 | FT51: 11 | FU51: 3 | FV51: 4 | FW51: 3 | FX51: 3 | FY51: 3 | FZ51: 16 | GA51: 12 | GC51: =ARRIVEES!CB40 -> 8 | GD51: =ARRIVEES!CC40 -> 6 | GE51: =ARRIVEES!CD40 -> 12 | GF51: =ARRIVEES!CE40 -> 16 | GG51: =ARRIVEES!CF40 -> 4 | GZ51: 08 09 07 06 02
O52: Novembre | V52: 20 | W52: 0 | X52: 0 | Y52: 1 | Z52: 0 | AA52: 0 | AB52: 0 | AC52: 1 | AD52: 0 | AE52: 1 | AF52: 20 | AG52: 1 | AH52: 20 | AU52: 20 | AV52: 0 | AW52: 0 | AX52: 0 | AY52: 0 | AZ52: 0 | BA52: 0 | BB52: 0 | BC52: 1 | BD52: 1 | BE52: 20 | BF52: 0 | BG52: 20 | BQ52: 20 | BR52: 0 | BS52: 0 | BT52: 0 | BU52: 0 | BV52: 0 | BW52: 0 | BX52: 0 | BY52: 0 | BZ52: 0 | CA52: 20 | CB52: 0 | CC52: 20 | CF52: 2014-08-26 | CQ52: =DR46 -> 0 | FM52: 8 | FN52: 9 | FO52: 7 | FP52: 6 | FQ52: 2 | FR52: 39 | FT52: 12 | FU52: 4 | FV52: 4 | FW52: 2 | FX52: 1 | FY52: 4 | FZ52: 15 | GA52: 1 | GC52: =ARRIVEES!CB41 -> 9 | GD52: =ARRIVEES!CC41 -> 14 | GE52: =ARRIVEES!CD41 -> 7 | GF52: =ARRIVEES!CE41 -> 2 | GG52: =ARRIVEES!CF41 -> 5 | GZ52: 09 02 04 05 10
O53: Décembre | W53: =SUM(W33:W52) -> 156 | X53: 157 | Y53: 157 | Z53: 0 | AA53: 157 | AB53: 157 | AC53: 784 | AD53: 0 | AE53: 784 | AG53: 784 | AO53: Chateaubriant | AP53: 09 12 15 10 04 | AV53: =SUM(AV33:AV52) -> 47 | AW53: 47 | AX53: 47 | AY53: 141 | AZ53: 47 | BA53: 47 | BB53: 235 | BC53: =SUM(BC33:BC52) -> 205 | BD53: =SUM(BD33:BD52) -> 440 | BF53: =SUM(BF33:BF52) -> 235 | BR53: =SUM(BR33:BR52) -> 42 | BS53: 42 | BT53: 42 | BU53: 126 | BV53: 42 | BW53: 42 | BX53: 210 | BZ53: =SUM(BZ33:BZ52) -> 285 | CB53: 210 | CG53: =OFFSET($DU$44,COLUMNS($A:A)-1,,,) -> 0 | CH53: =OFFSET($DU$44,COLUMNS($A:B)-1,,,) -> 0 | CI53: =OFFSET($DU$44,COLUMNS($A:C)-1,,,) -> 0 | CJ53: =OFFSET($DU$44,COLUMNS($A:D)-1,,,) -> 0 | CK53: =OFFSET($DU$44,COLUMNS($A:E)-1,,,) -> 0 | CL53: =OFFSET($DU$44,COLUMNS($A:F)-1,,,) -> 0 | CM53: =OFFSET($DU$44,COLUMNS($A:G)-1,,,) -> 0 | CN53: =OFFSET($DU$44,COLUMNS($A:H)-1,,,) -> 0 | CO53: =OFFSET($DU$44,COLUMNS($A:I)-1,,,) -> 0 | CR53: =SUM(CG53:CO53) -> 0 | CS53: 0 | CX53: =SUM(CX44:CX52) -> 10.65 | CZ53: =SUM(CZ44:CZ52) -> 19.5 | DE53: =SUM(DE44:DE52) -> 0 | DG53: =SUM(DG44:DG52) -> 0 | DM53: =SUM(DM44:DM52) -> 0 | DO53: =SUM(DO44:DO52) -> 0 | DU53: =SUM(DU44:DU52) -> 0 | DW53: =SUM(DW44:DW52) -> 0 | FM53: 9 | FN53: 2 | FO53: 4 | FP53: 5 | FQ53: 10 | FR53: 40 | FT53: 13 | FU53: 1 | FV53: 5 | FW53: 4 | FX53: 5 | FY53: 2 | FZ53: 17 | GA53: 4 | GC53: =ARRIVEES!CB42 -> 14 | GD53: =ARRIVEES!CC42 -> 12 | GE53: =ARRIVEES!CD42 -> 16 | GF53: =ARRIVEES!CE42 -> 10 | GG53: =ARRIVEES!CF42 -> 3 | GZ53: 16 01 07 10 18 | HB53: Egn2009
O54: 2014 | AE54: lcp | AP54: 12 11 01 07 10 | BD54: DVE | BZ54: cpgne | CF54: 2014-08-27 | CQ54: =DR56 -> 0 | CU54: 2014-08-06 | CV54: 114/8 | DB54: 2014-08-13 | DJ54: 2014-08-20 | DR54: 2014-08-27 | FM54: 16 | FN54: 1 | FO54: 7 | FP54: 10 | FQ54: 18 | FR54: 41 | FT54: 14 | FU54: 4 | FV54: 3 | FW54: 9 | FX54: 4 | FY54: 4 | FZ54: 24 | GA54: 15 | GC54: =ARRIVEES!CB43 -> 8 | GD54: =ARRIVEES!CC43 -> 12 | GE54: =ARRIVEES!CD43 -> 2 | GF54: =ARRIVEES!CE43 -> 3 | GG54: =ARRIVEES!CF43 -> 5 | GZ54: 12 07 15 17 16
O55: Janvier | CG55: =OFFSET($DU$54,COLUMNS($A:A)-1,,,) -> 0 | CH55: =OFFSET($DU$54,COLUMNS($A:B)-1,,,) -> 0 | CI55: =OFFSET($DU$54,COLUMNS($A:C)-1,,,) -> 0 | CJ55: =OFFSET($DU$54,COLUMNS($A:D)-1,,,) -> 0 | CK55: =OFFSET($DU$54,COLUMNS($A:E)-1,,,) -> 0 | CL55: =OFFSET($DU$54,COLUMNS($A:F)-1,,,) -> 0 | CM55: =OFFSET($DU$54,COLUMNS($A:G)-1,,,) -> 0 | CN55: =OFFSET($DU$54,COLUMNS($A:H)-1,,,) -> 0 | CO55: =OFFSET($DU$54,COLUMNS($A:I)-1,,,) -> 0 | CR55: =SUM(CG55:CO55) -> 0 | CS55: 0 | CU55: st malo | CV55: 207/17 | FM55: 12 | FN55: 7 | FO55: 15 | FP55: 17 | FQ55: 16 | FR55: 42 | FT55: 15 | FU55: 1 | FV55: 7 | FW55: 4 | FX55: 6 | FY55: 0 | FZ55: 18 | GA55: 3 | GC55: =ARRIVEES!CB44 -> 10 | GD55: =ARRIVEES!CC44 -> 14 | GE55: =ARRIVEES!CD44 -> 3 | GF55: =ARRIVEES!CE44 -> 4 | GG55: =ARRIVEES!CF44 -> 13 | GZ55: 15 07 10 08 13 | HB55: 05 11 10 01 15
O56: Février | CF56: 2014-08-28 | CQ56: =DR66 -> 0 | CU56: 0 | CV56: 314/7 | DB56: 0 | DJ56: 0 | DR56: 0 | FM56: 15 | FN56: 7 | FO56: 10 | FP56: 8 | FQ56: 13 | FR56: 43 | FT56: 16 | FU56: 4 | FV56: 0 | FW56: 1 | FX56: 1 | FY56: 5 | FZ56: 11 | GA56: 16 | GC56: =ARRIVEES!CB45 -> 12 | GD56: =ARRIVEES!CC45 -> 6 | GE56: =ARRIVEES!CD45 -> 8 | GF56: =ARRIVEES!CE45 -> 13 | GG56: =ARRIVEES!CF45 -> 7 | GZ56: 07 04 06 05 13 | HB56: 03 18 11 14 15
O57: Mars | U57: 2010 | W57: janvier | X57: Fevrier | Y57: mars | Z57: avril | AA57: mai | AB57: juin | AC57: juil | AD57: aout | AE57: sept | AF57: oct | AG57: nov | AH57: dec | AI57: ttx | AJ57: clt | AK57: 2010/12 | AL57: Clt10/11 | CG57: =OFFSET($DU$64,COLUMNS($A:A)-1,,,) -> 0 | CH57: =OFFSET($DU$64,COLUMNS($A:B)-1,,,) -> 0 | CI57: =OFFSET($DU$64,COLUMNS($A:C)-1,,,) -> 0 | CJ57: =OFFSET($DU$64,COLUMNS($A:D)-1,,,) -> 0 | CK57: =OFFSET($DU$64,COLUMNS($A:E)-1,,,) -> 0 | CL57: =OFFSET($DU$64,COLUMNS($A:F)-1,,,) -> 0 | CM57: =OFFSET($DU$64,COLUMNS($A:G)-1,,,) -> 0 | CN57: =OFFSET($DU$64,COLUMNS($A:H)-1,,,) -> 0 | CO57: =OFFSET($DU$64,COLUMNS($A:I)-1,,,) -> 0 | CR57: =SUM(CG57:CO57) -> 0 | CS57: 0 | CU57: =CU56 -> 0 | CV57: 403/10 | DB57: =DB56 -> 0 | DJ57: =DJ56 -> 0 | DR57: =DR56 -> 0 | FM57: 7 | FN57: 4 | FO57: 6 | FP57: 5 | FQ57: 13 | FR57: 44 | FT57: 17 | FU57: 5 | FV57: =COUNTIF(FN$574:FN$657,$FT57) -> 0 | FW57: 0 | FX57: 3 | FY57: 3 | FZ57: 11 | GA57: 17 | GC57: =ARRIVEES!CB46 -> 17 | GD57: =ARRIVEES!CC46 -> 3 | GE57: =ARRIVEES!CD46 -> 14 | GF57: =ARRIVEES!CE46 -> 15 | GG57: =ARRIVEES!CF46 -> 18 | GZ57: 07 14 03 08 10 | HB57: 10 12 15 03 09
O58: Avril | U58: 108 | V58: 20 | W58: =ARRIVEES!NW3 -> 9 | X58: =ARRIVEES!OF3 -> 9 | Y58: =ARRIVEES!OO22 -> 1 | Z58: =ARRIVEES!OX3 -> 9 | AA58: =ARRIVEES!PG3 -> 9 | AB58: =ARRIVEES!PP3 -> 9 | AC58: =ARRIVEES!PY3 -> 9 | AD58: =ARRIVEES!QH3 -> 9 | AE58: =ARRIVEES!QQ3 -> 9 | AF58: =ARRIVEES!QZ3 -> 9 | AG58: =ARRIVEES!RI3 -> 9 | AH58: =ARRIVEES!RR3 -> 9 | AI58: =W58+X58+Y58+Z58+AA58+AB58+AC58+AD58+AE58+AF58+AG58+AH58 -> 100 | AJ58: 3 | AK58: =W58+X58+Y58+Z58+AA58+AB58+AC58+AD58+AE58+AF58+AG58+AH58+U58 -> 208 | AL58: 14 | CF58: 2014-08-29 | CQ58: =DZ6 -> 0 | CV58: 507/9 | FM58: 7 | FN58: 14 | FO58: 3 | FP58: 8 | FQ58: 10 | FR58: 45 | FT58: 18 | FU58: 3 | FV58: 1 | FW58: 0 | FX58: 2 | FY58: 0 | FZ58: 6 | GA58: 18 | GC58: =ARRIVEES!CB47 -> 10 | GD58: =ARRIVEES!CC47 -> 13 | GE58: =ARRIVEES!CD47 -> 14 | GF58: =ARRIVEES!CE47 -> 6 | GG58: =ARRIVEES!CF47 -> 7 | GZ58: 10 03 14 08 12 | HB58: 09 12 11 06 17
O59: Mai | U59: 115 | V59: 19 | W59: =ARRIVEES!NW4 -> 7 | X59: =ARRIVEES!OF4 -> 7 | Y59: =ARRIVEES!OO4 -> 8 | Z59: =ARRIVEES!OX4 -> 7 | AA59: =ARRIVEES!PG4 -> 7 | AB59: =ARRIVEES!PP4 -> 7 | AC59: =ARRIVEES!PY4 -> 7 | AD59: =ARRIVEES!QH4 -> 7 | AE59: =ARRIVEES!QQ4 -> 7 | AF59: =ARRIVEES!QZ4 -> 7 | AG59: =ARRIVEES!RI4 -> 7 | AH59: =ARRIVEES!RR4 -> 7 | AI59: 85 | AJ59: 2 | AK59: 200 | AL59: 11 | AV59: mois | AW59: hipp | AX59: prono | AY59: ttx | AZ59: =G3 -> N° | BC59: presse | BD59: clt | BF59: clt/2 | CG59: =OFFSET($EC$4,COLUMNS($A:A)-1,,,) -> 0 | CH59: =OFFSET($EC$4,COLUMNS($A:B)-1,,,) -> 0 | CI59: =OFFSET($EC$4,COLUMNS($A:C)-1,,,) -> 0 | CJ59: =OFFSET($EC$4,COLUMNS($A:D)-1,,,) -> 0 | CK59: =OFFSET($EC$4,COLUMNS($A:E)-1,,,) -> 0 | CL59: =OFFSET($EC$4,COLUMNS($A:F)-1,,,) -> 0 | CM59: =OFFSET($EC$4,COLUMNS($A:G)-1,,,) -> 0 | CN59: =OFFSET($EC$4,COLUMNS($A:H)-1,,,) -> 0 | CO59: =OFFSET($EC$4,COLUMNS($A:I)-1,,,) -> 0 | CR59: =SUM(CG59:CO59) -> 0 | CS59: 0 | CV59: 612/3 | FM59: 10 | FN59: 3 | FO59: 14 | FP59: 8 | FQ59: 12 | FR59: 46 | FT59: 19 | FU59: 0 | FV59: 1 | FW59: 0 | FX59: 1 | FY59: 0 | FZ59: 2 | GA59: 19 | GC59: =ARRIVEES!CB48 -> 8 | GD59: =ARRIVEES!CC48 -> 4 | GE59: =ARRIVEES!CD48 -> 13 | GF59: =ARRIVEES!CE48 -> 5 | GG59: =ARRIVEES!CF48 -> 7 | GZ59: 05 04 17 01 08 | HB59: 02 12 04 06 07
O60: Juin | U60: 160 | V60: 18 | W60: =ARRIVEES!NW5 -> 7 | X60: =ARRIVEES!OF5 -> 7 | Y60: =ARRIVEES!OO5 -> 16 | Z60: =ARRIVEES!OX5 -> 7 | AA60: =ARRIVEES!PG5 -> 7 | AB60: =ARRIVEES!PP5 -> 7 | AC60: =ARRIVEES!PY5 -> 7 | AD60: =ARRIVEES!QH5 -> 7 | AE60: =ARRIVEES!QQ5 -> 7 | AF60: =ARRIVEES!QZ5 -> 7 | AG60: =ARRIVEES!RI5 -> 7 | AH60: =ARRIVEES!RR5 -> 7 | AI60: 93 | AJ60: 1 | AK60: 253 | AL60: 8 | AU60: 1 | AV60: =macro!Q6 -> 7 | AW60: 2 | AX60: 9 | AY60: =SUM(AV60:AX60) -> 18 | AZ60: 4 | BC60: =AX60 -> 9 | BD60: 7 | BE60: 0 | BF60: =Clthippo!GO66 -> 7 | CF60: 2014-08-30 | CQ60: =DZ16 -> 0 | CV60: 709/3 | FM60: 5 | FN60: 4 | FO60: 17 | FP60: 1 | FQ60: 8 | FR60: 47 | FT60: 20 | FU60: 0 | FV60: 1 | FW60: 0 | FX60: 0 | FY60: 0 | FZ60: 1 | GA60: 20 | GC60: =ARRIVEES!CB49 -> 3 | GD60: =ARRIVEES!CC49 -> 16 | GE60: =ARRIVEES!CD49 -> 14 | GF60: =ARRIVEES!CE49 -> 10 | GG60: =ARRIVEES!CF49 -> 6 | GZ60: 04 15 02 13 05 | HB60: 08 03 18 09 12
O61: Juillet | U61: 163 | V61: 17 | W61: =ARRIVEES!NW6 -> 9 | X61: =ARRIVEES!OF6 -> 9 | Y61: =ARRIVEES!OO6 -> 17 | Z61: =ARRIVEES!OX6 -> 9 | AA61: =ARRIVEES!PG6 -> 9 | AB61: =ARRIVEES!PP6 -> 9 | AC61: =ARRIVEES!PY6 -> 9 | AD61: =ARRIVEES!QH6 -> 9 | AE61: =ARRIVEES!QQ6 -> 9 | AF61: =ARRIVEES!QZ6 -> 9 | AG61: =ARRIVEES!RI6 -> 9 | AH61: =ARRIVEES!RR6 -> 9 | AI61: 116 | AJ61: 8 | AK61: 279 | AL61: 12 | AU61: 2 | AV61: =macro!Q8 -> 14 | AW61: 1 | AX61: 1 | AY61: 16 | AZ61: 14 | BC61: 1 | BD61: 13 | BE61: 0 | BF61: =Clthippo!GO67 -> 13 | CG61: =OFFSET($EC$14,COLUMNS($A:A)-1,,,) -> 0 | CH61: =OFFSET($EC$14,COLUMNS($A:B)-1,,,) -> 0 | CI61: =OFFSET($EC$14,COLUMNS($A:C)-1,,,) -> 0 | CJ61: =OFFSET($EC$14,COLUMNS($A:D)-1,,,) -> 0 | CK61: =OFFSET($EC$14,COLUMNS($A:E)-1,,,) -> 0 | CL61: =OFFSET($EC$14,COLUMNS($A:F)-1,,,) -> 0 | CM61: =OFFSET($EC$14,COLUMNS($A:G)-1,,,) -> 0 | CN61: =OFFSET($EC$14,COLUMNS($A:H)-1,,,) -> 0 | CO61: =OFFSET($EC$14,COLUMNS($A:I)-1,,,) -> 0 | CR61: =SUM(CG61:CO61) -> 0 | CS61: 0 | CV61: 813/1 | FM61: 4 | FN61: 15 | FO61: 2 | FP61: 13 | FQ61: 5 | FR61: 48 | FU61: =SUM(FU41:FU60) -> 56 | FV61: 56 | FW61: 56 | FX61: 56 | FY61: 56 | FZ61: 280 | GC61: =ARRIVEES!CB50 -> 2 | GD61: =ARRIVEES!CC50 -> 6 | GE61: =ARRIVEES!CD50 -> 7 | GF61: =ARRIVEES!CE50 -> 14 | GG61: =ARRIVEES!CF50 -> 13 | GZ61: 09 02 08 14 05 | HB61: 04 03 10 15 13
O62: Août | U62: 186 | V62: 16 | W62: =ARRIVEES!NW7 -> 4 | X62: =ARRIVEES!OF7 -> 4 | Y62: =ARRIVEES!OO7 -> 12 | Z62: =ARRIVEES!OX7 -> 4 | AA62: =ARRIVEES!PG7 -> 4 | AB62: =ARRIVEES!PP7 -> 4 | AC62: =ARRIVEES!PY7 -> 4 | AD62: =ARRIVEES!QH7 -> 4 | AE62: =ARRIVEES!QQ7 -> 4 | AF62: =ARRIVEES!QZ7 -> 4 | AG62: =ARRIVEES!RI7 -> 4 | AH62: =ARRIVEES!RR7 -> 4 | AI62: 56 | AJ62: 4 | AK62: 242 | AL62: 10 | AT62: a1 | AU62: 3 | AV62: =macro!Q10 -> 1 | AW62: 1 | AY62: 2 | AZ62: 3 | BC62: 0 | BD62: 14 | BE62: 0 | BF62: =Clthippo!GO68 -> 14 | CF62: 2014-08-31 | CQ62: =DZ18 -> 0 | FM62: 9 | FN62: 2 | FO62: 8 | FP62: 14 | FQ62: 5 | FR62: 49 | GC62: =ARRIVEES!CB51 -> 13 | GD62: =ARRIVEES!CC51 -> 11 | GE62: =ARRIVEES!CD51 -> 8 | GF62: =ARRIVEES!CE51 -> 6 | GG62: =ARRIVEES!CF51 -> 3 | GZ62: 10 07 05 04 12 | HB62: 13 14 06 09 12
O63: Septembre | U63: 198 | V63: 3 | W63: =ARRIVEES!NW8 -> 8 | X63: =ARRIVEES!OF8 -> 8 | Y63: =ARRIVEES!OO8 -> 9 | Z63: =ARRIVEES!OX8 -> 8 | AA63: =ARRIVEES!PG8 -> 8 | AB63: =ARRIVEES!PP8 -> 8 | AC63: =ARRIVEES!PY8 -> 8 | AD63: =ARRIVEES!QH8 -> 8 | AE63: =ARRIVEES!QQ8 -> 8 | AF63: =ARRIVEES!QZ8 -> 8 | AG63: =ARRIVEES!RI8 -> 8 | AH63: =ARRIVEES!RR8 -> 8 | AI63: 97 | AJ63: 5 | AK63: 295 | AL63: 7 | AU63: 4 | AV63: =macro!Q12 -> 3 | AW63: 2 | AX63: 9 | AY63: 14 | AZ63: 7 | BC63: 9 | BD63: 9 | BE63: 0 | BF63: =Clthippo!GO69 -> 9 | CG63: =OFFSET($EC$24,COLUMNS($A:A)-1,,,) -> 0 | CH63: =OFFSET($EC$24,COLUMNS($A:B)-1,,,) -> 0 | CI63: =OFFSET($EC$24,COLUMNS($A:C)-1,,,) -> 0 | CJ63: =OFFSET($EC$24,COLUMNS($A:D)-1,,,) -> 0 | CK63: =OFFSET($EC$24,COLUMNS($A:E)-1,,,) -> 0 | CL63: =OFFSET($EC$24,COLUMNS($A:F)-1,,,) -> 0 | CM63: =OFFSET($EC$24,COLUMNS($A:G)-1,,,) -> 0 | CN63: =OFFSET($EC$24,COLUMNS($A:H)-1,,,) -> 0 | CO63: =OFFSET($EC$24,COLUMNS($A:I)-1,,,) -> 0 | CR63: =SUM(CG63:CO63) -> 0 | CS63: 0 | CX63: =SUM(CX54:CX62) -> 0 | CZ63: =SUM(CZ54:CZ62) -> 0 | DE63: =SUM(DE54:DE62) -> 0 | DG63: =SUM(DG54:DG62) -> 0 | DM63: =SUM(DM54:DM62) -> 0 | DO63: =SUM(DO54:DO62) -> 0 | DU63: =SUM(DU54:DU62) -> 0 | DW63: =SUM(DW54:DW62) -> 0 | FM63: 10 | FN63: 7 | FO63: 5 | FP63: 4 | FQ63: 12 | FR63: 50 | GC63: =ARRIVEES!CB52 -> 16 | GD63: =ARRIVEES!CC52 -> 1 | GE63: =ARRIVEES!CD52 -> 12 | GF63: =ARRIVEES!CE52 -> 10 | GG63: =ARRIVEES!CF52 -> 15 | GZ63: 04 14 13 07 01 | HB63: 05 07 02 16 13
O64: Octobre | U64: 200 | V64: 5 | W64: =ARRIVEES!NW9 -> 10 | X64: =ARRIVEES!OF9 -> 10 | Y64: =ARRIVEES!OO9 -> 13 | Z64: =ARRIVEES!OX9 -> 10 | AA64: =ARRIVEES!PG9 -> 10 | AB64: =ARRIVEES!PP9 -> 10 | AC64: =ARRIVEES!PY9 -> 10 | AD64: =ARRIVEES!QH9 -> 10 | AE64: =ARRIVEES!QQ9 -> 10 | AF64: =ARRIVEES!QZ9 -> 10 | AG64: =ARRIVEES!RI9 -> 10 | AH64: =ARRIVEES!RR9 -> 10 | AI64: 123 | AJ64: 7 | AK64: 323 | AL64: 16 | AU64: 5 | AV64: =macro!Q14 -> 6 | AW64: 2 | AX64: 2 | AY64: 10 | AZ64: 11 | BC64: 2 | BD64: 17 | BE64: 0 | BF64: =Clthippo!GO70 -> 17 | CP64: J2 | CQ64: =SUM(CQ2:CQ63) -> 61.5 | CR64: =SUM(CR2:CR63) -> 43.35 | CS64: =SUM(CS2:CS63) -> -18.15 | CU64: 2014-08-07 | DB64: 2014-08-14 | DJ64: 2014-08-21 | DR64: 2014-08-28 | FM64: 4 | FN64: 14 | FO64: 13 | FP64: 7 | FQ64: 1 | FR64: 51 | GC64: =ARRIVEES!CB53 -> 3 | GD64: =ARRIVEES!CC53 -> 5 | GE64: =ARRIVEES!CD53 -> 13 | GF64: =ARRIVEES!CE53 -> 11 | GG64: =ARRIVEES!CF53 -> 10 | GZ64: 14 16 06 02 09 | HB64: 09 16 12 08 02
O65: Novembre | U65: 200 | V65: 12 | W65: =ARRIVEES!NW10 -> 5 | X65: =ARRIVEES!OF10 -> 5 | Y65: =ARRIVEES!OO10 -> 7 | Z65: =ARRIVEES!OX10 -> 5 | AA65: =ARRIVEES!PG10 -> 5 | AB65: =ARRIVEES!PP10 -> 5 | AC65: =ARRIVEES!PY10 -> 5 | AD65: =ARRIVEES!QH10 -> 5 | AE65: =ARRIVEES!QQ10 -> 5 | AF65: =ARRIVEES!QZ10 -> 5 | AG65: =ARRIVEES!RI10 -> 5 | AH65: =ARRIVEES!RR10 -> 5 | AI65: 62 | AJ65: 10 | AK65: 262 | AL65: 6 | AU65: 6 | AV65: =macro!Q16 -> 10 | AW65: 0 | AX65: 3 | AY65: 13 | AZ65: 12 | BC65: 3 | BD65: 1 | BE65: 0 | BF65: =Clthippo!GO71 -> 1 | CR65: =CR64/CQ64 -> 0.7048780488 | CS65: =CS64/CQ64 -> -0.2951219512 | FM65: 14 | FN65: 16 | FO65: 6 | FP65: 2 | FQ65: 9 | FR65: 52 | GC65: =ARRIVEES!CB54 -> 8 | GD65: =ARRIVEES!CC54 -> 18 | GE65: =ARRIVEES!CD54 -> 10 | GF65: =ARRIVEES!CE54 -> 17 | GG65: =ARRIVEES!CF54 -> 2 | GZ65: 05 14 02 03 07 | HB65: 15 03 02 05 04
O66: Décembre | U66: 186 | V66: 15 | W66: =ARRIVEES!NW11 -> 3 | X66: =ARRIVEES!OF11 -> 3 | Y66: =ARRIVEES!OO11 -> 6 | Z66: =ARRIVEES!OX11 -> 3 | AA66: =ARRIVEES!PG11 -> 3 | AB66: =ARRIVEES!PP11 -> 3 | AC66: =ARRIVEES!PY11 -> 3 | AD66: =ARRIVEES!QH11 -> 3 | AE66: =ARRIVEES!QQ11 -> 3 | AF66: =ARRIVEES!QZ11 -> 3 | AG66: =ARRIVEES!RI11 -> 3 | AH66: =ARRIVEES!RR11 -> 3 | AI66: 39 | AJ66: 11 | AK66: 225 | AL66: 9 | AU66: 7 | AV66: =macro!Q18 -> 11 | AW66: 0 | AX66: 12 | AY66: 23 | AZ66: 6 | BC66: 12 | BD66: 4 | BE66: 0 | BF66: =Clthippo!GO72 -> 4 | CU66: 0 | DB66: 0 | DJ66: 0 | DR66: 0 | FM66: 5 | FN66: 14 | FO66: 2 | FP66: 3 | FQ66: 7 | FR66: 53 | GC66: =ARRIVEES!CB55 -> 6 | GD66: =ARRIVEES!CC55 -> 13 | GE66: =ARRIVEES!CD55 -> 7 | GF66: =ARRIVEES!CE55 -> 1 | GG66: =ARRIVEES!CF55 -> 15 | GZ66: 03 02 05 15 01 | HB66: 03 02 14 13 01
U67: 196 | V67: 6 | W67: =ARRIVEES!NW12 -> 10 | X67: =ARRIVEES!OF12 -> 10 | Y67: =ARRIVEES!OO12 -> 4 | Z67: =ARRIVEES!OX12 -> 10 | AA67: =ARRIVEES!PG12 -> 10 | AB67: =ARRIVEES!PP12 -> 10 | AC67: =ARRIVEES!PY12 -> 10 | AD67: =ARRIVEES!QH12 -> 10 | AE67: =ARRIVEES!QQ12 -> 10 | AF67: =ARRIVEES!QZ12 -> 10 | AG67: =ARRIVEES!RI12 -> 10 | AH67: =ARRIVEES!RR12 -> 10 | AI67: 114 | AJ67: 14 | AK67: 310 | AL67: 13 | AU67: 8 | AV67: =macro!Q20 -> 12 | AW67: 1 | AX67: 2 | AY67: 15 | AZ67: 13 | BC67: 2 | BD67: 10 | BE67: 0 | BF67: =Clthippo!GO73 -> 10 | CU67: =CU66 -> 0 | DB67: =DB66 -> 0 | DJ67: =DJ66 -> 0 | DR67: =DR66 -> 0 | FM67: 3 | FN67: 2 | FO67: 5 | FP67: 15 | FQ67: 1 | FR67: 54 | GC67: =ARRIVEES!CB56 -> 13 | GD67: =ARRIVEES!CC56 -> 7 | GE67: =ARRIVEES!CD56 -> 20 | GF67: =ARRIVEES!CE56 -> 14 | GG67: =ARRIVEES!CF56 -> 3 | GZ67: 09 10 18 14 07 | HB67: 04 09 08 06 12
U68: 193 | V68: 8 | W68: =ARRIVEES!NW13 -> 8 | X68: =ARRIVEES!OF13 -> 8 | Y68: =ARRIVEES!OO13 -> 5 | Z68: =ARRIVEES!OX13 -> 8 | AA68: =ARRIVEES!PG13 -> 8 | AB68: =ARRIVEES!PP13 -> 8 | AC68: =ARRIVEES!PY13 -> 8 | AD68: =ARRIVEES!QH13 -> 8 | AE68: =ARRIVEES!QQ13 -> 8 | AF68: =ARRIVEES!QZ13 -> 8 | AG68: =ARRIVEES!RI13 -> 8 | AH68: =ARRIVEES!RR13 -> 8 | AI68: 93 | AJ68: 6 | AK68: 286 | AL68: 5 | AU68: 9 | AV68: =macro!Q22 -> 15 | AW68: 1 | AX68: 11 | AY68: 27 | AZ68: 15 | BC68: 11 | BD68: 6 | BE68: 0 | FM68: 9 | FN68: 10 | FO68: 18 | FP68: 14 | FQ68: 7 | FR68: 55 | GC68: =ARRIVEES!CB57 -> 7 | GD68: =ARRIVEES!CC57 -> 5 | GE68: =ARRIVEES!CD57 -> 4 | GF68: =ARRIVEES!CE57 -> 1 | GG68: =ARRIVEES!CF57 -> 13 | GZ68: 06 01 09 04 03 | HB68: 02 03 07 13 05
U69: 209 | V69: 4 | W69: =ARRIVEES!NW14 -> 6 | X69: =ARRIVEES!OF14 -> 6 | Y69: =ARRIVEES!OO14 -> 8 | Z69: =ARRIVEES!OX14 -> 6 | AA69: =ARRIVEES!PG14 -> 6 | AB69: =ARRIVEES!PP14 -> 6 | AC69: =ARRIVEES!PY14 -> 6 | AD69: =ARRIVEES!QH14 -> 6 | AE69: =ARRIVEES!QQ14 -> 6 | AF69: =ARRIVEES!QZ14 -> 6 | AG69: =ARRIVEES!RI14 -> 6 | AH69: =ARRIVEES!RR14 -> 6 | AI69: 74 | AJ69: 12 | AK69: 283 | AL69: 15 | AO69: Cordemais | AP69: 11 12 06 10 08 | AU69: 10 | AV69: =macro!Q24 -> 2 | AW69: 0 | AX69: 7 | AY69: 11 | AZ69: 9 | BC69: 7 | BD69: 11 | BE69: 0 | BF69: =MATCH(LARGE($BE$60:$BE$79,ROW()-59),$BE$60:$BE$79,0) -> 1 | FM69: 6 | FN69: 1 | FO69: 9 | FP69: 4 | FQ69: 3 | FR69: 56 | GC69: =ARRIVEES!CB58 -> 4 | GD69: =ARRIVEES!CC58 -> 7 | GE69: =ARRIVEES!CD58 -> 12 | GF69: =ARRIVEES!CE58 -> 5 | GG69: =ARRIVEES!CF58 -> 9 | GZ69: 13 10 06 04 09 | HB69: 05 02 15 12 04
U70: 190 | V70: 10 | W70: =ARRIVEES!NW15 -> 5 | X70: =ARRIVEES!OF15 -> 5 | Y70: =ARRIVEES!OO15 -> 7 | Z70: =ARRIVEES!OX15 -> 5 | AA70: =ARRIVEES!PG15 -> 5 | AB70: =ARRIVEES!PP15 -> 5 | AC70: =ARRIVEES!PY15 -> 5 | AD70: =ARRIVEES!QH15 -> 5 | AE70: =ARRIVEES!QQ15 -> 5 | AF70: =ARRIVEES!QZ15 -> 5 | AG70: =ARRIVEES!RI15 -> 5 | AH70: =ARRIVEES!RR15 -> 5 | AI70: 62 | AJ70: 9 | AK70: 252 | AL70: 18 | AU70: 11 | AV70: =macro!Q26 -> 5 | AW70: 0 | AX70: 3 | AY70: 11 | AZ70: 8 | BC70: 3 | BD70: 5 | BE70: 0 | BF70: 1 | FM70: 13 | FN70: 10 | FO70: 6 | FP70: 4 | FQ70: 9 | FR70: 57 | GC70: =ARRIVEES!CB59 -> 1 | GD70: =ARRIVEES!CC59 -> 5 | GE70: =ARRIVEES!CD59 -> 8 | GF70: =ARRIVEES!CE59 -> 4 | GG70: =ARRIVEES!CF59 -> 13 | GZ70: 08 07 03 01 13 | HB70: 03 04 15 17 14
U71: 211 | V71: 9 | W71: =ARRIVEES!NW16 -> 11 | X71: =ARRIVEES!OF16 -> 11 | Y71: =ARRIVEES!OO16 -> 12 | Z71: =ARRIVEES!OX16 -> 11 | AA71: =ARRIVEES!PG16 -> 11 | AB71: =ARRIVEES!PP16 -> 11 | AC71: =ARRIVEES!PY16 -> 11 | AD71: =ARRIVEES!QH16 -> 11 | AE71: =ARRIVEES!QQ16 -> 11 | AF71: =ARRIVEES!QZ16 -> 11 | AG71: =ARRIVEES!RI16 -> 11 | AH71: =ARRIVEES!RR16 -> 11 | AI71: 133 | AJ71: 16 | AK71: 344 | AL71: 17 | AU71: 12 | AV71: =macro!Q28 -> 8 | AW71: 1 | AY71: =SUM(AV71:AX71) -> 9 | AZ71: 16 | BC71: 0 | BD71: 8 | BE71: 0 | BF71: 1 | FM71: 8 | FN71: 7 | FO71: 3 | FP71: 1 | FQ71: 13 | FR71: 58 | GA71: 2011 | GC71: =ARRIVEES!CB60 -> 3 | GD71: =ARRIVEES!CC60 -> 10 | GE71: =ARRIVEES!CD60 -> 5 | GF71: =ARRIVEES!CE60 -> 6 | GG71: =ARRIVEES!CF60 -> 8 | GH71: 2011 | GZ71: 05 03 06 01 11 | HB71: 04 02 14 03 18
U72: 185 | V72: 14 | W72: =ARRIVEES!NW17 -> 6 | X72: =ARRIVEES!OF17 -> 6 | Y72: =ARRIVEES!OO17 -> 7 | Z72: =ARRIVEES!OX17 -> 6 | AA72: =ARRIVEES!PG17 -> 6 | AB72: =ARRIVEES!PP17 -> 6 | AC72: =ARRIVEES!PY17 -> 6 | AD72: =ARRIVEES!QH17 -> 6 | AE72: =ARRIVEES!QQ17 -> 6 | AF72: =ARRIVEES!QZ17 -> 6 | AG72: =ARRIVEES!RI17 -> 6 | AH72: =ARRIVEES!RR17 -> 6 | AI72: 73 | AJ72: 13 | AK72: 258 | AL72: 3 | AU72: 13 | AV72: =macro!Q30 -> 13 | AW72: 0 | AX72: 12 | AY72: =SUM(AV72:AX72) -> 25 | AZ72: 1 | BC72: 12 | BD72: 18 | BE72: 0 | BF72: 1 | FM72: 5 | FN72: 3 | FO72: 6 | FP72: 1 | FQ72: 11 | FR72: 59 | GC72: =ARRIVEES!CB61 -> 3 | GD72: =ARRIVEES!CC61 -> 1 | GE72: =ARRIVEES!CD61 -> 2 | GF72: =ARRIVEES!CE61 -> 5 | GG72: =ARRIVEES!CF61 -> 6 | GZ72: 03 12 15 02 16 | HB72: 16, 12 02 10 05
U73: 193 | V73: 1 | W73: =ARRIVEES!NW18 -> 2 | X73: =ARRIVEES!OF18 -> 2 | Y73: =ARRIVEES!OO18 -> 7 | Z73: =ARRIVEES!OX18 -> 2 | AA73: =ARRIVEES!PG18 -> 2 | AB73: =ARRIVEES!PP18 -> 2 | AC73: =ARRIVEES!PY18 -> 2 | AD73: =ARRIVEES!QH18 -> 2 | AE73: =ARRIVEES!QQ18 -> 2 | AF73: =ARRIVEES!QZ18 -> 2 | AG73: =ARRIVEES!RI18 -> 2 | AH73: =ARRIVEES!RR18 -> 2 | AI73: 29 | AJ73: 15 | AK73: 222 | AL73: 4 | AU73: 14 | AV73: =macro!Q32 -> 16 | AW73: 0 | AX73: 12 | AY73: 10 | AZ73: 2 | BC73: 12 | BD73: 2 | BE73: 0 | BF73: 1 | CX73: =SUM(CX64:CX72) -> 0 | CZ73: =SUM(CZ64:CZ72) -> 0 | DE73: =SUM(DE64:DE72) -> 0 | DG73: =SUM(DG64:DG72) -> 0 | DM73: =SUM(DM64:DM72) -> 0 | DO73: =SUM(DO64:DO72) -> 0 | DU73: =SUM(DU64:DU72) -> 0 | DW73: =SUM(DW64:DW72) -> 0 | FM73: 3 | FN73: 12 | FO73: 15 | FP73: 2 | FQ73: 16 | FR73: 60 | GC73: =ARRIVEES!CB62 -> 1 | GD73: =ARRIVEES!CC62 -> 13 | GE73: =ARRIVEES!CD62 -> 6 | GF73: =ARRIVEES!CE62 -> 8 | GG73: =ARRIVEES!CF62 -> 10 | GZ73: 12 06 02 15 05 | HB73: 03 12 13 09 02
U74: 148 | V74: 2 | W74: =ARRIVEES!NW19 -> 4 | X74: =ARRIVEES!OF19 -> 4 | Y74: =ARRIVEES!OO19 -> 4 | Z74: =ARRIVEES!OX19 -> 4 | AA74: =ARRIVEES!PG19 -> 4 | AB74: =ARRIVEES!PP19 -> 4 | AC74: =ARRIVEES!PY19 -> 0 | AD74: =ARRIVEES!QH19 -> 4 | AE74: =ARRIVEES!QQ19 -> 4 | AF74: =ARRIVEES!QZ19 -> 4 | AG74: =ARRIVEES!RI19 -> 4 | AH74: =ARRIVEES!RR19 -> 4 | AI74: 44 | AJ74: 17 | AK74: 192 | AL74: 20 | AU74: 15 | AV74: =macro!Q34 -> 4 | AW74: 2 | AX74: 1 | AY74: =SUM(AV74:AX74) -> 7 | AZ74: 10 | BC74: 1 | BD74: 15 | BE74: 0 | BF74: 1 | FM74: 12 | FN74: 6 | FO74: 2 | FP74: 15 | FQ74: 5 | FR74: 61 | GC74: =ARRIVEES!CB63 -> 5 | GD74: =ARRIVEES!CC63 -> 18 | GE74: =ARRIVEES!CD63 -> 3 | GF74: =ARRIVEES!CE63 -> 15 | GG74: =ARRIVEES!CF63 -> 10 | GZ74: 10 17 08 14 11 | HB74: 05 04 11 10 13
I75: =TODAY() -> 2014-08-08 | U75: 149 | V75: 11 | W75: =ARRIVEES!NW20 -> 1 | X75: =ARRIVEES!OF20 -> 1 | Y75: =ARRIVEES!OO20 -> 3 | Z75: =ARRIVEES!OX20 -> 1 | AA75: =ARRIVEES!PG20 -> 1 | AB75: =ARRIVEES!PP20 -> 1 | AC75: =ARRIVEES!PY20 -> 0 | AD75: =ARRIVEES!QH20 -> 1 | AE75: =ARRIVEES!QQ20 -> 1 | AF75: =ARRIVEES!QZ20 -> 1 | AG75: =ARRIVEES!RI20 -> 1 | AH75: =ARRIVEES!RR20 -> 1 | AI75: 13 | AJ75: 18 | AK75: 162 | AL75: 19 | AU75: 16 | AV75: =macro!Q36 -> 9 | AW75: 1 | AY75: =SUM(AV75:AX75) -> 10 | AZ75: 17 | BC75: 0 | BD75: 3 | BE75: 0 | BF75: 1 | CQ75: jeu 1 | CU75: jeu 2 | CX75: =CX73+CX63+CX53+CX43+CX33+CX23+CX13 -> 43.35 | CZ75: =CZ73+CZ63+CZ53+CZ43+CZ33+CZ23+CZ13 -> 51.45 | DE75: =DE73+DE63+DE53+DE43+DE33+DE23+DE13 -> 0 | DG75: =DG73+DG63+DG53+DG43+DG33+DG23+DG13 -> 0 | DM75: =DM73+DM63+DM53+DM43+DM33+DM23+DM13 -> 0 | DO75: =DO73+DO63+DO53+DO43+DO33+DO23+DO13 -> 0 | DU75: =DU73+DU63+DU53+DU43+DU33+DU23+DU13 -> 0 | DW75: =DW73+DW63+DW53+DW43+DW33+DW23+DW13 -> 0 | FM75: 10 | FN75: 17 | FO75: 8 | FP75: 14 | FQ75: 11 | FR75: 62 | GC75: =ARRIVEES!CB64 -> 1 | GD75: =ARRIVEES!CC64 -> 13 | GE75: =ARRIVEES!CD64 -> 11 | GF75: =ARRIVEES!CE64 -> 8 | GG75: =ARRIVEES!CF64 -> 9 | GZ75: 01 05 15 10 13 | HB75: 11 16 13 17 02
U76: 119 | V76: 7 | W76: =ARRIVEES!NW21 -> 0 | X76: =ARRIVEES!OF21 -> 0 | Y76: =ARRIVEES!OO21 -> 0 | Z76: =ARRIVEES!OX21 -> 0 | AA76: =ARRIVEES!PG21 -> 0 | AB76: =ARRIVEES!PP21 -> 0 | AC76: =ARRIVEES!PY19 -> 0 | AD76: =ARRIVEES!QH21 -> 0 | AE76: =ARRIVEES!QQ21 -> 0 | AF76: =ARRIVEES!QZ21 -> 0 | AG76: =ARRIVEES!RI21 -> 0 | AH76: =ARRIVEES!RR21 -> 0 | AI76: 0 | AJ76: 20 | AK76: 119 | AL76: 2 | AU76: 17 | AV76: =macro!Q38 -> 17 | AW76: 0 | AX76: 10 | AY76: =SUM(AV76:AX76) -> 27 | AZ76: 18 | BC76: 10 | BD76: 12 | BE76: 0 | CQ76: mise > | CR76: =CQ64 -> 61.5 | CS76: =CR76+CT76 -> 123 | CT76: =CQ64 -> 61.5 | CU76: < mise | FM76: 1 | FN76: 5 | FO76: 15 | FP76: 10 | FQ76: 13 | FR76: 63 | GC76: =ARRIVEES!CB65 -> 3 | GD76: =ARRIVEES!CC65 -> 9 | GE76: =ARRIVEES!CD65 -> 18 | GF76: =ARRIVEES!CE65 -> 14 | GG76: =ARRIVEES!CF65 -> 5 | GZ76: 01 08 14 03 12 | HB76: 15 10 07 13 06
U77: 121 | V77: 13 | W77: =ARRIVEES!NW22 -> 0 | X77: =ARRIVEES!OF22 -> 0 | Y77: =ARRIVEES!OO22 -> 1 | Z77: =ARRIVEES!OX22 -> 0 | AA77: =ARRIVEES!PG22 -> 0 | AB77: =ARRIVEES!PP22 -> 0 | AC77: =ARRIVEES!PY20 -> 0 | AD77: =ARRIVEES!QH22 -> 0 | AE77: =ARRIVEES!QQ22 -> 0 | AF77: =ARRIVEES!QZ22 -> 0 | AG77: =ARRIVEES!RI22 -> 0 | AH77: =ARRIVEES!RR22 -> 0 | AI77: 1 | AJ77: 19 | AK77: 122 | AL77: 1 | AU77: 18 | AV77: =macro!Q40 -> 18 | AW77: 1 | AX77: 2 | AY77: =SUM(AV77:AX77) -> 21 | AZ77: 19 | BC77: 2 | BD77: 16 | BE77: 0 | BF77: 1 | CQ77: gain > | CR77: =CX75+DE75+DM75+DU75+EC36 -> 43.35 | CS77: =CR77+CT77 -> 94.8 | CT77: =CZ75+DG75+DO75+DW75+EE36 -> 51.45 | CU77: < gain | FM77: 1 | FN77: 8 | FO77: 14 | FP77: 3 | FQ77: 12 | FR77: 64 | GC77: =ARRIVEES!CB67 -> 1 | GD77: =ARRIVEES!CC67 -> 6 | GE77: =ARRIVEES!CD67 -> 5 | GF77: =ARRIVEES!CE67 -> 2 | GG77: =ARRIVEES!CF67 -> 7 | GZ77: 07 02 03 09 14 | HB77: 09 08 11 07 01
U78: 3430 | W78: =SUM(W58:W77) -> 115 | X78: 115 | Y78: 147 | Z78: 115 | AA78: 115 | AB78: 115 | AC78: 110 | AD78: 115 | AE78: 115 | AF78: 115 | AG78: 115 | AH78: 115 | AI78: 1407 | AK78: =SUM(AK58:AK77) -> 4837 | AU78: 19 | AV78: =macro!Q42 -> 19 | AW78: 0 | AY78: 3 | BC78: 0 | BD78: 19 | BE78: 0 | BF78: 1 | CQ78: bilan > | CR78: =CR77-CR76 -> -18.15 | CS78: =CS77-CS76 -> -28.2 | CT78: =CT77-CT76 -> -10.05 | CU78: <bilan | FM78: 7 | FN78: 2 | FO78: 3 | FP78: 9 | FQ78: 14 | FR78: 65 | GC78: =ARRIVEES!CB68 -> 7 | GD78: =ARRIVEES!CC68 -> 15 | GE78: =ARRIVEES!CD68 -> 10 | GF78: =ARRIVEES!CE68 -> 11 | GG78: =ARRIVEES!CF68 -> 14 | GZ78: 05 02 04 13 14 | HB78: 01 03 06 09 07
AU79: 20 | AV79: =macro!Q44 -> 20 | AW79: 0 | AY79: =SUM(AV79:AX79) -> 20 | AZ79: =G23 -> 20 | BC79: 0 | BD79: 20 | BE79: 0 | BF79: 1 | CR79: =CR78/CR76 -> -0.2951219512 | CS79: =CS78/CS76 -> -0.2292682927 | CT79: =CT78/CT76 -> -0.1634146341 | FM79: 5 | FN79: 2 | FO79: 4 | FP79: 13 | FQ79: 14 | FR79: 66 | GC79: =ARRIVEES!CB69 -> 12 | GD79: =ARRIVEES!CC69 -> 14 | GE79: =ARRIVEES!CD69 -> 3 | GF79: =ARRIVEES!CE69 -> 1 | GG79: =ARRIVEES!CF69 -> 15 | GZ79: 11 13 06 05 01 | HB79: 05 03 14 04 09
AV80: =SUM(AV60:AV79) -> 210 | AW80: 435 | AX80: =SUM(AX60:AX79) -> 96 | AY80: =SUM(AV80:AX80) -> 741 | FM80: 11 | FN80: 13 | FO80: 6 | FP80: 5 | FQ80: 1 | FR80: 67 | GC80: =ARRIVEES!CB70 -> 5 | GD80: =ARRIVEES!CC70 -> 3 | GE80: =ARRIVEES!CD70 -> 12 | GF80: =ARRIVEES!CE70 -> 6 | GG80: =ARRIVEES!CF70 -> 2 | GZ80: 12 19 05 16 02
AO81: CroiséLaroche | AP81: 05 15 09 06 16 | AW81: st malo | FM81: 12 | FN81: 19 | FO81: 5 | FP81: 16 | FQ81: 2 | FR81: 68 | GC81: =ARRIVEES!CB71 -> 13 | GD81: =ARRIVEES!CC71 -> 12 | GE81: =ARRIVEES!CD71 -> 8 | GF81: =ARRIVEES!CE71 -> 7 | GG81: =ARRIVEES!CF71 -> 3 | GZ81: 16 01 03 17 07
AO82: cag | AP82: 15 07 08 13 11 | FM82: 16 | FN82: 1 | FO82: 3 | FP82: 17 | FQ82: 7 | FR82: 69 | GC82: =ARRIVEES!CB72 -> 12 | GD82: =ARRIVEES!CC72 -> 7 | GE82: =ARRIVEES!CD72 -> 16 | GF82: =ARRIVEES!CE72 -> 10 | GG82: =ARRIVEES!CF72 -> 2 | GZ82: 06 05 09 02 11 | HB82: Dve 2009
AP83: 01 07 02 05 13 | FM83: 6 | FN83: 5 | FO83: 9 | FP83: 2 | FQ83: 11 | FR83: 70 | GC83: =ARRIVEES!CB73 -> 7 | GD83: =ARRIVEES!CC73 -> 12 | GE83: =ARRIVEES!CD73 -> 6 | GF83: =ARRIVEES!CE73 -> 8 | GG83: =ARRIVEES!CF73 -> 5 | GZ83: 17 07 11 16 08 | HB83: 05 13 08 12 04
AE84: 09+10 | BC84: 2008 | BD84: 08+09 | BF84: 2009 | BZ84: 08+09 | CB84: 2009 | FM84: 17 | FN84: 7 | FO84: 11 | FP84: 16 | FQ84: 8 | FR84: 71 | GC84: =ARRIVEES!CB74 -> 6 | GD84: =ARRIVEES!CC74 -> 2 | GE84: =ARRIVEES!CD74 -> 3 | GF84: =ARRIVEES!CE74 -> 8 | GG84: =ARRIVEES!CF74 -> 12 | GZ84: 10 18 02 08 05 | HB84: 12 09 06 07 03
AD85: 2008 | AE85: ttx | AF85: clt | AT85: H 8 | BD85: ttx | BE85: < Clt | BF85: ttx | BG85: Clt > | BP85: I 9 | BY85: 2008 | BZ85: ttx | CA85: clt | CB85: ttx | CC85: clt | FM85: 10 | FN85: 18 | FO85: 2 | FP85: 8 | FQ85: 5 | FR85: 72 | GC85: =ARRIVEES!CB75 -> 3 | GD85: =ARRIVEES!CC75 -> 16 | GE85: =ARRIVEES!CD75 -> 11 | GF85: =ARRIVEES!CE75 -> 8 | GG85: =ARRIVEES!CF75 -> 6 | GZ85: 11 01 08 15 04 | HB85: 10 03 08 05 14
U86: MARSEILLE | V86: 1 | W86: =GM919 -> 2 | X86: =GN919 -> 1 | Y86: =GO919 -> 1 | Z86: =W86+X86+Y86 -> 4 | AA86: =GP919 -> 4 | AB86: =GQ919 -> 1 | AC86: =Z86+AA86+AB86 -> 9 | AD86: 6 | AE86: =AG86+AD86 -> 15 | AF86: 1 | AG86: =AC86 -> 9 | AH86: 10 | AI86: =ARRIVEES!FD3 -> 2 | AT86: MLF 2009 | AU86: 1 | AV86: =GM1156 -> 6 | AW86: =GN1156 -> 3 | AX86: =GO1156 -> 5 | AY86: =AV86+AW86+AX86 -> 14 | AZ86: =GP1156 -> 3 | BA86: =GQ1156 -> 2 | BB86: =AY86+AZ86+BA86 -> 19 | BC86: 10 | BD86: =BC86+BB86 -> 29 | BE86: 10 | BF86: =BB86 -> 19 | BG86: 10 | BH86: =ARRIVEES!FZ3 -> 3 | BP86: LYON | BQ86: 1 | BR86: =GM1318 -> 1 | BS86: =GN1318 -> 0 | BT86: =GO1318 -> 1 | BU86: =BR86+BS86+BT86 -> 2 | BV86: =GP1318 -> 1 | BW86: =GQ1318 -> 1 | BX86: =BU86+BV86+BW86 -> 4 | BY86: 2 | BZ86: =BY86+BX86 -> 6 | CA86: 3 | CB86: =BX86 -> 4 | CC86: 3 | CD86: =ARRIVEES!GV3 -> 2 | FM86: 11 | FN86: 1 | FO86: 8 | FP86: 15 | FQ86: 4 | FR86: 73 | GC86: =ARRIVEES!CB76 -> 12 | GD86: =ARRIVEES!CC76 -> 7 | GE86: =ARRIVEES!CD76 -> 5 | GF86: =ARRIVEES!CE76 -> 13 | GG86: =ARRIVEES!CF76 -> 9 | GZ86: 04 16 15 08 12 | HB86: 06 09 14 12 18
V87: 2 | W87: 0 | X87: 4 | Y87: 5 | Z87: =W87+X87+Y87 -> 9 | AA87: 1 | AB87: 2 | AC87: =Z87+AA87+AB87 -> 12 | AD87: 3 | AE87: =AG87+AD87 -> 15 | AF87: 20 | AG87: =AC87 -> 12 | AH87: 16 | AI87: =ARRIVEES!FD4 -> 1 | AU87: 2 | AV87: 9 | AW87: 8 | AX87: 3 | AY87: 20 | AZ87: 6 | BA87: 2 | BB87: 28 | BC87: 12 | BD87: 40 | BE87: 11 | BF87: 28 | BG87: 1 | BH87: =ARRIVEES!FZ4 -> 4 | BQ87: 2 | BR87: 5 | BS87: 1 | BT87: 2 | BU87: 8 | BV87: 0 | BW87: 2 | BX87: 10 | BY87: 7 | BZ87: 17 | CA87: 4 | CB87: 10 | CC87: 4 | CD87: =ARRIVEES!GU27 -> 4 | FM87: 4 | FN87: 16 | FO87: 15 | FP87: 8 | FQ87: 12 | FR87: 74 | GC87: =ARRIVEES!CB77 -> 9 | GD87: =ARRIVEES!CC77 -> 3 | GE87: =ARRIVEES!CD77 -> 10 | GF87: =ARRIVEES!CE77 -> 16 | GG87: =ARRIVEES!CF77 -> 4 | GZ87: 08 07 13 04 06 | HB87: 08 13 02 16 10
U88: G 7 | V88: 3 | W88: 1 | X88: 1 | Y88: 4 | Z88: 6 | AA88: 1 | AB88: 1 | AC88: 8 | AD88: 2 | AE88: 10 | AF88: 19 | AG88: 8 | AH88: 11 | AI88: =ARRIVEES!FD5 -> 4 | AU88: 3 | AV88: 5 | AW88: 9 | AX88: 3 | AY88: 17 | AZ88: 3 | BA88: 6 | BB88: 26 | BC88: 17 | BD88: 43 | BE88: 14 | BF88: 26 | BG88: 3 | BH88: =ARRIVEES!FZ5 -> 2 | BP88: cag | BQ88: 3 | BR88: 2 | BS88: 1 | BT88: 4 | BU88: 7 | BV88: 0 | BW88: 1 | BX88: 8 | BY88: 10 | BZ88: 18 | CA88: 12 | CB88: 8 | CC88: 6 | CD88: =ARRIVEES!GU28 -> 6 | FM88: 8 | FN88: 7 | FO88: 13 | FP88: 4 | FQ88: 6 | FR88: 75 | GC88: =ARRIVEES!CB78 -> 5 | GD88: =ARRIVEES!CC78 -> 3 | GE88: =ARRIVEES!CD78 -> 2 | GF88: =ARRIVEES!CE78 -> 9 | GG88: =ARRIVEES!CF78 -> 12 | GZ88: 11 06 09 10 02 | HB88: 12 01 16 13 07
V89: 4 | W89: 0 | X89: 2 | Y89: 4 | Z89: 6 | AA89: 2 | AB89: 2 | AC89: 10 | AD89: 5 | AE89: 15 | AF89: 18 | AG89: 10 | AH89: 6 | AI89: =ARRIVEES!FD6 -> 14 | AU89: 4 | AV89: 7 | AW89: 3 | AX89: 10 | AY89: 20 | AZ89: 5 | BA89: 6 | BB89: 31 | BC89: 15 | BD89: 46 | BE89: 15 | BF89: 31 | BG89: 8 | BH89: =ARRIVEES!FZ6 -> 10 | BQ89: 4 | BR89: 1 | BS89: 2 | BT89: 2 | BU89: 5 | BV89: 2 | BW89: 1 | BX89: 8 | BY89: 9 | BZ89: 17 | CA89: 10 | CB89: 8 | CC89: 2 | CD89: =ARRIVEES!GU29 -> 9 | CQ89: 2014 | CY89: 2010 | FM89: 11 | FN89: 6 | FO89: 9 | FP89: 10 | FQ89: 2 | FR89: 76 | GC89: =ARRIVEES!CB79 -> 2 | GD89: =ARRIVEES!CC79 -> 11 | GE89: =ARRIVEES!CD79 -> 14 | GF89: =ARRIVEES!CE79 -> 18 | GG89: =ARRIVEES!CF79 -> 8 | GZ89: 11 16 07 12 08 | HB89: 17 09 02 03 06
U90: cag | V90: 5 | W90: 2 | X90: 1 | Y90: 1 | Z90: 4 | AA90: 1 | AB90: 0 | AC90: 5 | AD90: 2 | AE90: 7 | AF90: 17 | AG90: 5 | AH90: 2 | AI90: =ARRIVEES!FD7 -> 3 | AU90: 5 | AV90: 6 | AW90: 11 | AX90: 5 | AY90: 22 | AZ90: 3 | BA90: 3 | BB90: 28 | BC90: 15 | BD90: 43 | BE90: 7 | BF90: 28 | BG90: 9 | BH90: =ARRIVEES!FZ7 -> 11 | BQ90: 5 | BR90: 1 | BS90: 1 | BT90: 0 | BU90: 2 | BV90: 1 | BW90: 2 | BX90: 5 | BY90: 7 | BZ90: 12 | CA90: 13 | CB90: 5 | CC90: 5 | CD90: =ARRIVEES!GU30 -> 12 | FM90: 11 | FN90: 16 | FO90: 7 | FP90: 12 | FQ90: 8 | FR90: 77 | GC90: =ARRIVEES!CB80 -> 9 | GD90: =ARRIVEES!CC80 -> 14 | GE90: =ARRIVEES!CD80 -> 17 | GF90: =ARRIVEES!CE80 -> 1 | GG90: =ARRIVEES!CF80 -> 5 | GZ90: 03 09 12 07 02 | HB90: 14 03 05 04 02
V91: 6 | W91: 0 | X91: 0 | Y91: 0 | Z91: 0 | AA91: 4 | AB91: 1 | AC91: 5 | AD91: 3 | AE91: 8 | AF91: 16 | AG91: 5 | AH91: 7 | AI91: =ARRIVEES!FD8 -> 6 | AU91: 6 | AV91: 4 | AW91: 2 | AX91: 6 | AY91: 12 | AZ91: 3 | BA91: 4 | BB91: 19 | BC91: 14 | BD91: 33 | BE91: 8 | BF91: 19 | BG91: 11 | BH91: =ARRIVEES!FZ8 -> 5 | BQ91: 6 | BR91: 2 | BS91: 4 | BT91: 0 | BU91: 6 | BV91: 3 | BW91: 1 | BX91: 10 | BY91: 6 | BZ91: 16 | CA91: 5 | CB91: 10 | CC91: 7 | CD91: =ARRIVEES!GU31 -> 13 | FM91: 3 | FN91: 9 | FO91: 12 | FP91: 7 | FQ91: 2 | FR91: 78 | GC91: =ARRIVEES!CB81 -> 13 | GD91: =ARRIVEES!CC81 -> 15 | GE91: =ARRIVEES!CD81 -> 11 | GF91: =ARRIVEES!CE81 -> 4 | GG91: =ARRIVEES!CF81 -> 3 | GZ91: 02 11 14 08 15 | HB91: 06 17 09 16 01
V92: 7 | W92: 3 | X92: 1 | Y92: 0 | Z92: 4 | AA92: 0 | AB92: 1 | AC92: 5 | AD92: 6 | AE92: 11 | AF92: 15 | AG92: 5 | AH92: 14 | AI92: =ARRIVEES!FD9 -> 7 | AU92: 7 | AV92: 7 | AW92: 8 | AX92: 8 | AY92: 23 | AZ92: 4 | BA92: 2 | BB92: 29 | BC92: 15 | BD92: 44 | BE92: 13 | BF92: 29 | BG92: 14 | BH92: =ARRIVEES!FZ9 -> 7 | BQ92: 7 | BR92: 0 | BS92: 0 | BT92: 1 | BU92: 1 | BV92: 1 | BW92: 2 | BX92: 4 | BY92: 6 | BZ92: 10 | CA92: 6 | CB92: 4 | CC92: 9 | CD92: =ARRIVEES!GU32 -> 14 | CO92: Janvier | CP92: jeu 1 | CT92: jeu 2 | CX92: Janvier | CY92: 396 | CZ92: 326.8 | DA92: =CZ92-CY92 -> -69.2 | FM92: 2 | FN92: 11 | FO92: 14 | FP92: 8 | FQ92: 15 | FR92: 79 | GC92: =ARRIVEES!CB82 -> 17 | GD92: =ARRIVEES!CC82 -> 12 | GE92: =ARRIVEES!CD82 -> 2 | GF92: =ARRIVEES!CE82 -> 16 | GG92: =ARRIVEES!CF82 -> 15 | GZ92: 05 08 13 12 18 | HB92: 18 02 13 09 06
V93: 8 | W93: 0 | X93: 2 | Y93: 1 | Z93: 3 | AA93: 1 | AB93: 0 | AC93: 4 | AD93: 2 | AE93: 6 | AF93: 14 | AG93: 4 | AH93: 12 | AI93: =ARRIVEES!FD10 -> 8 | AU93: 8 | AV93: 5 | AW93: 4 | AX93: 2 | AY93: 11 | AZ93: 5 | BA93: 7 | BB93: 23 | BC93: 16 | BD93: 39 | BE93: 16 | BF93: 23 | BG93: 16 | BH93: =ARRIVEES!FZ10 -> 9 | BQ93: 8 | BR93: 0 | BS93: 2 | BT93: 2 | BU93: 4 | BV93: 0 | BW93: 0 | BX93: 4 | BY93: 6 | BZ93: 10 | CA93: 7 | CB93: 4 | CC93: 10 | CD93: =ARRIVEES!GU33 -> 1 | CP93: mise > | CQ93: 349.5 | CR93: 699 | CS93: 349.5 | CT93: < mise | CZ93: 0.8253 | DA93: -0.1747 | FM93: 5 | FN93: 8 | FO93: 13 | FP93: 12 | FQ93: 18 | FR93: 80 | GC93: =ARRIVEES!CB83 -> 15 | GD93: =ARRIVEES!CC83 -> 13 | GE93: =ARRIVEES!CD83 -> 8 | GF93: =ARRIVEES!CE83 -> 6 | GG93: =ARRIVEES!CF83 -> 2 | GZ93: 01 14 10 09 13 | HB93: 11 04 09 10 07
V94: 9 | W94: 3 | X94: 1 | Y94: 0 | Z94: 4 | AA94: 0 | AB94: 1 | AC94: 5 | AD94: 4 | AE94: 9 | AF94: 13 | AG94: 5 | AH94: 15 | AU94: 9 | AV94: 5 | AW94: 6 | AX94: 4 | AY94: 15 | AZ94: 4 | BA94: 9 | BB94: 28 | BC94: 12 | BD94: 40 | BE94: 5 | BF94: 28 | BG94: 7 | BQ94: 9 | BR94: 0 | BS94: 2 | BT94: 1 | BU94: 3 | BV94: 2 | BW94: 1 | BX94: 6 | BY94: 6 | BZ94: 12 | CA94: 8 | CB94: 6 | CC94: 12 | CP94: gain > | CQ94: 304 | CR94: 590.95 | CS94: 286.95 | CT94: < gain | FM94: 1 | FN94: 14 | FO94: 10 | FP94: 9 | FQ94: 13 | FR94: 81 | GC94: =ARRIVEES!CB84 -> 5 | GD94: =ARRIVEES!CC84 -> 8 | GE94: =ARRIVEES!CD84 -> 10 | GF94: =ARRIVEES!CE84 -> 11 | GG94: =ARRIVEES!CF84 -> 7 | GZ94: 15 08 14 11 18 | HB94: 05 13 06 02 15
V95: 10 | W95: 2 | X95: 0 | Y95: 1 | Z95: 3 | AA95: 0 | AB95: 3 | AC95: 6 | AD95: 3 | AE95: 9 | AF95: 12 | AG95: 6 | AH95: 1 | AU95: 10 | AV95: 5 | AW95: 6 | AX95: 7 | AY95: 18 | AZ95: 9 | BA95: 1 | BB95: 28 | BC95: 18 | BD95: 46 | BE95: 12 | BF95: 28 | BG95: 13 | BQ95: 10 | BR95: 1 | BS95: 2 | BT95: 1 | BU95: 4 | BV95: 0 | BW95: 0 | BX95: 4 | BY95: 8 | BZ95: 12 | CA95: 9 | CB95: 4 | CC95: 13 | CP95: bilan > | CQ95: -45.5 | CR95: -108.05 | CS95: -62.55 | CT95: <bilan | CU95: =TODAY() -> 2014-08-08 | CX95: Fevrier | CY95: 348 | CZ95: 311.85 | DA95: =CZ95-CY95 -> -36.15 | FM95: 15 | FN95: 8 | FO95: 14 | FP95: 11 | FQ95: 18 | FR95: 82 | GC95: =ARRIVEES!CB85 -> 3 | GD95: =ARRIVEES!CC85 -> 11 | GE95: =ARRIVEES!CD85 -> 6 | GF95: =ARRIVEES!CE85 -> 12 | GG95: =ARRIVEES!CF85 -> 13 | GZ95: 15 18 17 13 11 | HB95: 03 16 04 11 14
V96: 11 | W96: 1 | X96: 1 | Y96: 0 | Z96: 2 | AA96: 2 | AB96: 1 | AC96: 5 | AD96: 4 | AE96: 9 | AF96: 11 | AG96: 5 | AH96: 8 | AI96: =ARRIVEES!FF26 -> 1 | AU96: 11 | AV96: 5 | AW96: 3 | AX96: 6 | AY96: 14 | AZ96: 9 | BA96: 3 | BB96: 26 | BC96: 21 | BD96: 47 | BE96: 3 | BF96: 26 | BG96: 15 | BH96: =ARRIVEES!GB26 -> 2 | BQ96: 11 | BR96: 1 | BS96: 0 | BT96: 0 | BU96: 1 | BV96: 1 | BW96: 3 | BX96: 5 | BY96: 6 | BZ96: 11 | CA96: 15 | CB96: 5 | CC96: 15 | CD96: =ARRIVEES!GX26 -> 10 | CQ96: -0.13018598 | CR96: -0.1545779685 | CS96: -0.1789699571 | CZ96: =CZ95/CY95 -> 0.8961206897 | DA96: =DA95/CY95 -> -0.1038793103 | FM96: 15 | FN96: 18 | FO96: 17 | FP96: 13 | FQ96: 11 | FR96: 83 | GC96: =ARRIVEES!CB86 -> 10 | GD96: =ARRIVEES!CC86 -> 14 | GE96: =ARRIVEES!CD86 -> 13 | GF96: =ARRIVEES!CE86 -> 8 | GG96: =ARRIVEES!CF86 -> 2 | GZ96: 10 14 12 11 06 | HB96: 14 01 11 18 17
V97: 12 | W97: 0 | X97: 2 | Y97: 1 | Z97: 3 | AA97: 0 | AB97: 1 | AC97: 4 | AD97: 0 | AE97: 4 | AF97: 10 | AG97: 4 | AH97: 9 | AI97: =ARRIVEES!FF27 -> 4 | AU97: 12 | AV97: 7 | AW97: 3 | AX97: 0 | AY97: 10 | AZ97: 7 | BA97: 5 | BB97: 22 | BC97: 13 | BD97: 35 | BE97: 6 | BF97: 22 | BG97: 5 | BH97: =ARRIVEES!GB27 -> 7 | BQ97: 12 | BR97: 2 | BS97: 1 | BT97: 4 | BU97: 7 | BV97: 2 | BW97: 0 | BX97: 9 | BY97: 11 | BZ97: 20 | CA97: 16 | CB97: 9 | CC97: 16 | CD97: =ARRIVEES!GX27 -> 1 | FM97: 10 | FN97: 14 | FO97: 12 | FP97: 11 | FQ97: 6 | FR97: 84 | GC97: =ARRIVEES!CB87 -> 8 | GD97: =ARRIVEES!CC87 -> 1 | GE97: =ARRIVEES!CD87 -> 5 | GF97: =ARRIVEES!CE87 -> 12 | GG97: =ARRIVEES!CF87 -> 4 | GH97: 2012 | GZ97: 16 04 06 01 07 | HB97: 04 05 18 01 08
V98: 13 | W98: 2 | X98: 2 | Y98: 0 | Z98: 4 | AA98: 1 | AB98: 0 | AC98: 5 | AD98: 2 | AE98: 7 | AF98: 9 | AG98: 5 | AH98: 3 | AI98: =ARRIVEES!FF28 -> 3 | AU98: 13 | AV98: 1 | AW98: 7 | AX98: 1 | AY98: 9 | AZ98: 3 | BA98: 6 | BB98: 18 | BC98: 13 | BD98: 31 | BE98: 9 | BF98: 18 | BG98: 2 | BH98: =ARRIVEES!GB28 -> 8 | BQ98: 13 | BR98: 2 | BS98: 1 | BT98: 2 | BU98: 5 | BV98: 1 | BW98: 1 | BX98: 7 | BY98: 7 | BZ98: 14 | CA98: 2 | CB98: 7 | CC98: 1 | CD98: =ARRIVEES!GX28 -> 2 | FM98: 16 | FN98: 4 | FO98: 6 | FP98: 1 | FQ98: 7 | FR98: 85 | GC98: =ARRIVEES!CB88 -> 13 | GD98: =ARRIVEES!CC88 -> 3 | GE98: =ARRIVEES!CD88 -> 4 | GF98: =ARRIVEES!CE88 -> 9 | GG98: =ARRIVEES!CF88 -> 7 | GZ98: 12 13 06 05 04 | HB98: 16 11 09 07 15
V99: 14 | W99: 2 | X99: 1 | Y99: 0 | Z99: 3 | AA99: 2 | AB99: 2 | AC99: 7 | AD99: 4 | AE99: 11 | AF99: 8 | AG99: 7 | AH99: 5 | AI99: =ARRIVEES!FF29 -> 7 | AO99: Craignes | AP99: 07 08 01 04 16 | AU99: 14 | AV99: 4 | AW99: 1 | AX99: 5 | AY99: 10 | AZ99: 4 | BA99: 7 | BB99: 21 | BC99: 15 | BD99: 36 | BE99: 4 | BF99: 21 | BG99: 6 | BH99: =ARRIVEES!GB29 -> 14 | BQ99: 14 | BR99: 0 | BS99: 1 | BT99: 1 | BU99: 2 | BV99: 2 | BW99: 3 | BX99: 7 | BY99: 6 | BZ99: 13 | CA99: 11 | CB99: 7 | CC99: 8 | CD99: =ARRIVEES!GX29 -> 5 | CO99: fevr | CX99: Mars | CY99: 367.6 | CZ99: 325.35 | DA99: =CZ99-CY99 -> -42.25 | FM99: 8 | FN99: 10 | FO99: 4 | FP99: 2 | FQ99: 13 | FR99: 86 | GC99: =ARRIVEES!CB89 -> 1 | GD99: =ARRIVEES!CC89 -> 4 | GE99: =ARRIVEES!CD89 -> 15 | GF99: =ARRIVEES!CE89 -> 9 | GG99: =ARRIVEES!CF89 -> 3 | GZ99: 16 12 13 09 17 | HB99: 15 03 04 01 14
V100: 15 | W100: 1 | X100: 0 | Y100: 2 | Z100: 3 | AA100: 0 | AB100: 2 | AC100: 5 | AD100: 3 | AE100: 8 | AF100: 7 | AG100: 5 | AH100: 4 | AI100: =ARRIVEES!FF30 -> 2 | AU100: 15 | AV100: 0 | AW100: 2 | AX100: 5 | AY100: 7 | AZ100: 5 | BA100: 6 | BB100: 18 | BC100: 17 | BD100: 35 | BE100: 2 | BF100: 18 | BG100: 4 | BH100: =ARRIVEES!GB30 -> 5 | BQ100: 15 | BR100: 2 | BS100: 2 | BT100: 1 | BU100: 5 | BV100: 3 | BW100: 2 | BX100: 10 | BY100: 8 | BZ100: 18 | CA100: 14 | CB100: 10 | CC100: 11 | CD100: =ARRIVEES!GX30 -> 8 | CQ100: 343.5 | CR100: 687 | CS100: 343.5 | CZ100: =CZ99/CY99 -> 0.8850652884 | DA100: =DA99/CY99 -> -0.1149347116 | FM100: 16 | FN100: 12 | FO100: 13 | FP100: 9 | FQ100: 17 | FR100: 87 | GC100: =ARRIVEES!CB90 -> 6 | GD100: =ARRIVEES!CC90 -> 10 | GE100: =ARRIVEES!CD90 -> 1 | GF100: =ARRIVEES!CE90 -> 15 | GG100: =ARRIVEES!CF90 -> 11 | HB100: 10 14 05 13 09
V101: 16 | W101: 1 | X101: 1 | Y101: 0 | Z101: 2 | AA101: 1 | AB101: 1 | AC101: 4 | AD101: 7 | AE101: 11 | AF101: 6 | AG101: 4 | AH101: 13 | AI101: =ARRIVEES!FF31 -> 5 | AU101: 16 | AV101: 2 | AW101: 1 | AX101: 8 | AY101: 11 | AZ101: 4 | BA101: 4 | BB101: 19 | BC101: 13 | BD101: 32 | BE101: 18 | BF101: 19 | BG101: 12 | BH101: =ARRIVEES!GB31 -> 16 | BQ101: 16 | BR101: 1 | BS101: 1 | BT101: 1 | BU101: 3 | BV101: 4 | BW101: 2 | BX101: 9 | BY101: 8 | BZ101: 17 | CA101: 17 | CB101: 9 | CC101: 14 | CD101: =ARRIVEES!GX31 -> 9 | CQ101: 331.55 | CR101: 587 | CS101: 255.45 | FM101: 16 | FN101: 15 | FO101: 6 | FP101: 11 | FQ101: 2 | FR101: 88 | GC101: =ARRIVEES!CB91 -> 10 | GD101: =ARRIVEES!CC91 -> 12 | GE101: =ARRIVEES!CD91 -> 2 | GF101: =ARRIVEES!CE91 -> 14 | GG101: =ARRIVEES!CF91 -> 5
V102: 17 | W102: 0 | X102: 0 | Y102: 0 | Z102: 0 | AA102: 0 | AB102: 0 | AC102: 0 | AD102: 0 | AE102: 0 | AF102: 5 | AG102: 0 | AH102: 17 | AI102: =ARRIVEES!FF32 -> 6 | AU102: 17 | AV102: 0 | AW102: 1 | AX102: 0 | AY102: 1 | AZ102: 1 | BA102: 2 | BB102: 4 | BC102: 2 | BD102: 6 | BE102: 1 | BF102: 4 | BG102: 17 | BH102: =ARRIVEES!GB32 -> 3 | BQ102: 17 | BR102: 2 | BS102: 1 | BT102: 0 | BU102: 3 | BV102: 0 | BW102: 0 | BX102: 3 | BY102: 5 | BZ102: 8 | CA102: 1 | CB102: 3 | CC102: 17 | CD102: =ARRIVEES!GX32 -> 11 | CQ102: -11.95 | CR102: -100 | CS102: -88.05 | FM102: 13 | FN102: 14 | FO102: 16 | FP102: 9 | FQ102: 15 | FR102: 89 | GC102: =ARRIVEES!CB92 -> 12 | GD102: =ARRIVEES!CC92 -> 6 | GE102: =ARRIVEES!CD92 -> 5 | GF102: =ARRIVEES!CE92 -> 8 | GG102: =ARRIVEES!CF92 -> 14
V103: 18 | W103: 0 | X103: 0 | Y103: 0 | Z103: 0 | AA103: 0 | AB103: 1 | AC103: 1 | AD103: 0 | AE103: 1 | AF103: 4 | AG103: 1 | AH103: 18 | AI103: =ARRIVEES!FF33 -> 12 | AU103: 18 | AV103: 0 | AW103: 0 | AX103: 0 | AY103: 0 | AZ103: 0 | BA103: 3 | BB103: 3 | BC103: 5 | BD103: 8 | BE103: 17 | BF103: 3 | BG103: 18 | BH103: =ARRIVEES!GB33 -> 9 | BQ103: 18 | BR103: 0 | BS103: 1 | BT103: 0 | BU103: 1 | BV103: 0 | BW103: 1 | BX103: 2 | BY103: 2 | BZ103: 4 | CA103: 18 | CB103: 2 | CC103: 18 | CD103: =ARRIVEES!GX33 -> 14 | CQ103: -0.03478893741 | CR103: -0.1455604076 | CS103: -0.2563318777 | CX103: Avril | CY103: 364.5 | CZ103: 329.4 | DA103: =CZ103-CY103 -> -35.1 | FM103: 13 | FN103: 1 | FO103: 11 | FP103: 9 | FQ103: 3 | FR103: 90 | GC103: =ARRIVEES!CB93 -> 13 | GD103: =ARRIVEES!CC93 -> 11 | GE103: =ARRIVEES!CD93 -> 7 | GF103: =ARRIVEES!CE93 -> 14 | GG103: =ARRIVEES!CF93 -> 5
V104: 19 | W104: 0 | X104: 0 | Y104: 0 | Z104: 0 | AA104: 0 | AB104: 0 | AC104: 0 | AD104: 0 | AE104: 0 | AF104: 3 | AG104: 0 | AH104: 19 | AU104: 19 | AV104: 0 | AW104: 0 | AX104: 0 | AY104: 0 | AZ104: 0 | BA104: 0 | BB104: 0 | BC104: 0 | BD104: 0 | BE104: 19 | BF104: 0 | BG104: 19 | BQ104: 19 | BR104: 0 | BS104: 0 | BT104: 0 | BU104: 0 | BV104: 0 | BW104: 0 | BX104: 0 | BY104: 0 | BZ104: 0 | CA104: 19 | CB104: 0 | CC104: 19 | CZ104: =CZ103/CY103 -> 0.9037037037 | DA104: =DA103/CY103 -> -0.0962962963 | FM104: 8 | FN104: 15 | FO104: 12 | FP104: 6 | FQ104: 4 | FR104: 91 | GC104: =ARRIVEES!CB94 -> 10 | GD104: =ARRIVEES!CC94 -> 14 | GE104: =ARRIVEES!CD94 -> 11 | GF104: =ARRIVEES!CE94 -> 6 | GG104: =ARRIVEES!CF94 -> 9
V105: 20 | W105: 0 | X105: 0 | Y105: 0 | Z105: 0 | AA105: 0 | AB105: 0 | AC105: 0 | AD105: 0 | AE105: 0 | AF105: 2 | AG105: 0 | AH105: 20 | AU105: 20 | AV105: 0 | AW105: 0 | AX105: 0 | AY105: 0 | AZ105: =GP1175 -> 0 | BA105: 0 | BB105: 0 | BC105: 0 | BD105: 0 | BE105: 20 | BF105: 0 | BG105: 20 | BQ105: 20 | BR105: 0 | BS105: 0 | BT105: 0 | BU105: 0 | BV105: 0 | BW105: 0 | BX105: 0 | BY105: 0 | BZ105: 0 | CA105: 20 | CB105: 0 | CC105: 20 | FM105: 17 | FN105: 6 | FO105: 3 | FP105: 14 | FQ105: 16 | FR105: 92 | GC105: =ARRIVEES!CB95 -> 14 | GD105: =ARRIVEES!CC95 -> 1 | GE105: =ARRIVEES!CD95 -> 16 | GF105: =ARRIVEES!CE95 -> 4 | GG105: =ARRIVEES!CF95 -> 6
W106: =SUM(W86:W105) -> 20 | X106: 20 | Y106: 20 | Z106: 60 | AA106: 20 | AB106: 20 | AC106: 100 | AE106: =SUM(AE87:AE105) -> 141 | AF106: X | AG106: =SUM(AG86:AG105) -> 100 | AH106: X | AV106: =SUM(AV86:AV105) -> 78 | AW106: 78 | AX106: =SUM(AX86:AX105) -> 78 | AY106: 234 | AZ106: 78 | BA106: 78 | BB106: 390 | BD106: =SUM(BD86:BD105) -> 633 | BE106: X | BF106: 390 | BG106: X | BR106: =SUM(BR86:BR105) -> 23 | BS106: 23 | BT106: 23 | BU106: 69 | BV106: 23 | BW106: 23 | BX106: 115 | BZ106: =SUM(BZ86:BZ105) -> 235 | CB106: 115 | CO106: mar | FM106: 9 | FN106: 6 | FO106: 2 | FP106: 8 | FQ106: 1 | FR106: 93 | GC106: =ARRIVEES!CB96 -> 7 | GD106: =ARRIVEES!CC96 -> 14 | GE106: =ARRIVEES!CD96 -> 1 | GF106: =ARRIVEES!CE96 -> 2 | GG106: =ARRIVEES!CF96 -> 10 | HB106: Atl 2009
AE107: Mars | BD107: mlf | BZ107: lyon | CQ107: 364.5 | CR107: 729 | CS107: 364.5 | CX107: Mai | CY107: 378 | CZ107: 373.95 | DA107: =CZ107-CY107 -> -4.05 | FM107: 6 | FN107: 12 | FO107: 13 | FP107: 11 | FQ107: 10 | FR107: 94 | GC107: =ARRIVEES!CB97 -> 3 | GD107: =ARRIVEES!CC97 -> 10 | GE107: =ARRIVEES!CD97 -> 8 | GF107: =ARRIVEES!CE97 -> 16 | GG107: =ARRIVEES!CF97 -> 14 | GZ107: Scld 2009 | HC107: 1
CQ108: 294.75 | CR108: 620.4 | CS108: 325.65 | CZ108: 0.0114 | DA108: 0.0114 | FM108: 5 | FN108: 6 | FO108: 3 | FP108: 14 | FQ108: 11 | FR108: 95 | GC108: =ARRIVEES!CB98 -> 9 | GD108: =ARRIVEES!CC98 -> 14 | GE108: =ARRIVEES!CD98 -> 12 | GF108: =ARRIVEES!CE98 -> 6 | GG108: =ARRIVEES!CF98 -> 10 | GZ108: 15 12 03 08 06 | HC108: 2
CQ109: -69.75 | CR109: -108.6 | CS109: -38.85 | FM109: 8 | FN109: 15 | FO109: 12 | FP109: 10 | FQ109: 13 | FR109: 96 | GC109: =ARRIVEES!CB99 -> 9 | GD109: =ARRIVEES!CC99 -> 3 | GE109: =ARRIVEES!CD99 -> 12 | GF109: =ARRIVEES!CE99 -> 1 | GG109: =ARRIVEES!CF99 -> 13 | GZ109: 01 17 03 14 12 | HC109: 3
CQ110: -0.1913580247 | CR110: -0.1489711934 | CS110: -0.1065843621 | FM110: 11 | FN110: 13 | FO110: 10 | FP110: 15 | FQ110: 16 | FR110: 97 | GC110: =ARRIVEES!CB100 -> 17 | GD110: =ARRIVEES!CC100 -> 14 | GE110: =ARRIVEES!CD100 -> 13 | GF110: =ARRIVEES!CE100 -> 6 | GG110: =ARRIVEES!CF100 -> 10 | GZ110: 11 13 10 02 06 | HC110: 4
CX111: Juin | CY111: 355.5 | CZ111: 302.45 | DA111: 53.05 | FM111: 8 | FN111: 7 | FO111: 10 | FP111: 2 | FQ111: 5 | FR111: 98 | GC111: =ARRIVEES!CB101 -> 3 | GD111: =ARRIVEES!CC101 -> 7 | GE111: =ARRIVEES!CD101 -> 13 | GF111: =ARRIVEES!CE101 -> 14 | GG111: =ARRIVEES!CF101 -> 6 | GZ111: 16 18 02 08 17 | HC111: 5
CZ112: =CZ111/CY111 -> 0.8507735584 | DA112: =DA111/CY111 -> 0.1492264416 | FM112: 2 | FN112: 11 | FO112: 10 | FP112: 16 | FQ112: 18 | FR112: 99 | GC112: =ARRIVEES!CB102 -> 7 | GD112: =ARRIVEES!CC102 -> 3 | GE112: =ARRIVEES!CD102 -> 9 | GF112: =ARRIVEES!CE102 -> 15 | GG112: =ARRIVEES!CF102 -> 1 | GZ112: 12 05 04 16 03 | HC112: 6
AO113: Craon | AP113: 11 07 08 02 15 | CO113: avr | FM113: 5 | FN113: 3 | FO113: 12 | FP113: 18 | FQ113: 6 | FR113: 100 | GC113: =ARRIVEES!CB103 -> 11 | GD113: =ARRIVEES!CC103 -> 12 | GE113: =ARRIVEES!CD103 -> 14 | GF113: =ARRIVEES!CE103 -> 3 | GG113: =ARRIVEES!CF103 -> 6 | GZ113: 01 02 14 03 15 | HC113: 7
AO114: cad | AP114: 02 05 03 11 15 | CQ114: 348 | CR114: 342.15 | CS114: -5.85 | FM114: 5 | FN114: 13 | FO114: 7 | FP114: 8 | FQ114: 1 | FR114: 101 | GC114: =ARRIVEES!CB104 -> 1 | GD114: =ARRIVEES!CC104 -> 12 | GE114: =ARRIVEES!CD104 -> 7 | GF114: =ARRIVEES!CE104 -> 16 | GG114: =ARRIVEES!CF104 -> 6 | GZ114: 09 13 07 12 10 | HC114: 8
AP115: 01 11 13 16 05 | CR115: 0.9831896552 | CS115: -0.01681034483 | CX115: Juillet | CY115: 370.5 | CZ115: 277.3 | DA115: =CZ115-CY115 -> -93.2 | FM115: 8 | FN115: 16 | FO115: 15 | FP115: 6 | FQ115: 7 | FR115: 102 | GC115: =ARRIVEES!CB105 -> 5 | GD115: =ARRIVEES!CC105 -> 8 | GE115: =ARRIVEES!CD105 -> 1 | GF115: =ARRIVEES!CE105 -> 12 | GG115: =ARRIVEES!CF105 -> 16 | GZ115: 02 04 11 15 5 | HC115: 9
CZ116: 0.7484 | DA116: -0.2516 | FM116: 13 | FN116: 4 | FO116: 14 | FP116: 5 | FQ116: 16 | FR116: 103 | GC116: =ARRIVEES!CB106 -> 8 | GD116: =ARRIVEES!CC106 -> 4 | GE116: =ARRIVEES!CD106 -> 13 | GF116: =ARRIVEES!CE106 -> 3 | GG116: =ARRIVEES!CF106 -> 11 | GZ116: 16 03 04 02 10 | HC116: 10
FM117: 12 | FN117: 7 | FO117: 14 | FP117: 11 | FQ117: 17 | FR117: 104 | GC117: =ARRIVEES!CB107 -> 8 | GD117: =ARRIVEES!CC107 -> 14 | GE117: =ARRIVEES!CD107 -> 10 | GF117: =ARRIVEES!CE107 -> 9 | GG117: =ARRIVEES!CF107 -> 15 | GZ117: 05 10 14 12 08 | HC117: 11
FM118: 19 | FN118: 9 | FO118: 17 | FP118: 11 | FQ118: 20 | FR118: 105 | GC118: =ARRIVEES!CB108 -> 3 | GD118: =ARRIVEES!CC108 -> 6 | GE118: =ARRIVEES!CD108 -> 11 | GF118: =ARRIVEES!CE108 -> 15 | GG118: =ARRIVEES!CF108 -> 14 | GZ118: 12 13 10 04 14 | HC118: 12
CX119: Aout | CY119: 373.5 | CZ119: 377.5 | DA119: =CZ119-CY119 -> 4 | FM119: 6 | FN119: 8 | FO119: 3 | FP119: 14 | FQ119: 7 | FR119: 106 | GC119: =ARRIVEES!CB109 -> 1 | GD119: =ARRIVEES!CC109 -> 9 | GE119: =ARRIVEES!CD109 -> 10 | GF119: =ARRIVEES!CE109 -> 3 | GG119: =ARRIVEES!CF109 -> 17 | GZ119: 09 11 10 03 05 | HC119: 13
CR120: 2014 | CZ120: =CZ119/CY119 -> 1.010709505 | DA120: =DA119/CY119 -> 0.01070950469 | FM120: 16 | FN120: 17 | FO120: 1 | FP120: 6 | FQ120: 8 | FR120: 107 | GC120: =ARRIVEES!CB110 -> 3 | GD120: =ARRIVEES!CC110 -> 14 | GE120: =ARRIVEES!CD110 -> 2 | GF120: =ARRIVEES!CE110 -> 6 | GG120: =ARRIVEES!CF110 -> 9 | GZ120: 06 04 09 15 16 | HC120: 14
AE121: 08+09 | AG121: 2009 | BD121: 08+09 | BF121: 2009 | BZ121: 08+09 | CB121: 2009 | FM121: 9 | FN121: 3 | FO121: 6 | FP121: 17 | FQ121: 14 | FR121: 108 | GC121: =ARRIVEES!CB111 -> 10 | GD121: =ARRIVEES!CC111 -> 6 | GE121: =ARRIVEES!CD111 -> 14 | GF121: =ARRIVEES!CE111 -> 9 | GG121: =ARRIVEES!CF111 -> 17 | GZ121: 09 08 02 12 06 | HC121: 15
U122: J 10 | AE122: ttx | AF122: < Clt | AG122: ttx | AH122: Clt > | AT122: K 11 | BD122: ttx | BE122: < Clt | BF122: ttx | BG122: Clt > | BP122: L 12 | BY122: 2008 | BZ122: ttx | CA122: < Clt | CB122: ttx | CC122: Clt > | FM122: 6 | FN122: 8 | FO122: 14 | FP122: 1 | FQ122: 9 | FR122: 109 | GC122: =ARRIVEES!CB112 -> 6 | GD122: =ARRIVEES!CC112 -> 13 | GE122: =ARRIVEES!CD112 -> 10 | GF122: =ARRIVEES!CE112 -> 12 | GG122: =ARRIVEES!CF112 -> 1 | GZ122: 12 14 06 18 08 | HC122: 16
U123: EGN 2009 | V123: 1 | W123: =GM186 -> 6 | X123: =GN186 -> 11 | Y123: =GO186 -> 13 | Z123: =W123:W142+X123:X142+Y123:Y142 -> 30 | AA123: =GP186 -> 8 | AB123: =GQ186 -> 16 | AC123: =Z123:Z142+AA123:AA142+AB123:AB142 -> 54 | AE123: =AC123+AD123 -> 54 | AF123: 2 | AG123: =AC123 -> 54 | AH123: 2 | AI123: =ARRIVEES!HR3 -> 2 | AT123: CTY 2009 | AU123: 1 | AV123: =GM1267 -> 0 | AW123: =GN1267 -> 0 | AX123: =GO1267 -> 0 | AY123: =AV123+AW123+AX123 -> 0 | AZ123: =GP1267 -> 0 | BA123: =GQ1267 -> 0 | BB123: =AY123+AZ123+BA123 -> 0 | BC123: 32 | BD123: =BB123+BC123 -> 32 | BE123: 1 | BF123: =BB123 -> 0 | BG123: 14 | BH123: =ARRIVEES!IN3 -> 3 | BL123: 32 | BP123: CABOURG | BQ123: 1 | BR123: =GM1349 -> 3 | BS123: =GN1349 -> 2 | BT123: =GO1349 -> 4 | BU123: =BT123+BS123+BR123 -> 9 | BV123: =GP1349 -> 5 | BW123: =GQ1349 -> 4 | BX123: =BW123+BV123+BU123 -> 18 | BY123: 16 | BZ123: =BY123+BX123 -> 34 | CA123: 6 | CB123: =BX123 -> 18 | CC123: 1 | CD123: =ARRIVEES!JJ3 -> 1 | CO123: mai | CX123: Septembre | CY123: 367.5 | CZ123: 366.9 | DA123: -0.6 | FL123: 2010 | FM123: 14 | FN123: 11 | FO123: 2 | FP123: 6 | FQ123: 19 | FR123: 110 | GC123: =ARRIVEES!CB113 -> 7 | GD123: =ARRIVEES!CC113 -> 9 | GE123: =ARRIVEES!CD113 -> 1 | GF123: =ARRIVEES!CE113 -> 13 | GG123: =ARRIVEES!CF113 -> 14 | HC123: 17
V124: 2 | W124: 16 | X124: 12 | Y124: 11 | Z124: =W124+X124+Y124 -> 39 | AA124: 9 | AB124: 18 | AC124: =Z124+AA124+AB124 -> 66 | AE124: =AC124+AD124 -> 66 | AF124: 3 | AG124: 66 | AH124: 3 | AI124: =ARRIVEES!HR4 -> 1 | AO124: Dieppe | AP124: 08 04 12 10 03 | AU124: 2 | AV124: 0 | AW124: 0 | AX124: 0 | AY124: =AV124+AW124+AX124 -> 0 | AZ124: 0 | BA124: 0 | BB124: =AY124+AZ124+BA124 -> 0 | BC124: 29 | BD124: 29 | BE124: 5 | BF124: 0 | BG124: 1 | BH124: =ARRIVEES!IN4 -> 2 | BL124: 29 | BQ124: 2 | BR124: 5 | BS124: 0 | BT124: 2 | BU124: =BT124+BS124+BR124 -> 7 | BV124: 2 | BW124: 2 | BX124: =BW124+BV124+BU124 -> 11 | BY124: 10 | BZ124: 21 | CA124: 4 | CB124: =BX124 -> 11 | CC124: 2 | CD124: =ARRIVEES!JJ4 -> 3 | CQ124: 360 | CR124: 720 | CS124: 360 | CZ124: 0.9983673469 | DA124: -0.001632653061 | FL124: jan | FM124: 5 | FN124: 8 | FO124: 15 | FP124: 12 | FQ124: 13 | FR124: 111 | GC124: =ARRIVEES!CB114 -> 13 | GD124: =ARRIVEES!CC114 -> 14 | GE124: =ARRIVEES!CD114 -> 10 | GF124: =ARRIVEES!CE114 -> 5 | GG124: =ARRIVEES!CF114 -> 3 | GH124: 2013 | HC124: 18
U125: cag | V125: 3 | W125: 16 | X125: 13 | Y125: 5 | Z125: 34 | AA125: 11 | AB125: 3 | AC125: =Z125+AA125+AB125 -> 48 | AE125: 48 | AF125: 13 | AG125: 48 | AH125: 12 | AI125: =ARRIVEES!HR5 -> 5 | AP125: 13 15 14 01 12 | AU125: 3 | AV125: 0 | AW125: 0 | AX125: 0 | AY125: 0 | AZ125: 0 | BA125: 0 | BB125: 0 | BC125: 24 | BD125: 24 | BE125: 14 | BF125: 0 | BG125: 7 | BH125: =ARRIVEES!IN5 -> 8 | BL125: 24 | BP125: cad | BQ125: 3 | BR125: 2 | BS125: 2 | BT125: 6 | BU125: 10 | BV125: 5 | BW125: 4 | BX125: 19 | BY125: 10 | BZ125: 29 | CA125: 5 | CB125: 19 | CC125: 3 | CD125: =ARRIVEES!JJ5 -> 7 | CQ125: 337.8466667 | CR125: 639.7166667 | CS125: 301.87 | FM125: 9 | FN125: 3 | FO125: 5 | FP125: 4 | FQ125: 12 | FR125: 112 | GC125: =ARRIVEES!CB115 -> 15 | GD125: =ARRIVEES!CC115 -> 5 | GE125: =ARRIVEES!CD115 -> 6 | GF125: =ARRIVEES!CE115 -> 8 | GG125: =ARRIVEES!CF115 -> 12 | HC125: 19
... 140 more rows

Sheet Mois
B2: 2014
A3: JUILLET | P3: Clt | S3: 2010 | U3: 2011 | W3: 2012 | Y3: 2013
A4: Jour | B4: C1 | C4: C2 | D4: C3 | E4: C4 | F4: C5 | G4: Quinté | H4: HIPPO | I4: 1 | J4: 2 | K4: 3 | L4: 4 | M4: 5 | P4: mois | S4: JAN | U4: JAN | W4: JAN | Y4: JAN
A5: 1 | B5: =ARRIVEES!QK39 -> 0 | C5: =ARRIVEES!QL39 -> 0 | D5: =ARRIVEES!QM39 -> 0 | E5: =ARRIVEES!QN39 -> 1 | F5: =ARRIVEES!QO39 -> 1 | G5: =SUM(B5:F5) -> 2 | H5: CBG | I5: =ARRIVEES!QJ3 -> 6 | J5: =ARRIVEES!QK3 -> 14 | K5: =ARRIVEES!QL3 -> 3 | L5: =ARRIVEES!QM3 -> 2 | M5: =ARRIVEES!QN3 -> 7 | O5: =COUNTIF($I$5:$M$35,ROW()-4)+((22-ROW()-4)/100) -> 2.13 | P5: =MATCH(LARGE($O$5:$O$24,ROW()-4),$O$5:$O24,0) -> 7 | R5: 1 | S5: FEV | U5: FEV | W5: FEV | Y5: FEV
A6: 2 | B6: =ARRIVEES!QK40 -> 0 | C6: =ARRIVEES!QL40 -> 0 | D6: =ARRIVEES!QM40 -> 0 | E6: =ARRIVEES!QN40 -> 1 | F6: =ARRIVEES!QO40 -> 0 | G6: =SUM(B6:F6) -> 1 | H6: DVE | I6: =ARRIVEES!QJ4 -> 7 | J6: =ARRIVEES!QK4 -> 15 | K6: =ARRIVEES!QL4 -> 14 | L6: =ARRIVEES!QM4 -> 13 | M6: =ARRIVEES!QN4 -> 1 | O6: =COUNTIF($I$5:$M$35,ROW()-4)+((22-ROW()-4)/100) -> 1.12 | P6: =MATCH(LARGE($O$5:$O$24,ROW()-4),$O$5:$O25,0) -> 14 | R6: 2 | S6: MAR | U6: MAR | W6: MAR | Y6: MAR
A7: 3 | B7: =ARRIVEES!QK41 -> 0 | C7: =ARRIVEES!QL41 -> 0 | D7: =ARRIVEES!QM41 -> 1 | E7: =ARRIVEES!QN41 -> 1 | F7: =ARRIVEES!QO41 -> 0 | G7: 2 | H7: DVE | I7: =ARRIVEES!QJ5 -> 12 | J7: =ARRIVEES!QK5 -> 10 | K7: =ARRIVEES!QL5 -> 15 | L7: =ARRIVEES!QM5 -> 1 | M7: =ARRIVEES!QN5 -> 8 | O7: 2.11 | P7: =MATCH(LARGE($O$5:$O$24,ROW()-4),$O$5:$O26,0) -> 1 | R7: 3 | S7: AVR | U7: AVR | W7: AVR | Y7: AVR
A8: 4 | B8: =ARRIVEES!QK42 -> 0 | C8: =ARRIVEES!QL42 -> 0 | D8: =ARRIVEES!QM42 -> 0 | E8: =ARRIVEES!QN42 -> 0 | F8: =ARRIVEES!QO42 -> 0 | G8: 0 | H8: CLFNE | I8: =ARRIVEES!QJ6 -> 16 | J8: =ARRIVEES!QK6 -> 6 | K8: =ARRIVEES!QL6 -> 11 | L8: =ARRIVEES!QM6 -> 3 | M8: =ARRIVEES!QN6 -> 10 | O8: 0.1 | P8: =MATCH(LARGE($O$5:$O$24,ROW()-4),$O$5:$O27,0) -> 3 | R8: 4 | S8: MAI | U8: MAI | W8: MAI | Y8: MAI
A9: 5 | B9: =ARRIVEES!QK43 -> 0 | C9: =ARRIVEES!QL43 -> 0 | D9: =ARRIVEES!QM43 -> 0 | E9: =ARRIVEES!QN43 -> 1 | F9: =ARRIVEES!QO43 -> 0 | G9: 1 | H9: DVE | I9: =ARRIVEES!QJ7 -> 14 | J9: =ARRIVEES!QK7 -> 7 | K9: =ARRIVEES!QL7 -> 11 | L9: =ARRIVEES!QM7 -> 5 | M9: =ARRIVEES!QN7 -> 12 | O9: 1.09 | P9: =MATCH(LARGE($O$5:$O$24,ROW()-4),$O$5:$O28,0) -> 6 | R9: 5 | S9: JUN | U9: JUN | W9: JUN | Y9: JUN
A10: 6 | B10: =ARRIVEES!QK44 -> 1 | C10: =ARRIVEES!QL44 -> 1 | D10: =ARRIVEES!QM44 -> 0 | E10: =ARRIVEES!QN44 -> 0 | F10: =ARRIVEES!QO44 -> 0 | G10: =SUM(B10:F10) -> 2 | H10: St Malo | I10: =ARRIVEES!QJ8 -> 0 | J10: =ARRIVEES!QK8 -> 0 | K10: =ARRIVEES!QL8 -> 0 | L10: =ARRIVEES!QM8 -> 0 | M10: =ARRIVEES!QN8 -> 0 | O10: 2.08 | P10: =MATCH(LARGE($O$5:$O$24,ROW()-4),$O$5:$O29,0) -> 10 | R10: 6 | S10: JUL | U10: JUL | W10: JUL | Y10: JUL
A11: 7 | B11: =ARRIVEES!QK45 -> 1 | C11: =ARRIVEES!QL45 -> 1 | D11: =ARRIVEES!QM45 -> 0 | E11: =ARRIVEES!QN45 -> 0 | F11: =ARRIVEES!QO45 -> 1 | G11: 3 | H11: EGN | I11: =ARRIVEES!QJ9 -> 0 | J11: =ARRIVEES!QK9 -> 0 | K11: =ARRIVEES!QL9 -> 0 | L11: =ARRIVEES!QM9 -> 0 | M11: =ARRIVEES!QN9 -> 0 | O11: 3.07 | P11: =MATCH(LARGE($O$5:$O$24,ROW()-4),$O$5:$O30,0) -> 11 | R11: 7 | S11: AOU | U11: AOU | W11: AOU | Y11: AOU
A12: 8 | B12: =ARRIVEES!QK46 -> 0 | C12: =ARRIVEES!QL46 -> 0 | D12: =ARRIVEES!QM46 -> 0 | E12: =ARRIVEES!QN46 -> 0 | F12: =ARRIVEES!QO46 -> 1 | G12: =SUM(B12:F12) -> 1 | H12: CBG | I12: =ARRIVEES!QJ10 -> 0 | J12: =ARRIVEES!QK10 -> 0 | K12: =ARRIVEES!QL10 -> 0 | L12: =ARRIVEES!QM10 -> 0 | M12: =ARRIVEES!QN10 -> 0 | O12: 1.06 | P12: =MATCH(LARGE($O$5:$O$24,ROW()-4),$O$5:$O31,0) -> 12 | R12: 8 | S12: SEP | U12: SEP | W12: SEP | Y12: SEP
A13: 9 | B13: =ARRIVEES!QK47 -> 0 | C13: =ARRIVEES!QL47 -> 0 | D13: =ARRIVEES!QM47 -> 0 | E13: =ARRIVEES!QN47 -> 0 | F13: =ARRIVEES!QO47 -> 0 | G13: 0 | H13: CLFNE | I13: =ARRIVEES!QJ11 -> 0 | J13: =ARRIVEES!QK11 -> 0 | K13: =ARRIVEES!QL11 -> 0 | L13: =ARRIVEES!QM11 -> 0 | M13: =ARRIVEES!QN11 -> 0 | O13: 0.05 | P13: =MATCH(LARGE($O$5:$O$24,ROW()-4),$O$5:$O32,0) -> 15 | R13: 9 | S13: OCT | U13: OCT | W13: OCT | Y13: OCT
A14: 10 | B14: =ARRIVEES!QK48 -> 0 | C14: =ARRIVEES!QL48 -> 1 | D14: =ARRIVEES!QM48 -> 0 | E14: =ARRIVEES!QN48 -> 0 | F14: =ARRIVEES!QO48 -> 1 | G14: 2 | H14: DVE | I14: =ARRIVEES!QJ12 -> 0 | J14: =ARRIVEES!QK12 -> 0 | K14: =ARRIVEES!QL12 -> 0 | L14: =ARRIVEES!QM12 -> 0 | M14: =ARRIVEES!QN12 -> 0 | O14: 2.04 | P14: =MATCH(LARGE($O$5:$O$24,ROW()-4),$O$5:$O33,0) -> 2 | R14: 10 | S14: NOV | U14: NOV | W14: NOV | Y14: NOV
A15: 11 | B15: =ARRIVEES!QK49 -> 0 | C15: =ARRIVEES!QL49 -> 0 | D15: =ARRIVEES!QM49 -> 2 | E15: =ARRIVEES!QN49 -> 0 | F15: =ARRIVEES!QO49 -> 0 | G15: 2 | H15: CLFNE | I15: =ARRIVEES!QJ13 -> 0 | J15: =ARRIVEES!QK13 -> 0 | K15: =ARRIVEES!QL13 -> 0 | L15: =ARRIVEES!QM13 -> 0 | M15: =ARRIVEES!QN13 -> 0 | O15: 2.03 | P15: =MATCH(LARGE($O$5:$O$24,ROW()-4),$O$5:$O34,0) -> 5 | R15: 11 | S15: DEC | U15: DEC | W15: DEC | Y15: DEC
A16: 12 | B16: =ARRIVEES!QK50 -> 1 | C16: =ARRIVEES!QL50 -> 0 | D16: =ARRIVEES!QM50 -> 0 | E16: =ARRIVEES!QN50 -> 0 | F16: =ARRIVEES!QO50 -> 1 | G16: 2 | H16: DVE | I16: =ARRIVEES!QJ14 -> 0 | J16: =ARRIVEES!QK14 -> 0 | K16: =ARRIVEES!QL14 -> 0 | L16: =ARRIVEES!QM14 -> 0 | M16: =ARRIVEES!QN14 -> 0 | O16: 2.02 | P16: =MATCH(LARGE($O$5:$O$24,ROW()-4),$O$5:$O35,0) -> 8 | R16: 12 | S16: 2014
A17: 13 | B17: =ARRIVEES!QK51 -> 0 | C17: =ARRIVEES!QL51 -> 0 | D17: =ARRIVEES!QM51 -> 0 | E17: =ARRIVEES!QN51 -> 1 | F17: =ARRIVEES!QO51 -> 0 | G17: 1 | H17: EGN | I17: =ARRIVEES!QJ15 -> 0 | J17: =ARRIVEES!QK15 -> 0 | K17: =ARRIVEES!QL15 -> 0 | L17: =ARRIVEES!QM15 -> 0 | M17: =ARRIVEES!QN15 -> 0 | O17: 1.01 | P17: =MATCH(LARGE($O$5:$O$24,ROW()-4),$O$5:$O36,0) -> 13 | R17: 13 | S17: JAN
A18: 14 | B18: =ARRIVEES!QK52 -> 1 | C18: =ARRIVEES!QL52 -> 1 | D18: =ARRIVEES!QM52 -> 1 | E18: =ARRIVEES!QN52 -> 0 | F18: =ARRIVEES!QO52 -> 0 | G18: 3 | H18: CLFNE | I18: =ARRIVEES!QJ16 -> 0 | J18: =ARRIVEES!QK16 -> 0 | K18: =ARRIVEES!QL16 -> 0 | L18: =ARRIVEES!QM16 -> 0 | M18: =ARRIVEES!QN16 -> 0 | O18: 3 | P18: =MATCH(LARGE($O$5:$O$24,ROW()-4),$O$5:$O37,0) -> 16 | R18: 14 | S18: FEV
A19: 15 | B19: =ARRIVEES!QK53 -> 0 | C19: =ARRIVEES!QL53 -> 1 | D19: =ARRIVEES!QM53 -> 1 | E19: =ARRIVEES!QN53 -> 0 | F19: =ARRIVEES!QO53 -> 0 | G19: 2 | H19: DVE | I19: =ARRIVEES!QJ17 -> 0 | J19: =ARRIVEES!QK17 -> 0 | K19: =ARRIVEES!QL17 -> 0 | L19: =ARRIVEES!QM17 -> 0 | M19: =ARRIVEES!QN17 -> 0 | O19: 1.99 | P19: =MATCH(LARGE($O$5:$O$24,ROW()-4),$O$5:$O38,0) -> 4 | R19: 15 | S19: MAR
A20: 16 | B20: =ARRIVEES!QK54 -> 1 | C20: =ARRIVEES!QL54 -> 0 | D20: =ARRIVEES!QM54 -> 0 | E20: =ARRIVEES!QN54 -> 0 | F20: =ARRIVEES!QO54 -> 0 | G20: 1 | H20: DVE | I20: =ARRIVEES!QJ18 -> 0 | J20: =ARRIVEES!QK18 -> 0 | K20: =ARRIVEES!QL18 -> 0 | L20: =ARRIVEES!QM18 -> 0 | M20: =ARRIVEES!QN18 -> 0 | O20: 0.98 | P20: =MATCH(LARGE($O$5:$O$24,ROW()-4),$O$5:$O39,0) -> 9 | R20: 16 | S20: AVR
A21: 17 | B21: =ARRIVEES!QK55 -> 0 | C21: =ARRIVEES!QL55 -> 0 | D21: =ARRIVEES!QM55 -> 0 | E21: =ARRIVEES!QN55 -> 0 | F21: =ARRIVEES!QO55 -> 0 | G21: 0 | H21: DVE | I21: =ARRIVEES!QJ19 -> 0 | J21: =ARRIVEES!QK19 -> 0 | K21: =ARRIVEES!QL19 -> 0 | L21: =ARRIVEES!QM19 -> 0 | M21: =ARRIVEES!QN19 -> 0 | O21: -0.03 | P21: =MATCH(LARGE($O$5:$O$24,ROW()-4),$O$5:$O40,0) -> 17 | R21: 17 | S21: MAI
A22: 18 | B22: =ARRIVEES!QK56 -> 0 | C22: =ARRIVEES!QL56 -> 0 | D22: =ARRIVEES!QM56 -> 0 | E22: =ARRIVEES!QN56 -> 0 | F22: =ARRIVEES!QO56 -> 0 | G22: 0 | H22: Chateaubriant | I22: =ARRIVEES!QJ20 -> 0 | J22: =ARRIVEES!QK20 -> 0 | K22: =ARRIVEES!QL20 -> 0 | L22: =ARRIVEES!QM20 -> 0 | M22: =ARRIVEES!QN20 -> 0 | O22: -0.04 | P22: =MATCH(LARGE($O$5:$O$24,ROW()-4),$O$5:$O41,0) -> 18 | R22: 18 | S22: JUN
A23: 19 | B23: =ARRIVEES!QK57 -> 0 | C23: =ARRIVEES!QL57 -> 0 | D23: =ARRIVEES!QM57 -> 0 | E23: =ARRIVEES!QN57 -> 0 | F23: =ARRIVEES!QO57 -> 0 | G23: 0 | H23: DVE | I23: =ARRIVEES!QJ21 -> 0 | J23: =ARRIVEES!QK21 -> 0 | K23: =ARRIVEES!QL21 -> 0 | L23: =ARRIVEES!QM21 -> 0 | M23: =ARRIVEES!QN21 -> 0 | O23: -0.05 | P23: =MATCH(LARGE($O$5:$O$24,ROW()-4),$O$5:$O42,0) -> 19 | R23: 19 | S23: JUL
A24: 20 | B24: =ARRIVEES!QK58 -> 0 | C24: =ARRIVEES!QL58 -> 0 | D24: =ARRIVEES!QM58 -> 0 | E24: =ARRIVEES!QN58 -> 0 | F24: =ARRIVEES!QO58 -> 0 | G24: 0 | H24: VCS | I24: =ARRIVEES!QJ22 -> 0 | J24: =ARRIVEES!QK22 -> 0 | K24: =ARRIVEES!QL22 -> 0 | L24: =ARRIVEES!QM22 -> 0 | M24: =ARRIVEES!QN22 -> 0 | O24: -0.06 | P24: =MATCH(LARGE($O$5:$O$24,ROW()-4),$O$5:$O43,0) -> 20 | R24: 20 | S24: AOU
A25: 21 | B25: =SUM(B5:B24) -> 5 | C25: =SUM(C5:C24) -> 5 | D25: =SUM(D5:D24) -> 5 | E25: =SUM(E5:E24) -> 5 | F25: =SUM(F5:F24) -> 5 | G25: =SUM($G5:$G24) -> 25 | H25: DVE | I25: =ARRIVEES!QJ23 -> 0 | J25: =ARRIVEES!QK23 -> 0 | K25: =ARRIVEES!QL23 -> 0 | L25: =ARRIVEES!QM23 -> 0 | M25: =ARRIVEES!QN23 -> 0 | O25: -0.07 | S25: SEP
A26: 22 | H26: CBG | I26: =ARRIVEES!QJ24 -> 0 | J26: =ARRIVEES!QK24 -> 0 | K26: =ARRIVEES!QL24 -> 0 | L26: =ARRIVEES!QM24 -> 0 | M26: =ARRIVEES!QN24 -> 0 | O26: -0.08 | S26: OCT
A27: 23 | H27: DVE | I27: =ARRIVEES!QJ25 -> 0 | J27: =ARRIVEES!QK25 -> 0 | K27: =ARRIVEES!QL25 -> 0 | L27: =ARRIVEES!QM25 -> 0 | M27: =ARRIVEES!QN25 -> 0 | O27: -0.09 | S27: NOV
A28: 24 | H28: DVE | I28: =ARRIVEES!QJ26 -> 0 | J28: =ARRIVEES!QK26 -> 0 | K28: =ARRIVEES!QL26 -> 0 | L28: =ARRIVEES!QM26 -> 0 | M28: =ARRIVEES!QN26 -> 0 | O28: -0.1 | S28: DEC
A29: 25 | H29: VCS | I29: =ARRIVEES!QJ27 -> 0 | J29: =ARRIVEES!QK27 -> 0 | K29: =ARRIVEES!QL27 -> 0 | L29: =ARRIVEES!QM27 -> 0 | M29: =ARRIVEES!QN27 -> 0 | O29: -0.11
A30: 26 | H30: CLFNE | I30: =ARRIVEES!QJ28 -> 0 | J30: =ARRIVEES!QK28 -> 0 | K30: =ARRIVEES!QL28 -> 0 | L30: =ARRIVEES!QM28 -> 0 | M30: =ARRIVEES!QN28 -> 0 | O30: -0.12
A31: 27 | H31: DVE | I31: =ARRIVEES!QJ29 -> 0 | J31: =ARRIVEES!QK29 -> 0 | K31: =ARRIVEES!QL29 -> 0 | L31: =ARRIVEES!QM29 -> 0 | M31: =ARRIVEES!QN29 -> 0 | O31: -0.13
A32: 28 | H32: CLFNE | I32: =ARRIVEES!QJ30 -> 0 | J32: =ARRIVEES!QK30 -> 0 | K32: =ARRIVEES!QL30 -> 0 | L32: =ARRIVEES!QM30 -> 0 | M32: =ARRIVEES!QN30 -> 0 | O32: -0.14
A33: 29 | H33: CBG | I33: =ARRIVEES!QJ31 -> 0 | J33: =ARRIVEES!QK31 -> 0 | K33: =ARRIVEES!QL31 -> 0 | L33: =ARRIVEES!QM31 -> 0 | M33: =ARRIVEES!QN31 -> 0 | O33: -0.15
A34: 30 | H34: VCS | I34: =ARRIVEES!QJ32 -> 0 | J34: =ARRIVEES!QK32 -> 0 | K34: =ARRIVEES!QL32 -> 0 | L34: =ARRIVEES!QM32 -> 0 | M34: =ARRIVEES!QN32 -> 0 | O34: -0.16
A35: 31 | H35: DVE | I35: =ARRIVEES!QJ33 -> 0 | J35: =ARRIVEES!QK33 -> 0 | K35: =ARRIVEES!QL33 -> 0 | L35: =ARRIVEES!QM33 -> 0 | M35: =ARRIVEES!QN33 -> 0 | O35: -0.17
F44: 2010 | X44: 2011 | AO44: 2012 | BI44: 2013 | CA44: 2014
A50: MAI | S50: JANVIER | AK50: JANVIER | AZ50: Clt | BB50: 2013 | BC50: JANVIER | BR50: Clt | BT50: 2014 | BU50: JANVIER
A51: Jour | B51: C1 | C51: C2 | D51: C3 | E51: C4 | F51: C5 | G51: Quinté | H51: HIPPO | I51: 1 | J51: 2 | K51: 3 | L51: 4 | M51: 5 | S51: Jour | T51: C1 | U51: C2 | V51: C3 | W51: C4 | X51: C5 | Y51: Quinté | Z51: HIPPO | AA51: 1 | AB51: 2 | AC51: 3 | AD51: 4 | AE51: 5 | AK51: Jour | AL51: C1 | AM51: C2 | AN51: C3 | AO51: C4 | AP51: C5 | AQ51: Quinté | AR51: HIPPO | AS51: 1 | AT51: 2 | AU51: 3 | AV51: 4 | AW51: 5 | AZ51: mois | BC51: Jour | BD51: C1 | BE51: C2 | BF51: C3 | BG51: C4 | BH51: C5 | BI51: Quinté | BJ51: HIPPO | BK51: 1 | BL51: 2 | BM51: 3 | BN51: 4 | BO51: 5 | BR51: mois | BU51: Jour | BV51: C1 | BW51: C2 | BX51: C3 | BY51: C4 | BZ51: C5 | CA51: Quinté | CB51: HIPPO | CC51: 1 | CD51: 2 | CE51: 3 | CF51: 4 | CG51: 5
A52: 1 | B52: 3 | C52: 4 | D52: 1 | E52: 0 | F52: 3 | G52: 11 | H52: SCLD | I52: 1 | J52: 3 | K52: 14 | L52: 4 | M52: 6 | O52: =COUNTIF($I$52:$M$82,ROW()-51)+((22-ROW()-51)/100) -> 10.19 | P52: =MATCH(LARGE($O$52:$O$82,ROW()-51),$O$52:$O$82,0) -> 12 | S52: 1 | T52: =ARRIVEES!RC39 -> 0 | U52: =ARRIVEES!RD39 -> 0 | V52: =ARRIVEES!RE39 -> 0 | W52: =ARRIVEES!RF39 -> 0 | X52: =ARRIVEES!RG39 -> 0 | Y52: 11 | Z52: VCS | AA52: 13 | AB52: 8 | AC52: 9 | AD52: 6 | AE52: 3 | AG52: =COUNTIF($AA$52:$AE$82,ROW()-51)+((22-ROW()-51)/100) -> 10.19 | AH52: =MATCH(LARGE($AG$52:$AG$82,ROW()-51),$AG$52:$AG$82,0) -> 8 | AK52: 1 | AL52: 3 | AM52: 1 | AN52: 2 | AO52: 2 | AP52: 1 | AQ52: 9 | AR52: VCS | AS52: 3 | AT52: 8 | AU52: 15 | AV52: 14 | AW52: 11 | AY52: =COUNTIF($AS$52:$AW$82,ROW()-51)+((22-ROW()-51)/100) -> 8.19 | AZ52: =MATCH(LARGE($AY$52:$AY$71,ROW()-51),$AY$52:$AY71,0) -> 4 | BC52: 1 | BD52: 0 | BE52: 1 | BF52: 2 | BG52: 1 | BH52: 1 | BI52: 5 | BJ52: VCS | BK52: 4 | BL52: 1 | BM52: 15 | BN52: 6 | BO52: 10 | BQ52: =COUNTIF($BK$52:$BO$82,ROW()-51)+((22-ROW()-51)/100) -> 4.19 | BR52: =MATCH(LARGE($BQ$52:$BQ$71,ROW()-51),$BQ$52:$BQ71,0) -> 11 | BU52: 1 | BV52: 1 | BW52: 1 | BX52: 1 | BY52: 2 | BZ52: 5 | CA52: 10 | CB52: VCS | CC52: 12 | CD52: 8 | CE52: 9 | CF52: 13 | CG52: 3 | CI52: =COUNTIF($CC$52:$CG$82,ROW()-51)+((22-ROW()-51)/100) -> 9.19 | CJ52: =MATCH(LARGE($CI$52:$CI$71,ROW()-51),$CI$52:$CI71,0) -> 15
A53: 2 | B53: 5 | C53: 0 | D53: 1 | E53: 3 | F53: 2 | G53: 11 | H53: LCP | I53: 1 | J53: 10 | K53: 3 | L53: 11 | M53: 14 | O53: =COUNTIF($I$52:$M$82,ROW()-51)+((22-ROW()-51)/100) -> 10.18 | P53: =MATCH(LARGE($O$52:$O$82,ROW()-51),$O$52:$O$82,0) -> 10 | S53: 2 | T53: =ARRIVEES!RC40 -> 0 | U53: =ARRIVEES!RD40 -> 0 | V53: =ARRIVEES!RE40 -> 0 | W53: =ARRIVEES!RF40 -> 0 | X53: =ARRIVEES!RG40 -> 0 | Y53: 8 | Z53: VCS | AA53: 3 | AB53: 6 | AC53: 9 | AD53: 5 | AE53: 2 | AG53: =COUNTIF($AA$52:$AE$82,ROW()-51)+((22-ROW()-51)/100) -> 7.18 | AH53: =MATCH(LARGE($AG$52:$AG$82,ROW()-51),$AG$52:$AG$82,0) -> 11 | AK53: 2 | AL53: 1 | AM53: 2 | AN53: 1 | AO53: 0 | AP53: 1 | AQ53: 5 | AR53: DVE | AS53: 6 | AT53: 4 | AU53: 7 | AV53: 8 | AW53: 15 | AY53: =COUNTIF($AS$52:$AW$82,ROW()-51)+((22-ROW()-51)/100) -> 4.18 | AZ53: =MATCH(LARGE($AY$52:$AY$71,ROW()-51),$AY$52:$AY72,0) -> 5 | BC53: 2 | BD53: 1 | BE53: 2 | BF53: 1 | BG53: 4 | BH53: 3 | BI53: 11 | BJ53: VCS | BK53: 12 | BL53: 16 | BM53: 11 | BN53: 4 | BO53: 1 | BQ53: =COUNTIF($BK$52:$BO$82,ROW()-51)+((22-ROW()-51)/100) -> 10.18 | BR53: =MATCH(LARGE($BQ$52:$BQ$71,ROW()-51),$BQ$52:$BQ72,0) -> 10 | BU53: 2 | BV53: 0 | BW53: 2 | BX53: 0 | BY53: 0 | BZ53: 0 | CA53: 2 | CB53: PAU | CC53: 12 | CD53: 15 | CE53: 9 | CF53: 6 | CG53: 13 | CI53: =COUNTIF($CC$52:$CG$82,ROW()-51)+((22-ROW()-51)/100) -> 1.18 | CJ53: =MATCH(LARGE($CI$52:$CI$71,ROW()-51),$CI$52:$CI72,0) -> 3
A54: 3 | B54: 1 | C54: 3 | D54: 2 | E54: 2 | F54: 3 | G54: 11 | H54: CTY | I54: 2 | J54: 1 | K54: 7 | L54: 3 | M54: 13 | O54: 10.17 | P54: 7 | S54: 3 | T54: =ARRIVEES!RC41 -> 0 | U54: =ARRIVEES!RD41 -> 0 | V54: =ARRIVEES!RE41 -> 0 | W54: =ARRIVEES!RF41 -> 0 | X54: =ARRIVEES!RG41 -> 0 | Y54: 10 | Z54: DVE | AA54: 11 | AB54: 13 | AC54: 5 | AD54: 16 | AE54: 14 | AG54: 9.17 | AH54: 10 | AK54: 3 | AL54: 3 | AM54: 2 | AN54: 0 | AO54: 2 | AP54: 3 | AQ54: 10 | AR54: PAU | AS54: 18 | AT54: 4 | AU54: 14 | AV54: 9 | AW54: 5 | AY54: 9.17 | AZ54: =MATCH(LARGE($AY$52:$AY$71,ROW()-51),$AY$52:$AY73,0) -> 3 | BC54: 3 | BD54: 2 | BE54: 3 | BF54: 3 | BG54: 1 | BH54: 1 | BI54: 10 | BJ54: PAU | BK54: 4 | BL54: 5 | BM54: 11 | BN54: 6 | BO54: 12 | BQ54: 10.17 | BR54: =MATCH(LARGE($BQ$52:$BQ$71,ROW()-51),$BQ$52:$BQ73,0) -> 2 | BU54: 3 | BV54: 3 | BW54: 2 | BX54: 5 | BY54: 0 | BZ54: 2 | CA54: 12 | CB54: DVE | CC54: 16 | CD54: 15 | CE54: 3 | CF54: 11 | CG54: 1 | CI54: 11.17 | CJ54: =MATCH(LARGE($CI$52:$CI$71,ROW()-51),$CI$52:$CI73,0) -> 10
A55: 4 | B55: 2 | C55: 0 | D55: 0 | E55: 4 | F55: 2 | G55: 8 | H55: MLF | I55: 1 | J55: 5 | K55: 7 | L55: 8 | M55: 9 | O55: 7.16 | P55: 14 | S55: 4 | T55: =ARRIVEES!RC42 -> 0 | U55: =ARRIVEES!RD42 -> 0 | V55: =ARRIVEES!RE42 -> 0 | W55: =ARRIVEES!RF42 -> 0 | X55: =ARRIVEES!RG42 -> 0 | Y55: 8 | Z55: PAU | AA55: 3 | AB55: 12 | AC55: 8 | AD55: 11 | AE55: 5 | AG55: 7.16 | AH55: 1 | AK55: 4 | AL55: 3 | AM55: 2 | AN55: 2 | AO55: 3 | AP55: 4 | AQ55: 14 | AR55: VCS | AS55: 6 | AT55: 15 | AU55: 14 | AV55: 4 | AW55: 5 | AY55: 13.16 | AZ55: =MATCH(LARGE($AY$52:$AY$71,ROW()-51),$AY$52:$AY74,0) -> 6 | BC55: 4 | BD55: 2 | BE55: 2 | BF55: 1 | BG55: 2 | BH55: 1 | BI55: 8 | BJ55: DVE | BK55: 3 | BL55: 9 | BM55: 5 | BN55: 2 | BO55: 6 | BQ55: 8.16 | BR55: =MATCH(LARGE($BQ$52:$BQ$71,ROW()-51),$BQ$52:$BQ74,0) -> 3 | BU55: 4 | BV55: 0 | BW55: 3 | BX55: 2 | BY55: 2 | BZ55: 1 | CA55: 8 | CB55: VCS | CC55: 5 | CD55: 15 | CE55: 13 | CF55: 11 | CG55: 3 | CI55: 7.16 | CJ55: =MATCH(LARGE($CI$52:$CI$71,ROW()-51),$CI$52:$CI74,0) -> 11
A56: 5 | B56: 1 | C56: 1 | D56: 2 | E56: 1 | F56: 2 | G56: 7 | H56: LYONPLY | I56: 10 | J56: 12 | K56: 14 | L56: 5 | M56: 11 | O56: 6.15 | P56: 1 | S56: 5 | T56: =ARRIVEES!RC43 -> 0 | U56: =ARRIVEES!RD43 -> 0 | V56: =ARRIVEES!RE43 -> 0 | W56: =ARRIVEES!RF43 -> 0 | X56: =ARRIVEES!RG43 -> 0 | Y56: 10 | Z56: VCS | AA56: 11 | AB56: 12 | AC56: 14 | AD56: 10 | AE56: 3 | AG56: 9.15 | AH56: 9 | AK56: 5 | AL56: 2 | AM56: 3 | AN56: 3 | AO56: 2 | AP56: 2 | AQ56: 12 | AR56: VCS | AS56: 16 | AT56: 12 | AU56: 1 | AV56: 15 | AW56: 7 | AY56: 11.15 | AZ56: =MATCH(LARGE($AY$52:$AY$71,ROW()-51),$AY$52:$AY75,0) -> 7 | BC56: 5 | BD56: 2 | BE56: 2 | BF56: 3 | BG56: 1 | BH56: 3 | BI56: 11 | BJ56: VCS | BK56: 16 | BL56: 10 | BM56: 4 | BN56: 14 | BO56: 2 | BQ56: 10.15 | BR56: =MATCH(LARGE($BQ$52:$BQ$71,ROW()-51),$BQ$52:$BQ75,0) -> 5 | BU56: 5 | BV56: 2 | BW56: 2 | BX56: 0 | BY56: 3 | BZ56: 1 | CA56: 8 | CB56: VCS | CC56: 15 | CD56: 3 | CE56: 14 | CF56: 1 | CG56: 5 | CI56: 7.15 | CJ56: =MATCH(LARGE($CI$52:$CI$71,ROW()-51),$CI$52:$CI75,0) -> 1
A57: 6 | B57: 1 | C57: 3 | D57: 3 | E57: 1 | F57: 1 | G57: 9 | H57: LCP | I57: 16 | J57: 14 | K57: 13 | L57: 18 | M57: 2 | O57: 8.14 | P57: 2 | S57: 6 | T57: =ARRIVEES!RC44 -> 0 | U57: =ARRIVEES!RD44 -> 0 | V57: =ARRIVEES!RE44 -> 0 | W57: =ARRIVEES!RF44 -> 0 | X57: =ARRIVEES!RG44 -> 0 | Y57: 7 | Z57: VCS | AA57: 12 | AB57: 10 | AC57: 16 | AD57: 1 | AE57: 11 | AG57: 6.14 | AH57: 3 | AK57: 6 | AL57: 6 | AM57: 1 | AN57: 3 | AO57: 0 | AP57: 0 | AQ57: 10 | AR57: DVE | AS57: 6 | AT57: 2 | AU57: 5 | AV57: 15 | AW57: 16 | AY57: 9.14 | AZ57: =MATCH(LARGE($AY$52:$AY$71,ROW()-51),$AY$52:$AY76,0) -> 8 | BC57: 6 | BD57: 1 | BE57: 1 | BF57: 2 | BG57: 4 | BH57: 2 | BI57: 10 | BJ57: VCS | BK57: 10 | BL57: 13 | BM57: 15 | BN57: 5 | BO57: 9 | BQ57: 9.14 | BR57: =MATCH(LARGE($BQ$52:$BQ$71,ROW()-51),$BQ$52:$BQ76,0) -> 12 | BU57: 6 | BV57: 1 | BW57: 2 | BX57: 0 | BY57: 1 | BZ57: 3 | CA57: 7 | CB57: VCS | CC57: 3 | CD57: 11 | CE57: 15 | CF57: 17 | CG57: 4 | CI57: 6.14 | CJ57: =MATCH(LARGE($CI$52:$CI$71,ROW()-51),$CI$52:$CI76,0) -> 12
A58: 7 | B58: 1 | C58: 1 | D58: 4 | E58: 3 | F58: 3 | G58: 12 | H58: VCS/n | I58: 10 | J58: 3 | K58: 9 | L58: 7 | M58: 15 | O58: 11.13 | P58: 3 | S58: 7 | T58: =ARRIVEES!RC45 -> 0 | U58: =ARRIVEES!RD45 -> 0 | V58: =ARRIVEES!RE45 -> 0 | W58: =ARRIVEES!RF45 -> 0 | X58: =ARRIVEES!RG45 -> 0 | Y58: 5 | Z58: DVE | AA58: 8 | AB58: 2 | AC58: 5 | AD58: 1 | AE58: 9 | AG58: 4.13 | AH58: 5 | AK58: 7 | AL58: 0 | AM58: 3 | AN58: 3 | AO58: 2 | AP58: 2 | AQ58: 10 | AR58: VCS | AS58: 6 | AT58: 13 | AU58: 16 | AV58: 15 | AW58: 11 | AY58: 9.13 | AZ58: =MATCH(LARGE($AY$52:$AY$71,ROW()-51),$AY$52:$AY77,0) -> 16 | BC58: 7 | BD58: 2 | BE58: 1 | BF58: 0 | BG58: 3 | BH58: 2 | BI58: 8 | BJ58: VCS | BK58: 13 | BL58: 4 | BM58: 8 | BN58: 11 | BO58: 9 | BQ58: 7.13 | BR58: =MATCH(LARGE($BQ$52:$BQ$71,ROW()-51),$BQ$52:$BQ77,0) -> 6 | BU58: 7 | BV58: 0 | BW58: 0 | BX58: 2 | BY58: 0 | BZ58: 5 | CA58: 7 | CB58: VCS | CC58: 12 | CD58: 19 | CE58: 8 | CF58: 9 | CG58: 6 | CI58: 6.13 | CJ58: =MATCH(LARGE($CI$52:$CI$71,ROW()-51),$CI$52:$CI77,0) -> 8
A59: 8 | B59: 2 | C59: 1 | D59: 0 | E59: 4 | F59: 1 | G59: 8 | H59: VCS | I59: 9 | J59: 10 | K59: 17 | L59: 12 | M59: 2 | O59: 7.12 | P59: 6 | S59: 8 | T59: =ARRIVEES!RC46 -> 0 | U59: =ARRIVEES!RD46 -> 0 | V59: =ARRIVEES!RE46 -> 0 | W59: =ARRIVEES!RF46 -> 0 | X59: =ARRIVEES!RG46 -> 0 | Y59: 15 | Z59: VCS | AA59: 11 | AB59: 14 | AC59: 10 | AD59: 8 | AE59: 4 | AG59: 14.12 | AH59: 14 | AK59: 8 | AL59: 0 | AM59: 1 | AN59: 4 | AO59: 4 | AP59: 1 | AQ59: 10 | AR59: VCS | AS59: 10 | AT59: 11 | AU59: 4 | AV59: 7 | AW59: 1 | AY59: 9.12 | AZ59: =MATCH(LARGE($AY$52:$AY$71,ROW()-51),$AY$52:$AY78,0) -> 1 | BC59: 8 | BD59: 3 | BE59: 1 | BF59: 1 | BG59: 2 | BH59: 0 | BI59: 7 | BJ59: VCS | BK59: 3 | BL59: 19 | BM59: 20 | BN59: 18 | BO59: 10 | BQ59: 6.12 | BR59: =MATCH(LARGE($BQ$52:$BQ$71,ROW()-51),$BQ$52:$BQ78,0) -> 15 | BU59: 8 | BV59: 3 | BW59: 2 | BX59: 3 | BY59: 1 | BZ59: 0 | CA59: 9 | CB59: C/M | CC59: 9 | CD59: 1 | CE59: 7 | CF59: 14 | CG59: 15 | CI59: 8.12 | CJ59: =MATCH(LARGE($CI$52:$CI$71,ROW()-51),$CI$52:$CI78,0) -> 9
A60: 9 | B60: 3 | C60: 1 | D60: 2 | E60: 0 | F60: 2 | G60: 8 | H60: ATL | I60: 20 | J60: 13 | K60: 12 | L60: 2 | M60: 9 | O60: 7.11 | S60: 9 | T60: =ARRIVEES!RC47 -> 0 | U60: =ARRIVEES!RD47 -> 0 | V60: =ARRIVEES!RE47 -> 0 | W60: =ARRIVEES!RF47 -> 0 | X60: =ARRIVEES!RG47 -> 0 | Y60: 11 | Z60: VCS | AA60: 9 | AB60: 8 | AC60: 2 | AD60: 11 | AE60: 10 | AG60: 10.11 | AK60: 9 | AL60: 0 | AM60: 0 | AN60: 3 | AO60: 3 | AP60: 1 | AQ60: 7 | AR60: VCS | AS60: 18 | AT60: 7 | AU60: 9 | AV60: 14 | AW60: 11 | AY60: 6.11 | AZ60: =MATCH(LARGE($AY$52:$AY$71,ROW()-51),$AY$52:$AY79,0) -> 13 | BC60: 9 | BD60: 1 | BE60: 2 | BF60: 1 | BG60: 1 | BH60: 3 | BI60: 8 | BJ60: C/M | BK60: 5 | BL60: 8 | BM60: 11 | BN60: 7 | BO60: 16 | BQ60: 7.11 | BU60: 9 | BV60: 3 | BW60: 0 | BX60: 4 | BY60: 1 | BZ60: 1 | CA60: 9 | CB60: VCS | CC60: 12 | CD60: 4 | CE60: 9 | CF60: 5 | CG60: 10 | CI60: 8.11
A61: 10 | B61: 3 | C61: 3 | D61: 2 | E61: 4 | F61: 1 | G61: 13 | H61: CTY | I61: 9 | J61: 7 | K61: 11 | L61: 2 | M61: 8 | O61: 12.1 | S61: 10 | T61: =ARRIVEES!RC48 -> 0 | U61: =ARRIVEES!RD48 -> 0 | V61: =ARRIVEES!RE48 -> 0 | W61: =ARRIVEES!RF48 -> 0 | X61: =ARRIVEES!RG48 -> 0 | Y61: 12 | Z61: VCS | AA61: 8 | AB61: 18 | AC61: 9 | AD61: 20 | AE61: 10 | AG61: 11.1 | AK61: 10 | AL61: 3 | AM61: 1 | AN61: 0 | AO61: 1 | AP61: 3 | AQ61: 8 | AR61: VCS | AS61: 2 | AT61: 19 | AU61: 9 | AV61: 7 | AW61: 3 | AY61: 7.1 | AZ61: =MATCH(LARGE($AY$52:$AY$71,ROW()-51),$AY$52:$AY80,0) -> 14 | BC61: 10 | BD61: 2 | BE61: 3 | BF61: 2 | BG61: 4 | BH61: 2 | BI61: 13 | BJ61: VCS | BK61: 11 | BL61: 7 | BM61: 15 | BN61: 8 | BO61: 16 | BQ61: 13.1 | BU61: 10 | BV61: 2 | BW61: 0 | BX61: 3 | BY61: 1 | BZ61: 6 | CA61: 12 | CB61: C/M | CC61: 3 | CD61: 8 | CE61: 4 | CF61: 11 | CG61: 10 | CI61: 11.1
A62: 11 | B62: 0 | C62: 1 | D62: 2 | E62: 2 | F62: 1 | G62: 6 | H62: Toulouse | I62: 13 | J62: 8 | K62: 11 | L62: 6 | M62: 10 | O62: 5.09 | S62: 11 | T62: =ARRIVEES!RC49 -> 0 | U62: =ARRIVEES!RD49 -> 0 | V62: =ARRIVEES!RE49 -> 0 | W62: =ARRIVEES!RF49 -> 0 | X62: =ARRIVEES!RG49 -> 0 | Y62: 14 | Z62: VCS | AA62: 8 | AB62: 17 | AC62: 12 | AD62: 11 | AE62: 1 | AG62: 13.09 | AK62: 11 | AL62: 1 | AM62: 1 | AN62: 0 | AO62: 1 | AP62: 5 | AQ62: 8 | AR62: C/M | AS62: 1 | AT62: 18 | AU62: 6 | AV62: 3 | AW62: 7 | AY62: 7.09 | AZ62: =MATCH(LARGE($AY$52:$AY$71,ROW()-51),$AY$52:$AY81,0) -> 10 | BC62: 11 | BD62: 5 | BE62: 2 | BF62: 3 | BG62: 3 | BH62: 2 | BI62: 15 | BJ62: C/M | BK62: 7 | BL62: 10 | BM62: 5 | BN62: 6 | BO62: 13 | BQ62: 15.09 | BU62: 11 | BV62: 1 | BW62: 3 | BX62: 2 | BY62: 6 | BZ62: 0 | CA62: 12 | CB62: VCS | CC62: 16 | CD62: 5 | CE62: 8 | CF62: 15 | CG62: 1 | CI62: 11.09
A63: 12 | B63: 2 | C63: 5 | D63: 5 | E63: 3 | F63: 1 | G63: 16 | H63: LYONPLY | I63: 2 | J63: 15 | K63: 12 | L63: 4 | M63: 16 | O63: 15.08 | S63: 12 | T63: =ARRIVEES!RC50 -> 0 | U63: =ARRIVEES!RD50 -> 0 | V63: =ARRIVEES!RE50 -> 0 | W63: =ARRIVEES!RF50 -> 0 | X63: =ARRIVEES!RG50 -> 0 | Y63: 8 | Z63: C/M | AA63: 3 | AB63: 7 | AC63: 6 | AD63: 14 | AE63: 8 | AG63: 7.08 | AK63: 12 | AL63: 0 | AM63: 3 | AN63: 1 | AO63: 1 | AP63: 1 | AQ63: 6 | AR63: VCS | AS63: 13 | AT63: 5 | AU63: 1 | AV63: 8 | AW63: 16 | AY63: 5.08 | AZ63: =MATCH(LARGE($AY$52:$AY$71,ROW()-51),$AY$52:$AY82,0) -> 11 | BC63: 12 | BD63: 3 | BE63: 1 | BF63: 1 | BG63: 1 | BH63: 5 | BI63: 11 | BJ63: VCS | BK63: 10 | BL63: 6 | BM63: 2 | BN63: 9 | BO63: 3 | BQ63: 10.08 | BU63: 12 | BV63: 4 | BW63: 3 | BX63: 1 | BY63: 0 | BZ63: 2 | CA63: 10 | CB63: VCS | CC63: 11 | CD63: 6 | CE63: 3 | CF63: 14 | CG63: 7 | CI63: 9.08
A64: 13 | B64: 1 | C64: 1 | D64: 2 | E64: 1 | F64: 3 | G64: 8 | H64: LYONPLY | I64: 2 | J64: 18 | K64: 12 | L64: 16 | M64: 15 | O64: 7.07 | S64: 13 | T64: =ARRIVEES!RC51 -> 0 | U64: =ARRIVEES!RD51 -> 0 | V64: =ARRIVEES!RE51 -> 0 | W64: =ARRIVEES!RF51 -> 0 | X64: =ARRIVEES!RG51 -> 0 | Y64: 6 | Z64: VCS | AA64: 6 | AB64: 11 | AC64: 4 | AD64: 1 | AE64: 2 | AG64: 5.07 | AK64: 13 | AL64: 3 | AM64: 4 | AN64: 0 | AO64: 1 | AP64: 1 | AQ64: 9 | AR64: C/M | AS64: 4 | AT64: 18 | AU64: 8 | AV64: 9 | AW64: 11 | AY64: 8.07 | AZ64: =MATCH(LARGE($AY$52:$AY$71,ROW()-51),$AY$52:$AY83,0) -> 15 | BC64: 13 | BD64: 2 | BE64: 1 | BF64: 1 | BG64: 0 | BH64: 1 | BI64: 5 | BJ64: VCS | BK64: 11 | BL64: 3 | BM64: 9 | BN64: 10 | BO64: 7 | BQ64: 5.07 | BU64: 13 | BV64: 0 | BW64: 1 | BX64: 2 | BY64: 2 | BZ64: 2 | CA64: 7 | CB64: VCS | CC64: 17 | CD64: 12 | CE64: 9 | CF64: 15 | CG64: 6 | CI64: 6.07
A65: 14 | B65: 2 | C65: 4 | D65: 3 | E65: 0 | F65: 3 | G65: 12 | H65: VCS/n | I65: 2 | J65: 14 | K65: 5 | L65: 10 | M65: 1 | O65: 11.06 | S65: 14 | T65: =ARRIVEES!RC52 -> 0 | U65: =ARRIVEES!RD52 -> 0 | V65: =ARRIVEES!RE52 -> 0 | W65: =ARRIVEES!RF52 -> 0 | X65: =ARRIVEES!RG52 -> 0 | Y65: 9 | Z65: C/M | AA65: 8 | AB65: 3 | AC65: 1 | AD65: 5 | AE65: 4 | AG65: 8.06 | AK65: 14 | AL65: 1 | AM65: 1 | AN65: 4 | AO65: 3 | AP65: 0 | AQ65: 9 | AR65: VCS | AS65: 14 | AT65: 12 | AU65: 7 | AV65: 5 | AW65: 4 | AY65: 8.06 | AZ65: =MATCH(LARGE($AY$52:$AY$71,ROW()-51),$AY$52:$AY84,0) -> 9 | BC65: 14 | BD65: 2 | BE65: 0 | BF65: 1 | BG65: 1 | BH65: 0 | BI65: 4 | BJ65: VCS | BK65: 12 | BL65: 16 | BM65: 1 | BN65: 2 | BO65: 6 | BQ65: 3.06 | BU65: 14 | BV65: 1 | BW65: 1 | BX65: 3 | BY65: 3 | BZ65: 1 | CA65: 9 | CB65: PAU | CC65: 8 | CD65: 11 | CE65: 10 | CF65: 14 | CG65: 9 | CI65: 8.06
A66: 15 | B66: 1 | C66: 1 | D66: 0 | E66: 0 | F66: 2 | G66: 4 | H66: VCS | I66: 2 | J66: 11 | K66: 10 | L66: 7 | M66: 1 | O66: 3.05 | S66: 15 | T66: =ARRIVEES!RC53 -> 0 | U66: =ARRIVEES!RD53 -> 0 | V66: =ARRIVEES!RE53 -> 0 | W66: =ARRIVEES!RF53 -> 0 | X66: =ARRIVEES!RG53 -> 0 | Y66: 2 | Z66: VCS | AA66: 1 | AB66: 9 | AC66: 7 | AD66: 16 | AE66: 11 | AG66: 1.05 | AK66: 15 | AL66: 0 | AM66: 1 | AN66: 2 | AO66: 3 | AP66: 2 | AQ66: 8 | AR66: VCS | AS66: 1 | AT66: 6 | AU66: 15 | AV66: 14 | AW66: 10 | AY66: 7.05 | AZ66: =MATCH(LARGE($AY$52:$AY$71,ROW()-51),$AY$52:$AY85,0) -> 18 | BC66: 15 | BD66: 0 | BE66: 3 | BF66: 5 | BG66: 0 | BH66: 2 | BI66: 10 | BJ66: PAU | BK66: 9 | BL66: 3 | BM66: 12 | BN66: 6 | BO66: 15 | BQ66: 9.05 | BU66: 15 | BV66: 1 | BW66: 7 | BX66: 1 | BY66: 5 | BZ66: 1 | CA66: 15 | CB66: C/M | CC66: 16 | CD66: 11 | CE66: 1 | CF66: 17 | CG66: 14 | CI66: 14.05
A67: 16 | B67: 2 | C67: 0 | D67: 1 | E67: 2 | F67: 1 | G67: 6 | H67: LCP | I67: 8 | J67: 6 | K67: 12 | L67: 16 | M67: 4 | O67: 5.04 | S67: 16 | T67: =ARRIVEES!RC54 -> 0 | U67: =ARRIVEES!RD54 -> 0 | V67: =ARRIVEES!RE54 -> 0 | W67: =ARRIVEES!RF54 -> 0 | X67: =ARRIVEES!RG54 -> 0 | Y67: 9 | Z67: VCS | AA67: 14 | AB67: 9 | AC67: 8 | AD67: 12 | AE67: 15 | AG67: 8.04 | AK67: 16 | AL67: 1 | AM67: 1 | AN67: 2 | AO67: 2 | AP67: 4 | AQ67: 10 | AR67: VCS | AS67: 3 | AT67: 16 | AU67: 6 | AV67: 4 | AW67: 10 | AY67: 9.04 | AZ67: =MATCH(LARGE($AY$52:$AY$71,ROW()-51),$AY$52:$AY86,0) -> 12 | BC67: 16 | BD67: 1 | BE67: 3 | BF67: 2 | BG67: 1 | BH67: 2 | BI67: 9 | BJ67: C/M | BK67: 2 | BL67: 16 | BM67: 6 | BN67: 11 | BO67: 12 | BQ67: 8.04 | BU67: 16 | BV67: 5 | BW67: 0 | BX67: 2 | BY67: 0 | BZ67: 1 | CA67: 8 | CB67: VCS | CC67: 10 | CD67: 12 | CE67: 13 | CF67: 18 | CG67: 1 | CI67: 7.04
A68: 17 | B68: 0 | C68: 0 | D68: 1 | E68: 0 | F68: 0 | G68: 1 | H68: MLF | I68: 7 | J68: 10 | K68: 1 | L68: 13 | M68: 3 | O68: 0.03 | S68: 17 | T68: =ARRIVEES!RC55 -> 0 | U68: =ARRIVEES!RD55 -> 0 | V68: =ARRIVEES!RE55 -> 0 | W68: =ARRIVEES!RF55 -> 0 | X68: =ARRIVEES!RG55 -> 0 | Y68: 3 | Z68: VCS | AA68: 4 | AB68: 2 | AC68: 9 | AD68: 7 | AE68: 8 | AG68: 2.03 | AK68: 17 | AL68: 0 | AM68: 1 | AN68: 1 | AO68: 0 | AP68: 0 | AQ68: 2 | AR68: PAU | AS68: 13 | AT68: 7 | AU68: 5 | AV68: 16 | AW68: 2 | AY68: 1.03 | AZ68: =MATCH(LARGE($AY$52:$AY$71,ROW()-51),$AY$52:$AY87,0) -> 2 | BC68: 17 | BD68: 0 | BE68: 0 | BF68: 0 | BG68: 0 | BH68: 0 | BI68: 0 | BJ68: VCS | BK68: 18 | BL68: 2 | BM68: 6 | BN68: 11 | BO68: 5 | BQ68: -0.97 | BU68: 17 | BV68: 3 | BW68: 0 | BX68: 0 | BY68: 2 | BZ68: 0 | CA68: 5 | CB68: C/M | CC68: 9 | CD68: 15 | CE68: 3 | CF68: 4 | CG68: 10 | CI68: 4.03
A69: 18 | B69: 0 | C69: 2 | D69: 0 | E69: 1 | F69: 0 | G69: 3 | H69: ATL | I69: 12 | J69: 6 | K69: 13 | L69: 8 | M69: 1 | O69: 2.02 | S69: 18 | T69: =ARRIVEES!RC56 -> 0 | U69: =ARRIVEES!RD56 -> 0 | V69: =ARRIVEES!RE56 -> 0 | W69: =ARRIVEES!RF56 -> 0 | X69: =ARRIVEES!RG56 -> 0 | Y69: 6 | Z69: PAU | AA69: 13 | AB69: 16 | AC69: 17 | AD69: 18 | AE69: 10 | AG69: 5.02 | AK69: 18 | AL69: 4 | AM69: 2 | AN69: 0 | AO69: 1 | AP69: 0 | AQ69: 7 | AR69: C/M | AS69: 10 | AT69: 13 | AU69: 12 | AV69: 3 | AW69: 4 | AY69: 6.02 | AZ69: =MATCH(LARGE($AY$52:$AY$71,ROW()-51),$AY$52:$AY88,0) -> 17 | BC69: 18 | BD69: 1 | BE69: 1 | BF69: 0 | BG69: 1 | BH69: 0 | BI69: 3 | BJ69: C/M | BK69: 6 | BL69: 9 | BM69: 13 | BN69: 10 | BO69: 7 | BQ69: 2.02 | BU69: 18 | BV69: 1 | BW69: 0 | BX69: 0 | BY69: 1 | BZ69: 0 | CA69: 2 | CB69: VCS | CC69: 16 | CD69: 3 | CE69: 10 | CF69: 11 | CG69: 7 | CI69: 1.02
A70: 19 | B70: 0 | C70: 0 | D70: 0 | E70: 0 | F70: 0 | G70: 0 | H70: Caen | I70: 14 | J70: 12 | K70: 10 | L70: 11 | M70: 3 | O70: -0.99 | S70: 19 | T70: =ARRIVEES!RC57 -> 0 | U70: =ARRIVEES!RD57 -> 0 | V70: =ARRIVEES!RE57 -> 0 | W70: =ARRIVEES!RF57 -> 0 | X70: =ARRIVEES!RG57 -> 0 | Y70: 0 | Z70: C/M | AA70: 4 | AB70: 1 | AC70: 11 | AD70: 5 | AE70: 8 | AG70: -0.99 | AK70: 19 | AL70: 0 | AM70: 1 | AN70: 0 | AO70: 0 | AP70: 0 | AQ70: 1 | AR70: VCS | AS70: 13 | AT70: 14 | AU70: 4 | AV70: 11 | AW70: 15 | AY70: 0.01 | AZ70: =MATCH(LARGE($AY$52:$AY$71,ROW()-51),$AY$52:$AY89,0) -> 19 | BC70: 19 | BD70: 0 | BE70: 1 | BF70: 0 | BG70: 0 | BH70: 0 | BI70: 1 | BJ70: VCS | BK70: 8 | BL70: 5 | BM70: 16 | BN70: 3 | BO70: 11 | BQ70: 0.01 | BU70: 19 | BV70: 0 | BW70: 1 | BX70: 0 | BY70: 1 | BZ70: 0 | CA70: 2 | CB70: VCS | CC70: 17 | CD70: 13 | CE70: 4 | CF70: 10 | CG70: 7 | CI70: 1.01
A71: 20 | B71: 1 | C71: 0 | D71: 0 | E71: 0 | F71: 0 | G71: 1 | H71: LCP | I71: 9 | J71: 14 | K71: 7 | L71: 2 | M71: 5 | O71: 0 | S71: 20 | T71: =ARRIVEES!RC58 -> 0 | U71: =ARRIVEES!RD58 -> 0 | V71: =ARRIVEES!RE58 -> 0 | W71: =ARRIVEES!RF58 -> 0 | X71: =ARRIVEES!RG58 -> 0 | Y71: 1 | Z71: VCS | AA71: 9 | AB71: 8 | AC71: 17 | AD71: 6 | AE71: 7 | AG71: 0 | AK71: 20 | AL71: 0 | AM71: 0 | AN71: 0 | AO71: 0 | AP71: 0 | AQ71: 0 | AR71: C/M | AS71: 10 | AT71: 3 | AU71: 6 | AV71: 9 | AW71: 8 | AY71: -1 | AZ71: =MATCH(LARGE($AY$52:$AY$71,ROW()-51),$AY$52:$AY90,0) -> 20 | BC71: 20 | BD71: 0 | BE71: 0 | BF71: 1 | BG71: 0 | BH71: 0 | BI71: 1 | BJ71: VCS | BK71: 13 | BL71: 10 | BM71: 3 | BN71: 12 | BO71: 15 | BQ71: 0 | BU71: 20 | BV71: 0 | BW71: 1 | BX71: 0 | BY71: 0 | BZ71: 0 | CA71: 1 | CB71: C/M | CC71: 16 | CD71: 14 | CE71: 11 | CF71: 5 | CG71: 7 | CI71: 0
A72: 21 | B72: 31 | C72: 31 | D72: 31 | E72: 31 | F72: 31 | G72: 155 | H72: VCS/n | I72: 5 | J72: 1 | K72: 6 | L72: 12 | M72: 4 | S72: 21 | T72: 31 | U72: 31 | V72: 31 | W72: 31 | X72: 31 | Y72: 155 | Z72: C/M | AA72: 3 | AB72: 12 | AC72: 1 | AD72: 14 | AE72: 18 | AG72: -1.01 | AK72: 21 | AL72: 31 | AM72: 31 | AN72: 31 | AO72: 31 | AP72: 31 | AQ72: 155 | AR72: VCS | AS72: 11 | AT72: 13 | AU72: 14 | AV72: 5 | AW72: 9 | BC72: 21 | BD72: 30 | BE72: 30 | BF72: 30 | BG72: 30 | BH72: 30 | BI72: 150 | BJ72: C/M | BK72: 12 | BL72: 2 | BM72: 15 | BN72: 1 | BO72: 4 | BU72: 21 | BV72: 31 | BW72: 31 | BX72: 31 | BY72: 31 | BZ72: 31 | CA72: 155 | CB72: C/M | CC72: 9 | CD72: 2 | CE72: 10 | CF72: 11 | CG72: 13
A73: 22 | H73: MLF | I73: 4 | J73: 3 | K73: 6 | L73: 10 | M73: 12 | S73: 22 | Z73: VCS | AA73: 5 | AB73: 16 | AC73: 2 | AD73: 10 | AE73: 1 | AK73: 22 | AR73: VCS | AS73: 6 | AT73: 12 | AU73: 14 | AV73: 18 | AW73: 4 | BC73: 22 | BJ73: C/M | BK73: 8 | BL73: 11 | BM73: 10 | BN73: 2 | BO73: 12 | BU73: 22 | CB73: C/M | CC73: 8 | CD73: 15 | CE73: 3 | CF73: 11 | CG73: 1
A74: 23 | H74: LCP | I74: 14 | J74: 12 | K74: 16 | L74: 10 | M74: 3 | S74: 23 | Z74: VCS | AA74: 18 | AB74: 10 | AC74: 12 | AD74: 16 | AE74: 13 | AK74: 23 | AR74: C/M | AS74: 1 | AT74: 2 | AU74: 9 | AV74: 8 | AW74: 16 | BC74: 23 | BJ74: C/M | BK74: 5 | BL74: 11 | BM74: 16 | BN74: 10 | BO74: 2 | BU74: 23 | CB74: VCS | CC74: 18 | CD74: 6 | CE74: 7 | CF74: 13 | CG74: 10
A75: 24 | H75: SCLD | I75: 3 | J75: 1 | K75: 14 | L75: 12 | M75: 7 | S75: 24 | Z75: C/M | AA75: 11 | AB75: 3 | AC75: 8 | AD75: 2 | AE75: 5 | AK75: 24 | AR75: C/M | AS75: 5 | AT75: 1 | AU75: 7 | AV75: 13 | AW75: 16 | BC75: 24 | BJ75: VCS | BK75: 11 | BL75: 15 | BM75: 10 | BN75: 7 | BO75: 5 | BU75: 24 | CB75: PAU | CC75: 1 | CD75: 12 | CE75: 16 | CF75: 5 | CG75: 6
A76: 25 | H76: CPGNE | I76: 6 | J76: 1 | K76: 5 | L76: 8 | M76: 7 | S76: 25 | Z76: C/M | AA76: 1 | AB76: 16 | AC76: 11 | AD76: 14 | AE76: 3 | AK76: 25 | AR76: C/M | AS76: 4 | AT76: 10 | AU76: 8 | AV76: 12 | AW76: 3 | BC76: 25 | BJ76: PAU | BK76: 7 | BL76: 3 | BM76: 5 | BN76: 10 | BO76: 2 | BU76: 25 | CB76: VCS | CC76: 14 | CD76: 2 | CE76: 11 | CF76: 15 | CG76: 12
A77: 26 | H77: La Capelle | I77: 12 | J77: 18 | K77: 7 | L77: 4 | M77: 14 | S77: 26 | Z77: C/M | AA77: 14 | AB77: 16 | AC77: 7 | AD77: 3 | AE77: 11 | AK77: 26 | AR77: VCS | AS77: 3 | AT77: 7 | AU77: 17 | AV77: 1 | AW77: 10 | BC77: 26 | BJ77: VCS | BK77: 14 | BL77: 12 | BM77: 3 | BN77: 4 | BO77: 5 | BU77: 26 | CB77: VCS | CC77: 17 | CD77: 4 | CE77: 8 | CF77: 15 | CG77: 16
A78: 27 | H78: LCP | I78: 8 | J78: 12 | K78: 2 | L78: 3 | M78: 5 | S78: 27 | Z78: VCS | AA78: 4 | AB78: 1 | AC78: 10 | AD78: 11 | AE78: 18 | AK78: 27 | AR78: PAU | AS78: 6 | AT78: 5 | AU78: 8 | AV78: 4 | AW78: 13 | BC78: 27 | BJ78: VCS | BK78: 8 | BL78: 18 | BM78: 15 | BN78: 2 | BO78: 11 | BU78: 27 | CB78: VCS | CC78: 10 | CD78: 15 | CE78: 12 | CF78: 4 | CG78: 1
A79: 28 | H79: VCS/n | I79: 16 | J79: 12 | K79: 6 | L79: 8 | M79: 7 | S79: 28 | Z79: PAU | AA79: 4 | AB79: 13 | AC79: 9 | AD79: 10 | AE79: 5 | AK79: 28 | AR79: VCS | AS79: 4 | AT79: 5 | AU79: 16 | AV79: 1 | AW79: 3 | BC79: 28 | BJ79: VCS | BK79: 11 | BL79: 4 | BM79: 14 | BN79: 8 | BO79: 12 | BU79: 28 | CB79: VCS | CC79: 3 | CD79: 15 | CE79: 14 | CF79: 8 | CG79: 10
A80: 29 | H80: EGN | I80: 15 | J80: 9 | K80: 12 | L80: 10 | M80: 14 | S80: 29 | Z80: VCS | AA80: 4 | AB80: 5 | AC80: 9 | AD80: 10 | AE80: 6 | AK80: 29 | AR80: VCS | AS80: 18 | AT80: 3 | AU80: 2 | AV80: 16 | AW80: 12 | BC80: 29 | BJ80: VCS | BK80: 11 | BL80: 15 | BM80: 1 | BN80: 7 | BO80: 12 | BU80: 29 | CB80: C/M | CC80: 8 | CD80: 5 | CE80: 16 | CF80: 15 | CG80: 7
A81: 30 | H81: ATL | I81: 4 | J81: 6 | K81: 9 | L81: 7 | M81: 13 | S81: 30 | Z81: VCS | AA81: 15 | AB81: 13 | AC81: 18 | AD81: 16 | AE81: 10 | AK81: 30 | AR81: VCS | AS81: 18 | AT81: 17 | AU81: 5 | AV81: 8 | AW81: 4 | BC81: 30 | BJ81: C/M | BK81: 14 | BL81: 15 | BM81: 3 | BN81: 16 | BO81: 9 | BU81: 30 | CB81: VCS | CC81: 6 | CD81: 20 | CE81: 14 | CF81: 19 | CG81: 12
A82: 31 | H82: LCP | I82: 10 | J82: 14 | K82: 3 | L82: 4 | M82: 13 | S82: 31 | Z82: VCS | AA82: 8 | AB82: 6 | AC82: 12 | AD82: 14 | AE82: 2 | AK82: 31 | AR82: VCS | AS82: 5 | AT82: 13 | AU82: 8 | AV82: 10 | AW82: 11 | BC82: 31 | BJ82: VCS | BK82: 4 | BL82: 3 | BM82: 13 | BN82: 11 | BO82: 10 | CB82: PAU | CC82: 5 | CD82: 4 | CE82: 3 | CF82: 1 | CG82: 10
A83: MAI
CF97: #Mois!A1
A100: JUIN | S100: FEVRIER | AK100: FEVRIER | BC100: FEVRIER | BU100: FEVRIER
A101: Jour | B101: C1 | C101: C2 | D101: C3 | E101: C4 | F101: C5 | G101: Quinté | H101: HIPPO | I101: 1 | J101: 2 | K101: 3 | L101: 4 | M101: 5 | S101: Jour | T101: C1 | U101: C2 | V101: C3 | W101: C4 | X101: C5 | Y101: Quinté | Z101: HIPPO | AA101: 1 | AB101: 2 | AC101: 3 | AD101: 4 | AE101: 5 | AK101: Jour | AL101: C1 | AM101: C2 | AN101: C3 | AO101: C4 | AP101: C5 | AQ101: Quinté | AR101: HIPPO | AS101: 1 | AT101: 2 | AU101: 3 | AV101: 4 | AW101: 5 | BB101: 2013 | BC101: Jour | BD101: C1 | BE101: C2 | BF101: C3 | BG101: C4 | BH101: C5 | BI101: Quinté | BJ101: HIPPO | BK101: 1 | BL101: 2 | BM101: 3 | BN101: 4 | BO101: 5 | BU101: Jour | BV101: C1 | BW101: C2 | BX101: C3 | BY101: C4 | BZ101: C5 | CA101: Quinté | CB101: HIPPO | CC101: 1 | CD101: 2 | CE101: 3 | CF101: 4 | CG101: 5
A102: 1 | B102: 2 | C102: 2 | D102: 1 | E102: 5 | F102: 1 | G102: 11 | H102: Strasbourg | I102: 1 | J102: 16 | K102: 6 | L102: 7 | M102: 11 | O102: =COUNTIF($I$102:$M$132,ROW()-101)+((22-ROW()-101)/100) -> 9.19 | P102: =MATCH(LARGE($O$102:$O$122,ROW()-101),$O$102:$O$122,0) -> 3 | S102: 1 | T102: 2 | U102: 2 | V102: 2 | W102: 0 | X102: 2 | Y102: 8 | Z102: VCS | AA102: 13 | AB102: 6 | AC102: 16 | AD102: 2 | AE102: 9 | AG102: =COUNTIF($AA$102:$AE$132,ROW()-101)+((22-ROW()-101)/100) -> 6.19 | AH102: =MATCH(LARGE($AG$102:$AG$122,ROW()-101),$AG$102:$AG$122,0) -> 5 | AK102: 1 | AL102: =ARRIVEES!PS136 -> 3 | AM102: =ARRIVEES!PT136 -> 3 | AN102: =ARRIVEES!PU136 -> 2 | AO102: =ARRIVEES!PV136 -> 3 | AP102: =ARRIVEES!PW136 -> 1 | AQ102: =SUM(AL102:AP102) -> 12 | AR102: C/M | AS102: =ARRIVEES!PR100 -> 12 | AT102: =ARRIVEES!PS100 -> 13 | AU102: =ARRIVEES!PT100 -> 1 | AV102: =ARRIVEES!PU100 -> 17 | AW102: =ARRIVEES!PV100 -> 9 | AY102: =COUNTIF($AS$102:$AW$132,ROW()-101)+((22-ROW()-101)/100) -> 10.19 | AZ102: =MATCH(LARGE($AY$102:$AY$122,ROW()-101),$AY$102:$AY$122,0) -> 2 | BC102: 1 | BD102: 1 | BE102: 0 | BF102: 1 | BG102: 3 | BH102: 2 | BI102: 7 | BJ102: PAU | BK102: 3 | BL102: 10 | BM102: 4 | BN102: 1 | BO102: 15 | BQ102: =COUNTIF($BK$102:$BO$132,ROW()-101)+((22-ROW()-101)/100) -> 5.19 | BR102: =MATCH(LARGE($BQ$102:$BQ$122,ROW()-101),$BQ$102:$BQ$122,0) -> 10 | BU102: 1 | BV102: 2 | BW102: 1 | BX102: 1 | BY102: 5 | BZ102: 5 | CA102: =SUM(BV102:BZ102) -> 14 | CB102: VCS | CC102: 3 | CD102: 7 | CE102: 14 | CF102: 1 | CG102: 10 | CI102: =COUNTIF($CC$102:CG132,ROW()-101)+((22-ROW()-101)/100) -> 12.19 | CJ102: =MATCH(LARGE($CI$102:$CI$121,ROW()-101),$CI$102:$CI$121,0) -> 1
A103: 2 | B103: 2 | C103: 3 | D103: 2 | E103: 0 | F103: 2 | G103: 9 | H103: MLF | I103: 3 | J103: 9 | K103: 7 | L103: 1 | M103: 2 | O103: =COUNTIF($I$102:$M$132,ROW()-101)+((22-ROW()-101)/100) -> 7.18 | P103: =MATCH(LARGE($O$102:$O$122,ROW()-101),$O$102:$O$122,0) -> 6 | S103: 2 | T103: 1 | U103: 2 | V103: 2 | W103: 1 | X103: 2 | Y103: 8 | Z103: C/M | AA103: 4 | AB103: 2 | AC103: 12 | AD103: 5 | AE103: 14 | AG103: =COUNTIF($AA$102:$AE$132,ROW()-101)+((22-ROW()-101)/100) -> 6.18 | AH103: =MATCH(LARGE($AG$102:$AG$122,ROW()-101),$AG$102:$AG$122,0) -> 6 | AK103: 2 | AL103: =ARRIVEES!PS137 -> 0 | AM103: =ARRIVEES!PT137 -> 5 | AN103: =ARRIVEES!PU137 -> 1 | AO103: =ARRIVEES!PV137 -> 2 | AP103: =ARRIVEES!PW137 -> 3 | AQ103: =SUM(AL103:AP103) -> 11 | AR103: VCS | AS103: =ARRIVEES!PR101 -> 4 | AT103: =ARRIVEES!PS101 -> 5 | AU103: =ARRIVEES!PT101 -> 1 | AV103: =ARRIVEES!PU101 -> 15 | AW103: =ARRIVEES!PV101 -> 14 | AY103: =COUNTIF($AS$102:$AAW$132,ROW()-101)+((22-ROW()-101)/100) -> 77.18 | AZ103: =MATCH(LARGE($AY$102:$AY$122,ROW()-101),$AY$102:$AY$122,0) -> 3 | BC103: 2 | BD103: 3 | BE103: 2 | BF103: 0 | BG103: 2 | BH103: 1 | BI103: 8 | BJ103: VCS | BK103: 6 | BL103: 16 | BM103: 13 | BN103: 9 | BO103: 2 | BQ103: =COUNTIF($BK$102:$BO$132,ROW()-101)+((22-ROW()-101)/100) -> 6.18 | BR103: =MATCH(LARGE($BQ$102:$BQ$122,ROW()-101),$BQ$102:$BQ$122,0) -> 9 | BU103: 2 | BV103: 1 | BW103: 2 | BX103: 3 | BY103: 1 | BZ103: 2 | CA103: 9 | CB103: VCS | CC103: 10 | CD103: 14 | CE103: 16 | CF103: 1 | CG103: 11 | CI103: =COUNTIF($CC$102:CG133,ROW()-101)+((22-ROW()-101)/100) -> 7.18 | CJ103: =MATCH(LARGE($CI$102:$CI$121,ROW()-101),$CI$102:$CI$121,0) -> 6
A104: 3 | B104: 2 | C104: 4 | D104: 2 | E104: 0 | F104: 4 | G104: 12 | H104: VICHY | I104: 2 | J104: 16 | K104: 17 | L104: 11 | M104: 10 | O104: 10.17 | P104: 7 | S104: 3 | T104: 0 | U104: 2 | V104: 1 | W104: 2 | X104: 2 | Y104: 7 | Z104: VCS | AA104: 12 | AB104: 11 | AC104: 13 | AD104: 4 | AE104: 5 | AG104: 5.17 | AH104: 7 | AK104: 3 | AL104: =ARRIVEES!PS138 -> 1 | AM104: =ARRIVEES!PT138 -> 2 | AN104: =ARRIVEES!PU138 -> 1 | AO104: =ARRIVEES!PV138 -> 2 | AP104: =ARRIVEES!PW138 -> 0 | AQ104: 6 | AR104: PAU | AS104: =ARRIVEES!PR102 -> 3 | AT104: =ARRIVEES!PS102 -> 6 | AU104: =ARRIVEES!PT102 -> 11 | AV104: =ARRIVEES!PU102 -> 8 | AW104: =ARRIVEES!PV102 -> 16 | AY104: 58.17 | AZ104: 4 | BC104: 3 | BD104: 1 | BE104: 0 | BF104: 2 | BG104: 3 | BH104: 3 | BI104: 9 | BJ104: VCS | BK104: 2 | BL104: 6 | BM104: 12 | BN104: 5 | BO104: 7 | BQ104: 7.17 | BR104: 5 | BU104: 3 | BV104: 2 | BW104: 3 | BX104: 3 | BY104: 0 | BZ104: 1 | CA104: 9 | CB104: VCS | CC104: 4 | CD104: 15 | CE104: 7 | CF104: 10 | CG104: 11 | CI104: =COUNTIF($CC$102:CG134,ROW()-101)+((22-ROW()-101)/100) -> 7.17 | CJ104: 7
A105: 4 | B105: 2 | C105: 2 | D105: 4 | E105: 1 | F105: 1 | G105: 10 | H105: VCS/n | I105: 4 | J105: 3 | K105: 16 | L105: 14 | M105: 2 | O105: 8.16 | P105: 10 | S105: 4 | T105: 3 | U105: 0 | V105: 0 | W105: 2 | X105: 2 | Y105: 7 | Z105: PAU | AA105: 1 | AB105: 5 | AC105: 8 | AD105: 18 | AE105: 13 | AG105: 5.16 | AH105: 13 | AK105: 4 | AL105: =ARRIVEES!PS139 -> 4 | AM105: =ARRIVEES!PT139 -> 0 | AN105: =ARRIVEES!PU139 -> 2 | AO105: =ARRIVEES!PV139 -> 1 | AP105: =ARRIVEES!PW139 -> 0 | AQ105: 7 | AR105: VCS | AS105: =ARRIVEES!PR103 -> 2 | AT105: =ARRIVEES!PS103 -> 9 | AU105: =ARRIVEES!PT103 -> 11 | AV105: =ARRIVEES!PU103 -> 15 | AW105: =ARRIVEES!PV103 -> 18 | AY105: 40.16 | AZ105: 6 | BC105: 4 | BD105: 2 | BE105: 1 | BF105: 1 | BG105: 1 | BH105: 2 | BI105: 7 | BJ105: VCS | BK105: 14 | BL105: 10 | BM105: 11 | BN105: 12 | BO105: 9 | BQ105: 5.16 | BR105: 6 | BU105: 4 | BV105: 2 | BW105: 2 | BX105: 3 | BY105: 3 | BZ105: 1 | CA105: 11 | CB105: C/M | CC105: 13 | CD105: 17 | CE105: 6 | CF105: 9 | CG105: 14 | CI105: =COUNTIF($CC$102:CG135,ROW()-101)+((22-ROW()-101)/100) -> 9.16 | CJ105: 14
A106: 5 | B106: 2 | C106: 2 | D106: 1 | E106: 3 | F106: 0 | G106: 8 | H106: LCP | I106: 12 | J106: 6 | K106: 8 | L106: 13 | M106: 7 | O106: 6.15 | P106: 1 | S106: 5 | T106: 4 | U106: 2 | V106: 1 | W106: 2 | X106: 3 | Y106: 12 | Z106: VCS | AA106: 20 | AB106: 17 | AC106: 9 | AD106: 12 | AE106: 6 | AG106: 10.15 | AH106: 12 | AK106: 5 | AL106: =ARRIVEES!PS140 -> 1 | AM106: =ARRIVEES!PT140 -> 0 | AN106: =ARRIVEES!PU140 -> 2 | AO106: =ARRIVEES!PV140 -> 2 | AP106: =ARRIVEES!PW140 -> 1 | AQ106: 6 | AR106: VCS | AS106: =ARRIVEES!PR104 -> 13 | AT106: =ARRIVEES!PS104 -> 9 | AU106: =ARRIVEES!PT104 -> 1 | AV106: =ARRIVEES!PU104 -> 4 | AW106: =ARRIVEES!PV104 -> 10 | AY106: 33.15 | AZ106: 7 | BC106: 5 | BD106: 2 | BE106: 3 | BF106: 1 | BG106: 2 | BH106: 2 | BI106: 10 | BJ106: C/M | BK106: 15 | BL106: 14 | BM106: 9 | BN106: 6 | BO106: 8 | BQ106: 8.15 | BR106: 3 | BU106: 5 | BV106: 0 | BW106: 0 | BX106: 1 | BY106: 3 | BZ106: 0 | CA106: 4 | CB106: VCS | CC106: 18 | CD106: 6 | CE106: 2 | CF106: 13 | CG106: 14 | CI106: =COUNTIF($CC$102:CG136,ROW()-101)+((22-ROW()-101)/100) -> 2.15 | CJ106: 4
A107: 6 | B107: 3 | C107: 3 | D107: 3 | E107: 3 | F107: 0 | G107: 12 | H107: CTY | I107: 4 | J107: 1 | K107: 7 | L107: 10 | M107: 13 | O107: 10.14 | P107: 4 | S107: 6 | T107: 0 | U107: 2 | V107: 4 | W107: 3 | X107: 2 | Y107: 11 | Z107: VCS | AA107: 7 | AB107: 13 | AC107: 12 | AD107: 6 | AE107: 2 | AG107: 9.14 | AH107: 8 | AK107: 6 | AL107: =ARRIVEES!PS141 -> 3 | AM107: =ARRIVEES!PT141 -> 4 | AN107: =ARRIVEES!PU141 -> 0 | AO107: =ARRIVEES!PV141 -> 1 | AP107: =ARRIVEES!PW141 -> 1 | AQ107: 9 | AR107: VCS | AS107: =ARRIVEES!PR105 -> 2 | AT107: =ARRIVEES!PS105 -> 12 | AU107: =ARRIVEES!PT105 -> 14 | AV107: =ARRIVEES!PU105 -> 1 | AW107: =ARRIVEES!PV105 -> 16 | AY107: 36.14 | AZ107: 9 | BC107: 6 | BD107: 4 | BE107: 2 | BF107: 1 | BG107: 2 | BH107: 1 | BI107: 10 | BJ107: VCS | BK107: 17 | BL107: 8 | BM107: 11 | BN107: 4 | BO107: 3 | BQ107: 8.14 | BR107: 7 | BU107: 6 | BV107: 1 | BW107: 1 | BX107: 4 | BY107: 3 | BZ107: 3 | CA107: 12 | CB107: VCS | CC107: 14 | CD107: 11 | CE107: 13 | CF107: 5 | CG107: 12 | CI107: =COUNTIF($CC$102:CG137,ROW()-101)+((22-ROW()-101)/100) -> 10.14 | CJ107: 10
A108: 7 | B108: 1 | C108: 1 | D108: 3 | E108: 4 | F108: 3 | G108: 12 | H108: ATL | I108: 5 | J108: 10 | K108: 4 | L108: 8 | M108: 3 | O108: 10.13 | P108: 8 | S108: 7 | T108: 3 | U108: 3 | V108: 2 | W108: 1 | X108: 2 | Y108: 11 | Z108: VCS | AA108: 16 | AB108: 12 | AC108: 13 | AD108: 8 | AE108: 6 | AG108: 9.13 | AH108: 9 | AK108: 7 | AL108: =ARRIVEES!PS142 -> 1 | AM108: =ARRIVEES!PT142 -> 0 | AN108: =ARRIVEES!PU142 -> 1 | AO108: =ARRIVEES!PV142 -> 2 | AP108: =ARRIVEES!PW142 -> 2 | AQ108: 6 | AR108: C/M | AS108: =ARRIVEES!PR106 -> 7 | AT108: =ARRIVEES!PS106 -> 15 | AU108: =ARRIVEES!PT106 -> 16 | AV108: =ARRIVEES!PU106 -> 8 | AW108: =ARRIVEES!PV106 -> 2 | AY108: 34.13 | AZ108: 10 | BC108: 7 | BD108: 0 | BE108: 1 | BF108: 3 | BG108: 2 | BH108: 3 | BI108: 9 | BJ108: VCS | BK108: 5 | BL108: 16 | BM108: 12 | BN108: 10 | BO108: 7 | BQ108: 7.13 | BR108: 11 | BU108: 7 | BV108: 4 | BW108: 3 | BX108: 1 | BY108: 3 | BZ108: 1 | CA108: 12 | CB108: C/M | CC108: 12 | CD108: 14 | CE108: 1 | CF108: 7 | CG108: 8 | CI108: =COUNTIF($CC$102:CG138,ROW()-101)+((22-ROW()-101)/100) -> 10.13 | CJ108: 2
A109: 8 | B109: 0 | C109: 3 | D109: 4 | E109: 1 | F109: 2 | G109: 10 | H109: LCP | I109: 17 | J109: 3 | K109: 14 | L109: 15 | M109: 18 | O109: 8.12 | P109: 9 | S109: 8 | T109: 1 | U109: 0 | V109: 2 | W109: 5 | X109: 1 | Y109: 9 | Z109: C/M | AA109: 12 | AB109: 3 | AC109: 7 | AD109: 18 | AE109: 9 | AG109: 7.12 | AH109: 11 | AK109: 8 | AL109: =ARRIVEES!PS143 -> 2 | AM109: =ARRIVEES!PT143 -> 1 | AN109: =ARRIVEES!PU143 -> 2 | AO109: =ARRIVEES!PV143 -> 0 | AP109: =ARRIVEES!PW143 -> 0 | AQ109: =SUM(AL109:AP109) -> 5 | AR109: VCS | AS109: =ARRIVEES!PR107 -> 12 | AT109: =ARRIVEES!PS107 -> 13 | AU109: =ARRIVEES!PT107 -> 18 | AV109: =ARRIVEES!PU107 -> 16 | AW109: =ARRIVEES!PV107 -> 17 | AY109: 24.12 | AZ109: 5 | BC109: 8 | BD109: 3 | BE109: 1 | BF109: 1 | BG109: 1 | BH109: 3 | BI109: 8 | BJ109: C/M | BK109: 6 | BL109: 17 | BM109: 18 | BN109: 3 | BO109: 1 | BQ109: 6.12 | BR109: 15 | BU109: 8 | BV109: 0 | BW109: 1 | BX109: 2 | BY109: 0 | BZ109: 2 | CA109: 5 | CB109: VCS | CC109: 12 | CD109: 8 | CE109: 14 | CF109: 4 | CG109: 2 | CI109: =COUNTIF($CC$102:CG139,ROW()-101)+((22-ROW()-101)/100) -> 3.12 | CJ109: 3
A110: 9 | B110: 1 | C110: 2 | D110: 2 | E110: 2 | F110: 3 | G110: 10 | H110: Laval | I110: 15 | J110: 4 | K110: 5 | L110: 1 | M110: 9 | O110: 8.11 | S110: 9 | T110: 2 | U110: 1 | V110: 2 | W110: 1 | X110: 3 | Y110: 9 | Z110: VCS | AA110: 5 | AB110: 12 | AC110: 6 | AD110: 10 | AE110: 4 | AG110: 7.11 | AH110: 1 | AK110: 9 | AL110: =ARRIVEES!PS144 -> 4 | AM110: =ARRIVEES!PT144 -> 3 | AN110: =ARRIVEES!PU144 -> 2 | AO110: =ARRIVEES!PV144 -> 0 | AP110: =ARRIVEES!PW144 -> 1 | AQ110: =SUM(AL110:AP110) -> 10 | AR110: VCS | AS110: =ARRIVEES!PR108 -> 11 | AT110: =ARRIVEES!PS108 -> 5 | AU110: =ARRIVEES!PT108 -> 3 | AV110: =ARRIVEES!PU108 -> 13 | AW110: =ARRIVEES!PV108 -> 8 | AY110: 34.11 | AZ110: 14 | BC110: 9 | BD110: 1 | BE110: 1 | BF110: 4 | BG110: 2 | BH110: 2 | BI110: 11 | BJ110: VCS | BK110: 10 | BL110: 2 | BM110: 7 | BN110: 16 | BO110: 3 | BQ110: 9.11 | BR110: =MATCH(LARGE($AY$102:$AY$122,ROW()-101),$AY$102:$AY$122,0) -> 14 | BU110: 9 | BV110: 1 | BW110: 1 | BX110: 0 | BY110: 2 | BZ110: 1 | CA110: =SUM(BV110:BZ110) -> 5 | CB110: VCS | CC110: 1 | CD110: 10 | CE110: 8 | CF110: 9 | CG110: 11 | CI110: =COUNTIF($CC$102:CG140,ROW()-101)+((22-ROW()-101)/100) -> 3.11
A111: 10 | B111: 4 | C111: 3 | D111: 2 | E111: 1 | F111: 2 | G111: 12 | H111: VICHY | I111: 10 | J111: 14 | K111: 6 | L111: 13 | M111: 7 | O111: 10.1 | S111: 10 | T111: 0 | U111: 1 | V111: 2 | W111: 3 | X111: 0 | Y111: 6 | Z111: VCS | AA111: 16 | AB111: 7 | AC111: 9 | AD111: 6 | AE111: 13 | AG111: 4.1 | AH111: 2 | AK111: 10 | AL111: =ARRIVEES!PS145 -> 3 | AM111: =ARRIVEES!PT145 -> 3 | AN111: =ARRIVEES!PU145 -> 0 | AO111: =ARRIVEES!PV145 -> 2 | AP111: =ARRIVEES!PW145 -> 2 | AQ111: 10 | AR111: C/M | AS111: =ARRIVEES!PR109 -> 13 | AT111: =ARRIVEES!PS109 -> 6 | AU111: =ARRIVEES!PT109 -> 10 | AV111: =ARRIVEES!PU109 -> 3 | AW111: =ARRIVEES!PV109 -> 4 | AY111: 34.1 | AZ111: 12 | BC111: 10 | BD111: 1 | BE111: 6 | BF111: 1 | BG111: 1 | BH111: 3 | BI111: 12 | BJ111: VCS | BK111: 2 | BL111: 5 | BM111: 9 | BN111: 6 | BO111: 8 | BQ111: 10.1 | BR111: 12 | BU111: 10 | BV111: 4 | BW111: 3 | BX111: 1 | BY111: 2 | BZ111: 1 | CA111: 11 | CB111: VCS | CC111: 2 | CD111: 4 | CE111: 10 | CF111: 15 | CG111: 17 | CI111: =COUNTIF($CC$102:CG141,ROW()-101)+((22-ROW()-101)/100) -> 9.1
A112: 11 | B112: 2 | C112: 0 | D112: 0 | E112: 1 | F112: 2 | G112: 5 | H112: VCS/n | I112: 13 | J112: 6 | K112: 3 | L112: 7 | M112: 8 | O112: 3.09 | S112: 11 | T112: 0 | U112: 4 | V112: 3 | W112: 2 | X112: 0 | Y112: 9 | Z112: C/M | AA112: 2 | AB112: 1 | AC112: 11 | AD112: 10 | AE112: 13 | AG112: 7.09 | AH112: 14 | AK112: 11 | AL112: =ARRIVEES!PS146 -> 1 | AM112: =ARRIVEES!PT146 -> 1 | AN112: =ARRIVEES!PU146 -> 5 | AO112: =ARRIVEES!PV146 -> 1 | AP112: =ARRIVEES!PW146 -> 2 | AQ112: 10 | AR112: VCS | AS112: =ARRIVEES!PR110 -> 7 | AT112: =ARRIVEES!PS110 -> 5 | AU112: =ARRIVEES!PT110 -> 12 | AV112: =ARRIVEES!PU110 -> 4 | AW112: =ARRIVEES!PV110 -> 2 | AY112: 29.09 | AZ112: 11 | BC112: 11 | BD112: 1 | BE112: 1 | BF112: 5 | BG112: 0 | BH112: 2 | BI112: 9 | BJ112: VCS | BK112: 4 | BL112: 10 | BM112: 7 | BN112: 8 | BO112: 5 | BQ112: 7.09 | BR112: 11 | BU112: 11 | BV112: 2 | BW112: 2 | BX112: 1 | BY112: 0 | BZ112: 4 | CA112: 9 | CB112: VCS | CC112: 4 | CD112: 13 | CE112: 6 | CF112: 5 | CG112: 2 | CI112: =COUNTIF($CC$102:CG142,ROW()-101)+((22-ROW()-101)/100) -> 7.09
A113: 12 | B113: 2 | C113: 0 | D113: 0 | E113: 3 | F113: 1 | G113: 6 | H113: VCS | I113: 13 | J113: 10 | K113: 8 | L113: 1 | M113: 17 | O113: 4.08 | S113: 12 | T113: 2 | U113: 3 | V113: 3 | W113: 2 | X113: 0 | Y113: 10 | Z113: VCS | AA113: 4 | AB113: 6 | AC113: 3 | AD113: 11 | AE113: 1 | AG113: 8.08 | AH113: 3 | AK113: 12 | AL113: =ARRIVEES!PS147 -> 0 | AM113: =ARRIVEES!PT147 -> 4 | AN113: =ARRIVEES!PU147 -> 0 | AO113: =ARRIVEES!PV147 -> 2 | AP113: =ARRIVEES!PW147 -> 1 | AQ113: 7 | AR113: VCS | AS113: =ARRIVEES!PR111 -> 7 | AT113: =ARRIVEES!PS111 -> 4 | AU113: =ARRIVEES!PT111 -> 1 | AV113: =ARRIVEES!PU111 -> 16 | AW113: =ARRIVEES!PV111 -> 3 | AY113: 30.08 | AZ113: 15 | BC113: 12 | BD113: 3 | BE113: 0 | BF113: 3 | BG113: 1 | BH113: 1 | BI113: 8 | BJ113: VCS | BK113: 8 | BL113: 10 | BM113: 11 | BN113: 2 | BO113: 9 | BQ113: 6.08 | BR113: 15 | BU113: 12 | BV113: 2 | BW113: 2 | BX113: 0 | BY113: 1 | BZ113: 2 | CA113: 7 | CB113: C/M | CC113: 10 | CD113: 3 | CE113: 8 | CF113: 6 | CG113: 11 | CI113: =COUNTIF($CC$102:CG143,ROW()-101)+((22-ROW()-101)/100) -> 5.08
A114: 13 | B114: 4 | C114: 1 | D114: 0 | E114: 2 | F114: 2 | G114: 9 | H114: CTY | I114: 7 | J114: 2 | K114: 10 | L114: 1 | M114: 14 | O114: 7.07 | S114: 13 | T114: 3 | U114: 1 | V114: 2 | W114: 2 | X114: 3 | Y114: 11 | Z114: VCS | AA114: 5 | AB114: 2 | AC114: 6 | AD114: 4 | AE114: 7 | AG114: 9.07 | AH114: 4 | AK114: 13 | AL114: =ARRIVEES!PS148 -> 1 | AM114: =ARRIVEES!PT148 -> 0 | AN114: =ARRIVEES!PU148 -> 1 | AO114: =ARRIVEES!PV148 -> 3 | AP114: =ARRIVEES!PW148 -> 3 | AQ114: 8 | AR114: VCS | AS114: =ARRIVEES!PR112 -> 12 | AT114: =ARRIVEES!PS112 -> 9 | AU114: =ARRIVEES!PT112 -> 14 | AV114: =ARRIVEES!PU112 -> 4 | AW114: =ARRIVEES!PV112 -> 13 | AY114: 21.07 | AZ114: 8 | BC114: 13 | BD114: 0 | BE114: 0 | BF114: 1 | BG114: 2 | BH114: 0 | BI114: 3 | BJ114: C/M | BK114: 5 | BL114: 2 | BM114: 9 | BN114: 16 | BO114: 1 | BQ114: 1.07 | BR114: 8 | BU114: 13 | BV114: 1 | BW114: 2 | BX114: 1 | BY114: 2 | BZ114: 0 | CA114: 6 | CB114: VCS | CC114: 7 | CD114: 10 | CE114: 14 | CF114: 5 | CG114: 8 | CI114: =COUNTIF($CC$102:CG144,ROW()-101)+((22-ROW()-101)/100) -> 4.07
A115: 14 | B115: 0 | C115: 1 | D115: 3 | E115: 1 | F115: 1 | G115: 6 | H115: LCP | I115: 10 | J115: 13 | K115: 14 | L115: 6 | M115: 7 | O115: 4.06 | S115: 14 | T115: 2 | U115: 2 | V115: 0 | W115: 0 | X115: 4 | Y115: 8 | Z115: VCS | AA115: 7 | AB115: 14 | AC115: 11 | AD115: 10 | AE115: 1 | AG115: 6.06 | AH115: 10 | AK115: 14 | AL115: =ARRIVEES!PS149 -> 0 | AM115: =ARRIVEES!PT149 -> 0 | AN115: =ARRIVEES!PU149 -> 1 | AO115: =ARRIVEES!PV149 -> 1 | AP115: =ARRIVEES!PW149 -> 1 | AQ115: 3 | AR115: VCS | AS115: =ARRIVEES!PR113 -> 1 | AT115: =ARRIVEES!PS113 -> 2 | AU115: =ARRIVEES!PT113 -> 5 | AV115: =ARRIVEES!PU113 -> 14 | AW115: =ARRIVEES!PV113 -> 13 | AY115: 31.06 | AZ115: 13 | BC115: 14 | BD115: 1 | BE115: 2 | BF115: 0 | BG115: 1 | BH115: 1 | BI115: 5 | BJ115: VCS | BK115: 9 | BL115: 4 | BM115: 12 | BN115: 7 | BO115: 10 | BQ115: 3.06 | BR115: 13 | BU115: 14 | BV115: 1 | BW115: 2 | BX115: 5 | BY115: 1 | BZ115: 3 | CA115: 12 | CB115: C/M | CC115: 15 | CD115: 7 | CE115: 3 | CF115: 6 | CG115: 12 | CI115: =COUNTIF($CC$102:CG145,ROW()-101)+((22-ROW()-101)/100) -> 10.06
A116: 15 | B116: 1 | C116: 0 | D116: 0 | E116: 1 | F116: 1 | G116: 3 | H116: ATL | I116: 6 | J116: 3 | K116: 1 | L116: 4 | M116: 9 | O116: 1.05 | S116: 15 | T116: 1 | U116: 0 | V116: 0 | W116: 0 | X116: 0 | Y116: 1 | Z116: VCS | AA116: 7 | AB116: 17 | AC116: 2 | AD116: 5 | AE116: 18 | AG116: -0.95 | AH116: 16 | AK116: 15 | AL116: =ARRIVEES!PS150 -> 0 | AM116: =ARRIVEES!PT150 -> 0 | AN116: =ARRIVEES!PU150 -> 1 | AO116: =ARRIVEES!PV150 -> 2 | AP116: =ARRIVEES!PW150 -> 2 | AQ116: 5 | AR116: C/M | AS116: =ARRIVEES!PR114 -> 7 | AT116: =ARRIVEES!PS114 -> 5 | AU116: =ARRIVEES!PT114 -> 8 | AV116: =ARRIVEES!PU114 -> 10 | AW116: =ARRIVEES!PV114 -> 1 | AY116: 25.05 | AZ116: 16 | BC116: 15 | BD116: 3 | BE116: 1 | BF116: 1 | BG116: 2 | BH116: 2 | BI116: 9 | BJ116: C/M | BK116: 2 | BL116: 10 | BM116: 8 | BN116: 17 | BO116: 7 | BQ116: 7.05 | BR116: 16 | BU116: 15 | BV116: 1 | BW116: 2 | BX116: 1 | BY116: 2 | BZ116: 0 | CA116: 6 | CB116: C/M | CC116: 7 | CD116: 11 | CE116: 4 | CF116: 12 | CG116: 1 | CI116: =COUNTIF($CC$102:CG146,ROW()-101)+((22-ROW()-101)/100) -> 4.05
A117: 16 | B117: 1 | C117: 2 | D117: 1 | E117: 2 | F117: 2 | G117: 8 | H117: CTY | I117: 10 | J117: 18 | K117: 2 | L117: 12 | M117: 11 | O117: 6.04 | S117: 16 | T117: 2 | U117: 0 | V117: 2 | W117: 0 | X117: 1 | Y117: 5 | Z117: C/M | AA117: 14 | AB117: 3 | AC117: 5 | AD117: 9 | AE117: 16 | AG117: 3.04 | AH117: 18 | AK117: 16 | AL117: =ARRIVEES!PS151 -> 0 | AM117: =ARRIVEES!PT151 -> 0 | AN117: =ARRIVEES!PU151 -> 0 | AO117: =ARRIVEES!PV151 -> 0 | AP117: =ARRIVEES!PW151 -> 0 | AQ117: 0 | AR117: VCS | AS117: =ARRIVEES!PR115 -> 6 | AT117: =ARRIVEES!PS115 -> 4 | AU117: =ARRIVEES!PT115 -> 1 | AV117: =ARRIVEES!PU115 -> 7 | AW117: =ARRIVEES!PV115 -> 3 | AY117: 18.04 | AZ117: 17 | BC117: 16 | BD117: 1 | BE117: 3 | BF117: 0 | BG117: 2 | BH117: 0 | BI117: 6 | BJ117: C/M | BK117: 1 | BL117: 9 | BM117: 6 | BN117: 3 | BO117: 10 | BQ117: 4.04 | BR117: 17 | BU117: 16 | BV117: 2 | BW117: 0 | BX117: 1 | BY117: 0 | BZ117: 0 | CA117: 3 | CB117: VCS | CC117: 10 | CD117: 3 | CE117: 4 | CF117: 7 | CG117: 14 | CI117: =COUNTIF($CC$102:CG147,ROW()-101)+((22-ROW()-101)/100) -> 1.04
A118: 17 | B118: 1 | C118: 0 | D118: 1 | E118: 0 | F118: 1 | G118: 3 | H118: Nantes | I118: 3 | J118: 10 | K118: 8 | L118: 7 | M118: 13 | O118: 1.03 | S118: 17 | T118: 1 | U118: 2 | V118: 0 | W118: 0 | X118: 0 | Y118: 3 | Z118: VCS | AA118: 5 | AB118: 1 | AC118: 2 | AD118: 8 | AE118: 14 | AG118: 1.03 | AH118: 17 | AK118: 17 | AL118: =ARRIVEES!PS152 -> 0 | AM118: =ARRIVEES!PT152 -> 0 | AN118: =ARRIVEES!PU152 -> 0 | AO118: =ARRIVEES!PV152 -> 0 | AP118: =ARRIVEES!PW152 -> 0 | AQ118: 0 | AR118: C/M | AS118: =ARRIVEES!PR116 -> 2 | AT118: =ARRIVEES!PS116 -> 4 | AU118: =ARRIVEES!PT116 -> 17 | AV118: =ARRIVEES!PU116 -> 18 | AW118: =ARRIVEES!PV116 -> 14 | AY118: 15.03 | AZ118: 1 | BC118: 17 | BD118: 1 | BE118: 4 | BF118: 0 | BG118: 1 | BH118: 0 | BI118: 6 | BJ118: VCS | BK118: 11 | BL118: 15 | BM118: 7 | BN118: 5 | BO118: 6 | BQ118: 4.03 | BR118: 1 | BU118: 17 | BV118: 1 | BW118: 1 | BX118: 0 | BY118: 0 | BZ118: 2 | CA118: 4 | CB118: VCS | CC118: 16 | CD118: 1 | CE118: 5 | CF118: 15 | CG118: 17 | CI118: =COUNTIF($CC$102:CG148,ROW()-101)+((22-ROW()-101)/100) -> 2.03
A119: 18 | B119: 0 | C119: 1 | D119: 1 | E119: 0 | F119: 2 | G119: 4 | H119: VCS/n | I119: 9 | J119: 7 | K119: 3 | L119: 5 | M119: 10 | O119: 2.02 | S119: 18 | T119: 0 | U119: 1 | V119: 0 | W119: 2 | X119: 1 | Y119: 4 | Z119: C/M | AA119: 15 | AB119: 18 | AC119: 16 | AD119: 8 | AE119: 3 | AG119: 2.02 | AH119: 15 | AK119: 18 | AL119: =ARRIVEES!PS153 -> 30 | AM119: =ARRIVEES!PT153 -> 30 | AN119: =ARRIVEES!PU153 -> 30 | AO119: =ARRIVEES!PV153 -> 30 | AP119: =ARRIVEES!PW153 -> 30 | AQ119: 150 | AR119: C/M | AS119: =ARRIVEES!PR117 -> 8 | AT119: =ARRIVEES!PS117 -> 9 | AU119: =ARRIVEES!PT117 -> 7 | AV119: =ARRIVEES!PU117 -> 6 | AW119: =ARRIVEES!PV117 -> 2 | AY119: 10.02 | AZ119: 18 | BC119: 18 | BD119: 0 | BE119: 0 | BF119: 2 | BG119: 0 | BH119: 0 | BI119: 2 | BJ119: VCS | BK119: 12 | BL119: 7 | BM119: 11 | BN119: 14 | BO119: 10 | BQ119: 0.02 | BR119: 18 | BU119: 18 | BV119: 1 | BW119: 0 | BX119: 0 | BY119: 0 | BZ119: 0 | CA119: 1 | CB119: VCS | CC119: 3 | CD119: 4 | CE119: 14 | CF119: 13 | CG119: 1 | CI119: =COUNTIF($CC$102:CG149,ROW()-101)+((22-ROW()-101)/100) -> -0.98
A120: 19 | B120: 0 | C120: 0 | D120: 0 | E120: 0 | F120: 0 | G120: 0 | H120: ATL | I120: 6 | J120: 3 | K120: 4 | L120: 16 | M120: 12 | O120: -1.99 | S120: 19 | T120: 0 | U120: 0 | V120: 0 | W120: 0 | X120: 0 | Y120: 0 | Z120: C/M | AA120: 4 | AB120: 10 | AC120: 6 | AD120: 3 | AE120: 5 | AG120: -1.99 | AH120: 20 | AK120: 19 | AL120: =ARRIVEES!PS154 -> 0 | AM120: =ARRIVEES!PT154 -> 0 | AN120: =ARRIVEES!PU154 -> 0 | AO120: =ARRIVEES!PV154 -> 0 | AP120: =ARRIVEES!PW154 -> 0 | AQ120: 0 | AR120: VCS | AS120: =ARRIVEES!PR118 -> 4 | AT120: =ARRIVEES!PS118 -> 2 | AU120: =ARRIVEES!PT118 -> 14 | AV120: =ARRIVEES!PU118 -> 3 | AW120: =ARRIVEES!PV118 -> 18 | AY120: 3.01 | AZ120: 19 | BC120: 19 | BD120: 0 | BE120: 0 | BF120: 1 | BG120: 0 | BH120: 0 | BI120: 1 | BJ120: VCS | BK120: 4 | BL120: 5 | BM120: 15 | BN120: 3 | BO120: 11 | BQ120: -0.99 | BR120: 19 | BU120: 19 | BV120: 0 | BW120: 0 | BX120: 0 | BY120: 0 | BZ120: 0 | CA120: 0 | CB120: C/M | CC120: 17 | CD120: 7 | CE120: 2 | CF120: 1 | CG120: 6 | CI120: =COUNTIF($CC$102:CG150,ROW()-101)+((22-ROW()-101)/100) -> -1.99
A121: 20 | B121: 0 | C121: 0 | D121: 0 | E121: 0 | F121: 0 | G121: 0 | H121: VCS | I121: 11 | J121: 4 | K121: 9 | L121: 1 | M121: 3 | O121: -2 | S121: 20 | T121: 1 | U121: 0 | V121: 0 | W121: 0 | X121: 0 | Y121: 1 | Z121: VCS | AA121: 13 | AB121: 14 | AC121: 1 | AD121: 11 | AE121: 3 | AG121: -1 | AH121: 19 | AJ121: 19 | AK121: 20 | AL121: =ARRIVEES!PS155 -> 0 | AM121: =ARRIVEES!PT155 -> 0 | AN121: =ARRIVEES!PU155 -> 0 | AO121: =ARRIVEES!PV155 -> 0 | AP121: =ARRIVEES!PW155 -> 0 | AQ121: 0 | AR121: VCS | AS121: =ARRIVEES!PR119 -> 9 | AT121: =ARRIVEES!PS119 -> 13 | AU121: =ARRIVEES!PT119 -> 12 | AV121: =ARRIVEES!PU119 -> 5 | AW121: =ARRIVEES!PV119 -> 3 | AY121: 2 | AZ121: 20 | BC121: 20 | BD121: 0 | BE121: 0 | BF121: 0 | BG121: 0 | BH121: 0 | BI121: 0 | BJ121: C/M | BK121: 6 | BL121: 17 | BM121: 1 | BN121: 7 | BO121: 11 | BQ121: -2 | BR121: 20 | BU121: 20 | BV121: 0 | BW121: 0 | BX121: 0 | BY121: 0 | BZ121: 0 | CA121: 0 | CB121: VCS | CC121: 11 | CD121: 10 | CE121: 2 | CF121: 14 | CG121: 4 | CI121: =COUNTIF($CC$102:CG151,ROW()-101)+((22-ROW()-101)/100) -> -2
A122: 21 | B122: 30 | C122: 30 | D122: 30 | E122: 30 | F122: 30 | G122: 150 | H122: VICHY | I122: 13 | J122: 8 | K122: 2 | L122: 12 | M122: 15 | O122: -2.01 | S122: 21 | T122: 28 | U122: 28 | V122: 28 | W122: 28 | X122: 28 | Y122: 140 | Z122: VCS | AA122: 14 | AB122: 11 | AC122: 1 | AD122: 7 | AE122: 2 | AK122: 21 | AL122: =SUM(AL102:AL121) -> 54 | AM122: =SUM(AM102:AM121) -> 56 | AN122: =SUM(AN102:AN121) -> 51 | AO122: =SUM(AO102:AO121) -> 54 | AP122: =SUM(AP102:AP121) -> 50 | AQ122: =SUM($G102:$G121) -> 150 | AR122: VCS | AS122: =ARRIVEES!PR120 -> 4 | AT122: =ARRIVEES!PS120 -> 12 | AU122: =ARRIVEES!PT120 -> 7 | AV122: =ARRIVEES!PU120 -> 6 | AW122: =ARRIVEES!PV120 -> 1 | BC122: 21 | BD122: 28 | BE122: 28 | BF122: 28 | BG122: 28 | BH122: 28 | BI122: 140 | BJ122: VCS | BK122: 12 | BL122: 17 | BM122: 19 | BN122: 13 | BO122: 5 | BU122: 21 | BV122: =SUM(BV102:BV121) -> 28 | BW122: =SUM(BW102:BW121) -> 28 | BX122: =SUM(BX102:BX121) -> 28 | BY122: =SUM(BY102:BY121) -> 28 | BZ122: =SUM(BZ102:BZ121) -> 28 | CA122: =SUM($G102:$G121) -> 150 | CB122: EGN | CC122: 10 | CD122: 15 | CE122: 4 | CF122: 6 | CG122: 7
A123: 22 | H123: CTY | I123: 6 | J123: 5 | K123: 8 | L123: 7 | M123: 16 | S123: 22 | Z123: VCS | AA123: 13 | AB123: 11 | AC123: 10 | AD123: 8 | AE123: 5 | AK123: 22 | AR123: C/M | AS123: =ARRIVEES!PR121 -> 9 | AT123: =ARRIVEES!PS121 -> 15 | AU123: =ARRIVEES!PT121 -> 3 | AV123: =ARRIVEES!PU121 -> 18 | AW123: =ARRIVEES!PV121 -> 5 | BC123: 22 | BJ123: EGN | BK123: 15 | BL123: 6 | BM123: 9 | BN123: 13 | BO123: 4 | BU123: 22 | CB123: C/M | CC123: 7 | CD123: 3 | CE123: 6 | CF123: 1 | CG123: 9
A124: 23 | H124: Reims | I124: 2 | J124: 5 | K124: 9 | L124: 12 | M124: 3 | S124: 23 | Z124: C/M | AA124: 17 | AB124: 7 | AC124: 12 | AD124: 8 | AE124: 4 | AK124: 23 | AR124: VCS | AS124: =ARRIVEES!PR122 -> 10 | AT124: =ARRIVEES!PS122 -> 15 | AU124: =ARRIVEES!PT122 -> 8 | AV124: =ARRIVEES!PU122 -> 9 | AW124: =ARRIVEES!PV122 -> 2 | BC124: 23 | BJ124: C/M | BK124: 15 | BL124: 14 | BM124: 5 | BN124: 9 | BO124: 3 | BU124: 23 | CB124: VCS | CC124: 11 | CD124: 12 | CE124: 15 | CF124: 2 | CG124: 3
A125: 24 | H125: ATL | I125: 13 | J125: 8 | K125: 7 | L125: 5 | M125: 1 | S125: 24 | Z125: VCS | AA125: 9 | AB125: 5 | AC125: 7 | AD125: 12 | AE125: 8 | AK125: 24 | AR125: EGN | AS125: =ARRIVEES!PR123 -> 16 | AT125: =ARRIVEES!PS123 -> 12 | AU125: =ARRIVEES!PT123 -> 2 | AV125: =ARRIVEES!PU123 -> 10 | AW125: =ARRIVEES!PV123 -> 5 | BC125: 24 | BJ125: VCS | BK125: 12 | BL125: 16 | BM125: 10 | BN125: 15 | BO125: 8 | BU125: 24 | CB125: MARS | CC125: 1 | CD125: 2 | CE125: 3 | CF125: 4 | CG125: 6
A126: 25 | H126: VCS/n | I126: 10 | J126: 1 | K126: 4 | L126: 9 | M126: 18 | S126: 25 | Z126: ENG | AA126: 5 | AB126: 9 | AC126: 6 | AD126: 13 | AE126: 7 | AK126: 25 | AR126: C/M | AS126: =ARRIVEES!PR124 -> 9 | AT126: =ARRIVEES!PS124 -> 2 | AU126: =ARRIVEES!PT124 -> 4 | AV126: =ARRIVEES!PU124 -> 5 | AW126: =ARRIVEES!PV124 -> 10 | BC126: 25 | BJ126: MARS | BK126: 16 | BL126: 11 | BM126: 3 | BN126: 2 | BO126: 12 | BU126: 25 | CB126: EGN | CC126: 6 | CD126: 12 | CE126: 14 | CF126: 7 | CG126: 1
A127: 26 | H127: EGN | I127: 16 | J127: 2 | K127: 18 | L127: 6 | M127: 3 | S127: 26 | Z127: C/M | AA127: 1 | AB127: 7 | AC127: 11 | AD127: 6 | AE127: 9 | AK127: 26 | AR127: VCS | AS127: =ARRIVEES!PR125 -> 14 | AT127: =ARRIVEES!PS125 -> 11 | AU127: =ARRIVEES!PT125 -> 2 | AV127: =ARRIVEES!PU125 -> 13 | AW127: =ARRIVEES!PV125 -> 5 | BC127: 26 | BJ127: EGN | BK127: 8 | BL127: 17 | BM127: 18 | BN127: 1 | BO127: 15 | BU127: 26 | CB127: EGN | CC127: 16 | CD127: 9 | CE127: 6 | CF127: 10 | CG127: 1
A128: 27 | H128: SCLD | I128: 1 | J128: 8 | K128: 14 | L128: 5 | M128: 16 | S128: 27 | Z128: VCS | AA128: 8 | AB128: 11 | AC128: 10 | AD128: 3 | AE128: 14 | AK128: 27 | AR128: MARS | AS128: =ARRIVEES!PR126 -> 1 | AT128: =ARRIVEES!PS126 -> 2 | AU128: =ARRIVEES!PT126 -> 14 | AV128: =ARRIVEES!PU126 -> 3 | AW128: =ARRIVEES!PV126 -> 15 | BC128: 27 | BJ128: EGN | BK128: 6 | BL128: 5 | BM128: 3 | BN128: 15 | BO128: 14 | BU128: 27 | CB128: VCS | CC128: 7 | CD128: 13 | CE128: 11 | CF128: 4 | CG128: 1
A129: 28 | H129: Dieppe | I129: 12 | J129: 9 | K129: 6 | L129: 16 | M129: 8 | S129: 28 | Z129: MBLY | AA129: 9 | AB129: 12 | AC129: 8 | AD129: 13 | AE129: 14 | AK129: 28 | AR129: EGN | AS129: =ARRIVEES!PR127 -> 13 | AT129: =ARRIVEES!PS127 -> 15 | AU129: =ARRIVEES!PT127 -> 14 | AV129: =ARRIVEES!PU127 -> 1 | AW129: =ARRIVEES!PV127 -> 12 | BC129: 28 | BJ129: VCS | BK129: 9 | BL129: 10 | BM129: 11 | BN129: 1 | BO129: 4 | BU129: 28 | CB129: C/M | CC129: 9 | CD129: 2 | CE129: 3 | CF129: 1 | CG129: 6
A130: 29 | H130: CPGNE | I130: 11 | J130: 6 | K130: 10 | L130: 9 | M130: 4 | S130: 29 | AK130: 29 | AR130: EGN | AS130: =ARRIVEES!PR128 -> 11 | AT130: =ARRIVEES!PS128 -> 14 | AU130: =ARRIVEES!PT128 -> 6 | AV130: =ARRIVEES!PU128 -> 1 | AW130: =ARRIVEES!PV128 -> 16 | BC130: 29 | BU130: 29 | CC130: 0 | CD130: 0 | CE130: 0 | CF130: 0 | CG130: 0
A131: 30 | H131: MLF | I131: 5 | J131: 2 | K131: 4 | L131: 6 | M131: 9 | S131: 30 | AK131: 30 | AR131: VCS | AS131: =ARRIVEES!PR129 -> 0 | AT131: =ARRIVEES!PS129 -> 0 | AU131: =ARRIVEES!PT129 -> 0 | AV131: =ARRIVEES!PU129 -> 0 | AW131: =ARRIVEES!PV129 -> 0 | BC131: 30 | BU131: 30 | CC131: 0 | CD131: 0 | CE131: 0 | CF131: 0 | CG131: 0
A132: 31 | S132: 31 | AR132: VCS | AS132: =ARRIVEES!PR130 -> 0 | AT132: =ARRIVEES!PS130 -> 0 | AU132: =ARRIVEES!PT130 -> 0 | AV132: =ARRIVEES!PU130 -> 0 | AW132: =ARRIVEES!PV130 -> 0 | BC132: 31 | BU132: 31 | CC132: 0 | CD132: 0 | CE132: 0 | CF132: 0 | CG132: 0
A133: JUIN
A150: JUILLET | S150: MARS | AK150: MARS | BC150: MARS | BU150: MARS
A151: Jour | B151: C1 | C151: C2 | D151: C3 | E151: C4 | F151: C5 | G151: Quinté | H151: HIPPO | I151: 1 | J151: 2 | K151: 3 | L151: 4 | M151: 5 | S151: Jour | T151: C1 | U151: C2 | V151: C3 | W151: C4 | X151: C5 | Y151: Quinté | Z151: HIPPO | AA151: 1 | AB151: 2 | AC151: 3 | AD151: 4 | AE151: 5 | AK151: Jour | AL151: C1 | AM151: C2 | AN151: C3 | AO151: C4 | AP151: C5 | AQ151: Quinté | AR151: HIPPO | AS151: 1 | AT151: 2 | AU151: 3 | AV151: 4 | AW151: 5 | BB151: 2013 | BC151: Jour | BD151: C1 | BE151: C2 | BF151: C3 | BG151: C4 | BH151: C5 | BI151: Quinté | BJ151: HIPPO | BK151: 1 | BL151: 2 | BM151: 3 | BN151: 4 | BO151: 5 | BU151: Jour | BV151: C1 | BW151: C2 | BX151: C3 | BY151: C4 | BZ151: C5 | CA151: Quinté | CB151: HIPPO | CC151: 1 | CD151: 2 | CE151: 3 | CF151: 4 | CG151: 5
A152: 1 | B152: 3 | C152: 3 | D152: 1 | E152: 0 | F152: 5 | G152: 12 | H152: EGN | I152: 2 | J152: 3 | K152: 5 | L152: 16 | M152: 1 | O152: =COUNTIF($I$152:$M$182,ROW()-151)+((22-ROW()-151)/100) -> 9.19 | P152: =MATCH(LARGE($O$152:$O$171,ROW()-151),$O$152:$O171170,0) -> 2 | S152: 1 | T152: 2 | U152: 0 | V152: 5 | W152: 1 | X152: 1 | Y152: 9 | Z152: EGN | AA152: 2 | AB152: 10 | AC152: 1 | AD152: 8 | AE152: 17 | AG152: =COUNTIF($AA$152:$AE$182,ROW()-151)+((22-ROW()-151)/100) -> 6.19 | AH152: =MATCH(LARGE($AG$152:$AG$171,ROW()-151),$AG$152:$AG171170,0) -> 3 | AK152: 1 | AL152: 1 | AM152: 3 | AN152: 3 | AO152: 1 | AP152: 1 | AQ152: 9 | AR152: VCS | AS152: 8 | AT152: 11 | AU152: 2 | AV152: 13 | AW152: 12 | AY152: =COUNTIF($AS$152:$AW$182,ROW()-151)+((22-ROW()-151)/100) -> 6.19 | AZ152: =MATCH(LARGE($AY$152:$AY$171,ROW()-151),$AY$152:$AY171170,0) -> 12 | BC152: 1 | BD152: 3 | BE152: 2 | BF152: 4 | BG152: 3 | BH152: 0 | BI152: 12 | BJ152: C/M | BK152: 16 | BL152: 8 | BM152: 15 | BN152: 3 | BO152: 7 | BQ152: =COUNTIF($BK$152:$BO$182,ROW()-151)+((22-ROW()-151)/100) -> 9.19 | BR152: =MATCH(LARGE($BQ$152:$BQ$171,ROW()-151),$BQ$152:$BQ$171,0) -> 1 | BU152: 1 | BV152: 1 | BW152: 1 | BX152: 2 | BY152: 3 | BZ152: 2 | CA152: =SUM(BV152:BZ152) -> 9 | CB152: VCS | CC152: 6 | CD152: 15 | CE152: 1 | CF152: 14 | CG152: 16 | CI152: =COUNTIF($CC$152:$CG$182,ROW()-151)+((22-ROW()-151)/100) -> 6.19 | CJ152: =MATCH(LARGE($CI$152:$CI$171,ROW()-151),$CI$152:$CI$171,0) -> 4
A153: 2 | B153: 6 | C153: 1 | D153: 2 | E153: 3 | F153: 4 | G153: 16 | H153: VCS/n | I153: 10 | J153: 8 | K153: 13 | L153: 3 | M153: 1 | O153: =COUNTIF($I$152:$M$182,ROW()-151)+((22-ROW()-151)/100) -> 13.18 | P153: =MATCH(LARGE($O$152:$O$171,ROW()-151),$O$152:$O171171,0) -> 3 | S153: 2 | T153: 2 | U153: 3 | V153: 2 | W153: 1 | X153: 1 | Y153: 9 | Z153: EGN | AA153: 8 | AB153: 10 | AC153: 4 | AD153: 7 | AE153: 15 | AG153: =COUNTIF($AA$152:$AE$182,ROW()-151)+((22-ROW()-151)/100) -> 6.18 | AH153: =MATCH(LARGE($AG$152:$AG$171,ROW()-151),$AG$152:$AG171171,0) -> 4 | AK153: 2 | AL153: 3 | AM153: 3 | AN153: 2 | AO153: 2 | AP153: 1 | AQ153: 11 | AR153: C/M | AS153: 10 | AT153: 4 | AU153: 13 | AV153: 16 | AW153: 12 | AY153: =COUNTIF($AS$152:$AW$182,ROW()-151)+((22-ROW()-151)/100) -> 8.18 | AZ153: =MATCH(LARGE($AY$152:$AY$171,ROW()-151),$AY$152:$AY171171,0) -> 8 | BC153: 2 | BD153: 2 | BE153: 3 | BF153: 3 | BG153: 3 | BH153: 1 | BI153: 12 | BJ153: VCS | BK153: 13 | BL153: 12 | BM153: 4 | BN153: 3 | BO153: 14 | BQ153: =COUNTIF($BK$152:$BO$182,ROW()-151)+((22-ROW()-151)/100) -> 9.18 | BR153: =MATCH(LARGE($BQ$152:$BQ$171,ROW()-151),$BQ$152:$BQ$171,0) -> 2 | BU153: 2 | BV153: 2 | BW153: 0 | BX153: 3 | BY153: 2 | BZ153: 1 | CA153: 8 | CB153: ATL | CC153: 15 | CD153: 13 | CE153: 8 | CF153: 18 | CG153: 10 | CI153: =COUNTIF($CC$152:$CG$182,ROW()-151)+((22-ROW()-151)/100) -> 5.18 | CJ153: =MATCH(LARGE($CI$152:$CI$171,ROW()-151),$CI$152:$CI$171,0) -> 3
A154: 3 | B154: 4 | C154: 3 | D154: 1 | E154: 4 | F154: 1 | G154: 13 | H154: LCP | I154: 8 | J154: 4 | K154: 13 | L154: 5 | M154: 7 | O154: 10.17 | P154: =MATCH(LARGE($O$152:$O$171,ROW()-151),$O$152:$O171172,0) -> 4 | S154: 3 | T154: 7 | U154: 2 | V154: 1 | W154: 3 | X154: 1 | Y154: 14 | Z154: VCS | AA154: 4 | AB154: 17 | AC154: 15 | AD154: 3 | AE154: 14 | AG154: 11.17 | AH154: =MATCH(LARGE($AG$152:$AG$171,ROW()-151),$AG$152:$AG171172,0) -> 10 | AK154: 3 | AL154: 2 | AM154: 1 | AN154: 2 | AO154: 4 | AP154: 1 | AQ154: 10 | AR154: VCS | AS154: 13 | AT154: 8 | AU154: 10 | AV154: 4 | AW154: 6 | AY154: 7.17 | AZ154: =MATCH(LARGE($AY$152:$AY$171,ROW()-151),$AY$152:$AY171172,0) -> 10 | BC154: 3 | BD154: 1 | BE154: 2 | BF154: 2 | BG154: 4 | BH154: 1 | BI154: 10 | BJ154: ATL | BK154: 7 | BL154: 6 | BM154: 1 | BN154: 3 | BO154: 13 | BQ154: 7.17 | BR154: 4 | BU154: 3 | BV154: 2 | BW154: 3 | BX154: 5 | BY154: 4 | BZ154: 2 | CA154: 16 | CB154: EGN | CC154: 4 | CD154: 1 | CE154: 3 | CF154: 15 | CG154: 6 | CI154: 13.17 | CJ154: 7
A155: 4 | B155: 4 | C155: 5 | D155: 2 | E155: 0 | F155: 2 | G155: 13 | H155: CTY | I155: 2 | J155: 6 | K155: 10 | L155: 14 | M155: 5 | O155: 10.16 | P155: =MATCH(LARGE($O$152:$O$171,ROW()-151),$O$152:$O171173,0) -> 13 | S155: 4 | T155: 5 | U155: 3 | V155: 2 | W155: 0 | X155: 2 | Y155: 12 | Z155: C/Mn | AA155: 2 | AB155: 15 | AC155: 5 | AD155: 18 | AE155: 16 | AG155: 9.16 | AH155: =MATCH(LARGE($AG$152:$AG$171,ROW()-151),$AG$152:$AG171173,0) -> 14 | AK155: 4 | AL155: 0 | AM155: 2 | AN155: 1 | AO155: 2 | AP155: 2 | AQ155: 7 | AR155: ATL | AS155: 16 | AT155: 10 | AU155: 11 | AV155: 6 | AW155: 12 | AY155: 4.16 | AZ155: =MATCH(LARGE($AY$152:$AY$171,ROW()-151),$AY$152:$AY171173,0) -> 6 | BC155: 4 | BD155: 1 | BE155: 0 | BF155: 6 | BG155: 3 | BH155: 2 | BI155: 12 | BJ155: EGN | BK155: 5 | BL155: 9 | BM155: 6 | BN155: 14 | BO155: 4 | BQ155: 9.16 | BR155: 5 | BU155: 4 | BV155: 6 | BW155: 2 | BX155: 4 | BY155: 4 | BZ155: 1 | CA155: 17 | CB155: CTY | CC155: 17 | CD155: 5 | CE155: 12 | CF155: 3 | CG155: 2 | CI155: 14.16 | CJ155: 14
A156: 5 | B156: 1 | C156: 1 | D156: 2 | E156: 3 | F156: 2 | G156: 9 | H156: CPGNE | I156: 6 | J156: 3 | K156: 8 | L156: 10 | M156: 14 | O156: 6.15 | P156: =MATCH(LARGE($O$152:$O$171,ROW()-151),$O$152:$O171174,0) -> 1 | S156: 5 | T156: 2 | U156: 1 | V156: 2 | W156: 3 | X156: 1 | Y156: 9 | Z156: VCS | AA156: 5 | AB156: 12 | AC156: 9 | AD156: 7 | AE156: 6 | AG156: 6.15 | AH156: =MATCH(LARGE($AG$152:$AG$171,ROW()-151),$AG$152:$AG171174,0) -> 7 | AK156: 5 | AL156: 0 | AM156: 1 | AN156: 1 | AO156: 1 | AP156: 3 | AQ156: 6 | AR156: EGN | AS156: 16 | AT156: 14 | AU156: 1 | AV156: 6 | AW156: 5 | AY156: 3.15 | AZ156: =MATCH(LARGE($AY$152:$AY$171,ROW()-151),$AY$152:$AY171174,0) -> 2 | BC156: 5 | BD156: 6 | BE156: 2 | BF156: 2 | BG156: 0 | BH156: 2 | BI156: 12 | BJ156: CTY | BK156: 5 | BL156: 6 | BM156: 1 | BN156: 16 | BO156: 2 | BQ156: 9.15 | BR156: 6 | BU156: 5 | BV156: 1 | BW156: 5 | BX156: 1 | BY156: 1 | BZ156: 4 | CA156: 12 | CB156: Amiens | CC156: 6 | CD156: 15 | CE156: 13 | CF156: 3 | CG156: 4 | CI156: 8.15 | CJ156: 5
A157: 6 | B157: 3 | C157: 2 | D157: 2 | E157: 1 | F157: 1 | G157: 9 | H157: CLRFNE | I157: 14 | J157: 1 | K157: 3 | L157: 10 | M157: 4 | O157: 6.14 | P157: =MATCH(LARGE($O$152:$O$171,ROW()-151),$O$152:$O171175,0) -> 10 | S157: 6 | T157: 1 | U157: 1 | V157: 1 | W157: 1 | X157: 2 | Y157: 6 | Z157: ATL | AA157: 8 | AB157: 3 | AC157: 14 | AD157: 15 | AE157: 10 | AG157: 3.14 | AH157: =MATCH(LARGE($AG$152:$AG$171,ROW()-151),$AG$152:$AG171175,0) -> 8 | AK157: 6 | AL157: 3 | AM157: 2 | AN157: 1 | AO157: 5 | AP157: 1 | AQ157: 12 | AR157: CTY | AS157: 10 | AT157: 2 | AU157: 12 | AV157: 8 | AW157: 3 | AY157: 9.14 | AZ157: =MATCH(LARGE($AY$152:$AY$171,ROW()-151),$AY$152:$AY171175,0) -> 3 | BC157: 6 | BD157: 4 | BE157: 3 | BF157: 5 | BG157: 0 | BH157: 0 | BI157: 12 | BJ157: Amiens | BK157: 14 | BL157: 2 | BM157: 5 | BN157: 8 | BO157: 4 | BQ157: 9.14 | BR157: 14 | BU157: 6 | BV157: 4 | BW157: 3 | BX157: 1 | BY157: 0 | BZ157: 1 | CA157: 9 | CB157: DVE | CC157: 16 | CD157: 11 | CE157: 6 | CF157: 4 | CG157: 5 | CI157: 7.14 | CJ157: 6
A158: 7 | B158: 0 | C158: 3 | D158: 1 | E158: 2 | F158: 3 | G158: 9 | H158: VICHY | I158: 13 | J158: 1 | K158: 7 | L158: 2 | M158: 12 | O158: 6.13 | P158: =MATCH(LARGE($O$152:$O$171,ROW()-151),$O$152:$O171176,0) -> 8 | S158: 7 | T158: 0 | U158: 1 | V158: 2 | W158: 4 | X158: 3 | Y158: 10 | Z158: SCLD | AA158: 17 | AB158: 11 | AC158: 14 | AD158: 12 | AE158: 9 | AG158: 7.13 | AH158: =MATCH(LARGE($AG$152:$AG$171,ROW()-151),$AG$152:$AG171176,0) -> 9 | AK158: 7 | AL158: 3 | AM158: 3 | AN158: 3 | AO158: 0 | AP158: 1 | AQ158: 10 | AR158: La Capelle | AS158: 10 | AT158: 5 | AU158: 3 | AV158: 6 | AW158: 12 | AY158: 7.13 | AZ158: =MATCH(LARGE($AY$152:$AY$171,ROW()-151),$AY$152:$AY171176,0) -> 7 | BC158: 7 | BD158: 1 | BE158: 2 | BF158: 0 | BG158: 2 | BH158: 3 | BI158: 8 | BJ158: DVE | BK158: 5 | BL158: 1 | BM158: 6 | BN158: 13 | BO158: 10 | BQ158: 5.13 | BR158: 3 | BU158: 7 | BV158: 3 | BW158: 3 | BX158: 1 | BY158: 3 | BZ158: 3 | CA158: 13 | CB158: DVE | CC158: 1 | CD158: 9 | CE158: 2 | CF158: 7 | CG158: 14 | CI158: 10.13 | CJ158: 1
A159: 8 | B159: 2 | C159: 2 | D159: 4 | E159: 1 | F159: 1 | G159: 10 | H159: EGN | I159: 15 | J159: 4 | K159: 17 | L159: 3 | M159: 18 | O159: 7.12 | P159: =MATCH(LARGE($O$152:$O$171,ROW()-151),$O$152:$O171177,0) -> 5 | S159: 8 | T159: 3 | U159: 2 | V159: 2 | W159: 1 | X159: 2 | Y159: 10 | Z159: EGN | AA159: 3 | AB159: 11 | AC159: 14 | AD159: 9 | AE159: 7 | AG159: 7.12 | AH159: =MATCH(LARGE($AG$152:$AG$171,ROW()-151),$AG$152:$AG171177,0) -> 16 | AK159: 8 | AL159: 1 | AM159: 1 | AN159: 5 | AO159: 4 | AP159: 3 | AQ159: 14 | AR159: DVE | AS159: 3 | AT159: 13 | AU159: 7 | AV159: 6 | AW159: 16 | AY159: 11.12 | AZ159: =MATCH(LARGE($AY$152:$AY$171,ROW()-151),$AY$152:$AY171177,0) -> 13 | BC159: 8 | BD159: 0 | BE159: 4 | BF159: 1 | BG159: 3 | BH159: 1 | BI159: 9 | BJ159: DVE | BK159: 2 | BL159: 12 | BM159: 16 | BN159: 14 | BO159: 11 | BQ159: 6.12 | BR159: 8 | BU159: 8 | BV159: 3 | BW159: 2 | BX159: 2 | BY159: 0 | BZ159: 0 | CA159: 7 | CB159: SCLD | CC159: 12 | CD159: 7 | CE159: 14 | CF159: 4 | CG159: 16 | CI159: 4.12 | CJ159: 2
A160: 9 | B160: 0 | C160: 2 | D160: 0 | E160: 1 | F160: 0 | G160: 3 | H160: CBG/n | I160: 2 | J160: 8 | K160: 14 | L160: 15 | M160: 7 | O160: 0.11 | S160: 9 | T160: 1 | U160: 2 | V160: 2 | W160: 2 | X160: 3 | Y160: 10 | Z160: Amiens | AA160: 1 | AB160: 10 | AC160: 6 | AD160: 12 | AE160: 5 | AG160: 7.11 | AK160: 9 | AL160: 0 | AM160: 2 | AN160: 1 | AO160: 1 | AP160: 1 | AQ160: 5 | AR160: DVE | AS160: 2 | AT160: 4 | AU160: 10 | AV160: 6 | AW160: 8 | AY160: 2.11 | BC160: 9 | BD160: 2 | BE160: 4 | BF160: 0 | BG160: 2 | BH160: 0 | BI160: 8 | BJ160: SCLD | BK160: 9 | BL160: 15 | BM160: 4 | BN160: 14 | BO160: 10 | BQ160: 5.11 | BR160: 7 | BU160: 9 | BV160: 0 | BW160: 1 | BX160: 0 | BY160: 2 | BZ160: 3 | CA160: =SUM(BV160:BZ160) -> 6 | CB160: ATL | CC160: 6 | CD160: 7 | CE160: 20 | CF160: 15 | CG160: 17 | CI160: 3.11
A161: 10 | B161: 2 | C161: 2 | D161: 1 | E161: 4 | F161: 2 | G161: 11 | H161: EGN | I161: 3 | J161: 4 | K161: 2 | L161: 11 | M161: 1 | O161: 8.1 | S161: 10 | T161: 0 | U161: 4 | V161: 3 | W161: 3 | X161: 2 | Y161: 12 | Z161: DVE | AA161: 3 | AB161: 9 | AC161: 2 | AD161: 10 | AE161: 12 | AG161: 9.1 | AK161: 10 | AL161: 4 | AM161: 2 | AN161: 4 | AO161: 2 | AP161: 1 | AQ161: 13 | AR161: SCLD | AS161: 13 | AT161: 2 | AU161: 8 | AV161: 3 | AW161: 14 | AY161: 10.1 | BC161: 10 | BD161: 0 | BE161: 1 | BF161: 0 | BG161: 0 | BH161: 6 | BI161: 7 | BJ161: ATL | BK161: 5 | BL161: 9 | BM161: 2 | BN161: 4 | BO161: 16 | BQ161: 4.1 | BR161: 9 | BU161: 10 | BV161: 1 | BW161: 2 | BX161: 0 | BY161: 0 | BZ161: 1 | CA161: 4 | CB161: GPGNE | CC161: 4 | CD161: 16 | CE161: 14 | CF161: 5 | CG161: 1 | CI161: 1.1
A162: 11 | B162: 1 | C162: 0 | D162: 2 | E162: 3 | F162: 1 | G162: 7 | H162: MLF | I162: 11 | J162: 14 | K162: 6 | L162: 10 | M162: 8 | O162: 4.09 | S162: 11 | T162: 3 | U162: 3 | V162: 0 | W162: 1 | X162: 1 | Y162: 8 | Z162: DVE | AA162: 3 | AB162: 6 | AC162: 12 | AD162: 5 | AE162: 10 | AG162: 5.09 | AK162: 11 | AL162: 1 | AM162: 2 | AN162: 1 | AO162: 1 | AP162: 2 | AQ162: 7 | AR162: ATL | AS162: 13 | AT162: 9 | AU162: 12 | AV162: 8 | AW162: 16 | AY162: 4.09 | BC162: 11 | BD162: 1 | BE162: 2 | BF162: 0 | BG162: 2 | BH162: 2 | BI162: 7 | BJ162: CPGNE | BK162: 14 | BL162: 3 | BM162: 1 | BN162: 7 | BO162: 12 | BQ162: 4.09 | BR162: 12 | BU162: 11 | BV162: 1 | BW162: 1 | BX162: 3 | BY162: 0 | BZ162: 0 | CA162: 5 | CB162: SCLD | CC162: 8 | CD162: 3 | CE162: 11 | CF162: 4 | CG162: 5 | CI162: 2.09
A163: 12 | B163: 1 | C163: 1 | D163: 0 | E163: 1 | F163: 1 | G163: 4 | H163: CTY | I163: 2 | J163: 16 | K163: 13 | L163: 3 | M163: 11 | O163: 1.08 | S163: 12 | T163: 0 | U163: 2 | V163: 3 | W163: 3 | X163: 1 | Y163: 9 | Z163: SCLD | AA163: 4 | AB163: 16 | AC163: 10 | AD163: 14 | AE163: 1 | AG163: 6.08 | AK163: 12 | AL163: 1 | AM163: 5 | AN163: 2 | AO163: 1 | AP163: 6 | AQ163: 15 | AR163: CPGNE | AS163: 15 | AT163: 12 | AU163: 5 | AV163: 3 | AW163: 1 | AY163: 12.08 | BC163: 12 | BD163: 0 | BE163: 2 | BF163: 2 | BG163: 1 | BH163: 3 | BI163: 8 | BJ163: SCLD | BK163: 0 | BL163: 0 | BM163: 0 | BN163: 0 | BO163: 0 | BQ163: 5.08 | BR163: 10 | BU163: 12 | BV163: 1 | BW163: 1 | BX163: 2 | BY163: 2 | BZ163: 2 | CA163: 8 | CB163: Laval | CC163: 7 | CD163: 3 | CE163: 4 | CF163: 1 | CG163: 16 | CI163: 5.08
A164: 13 | B164: 1 | C164: 1 | D164: 6 | E164: 3 | F164: 2 | G164: 13 | H164: Les Sables d'O. | I164: 4 | J164: 2 | K164: 6 | L164: 13 | M164: 1 | O164: 10.07 | S164: 13 | T164: 0 | U164: 1 | V164: 0 | W164: 0 | X164: 1 | Y164: 2 | Z164: ATL | AA164: 3 | AB164: 14 | AC164: 1 | AD164: 6 | AE164: 9 | AG164: -0.93 | AK164: 13 | AL164: 3 | AM164: 2 | AN164: 1 | AO164: 3 | AP164: 1 | AQ164: 10 | AR164: SCLD | AS164: 12 | AT164: 1 | AU164: 15 | AV164: 3 | AW164: 4 | AY164: 7.07 | BC164: 13 | BD164: 3 | BE164: 0 | BF164: 2 | BG164: 1 | BH164: 1 | BI164: 7 | BJ164: Laval | BK164: 5 | BL164: 14 | BM164: 4 | BN164: 2 | BO164: 3 | BQ164: 4.07 | BR164: 11 | BU164: 13 | BV164: 0 | BW164: 2 | BX164: 3 | BY164: 2 | BZ164: 0 | CA164: 7 | CB164: CTY | CC164: 14 | CD164: 10 | CE164: 1 | CF164: 12 | CG164: 3 | CI164: 4.07
A165: 14 | B165: 1 | C165: 1 | D165: 2 | E165: 2 | F165: 2 | G165: 8 | H165: LCP | I165: 3 | J165: 16 | K165: 14 | L165: 10 | M165: 6 | O165: 5.06 | S165: 14 | T165: 0 | U165: 3 | V165: 5 | W165: 2 | X165: 2 | Y165: 12 | Z165: CPGNE | AA165: 3 | AB165: 4 | AC165: 5 | AD165: 17 | AE165: 18 | AG165: 9.06 | AK165: 14 | AL165: 1 | AM165: 1 | AN165: 1 | AO165: 2 | AP165: 1 | AQ165: 6 | AR165: Laval | AS165: 17 | AT165: 15 | AU165: 1 | AV165: 18 | AW165: 5 | AY165: 3.06 | BC165: 14 | BD165: 2 | BE165: 1 | BF165: 1 | BG165: 3 | BH165: 4 | BI165: 11 | BJ165: Lyon | BK165: 11 | BL165: 5 | BM165: 6 | BN165: 8 | BO165: 14 | BQ165: 8.06 | BR165: 13 | BU165: 14 | BV165: 1 | BW165: 1 | BX165: 3 | BY165: 4 | BZ165: 3 | CA165: 12 | CB165: Caen | CC165: 6 | CD165: 5 | CE165: 3 | CF165: 9 | CG165: 1 | CI165: 9.06
A166: 15 | B166: 2 | C166: 0 | D166: 3 | E166: 1 | F166: 1 | G166: 7 | H166: EGN | I166: 6 | J166: 1 | K166: 4 | L166: 11 | M166: 2 | O166: 4.05 | S166: 15 | T166: 0 | U166: 1 | V166: 1 | W166: 2 | X166: 1 | Y166: 5 | Z166: SCLD | AA166: 9 | AB166: 2 | AC166: 1 | AD166: 5 | AE166: 16 | AG166: 2.05 | AK166: 15 | AL166: 2 | AM166: 1 | AN166: 3 | AO166: 0 | AP166: 2 | AQ166: 8 | AR166: DVE | AS166: 6 | AT166: 9 | AU166: 15 | AV166: 14 | AW166: 7 | AY166: 5.05 | BC166: 15 | BD166: 3 | BE166: 1 | BF166: 1 | BG166: 0 | BH166: 1 | BI166: 6 | BJ166: Caen | BK166: 6 | BL166: 2 | BM166: 1 | BN166: 4 | BO166: 17 | BQ166: 3.05 | BR166: 16 | BU166: 15 | BV166: 1 | BW166: 2 | BX166: 0 | BY166: 3 | BZ166: 1 | CA166: 7 | CB166: SCLD | CC166: 4 | CD166: 7 | CE166: 14 | CF166: 2 | CG166: 5 | CI166: 4.05
A167: 16 | B167: 0 | C167: 3 | D167: 0 | E167: 2 | F167: 0 | G167: 5 | H167: CBG/n | I167: 15 | J167: 12 | K167: 1 | L167: 16 | M167: 10 | O167: 2.04 | S167: 16 | T167: 3 | U167: 1 | V167: 0 | W167: 2 | X167: 4 | Y167: 10 | Z167: Laval | AA167: 1 | AB167: 2 | AC167: 3 | AD167: 16 | AE167: 13 | AG167: 7.04 | AK167: 16 | AL167: 3 | AM167: 0 | AN167: 0 | AO167: 1 | AP167: 2 | AQ167: 6 | AR167: Caen | AS167: 6 | AT167: 7 | AU167: 8 | AV167: 1 | AW167: 5 | AY167: 3.04 | BC167: 16 | BD167: 1 | BE167: 1 | BF167: 1 | BG167: 3 | BH167: 1 | BI167: 7 | BJ167: SCLD | BK167: 1 | BL167: 16 | BM167: 5 | BN167: 11 | BO167: 14 | BQ167: 4.04 | BR167: 15 | BU167: 16 | BV167: 1 | BW167: 1 | BX167: 0 | BY167: 0 | BZ167: 5 | CA167: 7 | CB167: ATL | CC167: 11 | CD167: 8 | CE167: 13 | CF167: 7 | CG167: 12 | CI167: 4.04
A168: 17 | B168: 0 | C168: 0 | D168: 2 | E168: 0 | F168: 1 | G168: 3 | H168: MLF | I168: 10 | J168: 6 | K168: 8 | L168: 2 | M168: 15 | O168: 0.03 | S168: 17 | T168: 1 | U168: 1 | V168: 0 | W168: 1 | X168: 2 | Y168: 5 | Z168: DVE | AA168: 5 | AB168: 2 | AC168: 7 | AD168: 1 | AE168: 4 | AG168: 2.03 | AK168: 17 | AL168: 3 | AM168: 0 | AN168: 0 | AO168: 0 | AP168: 1 | AQ168: 4 | AR168: SCLD | AS168: 14 | AT168: 6 | AU168: 10 | AV168: 8 | AW168: 15 | AY168: 1.03 | BC168: 17 | BD168: 0 | BE168: 0 | BF168: 0 | BG168: 0 | BH168: 1 | BI168: 1 | BJ168: ATL | BK168: 6 | BL168: 7 | BM168: 4 | BN168: 16 | BO168: 14 | BQ168: -1.97 | BR168: 17 | BU168: 17 | BV168: 2 | BW168: 0 | BX168: 0 | BY168: 0 | BZ168: 2 | CA168: 4 | CB168: CPGNE | CC168: 2 | CD168: 8 | CE168: 3 | CF168: 15 | CG168: 16 | CI168: 1.03
A169: 18 | B169: 0 | C169: 1 | D169: 0 | E169: 0 | F169: 2 | G169: 3 | H169: EGN | I169: 1 | J169: 16 | K169: 4 | L169: 14 | M169: 2 | O169: 0.02 | S169: 18 | T169: 1 | U169: 0 | V169: 0 | W169: 1 | X169: 1 | Y169: 3 | Z169: Caen | AA169: 11 | AB169: 10 | AC169: 1 | AD169: 3 | AE169: 8 | AG169: 0.02 | AK169: 18 | AL169: 0 | AM169: 0 | AN169: 0 | AO169: 1 | AP169: 1 | AQ169: 2 | AR169: ATL | AS169: 7 | AT169: 3 | AU169: 1 | AV169: 13 | AW169: 18 | AY169: -0.98 | BC169: 18 | BD169: 0 | BE169: 0 | BF169: 0 | BG169: 0 | BH169: 1 | BI169: 1 | BJ169: CPGNE | BK169: 3 | BL169: 2 | BM169: 4 | BN169: 9 | BO169: 8 | BQ169: -1.98 | BR169: 18 | BU169: 18 | BV169: 1 | BW169: 1 | BX169: 0 | BY169: 1 | BZ169: 0 | CA169: 3 | CB169: CTY | CC169: 3 | CD169: 6 | CE169: 4 | CF169: 13 | CG169: 7 | CI169: 0.02
A170: 19 | B170: 0 | C170: 0 | D170: 0 | E170: 0 | F170: 0 | G170: 0 | H170: VICHY | I170: 12 | J170: 7 | K170: 13 | L170: 5 | M170: 3 | O170: -2.99 | S170: 19 | T170: 0 | U170: 0 | V170: 0 | W170: 0 | X170: 0 | Y170: 0 | Z170: SCLD | AA170: 6 | AB170: 8 | AC170: 2 | AD170: 9 | AE170: 3 | AG170: -2.99 | AK170: 19 | AL170: 0 | AM170: 0 | AN170: 0 | AO170: 0 | AP170: 0 | AQ170: 0 | AR170: CPGNE | AS170: 15 | AT170: 13 | AU170: 9 | AV170: 4 | AW170: 8 | AY170: -2.99 | BC170: 19 | BD170: 0 | BE170: 0 | BF170: 0 | BG170: 0 | BH170: 0 | BI170: 0 | BJ170: SCLD | BK170: 13 | BL170: 9 | BM170: 12 | BN170: 1 | BO170: 15 | BQ170: -2.99 | BR170: 19 | BU170: 19 | BV170: 0 | BW170: 0 | BX170: 0 | BY170: 0 | BZ170: 0 | CA170: 0 | CB170: Beaumont | CC170: 4 | CD170: 13 | CE170: 11 | CF170: 3 | CG170: 9 | CI170: -2.99
A171: 20 | B171: 0 | C171: 0 | D171: 0 | E171: 0 | F171: 0 | G171: 0 | H171: VICHY | I171: 6 | J171: 18 | K171: 13 | L171: 5 | M171: 10 | O171: -3 | S171: 20 | T171: 0 | U171: 0 | V171: 0 | W171: 0 | X171: 0 | Y171: 0 | Z171: ATL | AA171: 3 | AB171: 9 | AC171: 14 | AD171: 7 | AE171: 16 | AG171: -3 | AK171: 20 | AL171: 0 | AM171: 0 | AN171: 0 | AO171: 0 | AP171: 0 | AQ171: 0 | AR171: SCLD | AS171: 6 | AT171: 1 | AU171: 7 | AV171: 10 | AW171: 11 | AY171: -3 | BC171: 20 | BD171: 0 | BE171: 0 | BF171: 0 | BG171: 0 | BH171: 0 | BI171: 0 | BJ171: Agen | BK171: 5 | BL171: 8 | BM171: 3 | BN171: 12 | BO171: 10 | BQ171: -3 | BR171: 20 | BU171: 20 | BV171: 0 | BW171: 0 | BX171: 1 | BY171: 0 | BZ171: 0 | CA171: 1 | CB171: SCLD | CC171: 10 | CD171: 4 | CE171: 5 | CF171: 14 | CG171: 9 | CI171: -2
A172: 21 | B172: 31 | C172: 31 | D172: 31 | E172: 31 | F172: 31 | G172: 155 | H172: VIRE | I172: 1 | J172: 9 | K172: 15 | L172: 12 | M172: 17 | O172: -3.01 | S172: 21 | T172: 31 | U172: 31 | V172: 31 | W172: 31 | X172: 31 | Y172: 155 | Z172: CPGNE | AA172: 3 | AB172: 11 | AC172: 4 | AD172: 12 | AE172: 14 | AG172: =COUNTIF($T$152:$X$171,ROW()-151)+((22-ROW()-151)/100) -> -3.01 | AK172: 21 | AL172: 31 | AM172: 31 | AN172: 31 | AO172: 31 | AP172: 31 | AQ172: 155 | AR172: Agen | AS172: 11 | AT172: 12 | AU172: 7 | AV172: 14 | AW172: 15 | AY172: -3.01 | BC172: 21 | BD172: 30 | BE172: 30 | BF172: 30 | BG172: 30 | BH172: 30 | BI172: 150 | BJ172: CTY | BK172: 1 | BL172: 7 | BM172: 14 | BN172: 16 | BO172: 12 | BU172: 21 | BV172: =SUM(BV152:BV171) -> 31 | BW172: =SUM(BW152:BW171) -> 31 | BX172: =SUM(BX152:BX171) -> 31 | BY172: =SUM(BY152:BY171) -> 31 | BZ172: =SUM(BZ152:BZ171) -> 31 | CA172: =SUM($G152:$G171) -> 155 | CB172: VCS | CC172: 8 | CD172: 18 | CE172: 12 | CF172: 13 | CG172: 16
A173: 22 | H173: VICHY | I173: 4 | J173: 5 | K173: 17 | L173: 8 | M173: 13 | O173: -3.02 | S173: 22 | Z173: FBLU | AA173: 11 | AB173: 14 | AC173: 8 | AD173: 16 | AE173: 9 | AK173: 22 | AR173: CTY | AS173: 3 | AT173: 1 | AU173: 8 | AV173: 2 | AW173: 12 | AY173: -3.02 | BC173: 22 | BJ173: VCS | BK173: 15 | BL173: 11 | BM173: 13 | BN173: 8 | BO173: 12 | BU173: 22 | CB173: VCS | CC173: 4 | CD173: 6 | CE173: 13 | CF173: 2 | CG173: 17
A174: 23 | H174: CBG/n | I174: 2 | J174: 4 | K174: 8 | L174: 7 | M174: 5 | S174: 23 | Z174: Agen | AA174: 16 | AB174: 4 | AC174: 7 | AD174: 10 | AE174: 17 | AK174: 23 | AR174: VCS | AS174: 16 | AT174: 7 | AU174: 14 | AV174: 2 | AW174: 8 | BC174: 23 | BJ174: VCS | BK174: 15 | BL174: 6 | BM174: 13 | BN174: 9 | BO174: 18 | BU174: 23 | CB174: ATL | CC174: 2 | CD174: 4 | CE174: 8 | CF174: 9 | CG174: 7
A175: 24 | H175: EGN | I175: 4 | J175: 9 | K175: 8 | L175: 2 | M175: 13 | S175: 24 | Z175: DVE | AA175: 4 | AB175: 3 | AC175: 9 | AD175: 7 | AE175: 2 | AK175: 24 | AR175: VCS | AS175: 2 | AT175: 11 | AU175: 8 | AV175: 12 | AW175: 17 | BC175: 24 | BJ175: Mauquency | BK175: 13 | BL175: 11 | BM175: 6 | BN175: 2 | BO175: 7 | BU175: 24 | CB175: Fblu | CC175: 3 | CD175: 10 | CE175: 2 | CF175: 1 | CG175: 9
A176: 25 | H176: MLF | I176: 8 | J176: 7 | K176: 15 | L176: 13 | M176: 18 | S176: 25 | Z176: VCSn | AA176: 18 | AB176: 13 | AC176: 8 | AD176: 3 | AE176: 6 | AK176: 25 | AR176: ATL | AS176: 17 | AT176: 12 | AU176: 3 | AV176: 9 | AW176: 10 | BC176: 25 | BJ176: FBLU | BK176: 4 | BL176: 9 | BM176: 3 | BN176: 2 | BO176: 5 | BU176: 25 | CB176: SCLD | CC176: 4 | CD176: 14 | CE176: 7 | CF176: 3 | CG176: 12
A177: 26 | H177: CPGNE | I177: 3 | J177: 10 | K177: 2 | L177: 7 | M177: 14 | S177: 26 | Z177: VCS | AA177: 4 | AB177: 5 | AC177: 12 | AD177: 15 | AE177: 16 | AK177: 26 | AR177: FBLU | AS177: 2 | AT177: 6 | AU177: 10 | AV177: 8 | AW177: 11 | BC177: 26 | BJ177: SCLD | BK177: 2 | BL177: 5 | BM177: 8 | BN177: 11 | BO177: 10 | BU177: 26 | CB177: MARS | CC177: 7 | CD177: 12 | CE177: 4 | CF177: 1 | CG177: 14
A178: 27 | H178: MLF | I178: 5 | J178: 10 | K178: 11 | L178: 3 | M178: 4 | S178: 27 | Z178: ATL | AA178: 4 | AB178: 7 | AC178: 10 | AD178: 14 | AE178: 8 | AK178: 27 | AR178: SCLD | AS178: 17 | AT178: 12 | AU178: 2 | AV178: 10 | AW178: 13 | BC178: 27 | BJ178: MARS | BK178: 15 | BL178: 8 | BM178: 2 | BN178: 1 | BO178: 10 | BU178: 27 | CB178: CPGNE | CC178: 7 | CD178: 6 | CE178: 3 | CF178: 14 | CG178: 5
A179: 28 | H179: EGN | I179: 2 | J179: 4 | K179: 5 | L179: 11 | M179: 7 | S179: 28 | Z179: SCLD | AA179: 16 | AB179: 8 | AC179: 1 | AD179: 2 | AE179: 11 | AK179: 28 | AR179: MARS | AS179: 1 | AT179: 12 | AU179: 15 | AV179: 5 | AW179: 4 | BC179: 28 | BJ179: CPGNE | BK179: 6 | BL179: 3 | BM179: 12 | BN179: 4 | BO179: 10 | BU179: 28 | CB179: VCS | CC179: 17 | CD179: 5 | CE179: 4 | CF179: 7 | CG179: 14
A180: 29 | H180: CLRFNE | I180: 4 | J180: 3 | K180: 13 | L180: 9 | M180: 1 | S180: 29 | Z180: CPGNE | AA180: 8 | AB180: 12 | AC180: 14 | AD180: 10 | AE180: 4 | AK180: 29 | AR180: CPGNE | AS180: 7 | AT180: 10 | AU180: 8 | AV180: 13 | AW180: 12 | BC180: 29 | BJ180: VCS | BK180: 9 | BL180: 1 | BM180: 6 | BN180: 7 | BO180: 5 | BU180: 29 | CB180: ATL | CC180: 18 | CD180: 5 | CE180: 3 | CF180: 12 | CG180: 7
A181: 30 | H181: CBG/n | I181: 1 | J181: 13 | K181: 15 | L181: 6 | M181: 2 | S181: 30 | Z181: MBLY | AA181: 11 | AB181: 14 | AC181: 10 | AD181: 5 | AE181: 7 | AK181: 30 | AR181: VCS | AS181: 7 | AT181: 2 | AU181: 4 | AV181: 11 | AW181: 9 | BC181: 30 | BJ181: ATL | BK181: 1 | BL181: 10 | BM181: 4 | BN181: 3 | BO181: 7 | BU181: 30 | CB181: SCLD | CC181: 8 | CD181: 3 | CE181: 2 | CF181: 4 | CG181: 15
A182: 31 | H182: EGN | I182: 3 | J182: 7 | K182: 11 | L182: 13 | M182: 2 | S182: 31 | Z182: SCLD | AA182: 16 | AB182: 4 | AC182: 12 | AD182: 11 | AE182: 7 | AR182: ATL | AS182: 10 | AT182: 7 | AU182: 6 | AV182: 3 | AW182: 2 | BC182: 31 | BJ182: SCLD | BK182: 6 | BL182: 8 | BM182: 2 | BN182: 1 | BO182: 11 | BU182: 31 | CB182: CTY | CC182: 6 | CD182: 5 | CE182: 11 | CF182: 14 | CG182: 3
A183: JUILLET
A200: AOUT | S200: AVRIL | AK200: AVRIL | BC200: AVRIL | BU200: AVRIL
A201: Jour | B201: C1 | C201: C2 | D201: C3 | E201: C4 | F201: C5 | G201: Quinté | H201: HIPPO | I201: 1 | J201: 2 | K201: 3 | L201: 4 | M201: 5 | S201: Jour | T201: C1 | U201: C2 | V201: C3 | W201: C4 | X201: C5 | Y201: Quinté | Z201: HIPPO | AA201: 1 | AB201: 2 | AC201: 3 | AD201: 4 | AE201: 5 | AK201: Jour | AL201: C1 | AM201: C2 | AN201: C3 | AO201: C4 | AP201: C5 | AQ201: Quinté | AR201: HIPPO | AS201: 1 | AT201: 2 | AU201: 3 | AV201: 4 | AW201: 5 | BB201: 2013 | BC201: Jour | BD201: C1 | BE201: C2 | BF201: C3 | BG201: C4 | BH201: C5 | BI201: Quinté | BJ201: HIPPO | BK201: 1 | BL201: 2 | BM201: 3 | BN201: 4 | BO201: 5 | BU201: Jour | BV201: C1 | BW201: C2 | BX201: C3 | BY201: C4 | BZ201: C5 | CA201: Quinté | CB201: HIPPO | CC201: 1 | CD201: 2 | CE201: 3 | CF201: 4 | CG201: 5
A202: 1 | B202: =ARRIVEES!QA167 -> 2 | C202: =ARRIVEES!QB167 -> 3 | D202: =ARRIVEES!QC167 -> 5 | E202: =ARRIVEES!QD167 -> 16 | F202: =ARRIVEES!QE167 -> 1 | G202: =SUM(B202:F202) -> 27 | H202: DVE | I202: 2 | J202: 10 | K202: 6 | L202: 8 | M202: 15 | O202: =COUNTIF($I$202:$M$232,ROW()-201)+((22-ROW()-201)/100) -> 5.19 | P202: =MATCH(LARGE($O$202:$O$232,ROW()-201),$O$202:$O232,0) -> 2 | S202: 1 | T202: 3 | U202: 1 | V202: 2 | W202: 2 | X202: 2 | Y202: 10 | Z202: VCSn | AA202: 8 | AB202: 6 | AC202: 5 | AD202: 4 | AE202: 1 | AG202: =COUNTIF($AA$202:$AE$232,ROW()-201)+((22-ROW()-201)/100) -> 6.19 | AH202: =MATCH(LARGE($AG$202:$AG$232,ROW()-201),$AG$202:$AG232,0) -> 3 | AK202: 1 | AL202: 3 | AM202: 2 | AN202: 2 | AO202: 0 | AP202: 1 | AQ202: 8 | AR202: SCLD | AS202: 11 | AT202: 13 | AU202: 18 | AV202: 5 | AW202: 9 | AY202: =COUNTIF($AS$202:$AW$222,ROW()-201)+((22-ROW()-201)/100) -> 2.19 | AZ202: =MATCH(LARGE($AY$202:$AY$221,ROW()-201),$AY$202:$AY222,0) -> 3 | BC202: 1 | BD202: 0 | BE202: 2 | BF202: 3 | BG202: 0 | BH202: 5 | BI202: =SUM(BD202:BH202) -> 10 | BJ202: CTY | BK202: 4 | BL202: 6 | BM202: 7 | BN202: 2 | BO202: 8 | BQ202: =COUNTIF($BK$202:$BO$232,ROW()-201)+((22-ROW()-201)/100) -> 6.19 | BR202: =MATCH(LARGE($BQ$202:$BQ$222,ROW()-201),$BQ$202:$BQ222,0) -> 6 | BU202: 1 | BV202: 3 | BW202: 2 | BX202: 1 | BY202: 0 | BZ202: 6 | CA202: =SUM(BV202:BZ202) -> 12 | CB202: EGN | CC202: 3 | CD202: 8 | CE202: 13 | CF202: 10 | CG202: 4 | CI202: =COUNTIF($CC$202:$CG$232,ROW()-201)+((22-ROW()-201)/100) -> 8.19 | CJ202: =MATCH(LARGE($CI$202:$CI$222,ROW()-201),$CI$202:$CI222,0) -> 1
A203: 2 | B203: =ARRIVEES!QA168 -> 10 | C203: =ARRIVEES!QB168 -> 8 | D203: =ARRIVEES!QC168 -> 13 | E203: =ARRIVEES!QD168 -> 3 | F203: =ARRIVEES!QE168 -> 1 | G203: =SUM(B203:F203) -> 35 | H203: CLRFNE | I203: 15 | J203: 7 | K203: 16 | L203: 3 | M203: 17 | O203: =COUNTIF($I$202:$M$232,ROW()-201)+((22-ROW()-201)/100) -> 11.18 | P203: =MATCH(LARGE($O$202:$O$232,ROW()-201),$O$202:$O233,0) -> 15 | S203: 2 | T203: 1 | U203: 2 | V203: 2 | W203: 1 | X203: 2 | Y203: 8 | Z203: ATL | AA203: 4 | AB203: 2 | AC203: 14 | AD203: 6 | AE203: 12 | AG203: =COUNTIF($AA$202:$AE$232,ROW()-201)+((22-ROW()-201)/100) -> 4.18 | AH203: =MATCH(LARGE($AG$202:$AG$232,ROW()-201),$AG$202:$AG233,0) -> 4 | AK203: 2 | AL203: 1 | AM203: 0 | AN203: 3 | AO203: 4 | AP203: 2 | AQ203: 10 | AR203: CTY | AS203: 3 | AT203: 5 | AU203: 9 | AV203: 11 | AW203: 16 | AY203: =COUNTIF($AS$202:$AW$222,ROW()-201)+((22-ROW()-201)/100) -> 3.18 | AZ203: =MATCH(LARGE($AY$202:$AY$221,ROW()-201),$AY$202:$AY223,0) -> 5 | BC203: 2 | BD203: 1 | BE203: 1 | BF203: 1 | BG203: 2 | BH203: 3 | BI203: 8 | BJ203: EGN | BK203: 16 | BL203: 12 | BM203: 14 | BN203: 3 | BO203: 11 | BQ203: =COUNTIF($BK$202:$BO$232,ROW()-201)+((22-ROW()-201)/100) -> 4.18 | BR203: =MATCH(LARGE($BQ$202:$BQ$222,ROW()-201),$BQ$202:$BQ223,0) -> 4 | BU203: 2 | BV203: 5 | BW203: 3 | BX203: 1 | BY203: 2 | BZ203: 1 | CA203: 12 | CB203: Angers | CC203: 12 | CD203: 7 | CE203: 14 | CF203: 3 | CG203: 9 | CI203: =COUNTIF($CC$202:$CG$232,ROW()-201)+((22-ROW()-201)/100) -> 8.18 | CJ203: =MATCH(LARGE($CI$202:$CI$222,ROW()-201),$CI$202:$CI223,0) -> 2
A204: 3 | B204: =ARRIVEES!QA169 -> 8 | C204: =ARRIVEES!QB169 -> 4 | D204: =ARRIVEES!QC169 -> 13 | E204: =ARRIVEES!QD169 -> 5 | F204: =ARRIVEES!QE169 -> 7 | G204: 37 | H204: DVE | I204: 1 | J204: 6 | K204: 3 | L204: 12 | M204: 14 | O204: 6.17 | P204: =MATCH(LARGE($O$202:$O$232,ROW()-201),$O$202:$O234,0) -> 5 | S204: 3 | T204: 4 | U204: 2 | V204: 1 | W204: 2 | X204: 4 | Y204: 13 | Z204: SCLD | AA204: 12 | AB204: 3 | AC204: 8 | AD204: 13 | AE204: 5 | AG204: 9.17 | AH204: =MATCH(LARGE($AG$202:$AG$232,ROW()-201),$AG$202:$AG234,0) -> 8 | AK204: 3 | AL204: 3 | AM204: 2 | AN204: 0 | AO204: 4 | AP204: 3 | AQ204: 12 | AR204: EGN | AS204: 13 | AT204: 7 | AU204: 14 | AV204: 3 | AW204: 11 | AY204: 7.17 | AZ204: =MATCH(LARGE($AY$202:$AY$221,ROW()-201),$AY$202:$AY224,0) -> 2 | BC204: 3 | BD204: 1 | BE204: 2 | BF204: 1 | BG204: 2 | BH204: 5 | BI204: 11 | BJ204: Angers | BK204: 9 | BL204: 1 | BM204: 14 | BN204: 6 | BO204: 2 | BQ204: 7.17 | BR204: =MATCH(LARGE($BQ$202:$BQ$222,ROW()-201),$BQ$202:$BQ224,0) -> 3 | BU204: 3 | BV204: 5 | BW204: 3 | BX204: 1 | BY204: 2 | BZ204: 0 | CA204: 11 | CB204: MLF | CC204: 3 | CD204: 10 | CE204: 4 | CF204: 11 | CG204: 16 | CI204: 7.17 | CJ204: =MATCH(LARGE($CI$202:$CI$222,ROW()-201),$CI$202:$CI224,0) -> 3
A205: 4 | B205: =ARRIVEES!QA170 -> 2 | C205: =ARRIVEES!QB170 -> 6 | D205: =ARRIVEES!QC170 -> 10 | E205: =ARRIVEES!QD170 -> 14 | F205: =ARRIVEES!QE170 -> 5 | G205: 37 | H205: EGN | I205: 5 | J205: 4 | K205: 10 | L205: 2 | M205: 13 | O205: 6.16 | P205: =MATCH(LARGE($O$202:$O$232,ROW()-201),$O$202:$O235,0) -> 7 | S205: 4 | T205: 3 | U205: 3 | V205: 3 | W205: 3 | X205: 1 | Y205: 13 | Z205: LCP | AA205: 3 | AB205: 10 | AC205: 5 | AD205: 6 | AE205: 8 | AG205: 9.16 | AH205: =MATCH(LARGE($AG$202:$AG$232,ROW()-201),$AG$202:$AG235,0) -> 14 | AK205: 4 | AL205: 0 | AM205: 2 | AN205: 4 | AO205: 1 | AP205: 5 | AQ205: 12 | AR205: Angers | AS205: 5 | AT205: 8 | AU205: 18 | AV205: 14 | AW205: 2 | AY205: 3.16 | AZ205: =MATCH(LARGE($AY$202:$AY$221,ROW()-201),$AY$202:$AY225,0) -> 4 | BC205: 4 | BD205: 7 | BE205: 1 | BF205: 0 | BG205: 4 | BH205: 1 | BI205: 13 | BJ205: MLF | BK205: 6 | BL205: 5 | BM205: 16 | BN205: 4 | BO205: 7 | BQ205: 9.16 | BR205: =MATCH(LARGE($BQ$202:$BQ$222,ROW()-201),$BQ$202:$BQ225,0) -> 7 | BU205: 4 | BV205: 1 | BW205: 1 | BX205: 2 | BY205: 1 | BZ205: 2 | CA205: 7 | CB205: VCS | CC205: 2 | CD205: 13 | CE205: 6 | CF205: 7 | CG205: 9 | CI205: 3.16 | CJ205: =MATCH(LARGE($CI$202:$CI$222,ROW()-201),$CI$202:$CI225,0) -> 5
A206: 5 | B206: =ARRIVEES!QA171 -> 6 | C206: =ARRIVEES!QB171 -> 3 | D206: =ARRIVEES!QC171 -> 8 | E206: =ARRIVEES!QD171 -> 10 | F206: =ARRIVEES!QE171 -> 14 | G206: 41 | H206: DVE | I206: 4 | J206: 5 | K206: 16 | L206: 14 | M206: 3 | O206: 7.15 | P206: =MATCH(LARGE($O$202:$O$232,ROW()-201),$O$202:$O236,0) -> 10 | S206: 5 | T206: 2 | U206: 0 | V206: 3 | W206: 2 | X206: 2 | Y206: 9 | Z206: EGN | AA206: 10 | AB206: 2 | AC206: 8 | AD206: 11 | AE206: 14 | AG206: 5.15 | AH206: =MATCH(LARGE($AG$202:$AG$232,ROW()-201),$AG$202:$AG236,0) -> 1 | AK206: 5 | AL206: 3 | AM206: 3 | AN206: 3 | AO206: 2 | AP206: 2 | AQ206: 13 | AR206: MLF | AS206: 6 | AT206: 13 | AU206: 5 | AV206: 7 | AW206: 1 | AY206: 4.15 | AZ206: =MATCH(LARGE($AY$202:$AY$221,ROW()-201),$AY$202:$AY226,0) -> 7 | BC206: 5 | BD206: 0 | BE206: 6 | BF206: 1 | BG206: 2 | BH206: 1 | BI206: 10 | BJ206: VCS | BK206: 18 | BL206: 16 | BM206: 10 | BN206: 7 | BO206: 11 | BQ206: 6.15 | BR206: =MATCH(LARGE($BQ$202:$BQ$222,ROW()-201),$BQ$202:$BQ226,0) -> 12 | BU206: 5 | BV206: 2 | BW206: 0 | BX206: 3 | BY206: 4 | BZ206: 2 | CA206: 11 | CB206: VCS | CC206: 2 | CD206: 3 | CE206: 7 | CF206: 11 | CG206: 8 | CI206: 7.15 | CJ206: =MATCH(LARGE($CI$202:$CI$222,ROW()-201),$CI$202:$CI226,0) -> 7
A207: 6 | B207: =ARRIVEES!QA172 -> 14 | C207: =ARRIVEES!QB172 -> 1 | D207: =ARRIVEES!QC172 -> 3 | E207: =ARRIVEES!QD172 -> 10 | F207: =ARRIVEES!QE172 -> 4 | G207: 32 | H207: CBG/n | I207: 1 | J207: 5 | K207: 11 | L207: 10 | M207: 14 | O207: 4.14 | P207: =MATCH(LARGE($O$202:$O$232,ROW()-201),$O$202:$O237,0) -> 3 | S207: 6 | T207: 0 | U207: 2 | V207: 2 | W207: 3 | X207: 1 | Y207: 8 | Z207: Angers | AA207: 4 | AB207: 15 | AC207: 1 | AD207: 7 | AE207: 9 | AG207: 4.14 | AH207: =MATCH(LARGE($AG$202:$AG$232,ROW()-201),$AG$202:$AG237,0) -> 10 | AK207: 6 | AL207: 3 | AM207: 1 | AN207: 1 | AO207: 0 | AP207: 0 | AQ207: 5 | AR207: VCS | AS207: 2 | AT207: 11 | AU207: 7 | AV207: 3 | AW207: 16 | AY207: -0.86 | AZ207: =MATCH(LARGE($AY$202:$AY$221,ROW()-201),$AY$202:$AY227,0) -> 9 | BC207: 6 | BD207: 4 | BE207: 5 | BF207: 2 | BG207: 3 | BH207: 2 | BI207: 16 | BJ207: VCS | BK207: 4 | BL207: 11 | BM207: 9 | BN207: 15 | BO207: 13 | BQ207: 12.14 | BR207: =MATCH(LARGE($BQ$202:$BQ$222,ROW()-201),$BQ$202:$BQ227,0) -> 1 | BU207: 6 | BV207: 1 | BW207: 0 | BX207: 3 | BY207: 1 | BZ207: 0 | CA207: 5 | CB207: LCP | CC207: 10 | CD207: 2 | CE207: 16 | CF207: 5 | CG207: 14 | CI207: 1.14 | CJ207: =MATCH(LARGE($CI$202:$CI$222,ROW()-201),$CI$202:$CI227,0) -> 10
A208: 7 | B208: =ARRIVEES!QA173 -> 13 | C208: =ARRIVEES!QB173 -> 1 | D208: =ARRIVEES!QC173 -> 7 | E208: =ARRIVEES!QD173 -> 2 | F208: =ARRIVEES!QE173 -> 12 | G208: 35 | H208: CLRFNE | I208: 18 | J208: 2 | K208: 1 | L208: 4 | M208: 7 | O208: 7.13 | P208: =MATCH(LARGE($O$202:$O$232,ROW()-201),$O$202:$O238,0) -> 4 | S208: 7 | T208: 3 | U208: 1 | V208: 1 | W208: 2 | X208: 1 | Y208: 8 | Z208: MLF | AA208: 1 | AB208: 17 | AC208: 16 | AD208: 10 | AE208: 8 | AG208: 4.13 | AH208: =MATCH(LARGE($AG$202:$AG$232,ROW()-201),$AG$202:$AG238,0) -> 5 | AK208: 7 | AL208: 1 | AM208: 2 | AN208: 3 | AO208: 1 | AP208: 3 | AQ208: 10 | AR208: VCS | AS208: 12 | AT208: 8 | AU208: 9 | AV208: 2 | AW208: 11 | AY208: 3.13 | AZ208: =MATCH(LARGE($AY$202:$AY$221,ROW()-201),$AY$202:$AY228,0) -> 10 | BC208: 7 | BD208: 2 | BE208: 1 | BF208: 3 | BG208: 3 | BH208: 2 | BI208: 11 | BJ208: LCP | BK208: 13 | BL208: 14 | BM208: 10 | BN208: 5 | BO208: 3 | BQ208: 7.13 | BR208: =MATCH(LARGE($BQ$202:$BQ$222,ROW()-201),$BQ$202:$BQ228,0) -> 5 | BU208: 7 | BV208: 2 | BW208: 2 | BX208: 4 | BY208: 3 | BZ208: 0 | CA208: 11 | CB208: EGN | CC208: 5 | CD208: 2 | CE208: 4 | CF208: 11 | CG208: 8 | CI208: 7.13 | CJ208: =MATCH(LARGE($CI$202:$CI$222,ROW()-201),$CI$202:$CI228,0) -> 8
A209: 8 | B209: =ARRIVEES!QA174 -> 15 | C209: =ARRIVEES!QB174 -> 4 | D209: =ARRIVEES!QC174 -> 17 | E209: =ARRIVEES!QD174 -> 3 | F209: =ARRIVEES!QE174 -> 18 | G209: 57 | H209: DVE | I209: 10 | J209: 5 | K209: 12 | L209: 16 | M209: 15 | O209: 2.12 | P209: =MATCH(LARGE($O$202:$O$232,ROW()-201),$O$202:$O239,0) -> 1 | S209: 8 | T209: 3 | U209: 1 | V209: 3 | W209: 2 | X209: 3 | Y209: 12 | Z209: VCSn | AA209: 10 | AB209: 14 | AC209: 11 | AD209: 4 | AE209: 16 | AG209: 8.12 | AH209: =MATCH(LARGE($AG$202:$AG$232,ROW()-201),$AG$202:$AG239,0) -> 15 | AK209: 8 | AL209: 1 | AM209: 5 | AN209: 0 | AO209: 1 | AP209: 0 | AQ209: 7 | AR209: LCP | AS209: 8 | AT209: 1 | AU209: 5 | AV209: 12 | AW209: 4 | AY209: 1.12 | AZ209: =MATCH(LARGE($AY$202:$AY$221,ROW()-201),$AY$202:$AY229,0) -> 13 | BC209: 8 | BD209: 2 | BE209: 0 | BF209: 2 | BG209: 2 | BH209: 1 | BI209: 7 | BJ209: EGN | BK209: 10 | BL209: 3 | BM209: 5 | BN209: 11 | BO209: 6 | BQ209: 3.12 | BR209: =MATCH(LARGE($BQ$202:$BQ$222,ROW()-201),$BQ$202:$BQ229,0) -> 10 | BU209: 8 | BV209: 2 | BW209: 3 | BX209: 1 | BY209: 1 | BZ209: 3 | CA209: 10 | CB209: SCLD | CC209: 7 | CD209: 13 | CE209: 15 | CF209: 12 | CG209: 17 | CI209: 6.12 | CJ209: =MATCH(LARGE($CI$202:$CI$222,ROW()-201),$CI$202:$CI229,0) -> 11
A210: 9 | B210: =ARRIVEES!QA175 -> 2 | C210: =ARRIVEES!QB175 -> 8 | D210: =ARRIVEES!QC175 -> 14 | E210: =ARRIVEES!QD175 -> 15 | F210: =ARRIVEES!QE175 -> 7 | G210: 46 | H210: CLRFNE | I210: 7 | J210: 15 | K210: 16 | L210: 2 | M210: 4 | O210: 5.11 | S210: 9 | T210: 1 | U210: 3 | V210: 1 | W210: 1 | X210: 2 | Y210: 8 | Z210: VCS | AA210: 3 | AB210: 15 | AC210: 5 | AD210: 14 | AE210: 12 | AG210: 4.11 | AK210: 9 | AL210: 1 | AM210: 1 | AN210: 2 | AO210: 2 | AP210: 2 | AQ210: 8 | AR210: SCLD | AS210: 3 | AT210: 16 | AU210: 15 | AV210: 13 | AW210: 14 | AY210: 3.11 | BC210: 9 | BD210: 3 | BE210: 1 | BF210: 2 | BG210: 1 | BH210: 0 | BI210: =SUM(BD210:BH210) -> 7 | BJ210: SCLD | BK210: 7 | BL210: 6 | BM210: 16 | BN210: 12 | BO210: 15 | BQ210: 3.11 | BR210: =MATCH(LARGE($BQ$202:$BQ$222,ROW()-201),$BQ$202:$BQ230,0) -> 2 | BU210: 9 | BV210: 1 | BW210: 1 | BX210: 1 | BY210: 1 | BZ210: 4 | CA210: =SUM(BV210:BZ210) -> 8 | CB210: StGalmier | CC210: 2 | CD210: 10 | CE210: 5 | CF210: 14 | CG210: 12 | CI210: 4.11 | CJ210: =MATCH(LARGE($BQ$202:$BQ$222,ROW()-201),$BQ$202:$BQ230,0) -> 2
A211: 10 | B211: =ARRIVEES!QA176 -> 3 | C211: =ARRIVEES!QB176 -> 4 | D211: =ARRIVEES!QC176 -> 2 | E211: =ARRIVEES!QD176 -> 11 | F211: =ARRIVEES!QE176 -> 1 | G211: 21 | H211: DVE | I211: 6 | J211: 2 | K211: 15 | L211: 4 | M211: 1 | O211: 7.1 | S211: 10 | T211: 3 | U211: 1 | V211: 1 | W211: 2 | X211: 3 | Y211: 10 | Z211: LCP | AA211: 3 | AB211: 1 | AC211: 2 | AD211: 5 | AE211: 6 | AG211: 6.1 | AK211: 10 | AL211: 1 | AM211: 3 | AN211: 3 | AO211: 1 | AP211: 1 | AQ211: 9 | AR211: EGN | AS211: 6 | AT211: 9 | AU211: 10 | AV211: 3 | AW211: 13 | AY211: 3.1 | BC211: 10 | BD211: 2 | BE211: 1 | BF211: 4 | BG211: 2 | BH211: 0 | BI211: 9 | BJ211: St Galmier | BK211: 4 | BL211: 5 | BM211: 11 | BN211: 7 | BO211: 15 | BQ211: 5.1 | BR211: =MATCH(LARGE($BQ$202:$BQ$222,ROW()-201),$BQ$202:$BQ231,0) -> 11 | BU211: 10 | BV211: 1 | BW211: 5 | BX211: 1 | BY211: 3 | BZ211: 1 | CA211: 11 | CB211: LCP | CC211: 1 | CD211: 8 | CE211: 11 | CF211: 9 | CG211: 16 | CI211: 7.1 | CJ211: =MATCH(LARGE($BQ$202:$BQ$222,ROW()-201),$BQ$202:$BQ231,0) -> 11
A212: 11 | B212: =ARRIVEES!QA177 -> 11 | C212: =ARRIVEES!QB177 -> 14 | D212: =ARRIVEES!QC177 -> 6 | E212: =ARRIVEES!QD177 -> 10 | F212: =ARRIVEES!QE177 -> 8 | G212: 49 | H212: St Malo | I212: 4 | J212: 8 | K212: 9 | L212: 1 | M212: 5 | O212: 3.09 | S212: 11 | T212: 1 | U212: 2 | V212: 3 | W212: 1 | X212: 0 | Y212: 7 | Z212: EGN | AA212: 16 | AB212: 11 | AC212: 10 | AD212: 13 | AE212: 2 | AG212: 3.09 | AK212: 11 | AL212: 1 | AM212: 4 | AN212: 0 | AO212: 1 | AP212: 3 | AQ212: 9 | AR212: LYON | AS212: 17 | AT212: 8 | AU212: 1 | AV212: 16 | AW212: 7 | AY212: 2.09 | BC212: 11 | BD212: 0 | BE212: 2 | BF212: 2 | BG212: 1 | BH212: 3 | BI212: 8 | BJ212: LCP | BK212: 15 | BL212: 5 | BM212: 6 | BN212: 8 | BO212: 12 | BQ212: 4.09 | BR212: =MATCH(LARGE($BQ$202:$BQ$222,ROW()-201),$BQ$202:$BQ232,0) -> 13 | BU212: 11 | BV212: 0 | BW212: 4 | BX212: 1 | BY212: 4 | BZ212: 1 | CA212: 10 | CB212: VCS | CC212: 12 | CD212: 3 | CE212: 14 | CF212: 2 | CG212: 16 | CI212: 6.09 | CJ212: =MATCH(LARGE($BQ$202:$BQ$222,ROW()-201),$BQ$202:$BQ232,0) -> 13
A213: 12 | B213: =ARRIVEES!QA178 -> 2 | C213: =ARRIVEES!QB178 -> 16 | D213: =ARRIVEES!QC178 -> 13 | E213: =ARRIVEES!QD178 -> 3 | F213: =ARRIVEES!QE178 -> 11 | G213: 45 | H213: EGN | I213: 10 | J213: 15 | K213: 7 | L213: 4 | M213: 11 | O213: 4.08 | S213: 12 | T213: 1 | U213: 1 | V213: 1 | W213: 1 | X213: 2 | Y213: 6 | Z213: SCLD | AA213: 9 | AB213: 4 | AC213: 16 | AD213: 3 | AE213: 2 | AG213: 2.08 | AK213: 12 | AL213: 2 | AM213: 1 | AN213: 0 | AO213: 2 | AP213: 0 | AQ213: 5 | AR213: LCP | AS213: 13 | AT213: 3 | AU213: 4 | AV213: 9 | AW213: 7 | AY213: -0.92 | BC213: 12 | BD213: 1 | BE213: 3 | BF213: 3 | BG213: 3 | BH213: 1 | BI213: 11 | BJ213: VCS | BK213: 13 | BL213: 6 | BM213: 8 | BN213: 4 | BO213: 11 | BQ213: 7.08 | BR213: =MATCH(LARGE($BQ$202:$BQ$222,ROW()-201),$BQ$202:$BQ233,0) -> 8 | BU213: 12 | BV213: 2 | BW213: 1 | BX213: 0 | BY213: 1 | BZ213: 1 | CA213: 5 | CB213: VCS | CC213: 13 | CD213: 8 | CE213: 5 | CF213: 16 | CG213: 1 | CI213: 1.08 | CJ213: =MATCH(LARGE($BQ$202:$BQ$222,ROW()-201),$BQ$202:$BQ233,0) -> 8
A214: 13 | B214: =ARRIVEES!QA179 -> 4 | C214: =ARRIVEES!QB179 -> 2 | D214: =ARRIVEES!QC179 -> 6 | E214: =ARRIVEES!QD179 -> 13 | F214: =ARRIVEES!QE179 -> 1 | G214: 26 | H214: CBG/n | I214: 3 | J214: 4 | K214: 15 | L214: 6 | M214: 11 | O214: 2.07 | S214: 13 | T214: 1 | U214: 2 | V214: 0 | W214: 4 | X214: 1 | Y214: 8 | Z214: St Galmier | AA214: 8 | AB214: 9 | AC214: 6 | AD214: 4 | AE214: 1 | AG214: 4.07 | AK214: 13 | AL214: 4 | AM214: 2 | AN214: 1 | AO214: 1 | AP214: 2 | AQ214: 10 | AR214: VCS | AS214: 15 | AT214: 4 | AU214: 10 | AV214: 2 | AW214: 4 | AY214: 3.07 | BC214: 13 | BD214: 3 | BE214: 1 | BF214: 1 | BG214: 0 | BH214: 3 | BI214: 8 | BJ214: VCS | BK214: 6 | BL214: 16 | BM214: 7 | BN214: 12 | BO214: 1 | BQ214: 4.07 | BR214: =MATCH(LARGE($BQ$202:$BQ$222,ROW()-201),$BQ$202:$BQ234,0) -> 9 | BU214: 13 | BV214: 3 | BW214: 3 | BX214: 2 | BY214: 1 | BZ214: 1 | CA214: 10 | CB214: LCP | CC214: 5 | CD214: 10 | CE214: 14 | CF214: 7 | CG214: 9 | CI214: 6.07 | CJ214: =MATCH(LARGE($BQ$202:$BQ$222,ROW()-201),$BQ$202:$BQ234,0) -> 9
A215: 14 | B215: =ARRIVEES!QA180 -> 3 | C215: =ARRIVEES!QB180 -> 16 | D215: =ARRIVEES!QC180 -> 14 | E215: =ARRIVEES!QD180 -> 10 | F215: =ARRIVEES!QE180 -> 6 | G215: 49 | H215: DVE | I215: 7 | J215: 13 | K215: 8 | L215: 1 | M215: 3 | O215: 4.06 | S215: 14 | T215: 1 | U215: 2 | V215: 3 | W215: 2 | X215: 3 | Y215: 11 | Z215: LCP | AA215: 1 | AB215: 13 | AC215: 6 | AD215: 8 | AE215: 10 | AG215: 7.06 | AK215: 14 | AL215: 1 | AM215: 0 | AN215: 3 | AO215: 4 | AP215: 2 | AQ215: 10 | AR215: VCS | AS215: 5 | AT215: 10 | AU215: 2 | AV215: 16 | AW215: 3 | AY215: 1.06 | BC215: 14 | BD215: 1 | BE215: 1 | BF215: 2 | BG215: 2 | BH215: 0 | BI215: 6 | BJ215: LCP | BK215: 13 | BL215: 12 | BM215: 11 | BN215: 14 | BO215: 3 | BQ215: 2.06 | BR215: =MATCH(LARGE($BQ$202:$BQ$222,ROW()-201),$BQ$202:$BQ235,0) -> 16 | BU215: 14 | BV215: 1 | BW215: 0 | BX215: 3 | BY215: 1 | BZ215: 2 | CA215: 7 | CB215: MLF | CC215: 14 | CD215: 15 | CE215: 7 | CF215: 2 | CG215: 9 | CI215: 3.06 | CJ215: =MATCH(LARGE($BQ$202:$BQ$222,ROW()-201),$BQ$202:$BQ235,0) -> 16
A216: 15 | B216: =ARRIVEES!QA181 -> 6 | C216: =ARRIVEES!QB181 -> 1 | D216: =ARRIVEES!QC181 -> 4 | E216: =ARRIVEES!QD181 -> 11 | F216: =ARRIVEES!QE181 -> 2 | G216: 24 | H216: DVE | I216: 19 | J216: 20 | K216: 17 | L216: 7 | M216: 1 | O216: 8.05 | S216: 15 | T216: 2 | U216: 4 | V216: 1 | W216: 1 | X216: 1 | Y216: 9 | Z216: VCSn | AA216: 15 | AB216: 8 | AC216: 4 | AD216: 12 | AE216: 7 | AG216: 5.05 | AK216: 15 | AL216: 3 | AM216: 1 | AN216: 2 | AO216: 3 | AP216: 1 | AQ216: 10 | AR216: LCP | AS216: 1 | AT216: 4 | AU216: 15 | AV216: 9 | AW216: 3 | AY216: 2.05 | BC216: 15 | BD216: 1 | BE216: 1 | BF216: 0 | BG216: 1 | BH216: 2 | BI216: 5 | BJ216: MLF | BK216: 9 | BL216: 11 | BM216: 10 | BN216: 12 | BO216: 13 | BQ216: 1.05 | BR216: =MATCH(LARGE($BQ$202:$BQ$222,ROW()-201),$BQ$202:$BQ236,0) -> 14 | BU216: 15 | BV216: 0 | BW216: 1 | BX216: 5 | BY216: 2 | BZ216: 0 | CA216: 8 | CB216: SCLD | CC216: 8 | CD216: 7 | CE216: 15 | CF216: 16 | CG216: 14 | CI216: 4.05 | CJ216: =MATCH(LARGE($BQ$202:$BQ$222,ROW()-201),$BQ$202:$BQ236,0) -> 14
A217: 16 | B217: =ARRIVEES!QA182 -> 15 | C217: =ARRIVEES!QB182 -> 12 | D217: =ARRIVEES!QC182 -> 1 | E217: =ARRIVEES!QD182 -> 16 | F217: =ARRIVEES!QE182 -> 10 | G217: 54 | H217: Chateaubriant | I217: 6 | J217: 9 | K217: 12 | L217: 11 | M217: 16 | O217: 3.04 | S217: 16 | T217: 1 | U217: 1 | V217: 2 | W217: 1 | X217: 1 | Y217: 6 | Z217: VCS | AA217: 4 | AB217: 11 | AC217: 2 | AD217: 3 | AE217: 10 | AG217: 2.04 | AK217: 16 | AL217: 0 | AM217: 1 | AN217: 0 | AO217: 2 | AP217: 2 | AQ217: 5 | AR217: MLF | AS217: 3 | AT217: 1 | AU217: 10 | AV217: 2 | AW217: 9 | AY217: 1.04 | BC217: 16 | BD217: 1 | BE217: 2 | BF217: 2 | BG217: 2 | BH217: 0 | BI217: 7 | BJ217: SCLD | BK217: 10 | BL217: 15 | BM217: 6 | BN217: 14 | BO217: 1 | BQ217: 3.04 | BR217: =MATCH(LARGE($BQ$202:$BQ$222,ROW()-201),$BQ$202:$BQ237,0) -> 15 | BU217: 16 | BV217: 1 | BW217: 1 | BX217: 1 | BY217: 2 | BZ217: 4 | CA217: 9 | CB217: Pontchateau | CC217: 1 | CD217: 4 | CE217: 6 | CF217: 8 | CG217: 5 | CI217: 5.04 | CJ217: =MATCH(LARGE($BQ$202:$BQ$222,ROW()-201),$BQ$202:$BQ237,0) -> 15
A218: 17 | B218: =ARRIVEES!QA183 -> 10 | C218: =ARRIVEES!QB183 -> 6 | D218: =ARRIVEES!QC183 -> 8 | E218: =ARRIVEES!QD183 -> 2 | F218: =ARRIVEES!QE183 -> 15 | G218: 41 | H218: CLRFNE | I218: 14 | J218: 2 | K218: 8 | L218: 16 | M218: 9 | O218: 0.03 | S218: 17 | T218: 0 | U218: 1 | V218: 0 | W218: 0 | X218: 0 | Y218: 1 | Z218: ATL | AA218: 10 | AB218: 6 | AC218: 15 | AD218: 16 | AE218: 3 | AG218: -2.97 | AK218: 17 | AL218: 1 | AM218: 0 | AN218: 1 | AO218: 1 | AP218: 0 | AQ218: 3 | AR218: SCLD | AS218: 18 | AT218: 5 | AU218: 2 | AV218: 12 | AW218: 4 | AY218: -1.97 | BC218: 17 | BD218: 0 | BE218: 0 | BF218: 1 | BG218: 0 | BH218: 0 | BI218: 1 | BJ218: Cordemais | BK218: 4 | BL218: 5 | BM218: 1 | BN218: 9 | BO218: 2 | BQ218: -2.97 | BR218: =MATCH(LARGE($BQ$202:$BQ$222,ROW()-201),$BQ$202:$BQ238,0) -> 18 | BU218: 17 | BV218: 0 | BW218: 0 | BX218: 0 | BY218: 0 | BZ218: 2 | CA218: 2 | CB218: LCP | CC218: 13 | CD218: 9 | CE218: 7 | CF218: 10 | CG218: 17 | CI218: -1.97 | CJ218: =MATCH(LARGE($BQ$202:$BQ$222,ROW()-201),$BQ$202:$BQ238,0) -> 18
A219: 18 | B219: =ARRIVEES!QA184 -> 1 | C219: =ARRIVEES!QB184 -> 16 | D219: =ARRIVEES!QC184 -> 4 | E219: =ARRIVEES!QD184 -> 14 | F219: =ARRIVEES!QE184 -> 2 | G219: 37 | H219: EGN | I219: 9 | J219: 10 | K219: 6 | L219: 13 | M219: 2 | O219: -2.98 | S219: 18 | T219: 0 | U219: 1 | V219: 1 | W219: 0 | X219: 1 | Y219: 3 | Z219: MLF | AA219: 14 | AB219: 7 | AC219: 4 | AD219: 9 | AE219: 3 | AG219: -0.98 | AK219: 18 | AL219: 1 | AM219: 0 | AN219: 2 | AO219: 0 | AP219: 1 | AQ219: 4 | AR219: Pontchateau | AS219: 14 | AT219: 7 | AU219: 17 | AV219: 15 | AW219: 10 | AY219: -0.98 | BC219: 18 | BD219: 1 | BE219: 0 | BF219: 0 | BG219: 0 | BH219: 1 | BI219: 2 | BJ219: LCP | BK219: 2 | BL219: 1 | BM219: 7 | BN219: 3 | BO219: 5 | BQ219: -1.98 | BR219: =MATCH(LARGE($BQ$202:$BQ$222,ROW()-201),$BQ$202:$BQ239,0) -> 17 | BU219: 18 | BV219: 0 | BW219: 0 | BX219: 0 | BY219: 0 | BZ219: 0 | CA219: 0 | CB219: VCS | CC219: 3 | CD219: 10 | CE219: 6 | CF219: 5 | CG219: 1 | CI219: -3.98 | CJ219: =MATCH(LARGE($BQ$202:$BQ$222,ROW()-201),$BQ$202:$BQ239,0) -> 17
A220: 19 | B220: =ARRIVEES!QA185 -> 12 | C220: =ARRIVEES!QB185 -> 7 | D220: =ARRIVEES!QC185 -> 13 | E220: =ARRIVEES!QD185 -> 5 | F220: =ARRIVEES!QE185 -> 3 | G220: 40 | H220: CLRFNE | I220: 15 | J220: 12 | K220: 3 | L220: 2 | M220: 13 | O220: -2.99 | S220: 19 | T220: 0 | U220: 0 | V220: 0 | W220: 0 | X220: 0 | Y220: 0 | Z220: LCP | AA220: 5 | AB220: 18 | AC220: 3 | AD220: 15 | AE220: 10 | AG220: -3.99 | AK220: 19 | AL220: 0 | AM220: 0 | AN220: 0 | AO220: 0 | AP220: 0 | AQ220: 0 | AR220: LCP | AS220: 6 | AT220: 10 | AU220: 1 | AV220: 15 | AW220: 11 | AY220: -3.99 | BC220: 19 | BD220: 0 | BE220: 0 | BF220: 0 | BG220: 0 | BH220: 0 | BI220: 0 | BJ220: VCS | BK220: 8 | BL220: 2 | BM220: 3 | BN220: 4 | BO220: 1 | BQ220: -3.99 | BR220: =MATCH(LARGE($BQ$202:$BQ$222,ROW()-201),$BQ$202:$BQ240,0) -> 19 | BU220: 19 | BV220: 0 | BW220: 0 | BX220: 0 | BY220: 1 | BZ220: 0 | CA220: 1 | CB220: EGN | CC220: 3 | CD220: 1 | CE220: 5 | CF220: 10 | CG220: 8 | CI220: -2.99 | CJ220: =MATCH(LARGE($BQ$202:$BQ$222,ROW()-201),$BQ$202:$BQ240,0) -> 19
A221: 20 | B221: =ARRIVEES!QA186 -> 6 | C221: =ARRIVEES!QB186 -> 18 | D221: =ARRIVEES!QC186 -> 13 | E221: =ARRIVEES!QD186 -> 5 | F221: =ARRIVEES!QE186 -> 10 | G221: 52 | H221: CBG/n | I221: 12 | J221: 13 | K221: 3 | L221: 15 | M221: 2 | O221: -3 | S221: 20 | T221: 0 | U221: 0 | V221: 0 | W221: 0 | X221: 0 | Y221: 0 | Z221: Cordemais | AA221: 2 | AB221: 15 | AC221: 8 | AD221: 1 | AE221: 13 | AG221: -4 | AK221: 20 | AL221: 0 | AM221: 0 | AN221: 0 | AO221: 0 | AP221: 0 | AQ221: 0 | AR221: VCS | AS221: 5 | AT221: 8 | AU221: 14 | AV221: 3 | AW221: 4 | AY221: -4 | BC221: 20 | BD221: 0 | BE221: 0 | BF221: 0 | BG221: 0 | BH221: 0 | BI221: 0 | BJ221: EGN | BK221: 3 | BL221: 7 | BM221: 2 | BN221: 5 | BO221: 1 | BQ221: -4 | BR221: =MATCH(LARGE($BQ$202:$BQ$222,ROW()-201),$BQ$202:$BQ241,0) -> 20 | BU221: 20 | BV221: 0 | BW221: 0 | BX221: 0 | BY221: 0 | BZ221: 0 | CA221: 0 | CB221: ATL | CC221: 8 | CD221: 1 | CE221: 15 | CF221: 19 | CG221: 5 | CI221: -4 | CJ221: =MATCH(LARGE($BQ$202:$BQ$222,ROW()-201),$BQ$202:$BQ241,0) -> 20
A222: 21 | B222: =SUM(B202:B221) -> 145 | C222: 150 | D222: 174 | E222: 178 | F222: 138 | G222: 785 | H222: DVE | I222: 7 | J222: 2 | K222: 10 | L222: 12 | M222: 17 | O222: -4.01 | S222: 21 | T222: 30 | U222: 30 | V222: 30 | W222: 30 | X222: 30 | Y222: 150 | Z222: SCLD | AA222: 15 | AB222: 16 | AC222: 9 | AD222: 10 | AE222: 14 | AK222: 21 | AL222: 30 | AM222: 30 | AN222: 30 | AO222: 30 | AP222: 30 | AQ222: 150 | AR222: EGN | AS222: 7 | AT222: 3 | AU222: 13 | AV222: 10 | AW222: 15 | BC222: 21 | BD222: =SUM(BD202:BD221) -> 30 | BE222: =SUM(BE202:BE221) -> 30 | BF222: =SUM(BF202:BF221) -> 30 | BG222: =SUM(BG202:BG221) -> 30 | BH222: =SUM(BH202:BH221) -> 30 | BI222: =SUM($BI202:$BI221) -> 150 | BJ222: ATL | BK222: 4 | BL222: 6 | BM222: 8 | BN222: 10 | BO222: 3 | BU222: 21 | BV222: 30 | BW222: 30 | BX222: 30 | BY222: 30 | BZ222: 30 | CA222: =SUM(CA202:CA221) -> 150 | CB222: LCP | CC222: 2 | CD222: 10 | CE222: 9 | CF222: 11 | CG222: 1
A223: 22 | H223: DVE | I223: 2 | J223: 17 | K223: 6 | L223: 9 | M223: 15 | S223: 22 | Z223: VCSn | AA223: 5 | AB223: 4 | AC223: 14 | AD223: 1 | AE223: 3 | AK223: 22 | AR223: ATL | AS223: 1 | AT223: 15 | AU223: 7 | AV223: 4 | AW223: 18 | BC223: 22 | BJ223: LCP | BK223: 7 | BL223: 6 | BM223: 12 | BN223: 8 | BO223: 1 | BU223: 22 | CB223: MLF | CC223: 6 | CD223: 2 | CE223: 15 | CF223: 3 | CG223: 13
A224: 23 | H224: VCS | I224: 8 | J224: 10 | K224: 2 | L224: 14 | M224: 7 | S224: 23 | Z224: EGN | AA224: 8 | AB224: 3 | AC224: 1 | AD224: 7 | AE224: 4 | AK224: 23 | AR224: LCP | AS224: 10 | AT224: 12 | AU224: 2 | AV224: 14 | AW224: 5 | BC224: 23 | BJ224: MLF | BK224: 4 | BL224: 12 | BM224: 1 | BN224: 10 | BO224: 7 | BU224: 23 | CB224: Agen | CC224: 3 | CD224: 11 | CE224: 10 | CF224: 7 | CG224: 1
A225: 24 | H225: CLRFNE | I225: 10 | J225: 5 | K225: 9 | L225: 2 | M225: 11 | S225: 24 | Z225: LCP | AA225: 1 | AB225: 13 | AC225: 11 | AD225: 8 | AE225: 9 | AK225: 24 | AR225: MLF | AS225: 9 | AT225: 5 | AU225: 4 | AV225: 15 | AW225: 13 | BC225: 24 | BJ225: Toulouse | BK225: 9 | BL225: 10 | BM225: 12 | BN225: 7 | BO225: 2 | BU225: 24 | CB225: LCP | CC225: 4 | CD225: 11 | CE225: 8 | CF225: 5 | CG225: 16
A226: 25 | H226: VCS | I226: 9 | J226: 2 | K226: 5 | L226: 3 | M226: 7 | S226: 25 | Z226: ATL | AA226: 13 | AB226: 14 | AC226: 7 | AD226: 6 | AE226: 15 | AK226: 25 | AR226: Bordeaux | AS226: 15 | AT226: 10 | AU226: 4 | AV226: 14 | AW226: 2 | BC226: 25 | BJ226: LCP | BK226: 14 | BL226: 13 | BM226: 12 | BN226: 6 | BO226: 4 | BU226: 25 | CB226: VCS | CC226: 1 | CD226: 11 | CE226: 15 | CF226: 13 | CG226: 4
A227: 26 | H227: DVE | I227: 11 | J227: 10 | K227: 14 | L227: 8 | M227: 15 | S227: 26 | Z227: LCP | AA227: 3 | AB227: 9 | AC227: 18 | AD227: 14 | AE227: 5 | AK227: 26 | AR227: LCP | AS227: 12 | AT227: 6 | AU227: 5 | AV227: 8 | AW227: 14 | BC227: 26 | BJ227: VCS | BK227: 6 | BL227: 5 | BM227: 17 | BN227: 4 | BO227: 3 | BU227: 26 | CB227: ATL | CC227: 2 | CD227: 13 | CE227: 3 | CF227: 4 | CG227: 1
A228: 27 | H228: CBG/n | I228: 12 | J228: 13 | K228: 14 | L228: 7 | M228: 1 | S228: 27 | Z228: Beaumont de L | AA228: 7 | AB228: 4 | AC228: 11 | AD228: 2 | AE228: 3 | AK228: 27 | AR228: VCS | AS228: 13 | AT228: 11 | AU228: 14 | AV228: 2 | AW228: 3 | BC228: 27 | BJ228: ATL | BK228: 4 | BL228: 3 | BM228: 9 | BN228: 2 | BO228: 6 | BU228: 27 | CB228: LCP | CC228: 7 | CD228: 12 | CE228: 2 | CF228: 5 | CG228: 11
A229: 28 | H229: CLRFNE | I229: 11 | J229: 14 | K229: 3 | L229: 5 | M229: 1 | S229: 28 | Z229: CTY | AA229: 7 | AB229: 12 | AC229: 14 | AD229: 13 | AE229: 18 | AK229: 28 | AR229: ATL | AS229: 1 | AT229: 8 | AU229: 6 | AV229: 5 | AW229: 4 | BC229: 28 | BJ229: LCP | BK229: 8 | BL229: 5 | BM229: 1 | BN229: 16 | BO229: 13 | BU229: 28 | CB229: CTY | CC229: 9 | CD229: 3 | CE229: 7 | CF229: 6 | CG229: 1
A230: 29 | H230: DVE | I230: 3 | J230: 6 | K230: 4 | L230: 10 | M230: 5 | S230: 29 | Z230: VCSn | AA230: 11 | AB230: 15 | AC230: 4 | AD230: 13 | AE230: 8 | AK230: 29 | AR230: LCP | AS230: 13 | AT230: 11 | AU230: 7 | AV230: 14 | AW230: 5 | BC230: 29 | BJ230: CTY | BK230: 12 | BL230: 9 | BM230: 13 | BN230: 6 | BO230: 3 | BU230: 29 | CB230: LYON | CC230: 16 | CD230: 11 | CE230: 13 | CF230: 15 | CG230: 10
A231: 30 | H231: VCS | I231: 7 | J231: 15 | K231: 5 | L231: 12 | M231: 9 | S231: 30 | Z231: LCP | AA231: 7 | AB231: 9 | AC231: 12 | AD231: 5 | AE231: 14 | AK231: 30 | AR231: CTY | AS231: 15 | AT231: 11 | AU231: 4 | AV231: 17 | AW231: 7 | BC231: 30 | BJ231: LYON | BK231: 6 | BL231: 4 | BM231: 10 | BN231: 16 | BO231: 18 | BU231: 30 | CB231: LCP | CC231: 13 | CD231: 16 | CE231: 1 | CF231: 15 | CG231: 2
A232: 31 | H232: DVE | I232: 2 | J232: 5 | K232: 4 | L232: 9 | M232: 16 | S232: 31 | BC232: 31 | BU232: 31 | CB232: CTY
A233: AOUT
A250: SEPTEMBRE | S250: MAI | AK250: MAI | AZ250: Clt | BC250: MAI | BU250: MAI
A251: Jour | B251: C1 | C251: C2 | D251: C3 | E251: C4 | F251: C5 | G251: Quinté | H251: HIPPO | I251: 1 | J251: 2 | K251: 3 | L251: 4 | M251: 5 | S251: Jour | T251: C1 | U251: C2 | V251: C3 | W251: C4 | X251: C5 | Y251: Quinté | Z251: HIPPO | AA251: 1 | AB251: 2 | AC251: 3 | AD251: 4 | AE251: 5 | AK251: Jour | AL251: C1 | AM251: C2 | AN251: C3 | AO251: C4 | AP251: C5 | AQ251: Quinté | AR251: HIPPO | AS251: 1 | AT251: 2 | AU251: 3 | AV251: 4 | AW251: 5 | AZ251: mois | BB251: 2013 | BC251: Jour | BD251: C1 | BE251: C2 | BF251: C3 | BG251: C4 | BH251: C5 | BI251: Quinté | BJ251: HIPPO | BK251: 1 | BL251: 2 | BM251: 3 | BN251: 4 | BO251: 5 | BU251: Jour | BV251: C1 | BW251: C2 | BX251: C3 | BY251: C4 | BZ251: C5 | CA251: Quinté | CB251: HIPPO | CC251: 1 | CD251: 2 | CE251: 3 | CF251: 4 | CG251: 5
A252: 1 | B252: 0 | C252: 2 | D252: 2 | E252: 2 | F252: 2 | G252: 8 | H252: LCP | I252: 2 | J252: 6 | K252: 7 | L252: 14 | M252: 13 | O252: =COUNTIF($I$252:$M$282,ROW()-251)+((22-ROW()-251)/100) -> 3.19 | P252: =MATCH(LARGE($O$252:$O$282,ROW()-251),$O$252:$O282,0) -> 2 | S252: 1 | T252: 3 | U252: 1 | V252: 1 | W252: 2 | X252: 2 | Y252: 9 | Z252: SCLD | AA252: 19 | AB252: 17 | AC252: 3 | AD252: 5 | AE252: 20 | AG252: =COUNTIF($AA$252:$AE$282,ROW()-251)+((22-ROW()-251)/100) -> 4.19 | AH252: =MATCH(LARGE($AG$252:$AG$282,ROW()-251),$AG$252:$AG282,0) -> 7 | AK252: 1 | AL252: 1 | AM252: 1 | AN252: 4 | AO252: 1 | AP252: 0 | AQ252: 7 | AR252: SCLD | AS252: 1 | AT252: 2 | AU252: 5 | AV252: 6 | AW252: 8 | AY252: =COUNTIF($AS$252:$AW$282,ROW()-251)+((22-ROW()-251)/100) -> 2.19 | AZ252: =MATCH(LARGE($AY$252:$AY$282,ROW()-251),$AY$252:$AY282,0) -> 6 | BC252: 1 | BD252: 2 | BE252: 2 | BF252: 1 | BG252: 2 | BH252: 0 | BI252: 7 | BJ252: SCLD | BK252: 7 | BL252: 8 | BM252: 11 | BN252: 4 | BO252: 3 | BQ252: =COUNTIF($BK$252:$BO$282,ROW()-250)+((22-ROW()-250)/100) -> 6.2 | BR252: =MATCH(LARGE($BQ$252:$BQ$282,ROW()-251),$BQ$252:$BQ271,0) -> 4 | BU252: 1 | BV252: 1 | BW252: 2 | BX252: 4 | BY252: 0 | BZ252: 1 | CA252: =SUM(BV252:BZ252) -> 8 | CB252: SCLD | CC252: 9 | CD252: 4 | CE252: 3 | CF252: 5 | CG252: 15 | CI252: =COUNTIF($CC$252:$CG$271,ROW()-251)+((22-ROW()-251)/100) -> 0.19 | CJ252: =MATCH(LARGE($CI$252:$CI$282,ROW()-251),$CI$252:$CI271,0) -> 4
A253: 2 | B253: 5 | C253: 2 | D253: 1 | E253: 3 | F253: 1 | G253: 12 | H253: ATL | I253: 16 | J253: 15 | K253: 18 | L253: 17 | M253: 13 | O253: =COUNTIF($I$252:$M$282,ROW()-251)+((22-ROW()-251)/100) -> 7.18 | P253: =MATCH(LARGE($O$252:$O$282,ROW()-251),$O$252:$O283,0) -> 12 | S253: 2 | T253: 1 | U253: 5 | V253: 0 | W253: 2 | X253: 3 | Y253: 11 | Z253: CTY | AA253: 7 | AB253: 2 | AC253: 16 | AD253: 6 | AE253: 11 | AG253: =COUNTIF($AA$252:$AE$282,ROW()-251)+((22-ROW()-251)/100) -> 6.18 | AH253: =MATCH(LARGE($AG$252:$AG$282,ROW()-251),$AG$252:$AG283,0) -> 3 | AK253: 2 | AL253: 1 | AM253: 4 | AN253: 2 | AO253: 1 | AP253: 0 | AQ253: 8 | AR253: St Galmier | AS253: 8 | AT253: 12 | AU253: 11 | AV253: 9 | AW253: 6 | AY253: =COUNTIF($AS$252:$AW$282,ROW()-251)+((22-ROW()-251)/100) -> 3.18 | AZ253: =MATCH(LARGE($AY$252:$AY$282,ROW()-251),$AY$252:$AY283,0) -> 9 | BC253: 2 | BD253: 1 | BE253: 3 | BF253: 6 | BG253: 1 | BH253: 0 | BI253: 11 | BJ253: LCP | BK253: 5 | BL253: 6 | BM253: 3 | BN253: 1 | BO253: 10 | BQ253: =COUNTIF($BK$252:$BO$282,ROW()-250)+((22-ROW()-250)/100) -> 2.19 | BR253: =MATCH(LARGE($BQ$252:$BQ$282,ROW()-251),$BQ$252:$BQ272,0) -> 14 | BU253: 2 | BV253: 2 | BW253: 1 | BX253: 1 | BY253: 3 | BZ253: 2 | CA253: =SUM(BV253:BZ253) -> 9 | CB253: VCS | CC253: 5 | CD253: 13 | CE253: 4 | CF253: 6 | CG253: 14 | CI253: =COUNTIF($CC$252:$CG$271,ROW()-251)+((22-ROW()-251)/100) -> -0.82 | CJ253: =MATCH(LARGE($CI$252:$CI$282,ROW()-251),$CI$252:$CI272,0) -> 14
A254: 3 | B254: 2 | C254: 2 | D254: 1 | E254: 0 | F254: 1 | G254: 6 | H254: VCS/n | I254: 2 | J254: 1 | K254: 14 | L254: 13 | M254: 7 | O254: 1.17 | P254: =MATCH(LARGE($O$252:$O$282,ROW()-251),$O$252:$O284,0) -> 6 | S254: 3 | T254: 0 | U254: 3 | V254: 4 | W254: 2 | X254: 4 | Y254: 13 | Z254: MLF | AA254: 9 | AB254: 2 | AC254: 10 | AD254: 11 | AE254: 4 | AG254: 9.17 | AH254: =MATCH(LARGE($AG$252:$AG$282,ROW()-251),$AG$252:$AG284,0) -> 2 | AK254: 3 | AL254: 3 | AM254: 2 | AN254: 1 | AO254: 2 | AP254: 0 | AQ254: 8 | AR254: LCP | AS254: 10 | AT254: 14 | AU254: 11 | AV254: 6 | AW254: 9 | AY254: 3.17 | AZ254: =MATCH(LARGE($AY$252:$AY$282,ROW()-251),$AY$252:$AY284,0) -> 8 | BC254: 3 | BD254: 0 | BE254: 2 | BF254: 2 | BG254: 1 | BH254: 2 | BI254: 7 | BJ254: VCS | BK254: 8 | BL254: 5 | BM254: 10 | BN254: 1 | BO254: 9 | BQ254: 6.18 | BR254: =MATCH(LARGE($BQ$252:$BQ$282,ROW()-251),$BQ$252:$BQ273,0) -> 9 | BU254: 3 | BV254: 3 | BW254: 5 | BX254: 2 | BY254: 1 | BZ254: 1 | CA254: 12 | CB254: VCS | CC254: 16 | CD254: 15 | CE254: 5 | CF254: 17 | CG254: 10 | CI254: 2.17 | CJ254: =MATCH(LARGE($CI$252:$CI$282,ROW()-251),$CI$252:$CI273,0) -> 9
A255: 4 | B255: 0 | C255: 2 | D255: 1 | E255: 1 | F255: 3 | G255: 7 | H255: VCS | I255: 17 | J255: 13 | K255: 2 | L255: 14 | M255: 8 | O255: 2.16 | P255: =MATCH(LARGE($O$252:$O$282,ROW()-251),$O$252:$O285,0) -> 11 | S255: 4 | T255: 1 | U255: 1 | V255: 2 | W255: 2 | X255: 2 | Y255: 8 | Z255: LYON la Soie | AA255: 11 | AB255: 15 | AC255: 3 | AD255: 12 | AE255: 2 | AG255: 3.16 | AH255: =MATCH(LARGE($AG$252:$AG$282,ROW()-251),$AG$252:$AG285,0) -> 15 | AK255: 4 | AL255: 1 | AM255: 1 | AN255: 2 | AO255: 4 | AP255: 2 | AQ255: 10 | AR255: VCS | AS255: 9 | AT255: 15 | AU255: 11 | AV255: 3 | AW255: 6 | AY255: 5.16 | AZ255: =MATCH(LARGE($AY$252:$AY$282,ROW()-251),$AY$252:$AY285,0) -> 12 | BC255: 4 | BD255: 2 | BE255: 2 | BF255: 1 | BG255: 5 | BH255: 1 | BI255: 11 | BJ255: VCS | BK255: 10 | BL255: 7 | BM255: 13 | BN255: 14 | BO255: 15 | BQ255: 9.17 | BR255: =MATCH(LARGE($BQ$252:$BQ$282,ROW()-251),$BQ$252:$BQ274,0) -> 1 | BU255: 4 | BV255: 0 | BW255: 4 | BX255: 2 | BY255: 3 | BZ255: 2 | CA255: 11 | CB255: ATL | CC255: 12 | CD255: 14 | CE255: 8 | CF255: 11 | CG255: 18 | CI255: 4.16 | CJ255: =MATCH(LARGE($CI$252:$CI$282,ROW()-251),$CI$252:$CI274,0) -> 13
A256: 5 | B256: 0 | C256: 1 | D256: 0 | E256: 0 | F256: 1 | G256: 2 | H256: LCP | I256: 13 | J256: 11 | K256: 8 | L256: 6 | M256: 3 | O256: -2.85 | P256: =MATCH(LARGE($O$252:$O$282,ROW()-251),$O$252:$O286,0) -> 7 | S256: 5 | T256: 4 | U256: 0 | V256: 3 | W256: 1 | X256: 2 | Y256: 10 | Z256: LCP | AA256: 1 | AB256: 6 | AC256: 5 | AD256: 2 | AE256: 7 | AG256: 5.15 | AH256: =MATCH(LARGE($AG$252:$AG$282,ROW()-251),$AG$252:$AG286,0) -> 5 | AK256: 5 | AL256: 1 | AM256: 1 | AN256: 1 | AO256: 0 | AP256: 5 | AQ256: 8 | AR256: VCS | AS256: 17 | AT256: 6 | AU256: 15 | AV256: 16 | AW256: 14 | AY256: 3.15 | AZ256: =MATCH(LARGE($AY$252:$AY$282,ROW()-251),$AY$252:$AY286,0) -> 4 | BC256: 5 | BD256: 5 | BE256: 2 | BF256: 2 | BG256: 2 | BH256: 3 | BI256: 14 | BJ256: ATL | BK256: 12 | BL256: 8 | BM256: 7 | BN256: 13 | BO256: 5 | BQ256: 4.16 | BR256: =MATCH(LARGE($BQ$252:$BQ$282,ROW()-251),$BQ$252:$BQ275,0) -> 3 | BU256: 5 | BV256: 5 | BW256: 0 | BX256: 1 | BY256: 1 | BZ256: 2 | CA256: 9 | CB256: MLF | CC256: 13 | CD256: 7 | CE256: 11 | CF256: 9 | CG256: 18 | CI256: 2.15 | CJ256: =MATCH(LARGE($CI$252:$CI$282,ROW()-251),$CI$252:$CI275,0) -> 3
A257: 6 | B257: 1 | C257: 5 | D257: 1 | E257: 3 | F257: 1 | G257: 11 | H257: Craon | I257: 9 | J257: 8 | K257: 16 | L257: 15 | M257: 14 | O257: 6.14 | P257: =MATCH(LARGE($O$252:$O$282,ROW()-251),$O$252:$O287,0) -> 8 | S257: 6 | T257: 0 | U257: 1 | V257: 2 | W257: 2 | X257: 0 | Y257: 5 | Z257: VCSn | AA257: 4 | AB257: 1 | AC257: 9 | AD257: 7 | AE257: 12 | AG257: 1.14 | AH257: =MATCH(LARGE($AG$252:$AG$282,ROW()-251),$AG$252:$AG287,0) -> 12 | AK257: 6 | AL257: 0 | AM257: 3 | AN257: 2 | AO257: 6 | AP257: 5 | AQ257: 16 | AR257: ATL | AS257: 13 | AT257: 10 | AU257: 1 | AV257: 3 | AW257: 5 | AY257: 11.14 | AZ257: =MATCH(LARGE($AY$252:$AY$282,ROW()-251),$AY$252:$AY287,0) -> 14 | BC257: 6 | BD257: 3 | BE257: 3 | BF257: 1 | BG257: 2 | BH257: 0 | BI257: 9 | BJ257: MLF | BK257: 9 | BL257: 4 | BM257: 10 | BN257: 8 | BO257: 15 | BQ257: 4.15 | BR257: =MATCH(LARGE($BQ$252:$BQ$282,ROW()-251),$BQ$252:$BQ276,0) -> 8 | BU257: 6 | BV257: 3 | BW257: 2 | BX257: 0 | BY257: 4 | BZ257: 2 | CA257: 11 | CB257: CTY | CC257: 12 | CD257: 13 | CE257: 15 | CF257: 10 | CG257: 5 | CI257: 1.14 | CJ257: =MATCH(LARGE($CI$252:$CI$282,ROW()-251),$CI$252:$CI276,0) -> 5
A258: 7 | B258: 0 | C258: 3 | D258: 4 | E258: 1 | F258: 2 | G258: 10 | H258: Nancy | I258: 3 | J258: 6 | K258: 12 | L258: 10 | M258: 4 | O258: 5.13 | P258: =MATCH(LARGE($O$252:$O$282,ROW()-251),$O$252:$O288,0) -> 10 | S258: 7 | T258: 3 | U258: 3 | V258: 2 | W258: 4 | X258: 3 | Y258: 15 | Z258: VCS | AA258: 15 | AB258: 7 | AC258: 14 | AD258: 13 | AE258: 1 | AG258: 10.13 | AH258: =MATCH(LARGE($AG$252:$AG$282,ROW()-251),$AG$252:$AG288,0) -> 14 | AK258: 7 | AL258: 2 | AM258: 2 | AN258: 1 | AO258: 1 | AP258: 0 | AQ258: 6 | AR258: MLF | AS258: 11 | AT258: 6 | AU258: 16 | AV258: 15 | AW258: 17 | AY258: 1.13 | AZ258: =MATCH(LARGE($AY$252:$AY$282,ROW()-251),$AY$252:$AY288,0) -> 10 | BC258: 7 | BD258: 4 | BE258: 2 | BF258: 1 | BG258: 2 | BH258: 0 | BI258: 9 | BJ258: CTY | BK258: 12 | BL258: 2 | BM258: 3 | BN258: 16 | BO258: 10 | BQ258: 4.14 | BR258: =MATCH(LARGE($BQ$252:$BQ$282,ROW()-251),$BQ$252:$BQ277,0) -> 10 | BU258: 7 | BV258: 0 | BW258: 2 | BX258: 0 | BY258: 1 | BZ258: 1 | CA258: 4 | CB258: CTY | CC258: 5 | CD258: 3 | CE258: 15 | CF258: 9 | CG258: 14 | CI258: -2.87 | CJ258: =MATCH(LARGE($CI$252:$CI$282,ROW()-251),$CI$252:$CI277,0) -> 6
A259: 8 | B259: 3 | C259: 2 | D259: 1 | E259: 1 | F259: 3 | G259: 10 | H259: Marseille Vvx | I259: 14 | J259: 6 | K259: 12 | L259: 4 | M259: 15 | O259: 5.12 | P259: =MATCH(LARGE($O$252:$O$282,ROW()-251),$O$252:$O289,0) -> 13 | S259: 8 | T259: 1 | U259: 2 | V259: 1 | W259: 0 | X259: 1 | Y259: 5 | Z259: ATL | AA259: 5 | AB259: 4 | AC259: 14 | AD259: 3 | AE259: 1 | AG259: 0.12 | AH259: =MATCH(LARGE($AG$252:$AG$282,ROW()-251),$AG$252:$AG289,0) -> 1 | AK259: 8 | AL259: 4 | AM259: 0 | AN259: 1 | AO259: 3 | AP259: 3 | AQ259: 11 | AR259: LCP | AS259: 14 | AT259: 1 | AU259: 16 | AV259: 4 | AW259: 6 | AY259: 6.12 | AZ259: =MATCH(LARGE($AY$252:$AY$282,ROW()-251),$AY$252:$AY289,0) -> 16 | BC259: 8 | BD259: 3 | BE259: 2 | BF259: 1 | BG259: 2 | BH259: 1 | BI259: 9 | BJ259: LCP | BK259: 9 | BL259: 10 | BM259: 2 | BN259: 4 | BO259: 12 | BQ259: 6.13 | BR259: =MATCH(LARGE($BQ$252:$BQ$282,ROW()-251),$BQ$252:$BQ278,0) -> 11 | BU259: 8 | BV259: 1 | BW259: 2 | BX259: 7 | BY259: 0 | BZ259: 0 | CA259: 10 | CB259: LCP | CC259: 10 | CD259: 2 | CE259: 13 | CF259: 4 | CG259: 6 | CI259: 0.12 | CJ259: =MATCH(LARGE($CI$252:$CI$282,ROW()-251),$CI$252:$CI278,0) -> 10
A260: 9 | B260: 3 | C260: 2 | D260: 1 | E260: 0 | F260: 1 | G260: 7 | H260: LCP | I260: 16 | J260: 1 | K260: 12 | L260: 10 | M260: 15 | O260: 2.11 | S260: 9 | T260: 1 | U260: 2 | V260: 3 | W260: 2 | X260: 1 | Y260: 9 | Z260: CTY | AA260: 1 | AB260: 7 | AC260: 10 | AD260: 3 | AE260: 14 | AG260: 4.11 | AK260: 9 | AL260: 5 | AM260: 0 | AN260: 1 | AO260: 2 | AP260: 4 | AQ260: 12 | AR260: Beaumont | AS260: 9 | AT260: 4 | AU260: 2 | AV260: 8 | AW260: 5 | AY260: 7.11 | AZ260: =MATCH(LARGE($O$5:$O$24,ROW()-4),$O$5:$O279,0) ->  | BC260: 9 | BD260: 3 | BE260: 2 | BF260: 1 | BG260: 3 | BH260: 2 | BI260: 11 | BJ260: LYON | BK260: 1 | BL260: 14 | BM260: 2 | BN260: 9 | BO260: 11 | BQ260: 7.12 | BR260: =MATCH(LARGE($BQ$252:$BQ$282,ROW()-251),$BQ$252:$BQ279,0) -> 5 | BU260: 9 | BV260: 2 | BW260: 1 | BX260: 4 | BY260: 3 | BZ260: 0 | CA260: 10 | CB260: VCS | CC260: 5 | CD260: 8 | CE260: 9 | CF260: 14 | CG260: 16 | CI260: 3.11 | CJ260: =MATCH(LARGE($CI$252:$CI$282,ROW()-251),$CI$252:$CI279,0) -> 15
A261: 10 | B261: 2 | C261: 0 | D261: 2 | E261: 4 | F261: 2 | G261: 10 | H261: VCS/n | I261: 9 | J261: 11 | K261: 7 | L261: 8 | M261: 4 | O261: 5.1 | S261: 10 | T261: 2 | U261: 1 | V261: 3 | W261: 2 | X261: 0 | Y261: 8 | Z261: Toulouse | AA261: 10 | AB261: 8 | AC261: 4 | AD261: 9 | AE261: 3 | AG261: 3.1 | AK261: 10 | AL261: 1 | AM261: 2 | AN261: 2 | AO261: 1 | AP261: 3 | AQ261: 9 | AR261: VCY | AS261: 17 | AT261: 7 | AU261: 6 | AV261: 9 | AW261: 5 | AY261: 4.1 | AZ261: =MATCH(LARGE($O$5:$O$24,ROW()-4),$O$5:$O280,0) ->  | BC261: 10 | BD261: 2 | BE261: 2 | BF261: 3 | BG261: 1 | BH261: 4 | BI261: 12 | BJ261: VCS | BK261: 4 | BL261: 9 | BM261: 8 | BN261: 6 | BO261: 14 | BQ261: 5.11 | BR261: =MATCH(LARGE($BQ$252:$BQ$282,ROW()-251),$BQ$252:$BQ280,0) -> 6 | BU261: 10 | BV261: 1 | BW261: 1 | BX261: 2 | BY261: 3 | BZ261: 2 | CA261: 9 | CB261: VCS | CC261: 2 | CD261: 3 | CE261: 9 | CF261: 17 | CG261: 5 | CI261: 1.1 | CJ261: =MATCH(LARGE($CI$252:$CI$282,ROW()-251),$CI$252:$CI280,0) -> 1
A262: 11 | B262: 4 | C262: 2 | D262: 1 | E262: 3 | F262: 1 | G262: 11 | H262: VCS | I262: 2 | J262: 7 | K262: 3 | L262: 10 | M262: 11 | O262: 6.09 | S262: 11 | T262: 2 | U262: 0 | V262: 0 | W262: 3 | X262: 4 | Y262: 9 | Z262: LCP | AA262: 15 | AB262: 3 | AC262: 9 | AD262: 2 | AE262: 11 | AG262: 4.09 | AK262: 11 | AL262: 2 | AM262: 0 | AN262: 3 | AO262: 1 | AP262: 2 | AQ262: 8 | AR262: VCS | AS262: 7 | AT262: 16 | AU262: 9 | AV262: 12 | AW262: 10 | AY262: 3.09 | AZ262: =MATCH(LARGE($O$5:$O$24,ROW()-4),$O$5:$O281,0) ->  | BC262: 11 | BD262: 2 | BE262: 1 | BF262: 2 | BG262: 0 | BH262: 5 | BI262: 10 | BJ262: VCS | BK262: 6 | BL262: 9 | BM262: 5 | BN262: 4 | BO262: 14 | BQ262: 5.1 | BR262: =MATCH(LARGE($BQ$252:$BQ$282,ROW()-251),$BQ$252:$BQ281,0) -> 7 | BU262: 11 | BV262: 2 | BW262: 1 | BX262: 1 | BY262: 2 | BZ262: 1 | CA262: 7 | CB262: LCP | CC262: 1 | CD262: 4 | CE262: 8 | CF262: 14 | CG262: 12 | CI262: 0.09 | CJ262: =MATCH(LARGE($CI$252:$CI$282,ROW()-251),$CI$252:$CI281,0) -> 8
A263: 12 | B263: 2 | C263: 1 | D263: 4 | E263: 1 | F263: 4 | G263: 12 | H263: LCP | I263: 3 | J263: 5 | K263: 13 | L263: 11 | M263: 10 | O263: 7.08 | S263: 12 | T263: 5 | U263: 1 | V263: 1 | W263: 1 | X263: 1 | Y263: 9 | Z263: VICHY | AA263: 2 | AB263: 17 | AC263: 3 | AD263: 14 | AE263: 15 | AG263: 5.08 | AK263: 12 | AL263: 2 | AM263: 1 | AN263: 4 | AO263: 2 | AP263: 2 | AQ263: 11 | AR263: VCS | AS263: 8 | AT263: 17 | AU263: 4 | AV263: 6 | AW263: 5 | AY263: 6.08 | AZ263: =MATCH(LARGE($O$5:$O$24,ROW()-4),$O$5:$O282,0) ->  | BC263: 12 | BD263: 3 | BE263: 1 | BF263: 1 | BG263: 1 | BH263: 4 | BI263: 10 | BJ263: LCP | BK263: 5 | BL263: 6 | BM263: 18 | BN263: 7 | BO263: 11 | BQ263: 2.09 | BR263: =MATCH(LARGE($BQ$252:$BQ$282,ROW()-251),$BQ$252:$BQ282,0) -> 13 | BU263: 12 | BV263: 2 | BW263: 1 | BX263: 0 | BY263: 0 | BZ263: 2 | CA263: 5 | CB263: MLF | CC263: 9 | CD263: 1 | CE263: 15 | CF263: 6 | CG263: 13 | CI263: 0.08 | CJ263: =MATCH(LARGE($CI$252:$CI$282,ROW()-251),$CI$252:$CI282,0) -> 11
A264: 13 | B264: 1 | C264: 1 | D264: 2 | E264: 2 | F264: 3 | G264: 9 | H264: MLF | I264: 2 | J264: 3 | K264: 11 | L264: 6 | M264: 12 | O264: 4.07 | S264: 13 | T264: 4 | U264: 2 | V264: 0 | W264: 1 | X264: 0 | Y264: 7 | Z264: VCSn | AA264: 13 | AB264: 9 | AC264: 16 | AD264: 15 | AE264: 5 | AG264: 2.07 | AK264: 13 | AL264: 2 | AM264: 4 | AN264: 1 | AO264: 0 | AP264: 1 | AQ264: 8 | AR264: LCP | AS264: 7 | AT264: 14 | AU264: 1 | AV264: 2 | AW264: 10 | AY264: 3.07 | AZ264: =MATCH(LARGE($O$5:$O$24,ROW()-4),$O$5:$O283,0) ->  | BC264: 13 | BD264: 0 | BE264: 2 | BF264: 2 | BG264: 2 | BH264: 1 | BI264: 7 | BJ264: MLF | BK264: 2 | BL264: 5 | BM264: 9 | BN264: 14 | BO264: 4 | BQ264: 3.08 | BR264: =MATCH(LARGE($BQ$252:$BQ$282,ROW()-251),$BQ$252:$BQ283,0) -> 2 | BU264: 13 | BV264: 1 | BW264: 3 | BX264: 2 | BY264: 2 | BZ264: 4 | CA264: 12 | CB264: CTY | CC264: 6 | CD264: 4 | CE264: 8 | CF264: 14 | CG264: 13 | CI264: 3.07 | CJ264: =MATCH(LARGE($CI$252:$CI$282,ROW()-251),$CI$252:$CI283,0) -> 12
A265: 14 | B265: 3 | C265: 1 | D265: 1 | E265: 3 | F265: 1 | G265: 9 | H265: SCLD | I265: 10 | J265: 9 | K265: 16 | L265: 7 | M265: 12 | O265: 4.06 | S265: 14 | T265: 0 | U265: 2 | V265: 2 | W265: 2 | X265: 3 | Y265: 9 | Z265: VCS | AA265: 13 | AB265: 10 | AC265: 5 | AD265: 15 | AE265: 4 | AG265: 5.06 | AK265: 14 | AL265: 2 | AM265: 5 | AN265: 1 | AO265: 0 | AP265: 2 | AQ265: 10 | AR265: MLF | AS265: 14 | AT265: 3 | AU265: 10 | AV265: 4 | AW265: 9 | AY265: 5.06 | AZ265: =MATCH(LARGE($O$5:$O$24,ROW()-4),$O$5:$O284,0) ->  | BC265: 14 | BD265: 0 | BE265: 2 | BF265: 0 | BG265: 3 | BH265: 3 | BI265: 8 | BJ265: CTY | BK265: 6 | BL265: 15 | BM265: 2 | BN265: 16 | BO265: 8 | BQ265: 8.07 | BR265: =MATCH(LARGE($BQ$252:$BQ$282,ROW()-251),$BQ$252:$BQ284,0) -> 12 | BU265: 14 | BV265: 1 | BW265: 3 | BX265: 2 | BY265: 4 | BZ265: 6 | CA265: 16 | CB265: Caen | CC265: 16 | CD265: 9 | CE265: 14 | CF265: 4 | CG265: 12 | CI265: 4.06 | CJ265: =MATCH(LARGE($CI$252:$CI$282,ROW()-251),$CI$252:$CI284,0) -> 2
A266: 15 | B266: 1 | C266: 1 | D266: 1 | E266: 4 | F266: 2 | G266: 9 | H266: ATL | I266: 11 | J266: 2 | K266: 1 | L266: 12 | M266: 18 | O266: 4.05 | S266: 15 | T266: 2 | U266: 2 | V266: 1 | W266: 2 | X266: 3 | Y266: 10 | Z266: LCP | AA266: 7 | AB266: 15 | AC266: 10 | AD266: 11 | AE266: 14 | AG266: 6.05 | AK266: 15 | AL266: 0 | AM266: 2 | AN266: 2 | AO266: 2 | AP266: 1 | AQ266: 7 | AR266: SCLD | AS266: 16 | AT266: 13 | AU266: 1 | AV266: 15 | AW266: 12 | AY266: 2.05 | AZ266: =MATCH(LARGE($O$5:$O$24,ROW()-4),$O$5:$O285,0) ->  | BC266: 15 | BD266: 1 | BE266: 3 | BF266: 4 | BG266: 0 | BH266: 5 | BI266: 13 | BJ266: Caen | BK266: 7 | BL266: 14 | BM266: 15 | BN266: 9 | BO266: 10 | BQ266: -0.94 | BR266: =MATCH(LARGE($BQ$252:$BQ$282,ROW()-251),$BQ$252:$BQ285,0) -> 15 | BU266: 15 | BV266: 1 | BW266: 3 | BX266: 3 | BY266: 1 | BZ266: 2 | CA266: 10 | CB266: VCY | CC266: 11 | CD266: 8 | CE266: 2 | CF266: 4 | CG266: 6 | CI266: 1.05 | CJ266: =MATCH(LARGE($CI$252:$CI$282,ROW()-251),$CI$252:$CI285,0) -> 16
A267: 16 | B267: 2 | C267: 2 | D267: 5 | E267: 0 | F267: 0 | G267: 9 | H267: Lion d'Angers | I267: 12 | J267: 8 | K267: 13 | L267: 11 | M267: 1 | O267: 4.04 | S267: 16 | T267: 0 | U267: 2 | V267: 5 | W267: 1 | X267: 0 | Y267: 8 | Z267: MLF | AA267: 12 | AB267: 2 | AC267: 9 | AD267: 14 | AE267: 3 | AG267: 3.04 | AK267: 16 | AL267: 1 | AM267: 2 | AN267: 3 | AO267: 3 | AP267: 0 | AQ267: 9 | AR267: Caen | AS267: 3 | AT267: 15 | AU267: 13 | AV267: 8 | AW267: 9 | AY267: 4.04 | AZ267: =MATCH(LARGE($O$5:$O$24,ROW()-4),$O$5:$O286,0) ->  | BC267: 16 | BD267: 0 | BE267: 0 | BF267: 2 | BG267: 2 | BH267: 0 | BI267: 4 | BJ267: VCY | BK267: 15 | BL267: 3 | BM267: 6 | BN267: 5 | BO267: 12 | BQ267: -3.95 | BR267: =MATCH(LARGE($BQ$252:$BQ$282,ROW()-251),$BQ$252:$BQ286,0) -> 17 | BU267: 16 | BV267: 5 | BW267: 0 | BX267: 0 | BY267: 1 | BZ267: 1 | CA267: 7 | CB267: VCS | CC267: 14 | CD267: 12 | CE267: 4 | CF267: 9 | CG267: 13 | CI267: -0.96 | CJ267: =MATCH(LARGE($CI$252:$CI$282,ROW()-251),$CI$252:$CI286,0) -> 7
A268: 17 | B268: 1 | C268: 0 | D268: 1 | E268: 2 | F268: 0 | G268: 4 | H268: VCS/n | I268: 15 | J268: 9 | K268: 7 | L268: 10 | M268: 8 | O268: -0.97 | S268: 17 | T268: 0 | U268: 2 | V268: 0 | W268: 0 | X268: 0 | Y268: 2 | Z268: ATL | AA268: 11 | AB268: 2 | AC268: 16 | AD268: 4 | AE268: 7 | AG268: -2.97 | AK268: 17 | AL268: 2 | AM268: 1 | AN268: 0 | AO268: 0 | AP268: 1 | AQ268: 4 | AR268: LYON | AS268: 13 | AT268: 2 | AU268: 12 | AV268: 6 | AW268: 4 | AY268: -0.97 | AZ268: =MATCH(LARGE($O$5:$O$24,ROW()-4),$O$5:$O287,0) ->  | BC268: 17 | BD268: 0 | BE268: 0 | BF268: 0 | BG268: 1 | BH268: 0 | BI268: 1 | BJ268: VCS | BK268: 10 | BL268: 11 | BM268: 1 | BN268: 9 | BO268: 12 | BQ268: -2.96 | BR268: =MATCH(LARGE($BQ$252:$BQ$282,ROW()-251),$BQ$252:$BQ287,0) -> 16 | BU268: 17 | BV268: 1 | BW268: 0 | BX268: 0 | BY268: 2 | BZ268: 0 | CA268: 3 | CB268: MLF | CC268: 3 | CD268: 11 | CE268: 1 | CF268: 13 | CG268: 14 | CI268: -2.97 | CJ268: =MATCH(LARGE($CI$252:$CI$282,ROW()-251),$CI$252:$CI287,0) -> 17
A269: 18 | B269: 0 | C269: 1 | D269: 1 | E269: 0 | F269: 2 | G269: 4 | H269: LCP | I269: 8 | J269: 18 | K269: 10 | L269: 17 | M269: 2 | O269: -0.98 | S269: 18 | T269: 0 | U269: 0 | V269: 0 | W269: 1 | X269: 0 | Y269: 1 | Z269: Caen | AA269: 12 | AB269: 2 | AC269: 15 | AD269: 4 | AE269: 7 | AG269: -3.98 | AK269: 18 | AL269: 1 | AM269: 0 | AN269: 0 | AO269: 1 | AP269: 0 | AQ269: 2 | AR269: VCS | AS269: 2 | AT269: 13 | AU269: 3 | AV269: 10 | AW269: 9 | AY269: -2.98 | AZ269: =MATCH(LARGE($O$5:$O$24,ROW()-4),$O$5:$O288,0) ->  | BC269: 18 | BD269: 0 | BE269: 0 | BF269: 1 | BG269: 1 | BH269: 0 | BI269: 2 | BJ269: MLF | BK269: 8 | BL269: 2 | BM269: 4 | BN269: 14 | BO269: 15 | BQ269: -4.97 | BR269: =MATCH(LARGE($BQ$252:$BQ$282,ROW()-251),$BQ$252:$BQ288,0) -> 18 | BU269: 18 | BV269: 0 | BW269: 0 | BX269: 0 | BY269: 0 | BZ269: 2 | CA269: 2 | CB269: ATL | CC269: 15 | CD269: 3 | CE269: 1 | CF269: 10 | CG269: 4 | CI269: -2.98 | CJ269: =MATCH(LARGE($CI$252:$CI$282,ROW()-251),$CI$252:$CI288,0) -> 18
A270: 19 | B270: 0 | C270: 0 | D270: 0 | E270: 0 | F270: 0 | G270: 0 | H270: VCS | I270: 14 | J270: 7 | K270: 9 | L270: 11 | M270: 6 | O270: -4.99 | S270: 19 | T270: 1 | U270: 0 | V270: 0 | W270: 0 | X270: 0 | Y270: 1 | Z270: LCP | AA270: 12 | AB270: 14 | AC270: 3 | AD270: 1 | AE270: 15 | AG270: -3.99 | AK270: 19 | AL270: 0 | AM270: 0 | AN270: 0 | AO270: 1 | AP270: 0 | AQ270: 1 | AR270: MLF | AS270: 12 | AT270: 13 | AU270: 6 | AV270: 4 | AW270: 8 | AY270: -3.99 | AZ270: =MATCH(LARGE($O$5:$O$24,ROW()-4),$O$5:$O289,0) ->  | BC270: 19 | BD270: 0 | BE270: 0 | BF270: 0 | BG270: 0 | BH270: 0 | BI270: 0 | BJ270: ATL | BK270: 11 | BL270: 3 | BM270: 10 | BN270: 12 | BO270: 15 | BQ270: -4.98 | BR270: =MATCH(LARGE($BQ$252:$BQ$282,ROW()-251),$BQ$252:$BQ289,0) -> 19 | BU270: 19 | BV270: 0 | BW270: 0 | BX270: 0 | BY270: 0 | BZ270: 0 | CA270: 0 | CB270: SCLD | CC270: 6 | CD270: 7 | CE270: 10 | CF270: 2 | CG270: 3 | CI270: -4.99 | CJ270: =MATCH(LARGE($CI$252:$CI$282,ROW()-251),$CI$252:$CI289,0) -> 19
A271: 20 | B271: 0 | C271: 0 | D271: 0 | E271: 0 | F271: 0 | G271: 0 | H271: VCS | I271: 11 | J271: 12 | K271: 16 | L271: 1 | M271: 4 | O271: -5 | S271: 20 | T271: 0 | U271: 0 | V271: 0 | W271: 0 | X271: 1 | Y271: 1 | Z271: VCSn | AA271: 10 | AB271: 13 | AC271: 7 | AD271: 11 | AE271: 8 | AG271: -4 | AK271: 20 | AL271: 0 | AM271: 0 | AN271: 0 | AO271: 0 | AP271: 0 | AQ271: 0 | AR271: ATL | AS271: 11 | AT271: 2 | AU271: 4 | AV271: 19 | AW271: 5 | AY271: -5 | AZ271: =MATCH(LARGE($O$5:$O$24,ROW()-4),$O$5:$O290,0) ->  | BC271: 20 | BD271: 0 | BE271: 0 | BF271: 0 | BG271: 0 | BH271: 0 | BI271: 0 | BJ271: SCLD | BK271: 1 | BL271: 15 | BM271: 5 | BN271: 4 | BO271: 11 | BQ271: -4.99 | BR271: =MATCH(LARGE($BQ$252:$BQ$282,ROW()-251),$BQ$252:$BQ290,0) -> 20 | BU271: 20 | BV271: 0 | BW271: 0 | BX271: 0 | BY271: 0 | BZ271: 0 | CA271: 0 | CB271: LCP | CC271: 11 | CD271: 3 | CE271: 1 | CF271: 16 | CG271: 10 | CI271: -5 | CJ271: =MATCH(LARGE($CI$252:$CI$282,ROW()-251),$CI$252:$CI290,0) -> 20
A272: 21 | B272: 30 | C272: 30 | D272: 30 | E272: 30 | F272: 30 | G272: 150 | H272: MLF | I272: 11 | J272: 7 | K272: 16 | L272: 2 | M272: 5 | S272: 21 | T272: 30 | U272: 30 | V272: 30 | W272: 30 | X272: 30 | Y272: 150 | Z272: MLF | AA272: 8 | AB272: 9 | AC272: 7 | AD272: 10 | AE272: 3 | AK272: 21 | AL272: 31 | AM272: 31 | AN272: 31 | AO272: 31 | AP272: 31 | AQ272: 155 | AR272: CPGNE | AS272: 9 | AT272: 14 | AU272: 7 | AV272: 12 | AW272: 6 | BC272: 21 | BD272: 31 | BE272: 31 | BF272: 31 | BG272: 31 | BH272: 31 | BI272: 155 | BJ272: LCP | BK272: 9 | BL272: 1 | BM272: 11 | BN272: 2 | BO272: 3 | BQ272: -5 | BU272: 21 | BV272: =SUM(BV252:BV271) -> 31 | BW272: =SUM(BW252:BW271) -> 31 | BX272: =SUM(BX252:BX271) -> 31 | BY272: =SUM(BY252:BY271) -> 31 | BZ272: =SUM(BZ252:BZ271) -> 31 | CA272: =SUM($BV272:$BZ272) -> 155 | CB272: Croisélar | CC272: 3 | CD272: 15 | CE272: 8 | CF272: 11 | CG272: 14 | CI272: =COUNTIF($CC$252:$CG$282,ROW()-250)+((22-ROW()-250)/100) -> -5
A273: 22 | H273: Le Croisé Lar. | I273: 2 | J273: 3 | K273: 6 | L273: 13 | M273: 7 | S273: 22 | Z273: LCP | AA273: 5 | AB273: 3 | AC273: 12 | AD273: 6 | AE273: 2 | AK273: 22 | AR273: LCP | AS273: 3 | AT273: 10 | AU273: 8 | AV273: 16 | AW273: 14 | BC273: 22 | BJ273: La Capelle | BK273: 7 | BL273: 1 | BM273: 13 | BN273: 10 | BO273: 11 | BQ273: -5.01 | BU273: 22 | CB273: ATL | CC273: 16 | CD273: 13 | CE273: 9 | CF273: 14 | CG273: 2
A274: 23 | H274: VCS | I274: 8 | J274: 14 | K274: 15 | L274: 2 | M274: 12 | S274: 23 | Z274: SCLD | AA274: 12 | AB274: 13 | AC274: 6 | AD274: 9 | AE274: 11 | AK274: 23 | AR274: Croisé L | AS274: 18 | AT274: 2 | AU274: 16 | AV274: 11 | AW274: 8 | BC274: 23 | BJ274: ATL | BK274: 5 | BL274: 7 | BM274: 2 | BN274: 4 | BO274: 15 | BQ274: =COUNTIF($BK$252:$BO$282,ROW()-250)+((22-ROW()-250)/100) -> -5.02 | BU274: 23 | CB274: VCS | CC274: 8 | CD274: 14 | CE274: 3 | CF274: 6 | CG274: 13
A275: 24 | H275: VCS/n | I275: 11 | J275: 6 | K275: 12 | L275: 15 | M275: 9 | S275: 24 | Z275: CPGNE | AA275: 5 | AB275: 14 | AC275: 16 | AD275: 7 | AE275: 11 | AK275: 24 | AR275: ATL | AS275: 8 | AT275: 6 | AU275: 14 | AV275: 16 | AW275: 11 | BC275: 24 | BJ275: VCS | BK275: 7 | BL275: 4 | BM275: 15 | BN275: 17 | BO275: 9 | BQ275: -5.03 | BU275: 24 | CB275: EGN | CC275: 16 | CD275: 6 | CE275: 13 | CF275: 10 | CG275: 2
A276: 25 | H276: ATL | I276: 6 | J276: 16 | K276: 10 | L276: 2 | M276: 8 | S276: 25 | Z276: Le Croisé Laoche | AA276: 13 | AB276: 16 | AC276: 1 | AD276: 7 | AE276: 15 | AK276: 25 | AR276: VCS | AS276: 5 | AT276: 13 | AU276: 2 | AV276: 7 | AW276: 4 | BC276: 25 | BJ276: EGN | BK276: 4 | BL276: 15 | BM276: 2 | BN276: 6 | BO276: 5 | BQ276: -5.04 | BU276: 25 | CB276: LCP | CC276: 5 | CD276: 14 | CE276: 8 | CF276: 3 | CG276: 4
A277: 26 | H277: VCS | I277: 10 | J277: 4 | K277: 16 | L277: 15 | M277: 1 | S277: 26 | Z277: LCP | AA277: 13 | AB277: 12 | AC277: 8 | AD277: 7 | AE277: 3 | AK277: 26 | AR277: EGN | AS277: 12 | AT277: 7 | AU277: 10 | AV277: 4 | AW277: 15 | BC277: 26 | BJ277: LCP | BK277: 5 | BL277: 12 | BM277: 2 | BN277: 18 | BO277: 13 | BQ277: -5.05 | BU277: 26 | CB277: CPGNE | CC277: 3 | CD277: 6 | CE277: 10 | CF277: 7 | CG277: 15
... 237 more rows

Sheet ARRIVEES
G1: Appel tableaux | R1: =TODAY() -> 2014-08-08 | AN1: =TODAY() -> 2014-08-08 | BK1: =TODAY() -> 2014-08-08 | CG1: =TODAY() -> 2014-08-08 | DC1: =TODAY() -> 2014-08-08 | DY1: =TODAY() -> 2014-08-08 | EU1: =TODAY() -> 2014-08-08 | FQ1: =TODAY() -> 2014-08-08 | GM1: =TODAY() -> 2014-08-08 | HH1: =TODAY() -> 2014-08-08 | ID1: =TODAY() -> 2014-08-08 | JB1: =TODAY() -> 2014-08-08 | JX1: =TODAY() -> 2014-08-08 | KU1: =TODAY() -> 2014-08-08 | LL1: =TODAY() -> 2014-08-08 | MM1: =TODAY() -> 2014-08-08 | NX1: JANVIER | OC1: 2014 | OF1: FEVRIER | OO1: MARS | OV1: 2014 | OX1: AVRIL | PG1: MAI | PQ1: JUIN | PW1: 2014 | PZ1: JUILLET | QI1: AOUT | QR1: SEPTEMBRE | RA1: OCTOBRE | RG1: 2014 | RJ1: NOVEMBRE | RS1: DECEMBRE | SA1: Année | SE1: 2014 | SK1: Jan | SP1: Fév | SU1: Mar | SZ1: Avr | TE1: Mai | TJ1: Jun | TO1: Jul | TT1: Aou | TY1: Sep | UD1: Oct | UI1: Nov | UN1: Déc
L2: VCS | M2: C1 | N2: C2 | O2: C3 | P2: C4 | Q2: C5 | S2: N° | T2: C1 | U2: C2 | V2: C3 | W2: C4 | X2: C5 | Y2: Ttl | Z2: 2010/14 | AI2: C1 | AJ2: C2 | AK2: C3 | AL2: C4 | AM2: C5 | AO2: N° | AP2: C1 | AQ2: C2 | AR2: C3 | AS2: C4 | AT2: C5 | AU2: Ttl | AV2: 2010/14 | BD2: 2010 | BE2: JANVIER | BF2: C1 | BG2: C2 | BH2: C3 | BI2: C4 | BJ2: C5 | BK2: R | BL2: N° | BM2: C1 | BN2: C2 | BO2: C3 | BP2: C4 | BQ2: C5 | BR2: Ttl | BS2: 2010/14 | BZ2: 2009 | CA2: LCP | CB2: C1 | CC2: C2 | CD2: C3 | CE2: C4 | CF2: C5 | CH2: N° | CI2: C1 | CJ2: C2 | CK2: C3 | CL2: C4 | CM2: C5 | CN2: Ttl | CO2: 2009/14 | CW2: JANVIER | CX2: C1 | CY2: C2 | CZ2: C3 | DA2: C4 | DB2: C5 | DD2: N° | DE2: C1 | DF2: C2 | DG2: C3 | DH2: C4 | DI2: C5 | DJ2: Ttl | DK2: 2010/14 | DR2: 2010 | DT2: C1 | DU2: C2 | DV2: C3 | DW2: C4 | DX2: C5 | DZ2: N° | EA2: C1 | EB2: C2 | EC2: C3 | ED2: C4 | EE2: C5 | EF2: Ttl | EG2: 2010/12 | EP2: C1 | EQ2: C2 | ER2: C3 | ES2: C4 | ET2: C5 | EV2: N° | EW2: C1 | EX2: C2 | EY2: C3 | EZ2: C4 | FA2: C5 | FB2: Ttl | FC2: 2009/14 | FJ2: 2010 | FL2: C1 | FM2: C2 | FN2: C3 | FO2: C4 | FP2: C5 | FR2: N° | FS2: C1 | FT2: C2 | FU2: C3 | FV2: C4 | FW2: C5 | FX2: Ttl | FY2: 2010/14 | GH2: C1 | GI2: C2 | GJ2: C3 | GK2: C4 | GL2: C5 | GN2: N° | GO2: C1 | GP2: C2 | GQ2: C3 | GR2: C4 | GS2: C5 | GT2: Ttl | GU2: 2010/14 | HB2: 2010 | HD2: C1 | HE2: C2 | HF2: C3 | HG2: C4 | HH2: C5 | HJ2: N° | HK2: C1 | HL2: C2 | HM2: C3 | HN2: C4 | HO2: C5 | HP2: Ttl | HQ2: 2010/14 | HZ2: C1 | IA2: C2 | IB2: C3 | IC2: C4 | ID2: C5 | IF2: N° | IG2: C1 | IH2: C2 | II2: C3 | IJ2: C4 | IK2: C5 | IL2: Ttl | IM2: 2010/14 | IV2: C1 | IW2: C2 | IX2: C3 | IY2: C4 | IZ2: C5 | JB2: N° | JC2: C1 | JD2: C2 | JE2: C3 | JF2: C4 | JG2: C5 | JH2: Ttl | JI2: 2010/14 | JP2: 2010 | JR2: C1 | JS2: C2 | JT2: C3 | JU2: C4 | JV2: C5 | JX2: N° | JY2: C1 | JZ2: C2 | KA2: C3 | KB2: C4 | KC2: C5 | KD2: Ttl | KE2: 2010/14 | KL2: 2010 | KN2: C1 | KO2: C2 | KP2: C3 | KQ2: C4 | KR2: C5 | KT2: N° | KU2: C1 | KV2: C2 | KW2: C3 | KX2: C4 | KY2: C5 | KZ2: Ttl | LA2: 2010/14 | LJ2: C1 | LK2: C2 | LL2: C3 | LM2: C4 | LN2: C5 | LP2: N° | LQ2: C1 | LR2: C2 | LS2: C3 | LT2: C4 | LU2: C5 | LV2: Ttl | LW2: 2010/14 | MF2: C1 | MG2: C2 | MH2: C3 | MI2: C4 | MJ2: C5 | ML2: N° | MM2: C1 | MN2: C2 | MO2: C3 | MP2: C4 | MQ2: C5 | MR2: Ttl | MS2: 2010/14 | NA2: HIPPOS | NB2: C1 | NC2: C2 | ND2: C3 | NE2: C4 | NF2: C5 | NH2: N° | NI2: C1 | NJ2: C2 | NK2: C3 | NL2: C4 | NM2: C5 | NN2: Ttl | NO2: 2009 | NP2: 2010 | NQ2: 2 ans | NR2: Clt | NS2: mois | NT2: Clt | NV2: Date | NW2: Mois | NX2: Hippo | NY2: Arrivée C 1 | NZ2: C2 | OA2: C3 | OB2: C4 | OC2: C5 | OD2: C5 | OE2: Date | OF2: Mois | OG2: Hippo | OH2: Arrivée C1 | OI2: C2 | OJ2: C3 | OK2: C4 | OL2: C5 | ON2: Date | OO2: Mois | OP2: Hippo | OQ2: Arrivée C 1 | OR2: C2 | OS2: C3 | OT2: C4 | OU2: C5 | OW2: Date | OX2: Mois | OY2: Hippo | OZ2: Arrivée C 1 | PA2: C2 | PB2: C3 | PC2: C4 | PD2: C5 | PE2: C5 | PF2: Date | PG2: Mois | PH2: Hippo | PI2: Arrivée C 1 | PJ2: C2 | PK2: C3 | PL2: C4 | PM2: C5 | PO2: Date | PP2: Mois | PQ2: Hippo | PR2: Arrivée C 1 | PS2: C2 | PT2: C3 | PU2: C4 | PV2: C5 | PX2: Date | PY2: Mois | PZ2: Hippo | QA2: Arrivée C 1 | QB2: C2 | QC2: C3 | QD2: C4 | QE2: C5 | QG2: Date | QH2: Mois | QI2: Hippo | QJ2: Arrivée C 1 | QK2: C2 | QL2: C3 | QM2: C4 | QN2: C5 | QP2: Date | QQ2: Mois | QR2: Hippo | QS2: Arrivée C 1 | QT2: C2 | QU2: C3 | QV2: C4 | QW2: C5 | QY2: Date | QZ2: Mois | RA2: Hippo | RB2: Arrivée C 1 | RC2: C2 | RD2: C3 | RE2: C4 | RF2: C5 | RH2: Date | RI2: Mois | RJ2: Hippo | RK2: Arrivée C 1 | RL2: C2 | RM2: C3 | RN2: C4 | RO2: C5 | RQ2: Date | RR2: Mois | RS2: Hippo | RT2: Arrivée C 1 | RU2: C2 | RV2: C3 | RW2: C4 | RX2: C5 | SA2: ttx | SB2: Clt | SF2: X années | SI2: 2014
B3: VCS | E3: 2012 | F3: rz3 | H3: Hippos | L3: JANVIER | M3: 14 | N3: 11 | O3: 2 | P3: 6 | Q3: 10 | S3: 1 | T3: =COUNTIF(M$3:M$566,$S3) -> 22 | U3: =COUNTIF(N$3:N$566,$S3) -> 22 | V3: =COUNTIF(O$3:O$566,$S3) -> 18 | W3: =COUNTIF(P$3:P$566,$S3) -> 26 | X3: =COUNTIF(Q$3:Q$566,$S3) -> 40 | Y3: =X3+W3+V3+U3+T3 -> 128 | Z3: =COUNTIF($M$3:$Q$566,ROW()-2)+((22-ROW()-2)/100) -> 128.17 | AA3: =MATCH(LARGE($Z$3:$Z$22,ROW()-2),$Z$3:$Z$22,0) -> 4 | AG3: 1 | AH3: MARS | AI3: 11 | AJ3: 5 | AK3: 3 | AL3: 2 | AM3: 15 | AO3: 1 | AP3: =COUNTIF(AI$3:AI$150,$AO3) -> 8 | AQ3: =COUNTIF(AJ$3:AJ$150,$AO3) -> 5 | AR3: =COUNTIF(AK$3:AK$150,$AO3) -> 11 | AS3: =COUNTIF(AL$3:AL$150,$AO3) -> 6 | AT3: =COUNTIF(AM$3:AM$150,$AO3) -> 7 | AU3: =AT3+AS3+AR3+AQ3+AP3 -> 37 | AV3: =COUNTIF($AI$3:$AM$133,ROW()-2)+((22-ROW()-2)/100) -> 37.17 | AW3: =MATCH(LARGE($AV$3:$AV$22,ROW()-2),$AV$3:$AV$22,0) -> 3 | BE3: C/M | BF3: 5 | BG3: 8 | BH3: 1 | BI3: 13 | BJ3: 2 | BL3: 1 | BM3: =COUNTIF(BF$3:BF$120,$BL3) -> 6 | BN3: =COUNTIF(BG$3:BG$120,$BL3) -> 7 | BO3: =COUNTIF(BH$3:BH$120,$BL3) -> 11 | BP3: =COUNTIF(BI$3:BI$120,$BL3) -> 4 | BQ3: =COUNTIF(BJ$3:BJ$120,$BL3) -> 4 | BR3: =BQ3+BP3+BO3+BN3+BM3 -> 32 | BS3: =COUNTIF($BF$3:$BJ$120,ROW()-2)+((22-ROW()-2)/100) -> 32.17 | BT3: =MATCH(LARGE($BS$3:$BS$22,ROW()-2),$BS$3:$BS$22,0) -> 3 | CB3: 3 | CC3: 16 | CD3: 10 | CE3: 14 | CF3: 5 | CH3: 1 | CI3: =COUNTIF(CB$3:CB$166,$CH3) -> 12 | CJ3: =COUNTIF(CC$3:CC$166,$CH3) -> 15 | CK3: =COUNTIF(CD$3:CD$166,$CH3) -> 9 | CL3: =COUNTIF(CE$3:CE$166,$CH3) -> 9 | CM3: =COUNTIF(CF$3:CF$166,$CH3) -> 5 | CN3: =CM3+CL3+CK3+CJ3+CI3 -> 50 | CO3: =COUNTIF($CB$3:$CF$166,ROW()-2)+((22-ROW()-2)/100) -> 50.17 | CP3: =MATCH(LARGE($CO$3:$CO$22,ROW()-2),$CO$3:$CO$22,0) -> 14 | CW3: DVE | CX3: 13 | CY3: 8 | CZ3: 16 | DA3: 7 | DB3: 5 | DD3: 1 | DE3: =COUNTIF(CX$3:CX$100,$DD3) -> 6 | DF3: =COUNTIF(CY$3:CY$100,$DD3) -> 7 | DG3: =COUNTIF(CZ$3:CZ$100,$DD3) -> 4 | DH3: =COUNTIF(DA$3:DA$100,$DD3) -> 9 | DI3: =COUNTIF(DB$3:DB$100,$DD3) -> 7 | DJ3: =DI3+DH3+DG3+DF3+DE3 -> 33 | DK3: =COUNTIF($CX$3:$DB$66,ROW()-2)+((22-ROW()-2)/100) -> 20.17 | DL3: =MATCH(LARGE($DK$3:$DK$22,ROW()-2),$DK$3:$DK$22,0) -> 2 | DS3: MARS | DT3: 12 | DU3: 16 | DV3: 11 | DW3: 5 | DX3: 14 | DZ3: 1 | EA3: =COUNTIF(DT$3:DT$50,$DZ3) -> 1 | EB3: =COUNTIF(DU$3:DU$50,$DZ3) -> 4 | EC3: =COUNTIF(DV$3:DV$50,$DZ3) -> 2 | ED3: =COUNTIF(DW$3:DW$50,$DZ3) -> 0 | EE3: =COUNTIF(DX$3:DX$50,$DZ3) -> 3 | EF3: =EE3+ED3+EC3+EB3+EA3 -> 10 | EG3: =COUNTIF($DT$3:$DX$23,ROW()-2)+((22-ROW()-2)/100) -> 7.17 | EH3: =MATCH(LARGE($EG$3:$EG$22,ROW()-2),$EG$3:$EG$22,0) -> 3 | EN3: 2009 | EO3: Marseille | EP3: 14 | EQ3: 6 | ER3: 12 | ES3: 4 | ET3: 15 | EV3: 1 | EW3: =COUNTIF(EP$3:EP$30,$EV3) -> 2 | EX3: =COUNTIF(EQ$3:EQ$30,$EV3) -> 1 | EY3: =COUNTIF(ER$3:ER$30,$EV3) -> 1 | EZ3: =COUNTIF(ES$3:ES$30,$EV3) -> 4 | FA3: =COUNTIF(ET$3:ET$30,$EV3) -> 1 | FB3: =FA3+EZ3+EY3+EX3+EW3 -> 9 | FC3: =COUNTIF($EP$3:$ET$22,ROW()-2)+((22-ROW()-2)/100) -> 9.17 | FD3: =MATCH(LARGE($FC$3:$FC$22,ROW()-2),$FC$3:$FC$22,0) -> 2 | FK3: AVRIL | FL3: 5 | FM3: 1 | FN3: 3 | FO3: 2 | FP3: 15 | FR3: 1 | FS3: =COUNTIF(FL$3:FL$75,$FR3) -> 4 | FT3: =COUNTIF(FM$3:FM$75,$FR3) -> 3 | FU3: 5 | FV3: 3 | FW3: 2 | FX3: =FW3+FV3+FU3+FT3+FS3 -> 17 | FY3: =COUNTIF($FL$3:$FP$49,ROW()-2)+((22-ROW()-2)/100) -> 14.17 | FZ3: =MATCH(LARGE($FY$3:$FY$22,ROW()-2),$FY$3:$FY$22,0) -> 3 | GF3: 2010 | GG3: MAI | GH3: 10 | GI3: 12 | GJ3: 14 | GK3: 5 | GL3: 11 | GN3: 1 | GO3: =COUNTIF(GH$3:GH$50,$GN3) -> 1 | GP3: =COUNTIF(GI$3:GI$50,$GN3) -> 0 | GQ3: =COUNTIF(GJ$3:GJ$50,$GN3) -> 1 | GR3: =COUNTIF(GK$3:GK$50,$GN3) -> 1 | GS3: =COUNTIF(GL$3:GL$50,$GN3) -> 1 | GT3: =GS3+GR3+GQ3+GP3+GO3 -> 4 | GU3: =COUNTIF($GH$3:$GL$35,ROW()-2)+((22-ROW()-2)/100) -> 4.17 | GV3: =MATCH(LARGE($GU$3:$GU$22,ROW()-2),$GU$3:$GU$22,0) -> 2 | HC3: FEVRIER | HD3: 6 | HE3: 4 | HF3: 13 | HG3: 10 | HH3: 9 | HJ3: 1 | HK3: =COUNTIF(HD$3:HD$132,$HJ3) -> 5 | HL3: =COUNTIF(HE$3:HE$132,$HJ3) -> 11 | HM3: =COUNTIF(HF$3:HF$132,$HJ3) -> 13 | HN3: =COUNTIF(HG$3:HG$132,$HJ3) -> 7 | HO3: =COUNTIF(HH$3:HH$132,$HJ3) -> 14 | HP3: =HO3+HN3+HM3+HL3+HK3 -> 50 | HQ3: =COUNTIF(HD$3:HH$132,ROW()-2)+((22-ROW()-2)/100) -> 50.17 | HR3: =MATCH(LARGE($HQ$3:$HQ$22,ROW()-2),$HQ$3:$HQ$22,0) -> 2 | HX3: 2010 | HY3: AVRIL | HZ3: 4 | IA3: 3 | IB3: 11 | IC3: 13 | ID3: 2 | IF3: 1 | IG3: =COUNTIF(HZ$3:HZ$75,$IF3) -> 4 | IH3: =COUNTIF(IA$3:IA$75,$IF3) -> 5 | II3: =COUNTIF(IB$3:IB$75,$IF3) -> 6 | IJ3: =COUNTIF(IC$3:IC$75,$IF3) -> 4 | IK3: =COUNTIF(ID$3:ID$75,$IF3) -> 3 | IL3: =IK3+IJ3+II3+IH3+IG3 -> 22 | IM3: =COUNTIF($HZ$3:$ID$76,ROW()-2)+((22-ROW()-2)/100) -> 22.17 | IN3: =MATCH(LARGE($IM$3:$IM$22,ROW()-2),$IM$3:$IM$22,0) -> 3 | IT3: 2010 | IU3: JUILLET | IV3: 2 | IW3: 8 | IX3: 14 | IY3: 15 | IZ3: 7 | JB3: 1 | JC3: =COUNTIF(IV$3:IV$56,$JB3) -> 2 | JD3: =COUNTIF(IW$3:IW$56,$JB3) -> 1 | JE3: =COUNTIF(IX$3:IX$56,$JB3) -> 3 | JF3: =COUNTIF(IY$3:IY$56,$JB3) -> 4 | JG3: =COUNTIF(IZ$3:IZ$56,$JB3) -> 4 | JH3: =JG3+JF3+JE3+JD3+JC3 -> 14 | JI3: =COUNTIF($IV$3:$IZ$32,ROW()-2)+((22-ROW()-2)/100) -> 13.17 | JJ3: =MATCH(LARGE($JI$3:$JI$22,ROW()-2),$JI$3:$JI$22,0) -> 1 | JQ3: JANVIER | JR3: 11 | JS3: 14 | JT3: 12 | JU3: 7 | JV3: 1 | JX3: 1 | JY3: =COUNTIF(JR$3:JR$50,$JX3) -> 1 | JZ3: =COUNTIF(JS$3:JS$50,$JX3) -> 0 | KA3: =COUNTIF(JT$3:JT$50,$JX3) -> 1 | KB3: =COUNTIF(JU$3:JU$50,$JX3) -> 2 | KC3: =COUNTIF(JV$3:JV$50,$JX3) -> 3 | KD3: =KC3+KB3+KA3+JZ3+JY3 -> 7 | KE3: =COUNTIF($JR$3:$JV$29,ROW()-2)+((22-ROW()-2)/100) -> 7.17 | KF3: =MATCH(LARGE($KE$3:$KE$22,ROW()-2),$KE$3:$KE$22,0) -> 5 | KM3: MARS | KN3: 3 | KO3: 4 | KP3: 14 | KQ3: 8 | KR3: 13 | KT3: 1 | KU3: =COUNTIF(KN$3:KN$100,$KT3) -> 9 | KV3: =COUNTIF(KO$3:KO$100,$KT3) -> 5 | KW3: =COUNTIF(KP$3:KP$100,$KT3) -> 6 | KX3: =COUNTIF(KQ$3:KQ$100,$KT3) -> 6 | KY3: =COUNTIF(KR$3:KR$100,$KT3) -> 2 | KZ3: =KY3+KX3+KW3+KV3+KU3 -> 28 | LA3: =COUNTIF($KN$3:$KR$92,ROW()-2)+((22-ROW()-2)/100) -> 28.17 | LB3: =MATCH(LARGE($LA$3:$LA$22,ROW()-2),$LA$3:$LA$22,0) -> 3 | LH3: 2010 | LI3: JUIN | LJ3: 2 | LK3: 16 | LL3: 17 | LM3: 11 | LN3: 10 | LP3: 1 | LQ3: =COUNTIF(LJ$3:LJ$50,$LP3) -> 0 | LR3: =COUNTIF(LK$3:LK$50,$LP3) -> 3 | LS3: =COUNTIF(LL$3:LL$50,$LP3) -> 1 | LT3: =COUNTIF(LM$3:LM$50,$LP3) -> 1 | LU3: =COUNTIF(LN$3:LN$50,$LP3) -> 1 | LV3: =LU3+LT3+LS3+LR3+LQ3 -> 6 | LW3: =COUNTIF($LJ$3:$LN$38,ROW()-2)+((22-ROW()-2)/100) -> 6.17 | LX3: =MATCH(LARGE($LW$3:$LW$22,ROW()-2),$LW$3:$LW$22,0) -> 6 | MD3: 2010 | ME3: JUILLET | MF3: 14 | MG3: 1 | MH3: 3 | MI3: 10 | MJ3: 4 | ML3: 1 | MM3: =COUNTIF(MF$3:MF$50,$ML3) -> 2 | MN3: =COUNTIF(MG$3:MG$50,$ML3) -> 1 | MO3: =COUNTIF(MH$3:MH$50,$ML3) -> 1 | MP3: =COUNTIF(MI$3:MI$50,$ML3) -> 2 | MQ3: =COUNTIF(MJ$3:MJ$50,$ML3) -> 5 | MR3: =MQ3+MP3+MO3+MN3+MM3 -> 11 | MS3: =COUNTIF($MF$3:$MJ$45,ROW()-2)+((22-ROW()-2)/100) -> 11.17 | MT3: =MATCH(LARGE($MS$3:$MS$45,ROW()-2),$MS$3:$MS$45,0) -> 3 | MZ3: 2 | NA3: Agen | NB3: =OZ193 -> 11 | NC3: =PA193 -> 3 | ND3: =PB193 -> 13 | NE3: =PC193 -> 5 | NF3: =PD193 -> 10 | NH3: 1 | NI3: =COUNTIF(NB$3:NB$187,$NH3) -> 11 | NJ3: =COUNTIF(NC$3:NC$187,$NH3) -> 5 | NK3: =COUNTIF(ND$3:ND$187,$NH3) -> 9 | NL3: =COUNTIF(NE$3:NE$187,$NH3) -> 10 | NM3: =COUNTIF(NF$3:NF$187,$NH3) -> 10 | NN3: =NM3+NL3+NK3+NJ3+NI3 -> 45 | NQ3: =NP3+NO3 -> 0 | NR3: 1 | NS3: =NN3 -> 45 | NT3: 1 | NU3: 1 | NV3: 2014-01-01 | NW3: 9 | NX3: VCS | NY3: 12 | NZ3: 8 | OA3: 9 | OB3: 13 | OC3: 3 | OD3: 1 | OE3: 2014-02-01 | OF3: 9 | OG3: VCS | OH3: 3 | OI3: 7 | OJ3: 14 | OK3: 1 | OL3: 10 | OM3: 1 | ON3: 2014-03-01 | OO3: =COUNTIF($OQ$3:$OU$33,$OV3) -> 9 | OP3: VCS | OQ3: 5 | OR3: 15 | OS3: 1 | OT3: 14 | OU3: 16 | OV3: 1 | OW3: 2014-04-01 | OX3: 9 | OY3: EGN | OZ3: 3 | PA3: 8 | PB3: 13 | PC3: 10 | PD3: 4 | PE3: 1 | PF3: 2014-05-01 | PG3: 9 | PH3: SCLD | PI3: 9 | PJ3: 4 | PK3: 3 | PL3: 5 | PM3: 15 | PN3: 1 | PO3: 2014-06-01 | PP3: 9 | PQ3: CTY | PR3: 4 | PS3: 2 | PT3: 6 | PU3: 13 | PV3: 15 | PW3: 1 | PX3: 2014-07-01 | PY3: 9 | PZ3: CLFNE | QA3: 6 | QB3: 12 | QC3: 9 | QD3: 15 | QE3: 13 | QF3: 1 | QG3: 2014-08-01 | QH3: 9 | QI3: CBG | QJ3: 6 | QK3: 14 | QL3: 3 | QM3: 2 | QN3: 7 | QO3: 1 | QP3: 2014-09-01 | QQ3: 9 | QR3: LCP | QX3: 1 | QY3: 2014-10-01 | QZ3: 9 | RA3: Angers | RG3: 1 | RH3: 2014-11-01 | RI3: 9 | RJ3: ATL | RP3: 1 | RQ3: 2014-12-01 | RR3: 9 | RS3: ATL | RZ3: 19 | SA3: =RR3+RI3+QZ3+QQ3+QH3+PY3+PP3+PG3+OX3+OO22+OF3+NW3 -> 100 | SB3: 2 | SF3: =MATCH(LARGE($SG$3:$SG$22,ROW()-2),$SG$3:$SG$22,0) -> 3 | SG3: =COUNTIF($SK$3:$UR$219,ROW()-2)+((22-ROW()-2)/100) -> 615.17 | SH3: =COUNTIF($SK$3:$UR$33,ROW()-2)+((22-ROW()-2)/100) -> 73.17 | SI3: =MATCH(LARGE($SH$3:$SH$22,ROW()-2),$SH$3:$SH$22,0) -> 14 | SK3: =NY3 -> 12 | SL3: =NZ3 -> 8 | SM3: 9 | SN3: 13 | SO3: 3 | SP3: =OH3 -> 3 | SQ3: =OI3 -> 7 | SR3: 14 | SS3: 1 | ST3: 10 | SU3: =OQ3 -> 5 | SV3: =OR3 -> 15 | SW3: 1 | SX3: 14 | SY3: 16 | SZ3: =OZ3 -> 3 | TA3: =PA3 -> 8 | TB3: 13 | TC3: 10 | TD3: 4 | TE3: =PI3 -> 9 | TF3: =PJ3 -> 4 | TG3: 3 | TH3: 5 | TI3: 15 | TJ3: =PR3 -> 4 | TK3: =PS3 -> 2 | TL3: 6 | TM3: 13 | TN3: 15 | TO3: =QA3 -> 6 | TP3: =QB3 -> 12 | TQ3: 9 | TR3: 15 | TS3: 13 | TT3: =QJ3 -> 6 | TU3: =QK3 -> 14 | TV3: 3 | TW3: 2 | TX3: 7 | TY3: =QS3 -> 0 | TZ3: =QT3 -> 0 | UA3: 0 | UB3: 0 | UC3: 0 | UD3: =RB3 -> 0 | UE3: =RC3 -> 0 | UF3: 0 | UG3: 0 | UH3: 0 | UI3: =RK3 -> 0 | UJ3: =RL3 -> 0 | UK3: 0 | UL3: 0 | UM3: 0 | UN3: =RT3 -> 0 | UO3: =RU3 -> 0 | UP3: 0 | UQ3: 0 | UR3: 0
B4: Jan | C4: Jul | E4: Janvier | F4: nz1 | H4: ATL | I4: LYON | L4: 2010 2 | M4: 5 | N4: 8 | O4: 15 | P4: 12 | Q4: 13 | S4: 2 | T4: =COUNTIF(M$3:M$566,$S4) -> 28 | U4: =COUNTIF(N$3:N$566,$S4) -> 26 | V4: =COUNTIF(O$3:O$566,$S4) -> 29 | W4: =COUNTIF(P$3:P$566,$S4) -> 32 | X4: =COUNTIF(Q$3:Q$566,$S4) -> 29 | Y4: =X4+W4+V4+U4+T4 -> 144 | Z4: =COUNTIF($M$3:$Q$566,ROW()-2)+((22-ROW()-2)/100) -> 144.16 | AA4: =MATCH(LARGE($Z$3:$Z$22,ROW()-2),$Z$3:$Z$22,0) -> 10 | AG4: 2 | AH4: ATL | AI4: 1 | AJ4: 11 | AK4: 7 | AL4: 10 | AM4: 12 | AO4: 2 | AP4: =COUNTIF(AI$3:AI$150,$AO4) -> 7 | AQ4: =COUNTIF(AJ$3:AJ$150,$AO4) -> 10 | AR4: =COUNTIF(AK$3:AK$150,$AO4) -> 6 | AS4: =COUNTIF(AL$3:AL$150,$AO4) -> 9 | AT4: =COUNTIF(AM$3:AM$150,$AO4) -> 11 | AU4: =AT4+AS4+AR4+AQ4+AP4 -> 43 | AV4: =COUNTIF($AI$3:$AM$133,ROW()-2)+((22-ROW()-2)/100) -> 43.16 | AW4: =MATCH(LARGE($AV$3:$AV$22,ROW()-2),$AV$3:$AV$22,0) -> 5 | BF4: 3 | BG4: 10 | BH4: 1 | BI4: 12 | BJ4: 15 | BL4: 2 | BM4: =COUNTIF(BF$3:BF$120,$BL4) -> 6 | BN4: =COUNTIF(BG$3:BG$120,$BL4) -> 8 | BO4: =COUNTIF(BH$3:BH$120,$BL4) -> 4 | BP4: =COUNTIF(BI$3:BI$120,$BL4) -> 4 | BQ4: =COUNTIF(BJ$3:BJ$120,$BL4) -> 3 | BR4: =BQ4+BP4+BO4+BN4+BM4 -> 25 | BS4: =COUNTIF($BF$3:$BJ$120,ROW()-2)+((22-ROW()-2)/100) -> 25.16 | BT4: =MATCH(LARGE($BS$3:$BS$22,ROW()-2),$BS$3:$BS$22,0) -> 8 | CB4: 18 | CC4: 1 | CD4: 16 | CE4: 2 | CF4: 10 | CH4: 2 | CI4: =COUNTIF(CB$3:CB$166,$CH4) -> 8 | CJ4: =COUNTIF(CC$3:CC$166,$CH4) -> 4 | CK4: =COUNTIF(CD$3:CD$166,$CH4) -> 10 | CL4: =COUNTIF(CE$3:CE$166,$CH4) -> 9 | CM4: =COUNTIF(CF$3:CF$166,$CH4) -> 11 | CN4: =CM4+CL4+CK4+CJ4+CI4 -> 42 | CO4: =COUNTIF($CB$3:$CF$166,ROW()-2)+((22-ROW()-2)/100) -> 42.16 | CP4: =MATCH(LARGE($CO$3:$CO$22,ROW()-2),$CO$3:$CO$22,0) -> 3 | CW4: 2 | CX4: 6 | CY4: 2 | CZ4: 9 | DA4: 12 | DB4: 7 | DD4: 2 | DE4: 11 | DF4: 11 | DG4: 4 | DH4: 3 | DI4: 7 | DJ4: =DI4+DH4+DG4+DF4+DE4 -> 36 | DK4: 29.16 | DL4: =MATCH(LARGE($DK$3:$DK$22,ROW()-2),$DK$3:$DK$22,0) -> 4 | DS4: CPGNE | DT4: 9 | DU4: 3 | DV4: 7 | DW4: 12 | DX4: 17 | DZ4: 2 | EA4: =COUNTIF(DT$3:DT$50,$DZ4) -> 1 | EB4: =COUNTIF(DU$3:DU$50,$DZ4) -> 2 | EC4: =COUNTIF(DV$3:DV$50,$DZ4) -> 4 | ED4: =COUNTIF(DW$3:DW$50,$DZ4) -> 3 | EE4: =COUNTIF(DX$3:DX$50,$DZ4) -> 1 | EF4: =EE4+ED4+EC4+EB4+EA4 -> 11 | EG4: 4.16 | EH4: =MATCH(LARGE($EG$3:$EG$22,ROW()-2),$EG$3:$EG$22,0) -> 7 | EP4: 8 | EQ4: 11 | ER4: 6 | ES4: 2 | ET4: 15 | EV4: 2 | EW4: =COUNTIF(EP$3:EP$30,$EV4) -> 0 | EX4: =COUNTIF(EQ$3:EQ$30,$EV4) -> 4 | EY4: =COUNTIF(ER$3:ER$30,$EV4) -> 5 | EZ4: =COUNTIF(ES$3:ES$30,$EV4) -> 2 | FA4: =COUNTIF(ET$3:ET$30,$EV4) -> 2 | FB4: =FA4+EZ4+EY4+EX4+EW4 -> 13 | FC4: =COUNTIF($EP$3:$ET$22,ROW()-2)+((22-ROW()-2)/100) -> 13.16 | FD4: =MATCH(LARGE($FC$3:$FC$22,ROW()-2),$FC$3:$FC$22,0) -> 1 | FK4: MLF | FL4: 4 | FM4: 12 | FN4: 16 | FO4: 8 | FP4: 13 | FR4: 2 | FS4: =COUNTIF(FL$3:FL$75,$FR4) -> 9 | FT4: 8 | FU4: 3 | FV4: 5 | FW4: 2 | FX4: =FW4+FV4+FU4+FT4+FS4 -> 27 | FY4: =COUNTIF($FL$3:$FP$49,ROW()-2)+((22-ROW()-2)/100) -> 16.16 | FZ4: =MATCH(LARGE($FY$3:$FY$22,ROW()-2),$FY$3:$FY$22,0) -> 4 | GG4: LYON | GH4: 2 | GI4: 15 | GJ4: 12 | GK4: 4 | GL4: 16 | GN4: 2 | GO4: =COUNTIF(GH$3:GH$50,$GN4) -> 5 | GP4: =COUNTIF(GI$3:GI$50,$GN4) -> 1 | GQ4: =COUNTIF(GJ$3:GJ$50,$GN4) -> 1 | GR4: =COUNTIF(GK$3:GK$50,$GN4) -> 0 | GS4: =COUNTIF(GL$3:GL$50,$GN4) -> 2 | GT4: =GS4+GR4+GQ4+GP4+GO4 -> 9 | GU4: =COUNTIF($GH$3:$GL$35,ROW()-2)+((22-ROW()-2)/100) -> 9.16 | GV4: =MATCH(LARGE($GU$3:$GU$22,ROW()-2),$GU$3:$GU$22,0) -> 15 | HD4: 9 | HE4: 16 | HF4: 13 | HG4: 6 | HH4: 15 | HJ4: 2 | HK4: =COUNTIF(HD$3:HD$132,$HJ4) -> 13 | HL4: =COUNTIF(HE$3:HE$132,$HJ4) -> 9 | HM4: =COUNTIF(HF$3:HF$132,$HJ4) -> 8 | HN4: =COUNTIF(HG$3:HG$132,$HJ4) -> 9 | HO4: =COUNTIF(HH$3:HH$132,$HJ4) -> 15 | HP4: =HO4+HN4+HM4+HL4+HK4 -> 54 | HQ4: =COUNTIF(HD$3:HH$132,ROW()-2)+((22-ROW()-2)/100) -> 54.16 | HR4: =MATCH(LARGE($HQ$3:$HQ$22,ROW()-2),$HQ$3:$HQ$22,0) -> 1 | HY4: MAI | HZ4: 2 | IA4: 1 | IB4: 7 | IC4: 3 | ID4: 13 | IF4: 2 | IG4: =COUNTIF(HZ$3:HZ$75,$IF4) -> 5 | IH4: =COUNTIF(IA$3:IA$75,$IF4) -> 6 | II4: =COUNTIF(IB$3:IB$75,$IF4) -> 4 | IJ4: =COUNTIF(IC$3:IC$75,$IF4) -> 5 | IK4: =COUNTIF(ID$3:ID$75,$IF4) -> 5 | IL4: =IK4+IJ4+II4+IH4+IG4 -> 25 | IM4: =COUNTIF($HZ$3:$ID$76,ROW()-2)+((22-ROW()-2)/100) -> 25.16 | IN4: 2 | IU4: CBG | IV4: 15 | IW4: 12 | IX4: 1 | IY4: 16 | IZ4: 10 | JB4: 2 | JC4: =COUNTIF(IV$3:IV$56,$JB4) -> 4 | JD4: =COUNTIF(IW$3:IW$56,$JB4) -> 0 | JE4: =COUNTIF(IX$3:IX$56,$JB4) -> 2 | JF4: =COUNTIF(IY$3:IY$56,$JB4) -> 2 | JG4: =COUNTIF(IZ$3:IZ$56,$JB4) -> 2 | JH4: =JG4+JF4+JE4+JD4+JC4 -> 10 | JI4: =COUNTIF($IV$3:$IZ$32,ROW()-2)+((22-ROW()-2)/100) -> 9.16 | JJ4: =MATCH(LARGE($JI$3:$JI$22,ROW()-2),$JI$3:$JI$22,0) -> 3 | JQ4: PAU | JR4: 5 | JS4: 7 | JT4: 14 | JU4: 4 | JV4: 6 | JX4: 2 | JY4: =COUNTIF(JR$3:JR$50,$JX4) -> 0 | JZ4: =COUNTIF(JS$3:JS$50,$JX4) -> 1 | KA4: =COUNTIF(JT$3:JT$50,$JX4) -> 0 | KB4: =COUNTIF(JU$3:JU$50,$JX4) -> 0 | KC4: =COUNTIF(JV$3:JV$50,$JX4) -> 2 | KD4: =KC4+KB4+KA4+JZ4+JY4 -> 3 | KE4: =COUNTIF($JR$3:$JV$29,ROW()-2)+((22-ROW()-2)/100) -> 3.16 | KF4: =MATCH(LARGE($KE$3:$KE$22,ROW()-2),$KE$3:$KE$22,0) -> 4 | KM4: SCLD | KN4: 11 | KO4: 7 | KP4: 13 | KQ4: 3 | KR4: 8 | KT4: 2 | KU4: =COUNTIF(KN$3:KN$100,$KT4) -> 5 | KV4: =COUNTIF(KO$3:KO$100,$KT4) -> 5 | KW4: =COUNTIF(KP$3:KP$100,$KT4) -> 8 | KX4: =COUNTIF(KQ$3:KQ$100,$KT4) -> 6 | KY4: =COUNTIF(KR$3:KR$100,$KT4) -> 3 | KZ4: =KY4+KX4+KW4+KV4+KU4 -> 27 | LA4: =COUNTIF($KN$3:$KR$92,ROW()-2)+((22-ROW()-2)/100) -> 27.16 | LB4: =MATCH(LARGE($LA$3:$LA$22,ROW()-2),$LA$3:$LA$22,0) -> 5 | LI4: VICHY | LJ4: 10 | LK4: 14 | LL4: 6 | LM4: 13 | LN4: 7 | LP4: 2 | LQ4: =COUNTIF(LJ$3:LJ$50,$LP4) -> 3 | LR4: =COUNTIF(LK$3:LK$50,$LP4) -> 2 | LS4: =COUNTIF(LL$3:LL$50,$LP4) -> 4 | LT4: =COUNTIF(LM$3:LM$50,$LP4) -> 4 | LU4: =COUNTIF(LN$3:LN$50,$LP4) -> 1 | LV4: =LU4+LT4+LS4+LR4+LQ4 -> 14 | LW4: =COUNTIF($LJ$3:$LN$38,ROW()-2)+((22-ROW()-2)/100) -> 14.16 | LX4: =MATCH(LARGE($LW$3:$LW$22,ROW()-2),$LW$3:$LW$22,0) -> 2 | ME4: CLFNE | MF4: 4 | MG4: 3 | MH4: 13 | MI4: 9 | MJ4: 1 | ML4: 2 | MM4: =COUNTIF(MF$3:MF$50,$ML4) -> 2 | MN4: =COUNTIF(MG$3:MG$50,$ML4) -> 7 | MO4: =COUNTIF(MH$3:MH$50,$ML4) -> 0 | MP4: =COUNTIF(MI$3:MI$50,$ML4) -> 4 | MQ4: =COUNTIF(MJ$3:MJ$50,$ML4) -> 3 | MR4: =MQ4+MP4+MO4+MN4+MM4 -> 16 | MS4: =COUNTIF($MF$3:$MJ$45,ROW()-2)+((22-ROW()-2)/100) -> 16.16 | MT4: =MATCH(LARGE($MS$3:$MS$22,ROW()-2),$MS$3:$MS$22,0) -> 2 | MZ4: 0 | NB4: =OQ248 -> 16 | NC4: =OR248 -> 4 | ND4: =OS248 -> 7 | NE4: =OT248 -> 10 | NF4: =OU248 -> 17 | NH4: 2 | NI4: 10 | NJ4: 13 | NK4: 6 | NL4: 5 | NM4: 14 | NN4: =NM4+NL4+NK4+NJ4+NI4 -> 48 | NQ4: =NP4+NO4 -> 0 | NR4: 2 | NS4: =NN4 -> 48 | NT4: 2 | NU4: 2 | NV4: 2014-01-02 | NW4: 7 | NX4: PAU | NY4: 12 | NZ4: 15 | OA4: 9 | OB4: 6 | OC4: 13 | OD4: 2 | OE4: 2014-02-02 | OF4: 7 | OG4: VCS | OH4: 10 | OI4: 14 | OJ4: 16 | OK4: 1 | OL4: 11 | OM4: 2 | ON4: 2014-03-02 | OO4: =COUNTIF($OQ$3:$OU$33,$OV4) -> 8 | OP4: ATL | OQ4: 15 | OR4: 13 | OS4: 8 | OT4: 18 | OU4: 10 | OV4: 2 | OW4: 2014-04-02 | OX4: 7 | OY4: Angers | OZ4: 12 | PA4: 7 | PB4: 14 | PC4: 3 | PD4: 9 | PE4: 2 | PF4: 2014-05-02 | PG4: 7 | PH4: VCS | PI4: 5 | PJ4: 13 | PK4: 4 | PL4: 6 | PM4: 14 | PN4: 2 | PO4: 2014-06-02 | PP4: 7 | PQ4: ATL | PR4: 5 | PS4: 11 | PT4: 8 | PU4: 6 | PV4: 9 | PW4: 2 | PX4: 2014-07-02 | PY4: 7 | PZ4: VCY | QA4: 16 | QB4: 7 | QC4: 17 | QD4: 3 | QE4: 11 | QF4: 2 | QG4: 2014-08-02 | QH4: 7 | QI4: DVE | QJ4: 7 | QK4: 15 | QL4: 14 | QM4: 13 | QN4: 1 | QO4: 2 | QP4: 2014-09-02 | QQ4: 7 | QR4: Nancy | QX4: 2 | QY4: 2014-10-02 | QZ4: 7 | RA4: ATL | RG4: 2 | RH4: 2014-11-02 | RI4: 7 | RJ4: ATL | RP4: 2 | RQ4: 2014-12-02 | RR4: 7 | RS4: VCS | RZ4: 20 | SA4: 192 | SB4: 10 | SF4: =MATCH(LARGE($SG$3:$SG$22,ROW()-2),$SG$3:$SG$22,0) -> 6 | SG4: =COUNTIF($SK$3:$UR$219,ROW()-2)+((22-ROW()-2)/100) -> 639.16 | SH4: =COUNTIF($SK$3:$UR$33,ROW()-2)+((22-ROW()-2)/100) -> 58.16 | SI4: 3 | SK4: =NY4 -> 12 | SL4: 15 | SM4: 9 | SN4: 6 | SO4: 13 | SP4: =OH4 -> 10 | SQ4: 14 | SR4: 16 | SS4: 1 | ST4: 11 | SU4: =OQ4 -> 15 | SV4: 13 | SW4: 8 | SX4: 18 | SY4: 10 | SZ4: =OZ4 -> 12 | TA4: 7 | TB4: 14 | TC4: 3 | TD4: 9 | TE4: =PI4 -> 5 | TF4: 13 | TG4: 4 | TH4: 6 | TI4: 14 | TJ4: =PR4 -> 5 | TK4: 11 | TL4: 8 | TM4: 6 | TN4: 9 | TO4: =QA4 -> 16 | TP4: 7 | TQ4: 17 | TR4: 3 | TS4: 11 | TT4: =QJ4 -> 7 | TU4: 15 | TV4: 14 | TW4: 13 | TX4: 1 | TY4: =QS4 -> 0 | TZ4: 0 | UA4: 0 | UB4: 0 | UC4: 0 | UD4: =RB4 -> 0 | UE4: 0 | UF4: 0 | UG4: 0 | UH4: 0 | UI4: =RK4 -> 0 | UJ4: 0 | UK4: 0 | UL4: 0 | UM4: 0 | UN4: =RT4 -> 0 | UO4: 0 | UP4: 0 | UQ4: 0 | UR4: 0
B5: Fev | C5: Aou | E5: Février | F5: oi1 | H5: C/M | I5: EGN | L5: 3 | M5: 9 | N5: 3 | O5: 5 | P5: 4 | Q5: 12 | S5: 3 | T5: 26 | U5: 22 | V5: 23 | W5: 25 | X5: 29 | Y5: 125 | Z5: 125.15 | AA5: 14 | AG5: 3 | AH5: 3 | AI5: 3 | AJ5: 12 | AK5: 1 | AL5: 4 | AM5: 2 | AO5: 3 | AP5: 12 | AQ5: 13 | AR5: 8 | AS5: 12 | AT5: 6 | AU5: 51 | AV5: 51.15 | AW5: 7 | BF5: 16 | BG5: 10 | BH5: 11 | BI5: 2 | BJ5: 8 | BL5: 3 | BM5: 11 | BN5: 9 | BO5: 7 | BP5: 10 | BQ5: 6 | BR5: 43 | BS5: 43.15 | BT5: 1 | CB5: 9 | CC5: 1 | CD5: 6 | CE5: 3 | CF5: 8 | CH5: 3 | CI5: 14 | CJ5: 10 | CK5: 9 | CL5: 10 | CM5: 12 | CN5: 55 | CO5: 55.15 | CP5: 12 | CW5: MARS | CX5: 10 | CY5: 2 | CZ5: 13 | DA5: 9 | DB5: 11 | DD5: 3 | DE5: 9 | DF5: 6 | DG5: 8 | DH5: 3 | DI5: 4 | DJ5: 30 | DK5: 20.15 | DL5: 6 | DS5: 3 | DT5: 14 | DU5: 17 | DV5: 1 | DW5: 9 | DX5: 5 | DZ5: 3 | EA5: 6 | EB5: 4 | EC5: 3 | ED5: 2 | EE5: 2 | EF5: 17 | EG5: 9.15 | EH5: 14 | EN5: 2010 | EO5: MARS | EP5: 7 | EQ5: 2 | ER5: 4 | ES5: 6 | ET5: 1 | EV5: 3 | EW5: 0 | EX5: 1 | EY5: 4 | EZ5: 1 | FA5: 1 | FB5: 7 | FC5: 7.15 | FD5: 4 | FK5: MAI | FL5: 1 | FM5: 5 | FN5: 7 | FO5: 8 | FP5: 9 | FR5: 3 | FS5: 5 | FT5: 9 | FU5: 3 | FV5: 3 | FW5: 6 | FX5: 26 | FY5: 20.15 | FZ5: 2 | GG5: 3 | GH5: 2 | GI5: 18 | GJ5: 12 | GK5: 16 | GL5: 15 | GN5: 3 | GO5: 1 | GP5: 0 | GQ5: 4 | GR5: 0 | GS5: 1 | GT5: 6 | GU5: 6.15 | GV5: 6 | HC5: EGN | HD5: 2 | HE5: 5 | HF5: 11 | HG5: 8 | HH5: 13 | HJ5: 3 | HK5: 12 | HL5: 7 | HM5: 5 | HN5: 9 | HO5: 3 | HP5: 36 | HQ5: 36.15 | HR5: 5 | HY5: CTY | HZ5: 9 | IA5: 7 | IB5: 11 | IC5: 2 | ID5: 8 | IF5: 3 | IG5: 7 | IH5: 5 | II5: 2 | IJ5: 7 | IK5: 6 | IL5: 27 | IM5: 27.15 | IN5: 8 | IU5: 3 | IV5: 2 | IW5: 4 | IX5: 8 | IY5: 7 | IZ5: 5 | JB5: 3 | JC5: 2 | JD5: 2 | JE5: 5 | JF5: 5 | JG5: 3 | JH5: 17 | JI5: 13.15 | JJ5: 7 | JQ5: 3 | JR5: 5 | JS5: 2 | JT5: 17 | JU5: 13 | JV5: 11 | JX5: 3 | JY5: 2 | JZ5: 2 | KA5: 3 | KB5: 1 | KC5: 1 | KD5: 9 | KE5: 9.15 | KF5: 11 | KM5: 3 | KN5: 3 | KO5: 16 | KP5: 18 | KQ5: 17 | KR5: 5 | KT5: 3 | KU5: 6 | KV5: 11 | KW5: 3 | KX5: 7 | KY5: 6 | KZ5: 33 | LA5: 33.15 | LB5: 8 | LI5: 3 | LJ5: 13 | LK5: 8 | LL5: 2 | LM5: 12 | LN5: 15 | LP5: 3 | LQ5: 1 | LR5: 1 | LS5: 1 | LT5: 2 | LU5: 3 | LV5: 8 | LW5: 8.15 | LX5: 13 | ME5: AOUT | MF5: 15 | MG5: 7 | MH5: 16 | MI5: 3 | MJ5: 17 | ML5: 3 | MM5: 3 | MN5: 3 | MO5: 7 | MP5: 3 | MQ5: 1 | MR5: 17 | MS5: 17.15 | MT5: 4 | MZ5: 1 | NB5: =OQ310 -> 11 | NC5: =OR310 -> 12 | ND5: =OS310 -> 7 | NE5: =OT310 -> 14 | NF5: =OU310 -> 15 | NH5: 3 | NI5: 10 | NJ5: 10 | NK5: 11 | NL5: 8 | NM5: 11 | NN5: 50 | NQ5: 0 | NR5: 3 | NS5: 50 | NT5: 3 | NU5: 3 | NV5: 2014-01-03 | NW5: 7 | NX5: DVE | NY5: 16 | NZ5: 15 | OA5: 3 | OB5: 11 | OC5: 1 | OD5: 3 | OE5: 2014-02-03 | OF5: 7 | OG5: VCS | OH5: 4 | OI5: 15 | OJ5: 7 | OK5: 10 | OL5: 11 | OM5: 3 | ON5: 2014-03-03 | OO5: 16 | OP5: EGN | OQ5: 4 | OR5: 1 | OS5: 3 | OT5: 15 | OU5: 6 | OV5: 3 | OW5: 2014-04-03 | OX5: 7 | OY5: MLF | OZ5: 3 | PA5: 10 | PB5: 4 | PC5: 11 | PD5: 16 | PE5: 3 | PF5: 2014-05-03 | PG5: 7 | PH5: VCS | PI5: 16 | PJ5: 15 | PK5: 5 | PL5: 17 | PM5: 10 | PN5: 3 | PO5: 2014-06-03 | PP5: 7 | PQ5: LCP | PR5: 5 | PS5: 1 | PT5: 11 | PU5: 14 | PV5: 3 | PW5: 3 | PX5: 2014-07-03 | PY5: 7 | PZ5: EGN | QA5: 14 | QB5: 8 | QC5: 1 | QD5: 9 | QE5: 18 | QF5: 3 | QG5: 2014-08-03 | QH5: 7 | QI5: DVE | QJ5: 12 | QK5: 10 | QL5: 15 | QM5: 1 | QN5: 8 | QO5: 3 | QP5: 2014-09-03 | QQ5: 7 | QR5: Reims | QX5: 3 | QY5: 2014-10-03 | QZ5: 7 | RA5: VCS | RG5: 3 | RH5: 2014-11-03 | RI5: 7 | RJ5: VCS | RP5: 3 | RQ5: 2014-12-03 | RR5: 7 | RS5: VCS | RZ5: 16 | SA5: 77 | SB5: 5 | SF5: 4 | SG5: 674.15 | SH5: 75.15 | SI5: 1 | SK5: 16 | SL5: 15 | SM5: 3 | SN5: 11 | SO5: 1 | SP5: 4 | SQ5: 15 | SR5: 7 | SS5: 10 | ST5: 11 | SU5: 4 | SV5: 1 | SW5: 3 | SX5: 15 | SY5: 6 | SZ5: 3 | TA5: 10 | TB5: 4 | TC5: 11 | TD5: 16 | TE5: 16 | TF5: 15 | TG5: 5 | TH5: 17 | TI5: 10 | TJ5: 5 | TK5: 1 | TL5: 11 | TM5: 14 | TN5: 3 | TO5: 14 | TP5: 8 | TQ5: 1 | TR5: 9 | TS5: 18 | TT5: 12 | TU5: 10 | TV5: 15 | TW5: 1 | TX5: 8 | TY5: 0 | TZ5: 0 | UA5: 0 | UB5: 0 | UC5: 0 | UD5: 0 | UE5: 0 | UF5: 0 | UG5: 0 | UH5: 0 | UI5: 0 | UJ5: 0 | UK5: 0 | UL5: 0 | UM5: 0 | UN5: 0 | UO5: 0 | UP5: 0 | UQ5: 0 | UR5: 0
B6: Mar | C6: Sep | E6: Mars | F6: or1 | H6: LCP | I6: CTY | L6: 4 | M6: 15 | N6: 2 | O6: 16 | P6: 7 | Q6: 5 | S6: 4 | T6: 33 | U6: 34 | V6: 33 | W6: 41 | X6: 33 | Y6: 174 | Z6: 174.14 | AA6: 6 | AG6: 4 | AH6: 4 | AI6: 3 | AJ6: 7 | AK6: 8 | AL6: 13 | AM6: 6 | AO6: 4 | AP6: 8 | AQ6: 7 | AR6: 9 | AS6: 10 | AT6: 6 | AU6: 40 | AV6: 40.14 | AW6: 2 | BF6: 9 | BG6: 3 | BH6: 6 | BI6: 12 | BJ6: 13 | BL6: 4 | BM6: 8 | BN6: 4 | BO6: 3 | BP6: 4 | BQ6: 6 | BR6: 25 | BS6: 25.14 | BT6: 6 | CB6: 13 | CC6: 4 | CD6: 18 | CE6: 3 | CF6: 15 | CH6: 4 | CI6: 4 | CJ6: 8 | CK6: 5 | CL6: 14 | CM6: 9 | CN6: 40 | CO6: 40.14 | CP6: 6 | CX6: 13 | CY6: 2 | CZ6: 8 | DA6: 1 | DB6: 14 | DD6: 4 | DE6: 7 | DF6: 4 | DG6: 5 | DH6: 5 | DI6: 6 | DJ6: 27 | DK6: 23.14 | DL6: 7 | DS6: MAI | DT6: 6 | DU6: 1 | DV6: 5 | DW6: 8 | DX6: 7 | DZ6: 4 | EA6: 2 | EB6: 1 | EC6: 2 | ED6: 4 | EE6: 2 | EF6: 11 | EG6: 8.14 | EH6: 4 | EO6: Marseille | EP6: 7 | EQ6: 13 | ER6: 2 | ES6: 11 | ET6: 15 | EV6: 4 | EW6: 0 | EX6: 2 | EY6: 2 | EZ6: 3 | FA6: 1 | FB6: 8 | FC6: 8.14 | FD6: 14 | FL6: 7 | FM6: 10 | FN6: 1 | FO6: 13 | FP6: 3 | FR6: 4 | FS6: 6 | FT6: 1 | FU6: 10 | FV6: 5 | FW6: 6 | FX6: 28 | FY6: 19.14 | FZ6: 10 | GG6: JUIN | GH6: 2 | GI6: 17 | GJ6: 3 | GK6: 14 | GL6: 15 | GN6: 4 | GO6: 0 | GP6: 2 | GQ6: 2 | GR6: 1 | GS6: 1 | GT6: 6 | GU6: 6.14 | GV6: 12 | HC6: MARS | HD6: 1 | HE6: 11 | HF6: 7 | HG6: 10 | HH6: 12 | HJ6: 4 | HK6: 10 | HL6: 7 | HM6: 11 | HN6: 8 | HO6: 5 | HP6: 41 | HQ6: 41.14 | HR6: 10 | HY6: JUIN | HZ6: 4 | IA6: 1 | IB6: 7 | IC6: 10 | ID6: 13 | IF6: 4 | IG6: 7 | IH6: 1 | II6: 3 | IJ6: 2 | IK6: 1 | IL6: 14 | IM6: 14.14 | IN6: 10 | IU6: 4 | IV6: 1 | IW6: 13 | IX6: 15 | IY6: 6 | IZ6: 2 | JB6: 4 | JC6: 3 | JD6: 3 | JE6: 7 | JF6: 3 | JG6: 1 | JH6: 17 | JI6: 11.14 | JJ6: 4 | JQ6: FEVRIER | JR6: 4 | JS6: 11 | JT6: 8 | JU6: 15 | JV6: 6 | JX6: 4 | JY6: 3 | JZ6: 2 | KA6: 1 | KB6: 4 | KC6: 1 | KD6: 11 | KE6: 11.14 | KF6: 3 | KM6: 4 | KN6: 7 | KO6: 2 | KP6: 6 | KQ6: 1 | KR6: 11 | KT6: 4 | KU6: 5 | KV6: 6 | KW6: 3 | KX6: 11 | KY6: 3 | KZ6: 28 | LA6: 28.14 | LB6: 1 | LI6: JUILLET | LJ6: 13 | LK6: 1 | LL6: 7 | LM6: 2 | LN6: 12 | LP6: 4 | LQ6: 2 | LR6: 5 | LS6: 1 | LT6: 2 | LU6: 1 | LV6: 11 | LW6: 11.14 | LX6: 7 | MF6: 18 | MG6: 2 | MH6: 1 | MI6: 4 | MJ6: 7 | ML6: 4 | MM6: 3 | MN6: 2 | MO6: 3 | MP6: 5 | MQ6: 3 | MR6: 16 | MS6: 16.14 | MT6: 11 | MZ6: 0 | NB6: =OQ372 -> 5 | NC6: =OR372 -> 8 | ND6: =OS372 -> 3 | NE6: =OT372 -> 12 | NF6: =OU372 -> 10 | NH6: 4 | NI6: 9 | NJ6: 9 | NK6: 6 | NL6: 13 | NM6: 10 | NN6: 47 | NQ6: 0 | NR6: 4 | NS6: 47 | NT6: 4 | NU6: 4 | NV6: 2014-01-04 | NW6: 9 | NX6: VCS | NY6: 5 | NZ6: 15 | OA6: 13 | OB6: 11 | OC6: 3 | OD6: 4 | OE6: 2014-02-04 | OF6: 9 | OG6: C/M | OH6: 13 | OI6: 17 | OJ6: 6 | OK6: 9 | OL6: 14 | OM6: 4 | ON6: 2014-03-04 | OO6: 17 | OP6: CTY | OQ6: 17 | OR6: 5 | OS6: 12 | OT6: 3 | OU6: 2 | OV6: 4 | OW6: 2014-04-04 | OX6: 9 | OY6: VCS | OZ6: 2 | PA6: 13 | PB6: 6 | PC6: 7 | PD6: 9 | PE6: 4 | PF6: 2014-05-04 | PG6: 9 | PH6: ATL | PI6: 12 | PJ6: 14 | PK6: 8 | PL6: 11 | PM6: 18 | PN6: 4 | PO6: 2014-06-04 | PP6: 9 | PQ6: Laval | PR6: 7 | PS6: 5 | PT6: 18 | PU6: 1 | PV6: 6 | PW6: 4 | PX6: 2014-07-04 | PY6: 9 | PZ6: CBG | QA6: 6 | QB6: 8 | QC6: 11 | QD6: 13 | QE6: 15 | QF6: 4 | QG6: 2014-08-04 | QH6: 9 | QI6: CLFNE | QJ6: 16 | QK6: 6 | QL6: 11 | QM6: 3 | QN6: 10 | QO6: 4 | QP6: 2014-09-04 | QQ6: 9 | QR6: LCP | QX6: 4 | QY6: 2014-10-04 | QZ6: 9 | RA6: LCP | RG6: 4 | RH6: 2014-11-04 | RI6: 9 | RJ6: MLF | RP6: 4 | RQ6: 2014-12-04 | RR6: 9 | RS6: VCS | RZ6: 17 | SA6: 99 | SB6: 6 | SF6: 5 | SG6: 647.14 | SH6: 73.14 | SI6: 4 | SK6: 5 | SL6: 15 | SM6: 13 | SN6: 11 | SO6: 3 | SP6: 13 | SQ6: 17 | SR6: 6 | SS6: 9 | ST6: 14 | SU6: 17 | SV6: 5 | SW6: 12 | SX6: 3 | SY6: 2 | SZ6: 2 | TA6: 13 | TB6: 6 | TC6: 7 | TD6: 9 | TE6: 12 | TF6: 14 | TG6: 8 | TH6: 11 | TI6: 18 | TJ6: 7 | TK6: 5 | TL6: 18 | TM6: 1 | TN6: 6 | TO6: 6 | TP6: 8 | TQ6: 11 | TR6: 13 | TS6: 15 | TT6: 16 | TU6: 6 | TV6: 11 | TW6: 3 | TX6: 10 | TY6: 0 | TZ6: 0 | UA6: 0 | UB6: 0 | UC6: 0 | UD6: 0 | UE6: 0 | UF6: 0 | UG6: 0 | UH6: 0 | UI6: 0 | UJ6: 0 | UK6: 0 | UL6: 0 | UM6: 0 | UN6: 0 | UO6: 0 | UP6: 0 | UQ6: 0 | UR6: 0
B7: Avr | C7: Oct | E7: Avril | F7: pa1 | H7: DVE | I7: CBG | L7: 5 | M7: 6 | N7: 9 | O7: 7 | P7: 9 | Q7: 6 | S7: 5 | T7: 32 | U7: 32 | V7: 29 | W7: 31 | X7: 32 | Y7: 156 | Z7: 156.13 | AA7: 8 | AG7: 5 | AH7: AVRIL | AI7: 6 | AJ7: 9 | AK7: 11 | AL7: 18 | AM7: 3 | AO7: 5 | AP7: 11 | AQ7: 6 | AR7: 8 | AS7: 4 | AT7: 15 | AU7: 44 | AV7: 44.13 | AW7: 4 | BF7: 3 | BG7: 14 | BH7: 6 | BI7: 12 | BJ7: 16 | BL7: 5 | BM7: 6 | BN7: 2 | BO7: 5 | BP7: 6 | BQ7: 3 | BR7: 22 | BS7: 22.13 | BT7: 12 | CB7: 9 | CC7: 16 | CD7: 15 | CE7: 4 | CF7: 6 | CH7: 5 | CI7: 13 | CJ7: 9 | CK7: 8 | CL7: 9 | CM7: 11 | CN7: 50 | CO7: 50.13 | CP7: 10 | CW7: 3 | CX7: 10 | CY7: 11 | CZ7: 4 | DA7: 9 | DB7: 15 | DD7: 5 | DE7: 5 | DF7: 9 | DG7: 6 | DH7: 5 | DI7: 8 | DJ7: 33 | DK7: 19.13 | DL7: 1 | DS7: JUIN | DT7: 11 | DU7: 6 | DV7: 10 | DW7: 9 | DX7: 4 | DZ7: 5 | EA7: 1 | EB7: 1 | EC7: 4 | ED7: 3 | EE7: 2 | EF7: 11 | EG7: 6.13 | EH7: 12 | EO7: NOVEMBRE | EP7: 10 | EQ7: 4 | ER7: 3 | ES7: 8 | ET7: 2 | EV7: 5 | EW7: 1 | EX7: 0 | EY7: 1 | EZ7: 1 | FA7: 0 | FB7: 3 | FC7: 3.13 | FD7: 3 | FK7: 3 | FL7: 4 | FM7: 3 | FN7: 6 | FO7: 10 | FP7: 12 | FR7: 5 | FS7: 5 | FT7: 10 | FU7: 4 | FV7: 3 | FW7: 2 | FX7: 24 | FY7: 15.13 | FZ7: 11 | GH7: 13 | GI7: 9 | GJ7: 16 | GK7: 15 | GL7: 5 | GN7: 5 | GO7: 1 | GP7: 1 | GQ7: 0 | GR7: 1 | GS7: 1 | GT7: 4 | GU7: 4.13 | GV7: 16 | HD7: 3 | HE7: 12 | HF7: 1 | HG7: 4 | HH7: 2 | HJ7: 5 | HK7: 8 | HL7: 11 | HM7: 11 | HN7: 4 | HO7: 9 | HP7: 43 | HQ7: 43.13 | HR7: 4 | HZ7: 7 | IA7: 2 | IB7: 10 | IC7: 1 | ID7: 14 | IF7: 5 | IG7: 4 | IH7: 8 | II7: 1 | IJ7: 1 | IK7: 3 | IL7: 17 | IM7: 17.13 | IN7: 12 | IU7: AOUT | IV7: 1 | IW7: 5 | IX7: 11 | IY7: 10 | IZ7: 14 | JB7: 5 | JC7: 4 | JD7: 2 | JE7: 2 | JF7: 2 | JG7: 3 | JH7: 13 | JI7: 9.13 | JJ7: 12 | JQ7: DECEMBRE | JR7: 3 | JS7: 12 | JT7: 8 | JU7: 11 | JV7: 5 | JX7: 5 | JY7: 3 | JZ7: 2 | KA7: 3 | KB7: 1 | KC7: 3 | KD7: 12 | KE7: 12.13 | KF7: 6 | KM7: 5 | KN7: 5 | KO7: 16 | KP7: 10 | KQ7: 13 | KR7: 12 | KT7: 5 | KU7: 3 | KV7: 5 | KW7: 8 | KX7: 7 | KY7: 6 | KZ7: 29 | LA7: 29.13 | LB7: 4 | LJ7: 12 | LK7: 7 | LL7: 13 | LM7: 5 | LN7: 3 | LP7: 5 | LQ7: 2 | LR7: 2 | LS7: 1 | LT7: 3 | LU7: 3 | LV7: 11 | LW7: 11.13 | LX7: 4 | ME7: 3 | MF7: 7 | MG7: 15 | MH7: 16 | MI7: 2 | MJ7: 4 | ML7: 5 | MM7: 2 | MN7: 3 | MO7: 2 | MP7: 1 | MQ7: 4 | MR7: 12 | MS7: 12.13 | MT7: 7 | NB7: =OZ25 -> 3 | NC7: =PA25 -> 11 | ND7: =PB25 -> 10 | NE7: =PC25 -> 7 | NF7: =PD25 -> 1 | NH7: 5 | NI7: 12 | NJ7: 10 | NK7: 9 | NL7: 8 | NM7: 8 | NN7: 47 | NQ7: 0 | NR7: 5 | NS7: 47 | NT7: 5 | NU7: 5 | NV7: 2014-01-05 | NW7: 4 | NX7: VCS | NY7: 15 | NZ7: 3 | OA7: 14 | OB7: 1 | OC7: 5 | OD7: 5 | OE7: 2014-02-05 | OF7: 4 | OG7: VCS | OH7: 18 | OI7: 6 | OJ7: 2 | OK7: 13 | OL7: 14 | OM7: 5 | ON7: 2014-03-05 | OO7: 12 | OP7: Amiens | OQ7: 6 | OR7: 15 | OS7: 13 | OT7: 3 | OU7: 4 | OV7: 5 | OW7: 2014-04-05 | OX7: 4 | OY7: VCS | OZ7: 2 | PA7: 3 | PB7: 7 | PC7: 11 | PD7: 8 | PE7: 5 | PF7: 2014-05-05 | PG7: 4 | PH7: MLF | PI7: 13 | PJ7: 7 | PK7: 11 | PL7: 9 | PM7: 18 | PN7: 5 | PO7: 2014-06-05 | PP7: 4 | PQ7: VCY | PR7: 14 | PS7: 6 | PT7: 17 | PU7: 12 | PV7: 15 | PW7: 5 | PX7: 2014-07-05 | PY7: 4 | PZ7: EGN | QA7: 1 | QB7: 15 | QC7: 5 | QD7: 13 | QE7: 6 | QF7: 5 | QG7: 2014-08-05 | QH7: 4 | QI7: DVE | QJ7: 14 | QK7: 7 | QL7: 11 | QM7: 5 | QN7: 12 | QO7: 5 | QP7: 2014-09-05 | QQ7: 4 | QR7: VCS | QX7: 5 | QY7: 2014-10-05 | QZ7: 4 | RA7: LCP | RG7: 5 | RH7: 2014-11-05 | RI7: 4 | RJ7: Nantes | RP7: 5 | RQ7: 2014-12-05 | RR7: 4 | RS7: VCS | RZ7: 14 | SA7: 44 | SB7: 11 | SF7: 2 | SG7: 641.13 | SH7: 73.13 | SI7: 5 | SK7: 15 | SL7: 3 | SM7: 14 | SN7: 1 | SO7: 5 | SP7: 18 | SQ7: 6 | SR7: 2 | SS7: 13 | ST7: 14 | SU7: 6 | SV7: 15 | SW7: 13 | SX7: 3 | SY7: 4 | SZ7: 2 | TA7: 3 | TB7: 7 | TC7: 11 | TD7: 8 | TE7: 13 | TF7: 7 | TG7: 11 | TH7: 9 | TI7: 18 | TJ7: 14 | TK7: 6 | TL7: 17 | TM7: 12 | TN7: 15 | TO7: 1 | TP7: 15 | TQ7: 5 | TR7: 13 | TS7: 6 | TT7: 14 | TU7: 7 | TV7: 11 | TW7: 5 | TX7: 12 | TY7: 0 | TZ7: 0 | UA7: 0 | UB7: 0 | UC7: 0 | UD7: 0 | UE7: 0 | UF7: 0 | UG7: 0 | UH7: 0 | UI7: 0 | UJ7: 0 | UK7: 0 | UL7: 0 | UM7: 0 | UN7: 0 | UO7: 0 | UP7: 0 | UQ7: 0 | UR7: 0
B8: Mai | C8: Nov | E8: Mai | F8: pj1 | H8: CPGNE | I8: PAU | L8: 6 | M8: 13 | N8: 3 | O8: 15 | P8: 10 | Q8: 12 | S8: 6 | T8: 38 | U8: 34 | V8: 30 | W8: 29 | X8: 26 | Y8: 157 | Z8: 157.12 | AA8: 5 | AG8: 6 | AI8: 10 | AJ8: 8 | AK8: 11 | AL8: 14 | AM8: 2 | AO8: 6 | AP8: 7 | AQ8: 10 | AR8: 10 | AS8: 7 | AT8: 6 | AU8: 40 | AV8: 40.12 | AW8: 6 | BF8: 1 | BG8: 15 | BH8: 8 | BI8: 16 | BJ8: 17 | BL8: 6 | BM8: 6 | BN8: 2 | BO8: 13 | BP8: 5 | BQ8: 4 | BR8: 30 | BS8: 30.12 | BT8: 7 | CB8: 3 | CC8: 13 | CD8: 4 | CE8: 9 | CF8: 16 | CH8: 6 | CI8: 7 | CJ8: 17 | CK8: 8 | CL8: 11 | CM8: 10 | CN8: 53 | CO8: 53.12 | CP8: 13 | CW8: 4 | CX8: 12 | CY8: 2 | CZ8: 9 | DA8: 15 | DB8: 10 | DD8: 6 | DE8: 7 | DF8: 7 | DG8: 9 | DH8: 5 | DI8: 2 | DJ8: 30 | DK8: 22.12 | DL8: 3 | DS8: JUILLET | DT8: 6 | DU8: 3 | DV8: 8 | DW8: 10 | DX8: 14 | DZ8: 6 | EA8: 6 | EB8: 4 | EC8: 2 | ED8: 0 | EE8: 1 | EF8: 13 | EG8: 6.12 | EH8: 1 | EN8: 2011 | EO8: FEVRIER | EP8: 9 | EQ8: 12 | ER8: 8 | ES8: 13 | ET8: 14 | EV8: 6 | EW8: 0 | EX8: 1 | EY8: 1 | EZ8: 3 | FA8: 1 | FB8: 6 | FC8: 6.12 | FD8: 6 | FK8: JUIN | FL8: 3 | FM8: 9 | FN8: 7 | FO8: 1 | FP8: 2 | FR8: 6 | FS8: 4 | FT8: 2 | FU8: 5 | FV8: 3 | FW8: 3 | FX8: 17 | FY8: 12.12 | FZ8: 5 | GF8: 2011 | GG8: MAI | GH8: 11 | GI8: 15 | GJ8: 3 | GK8: 12 | GL8: 2 | GN8: 6 | GO8: 2 | GP8: 2 | GQ8: 0 | GR8: 3 | GS8: 1 | GT8: 8 | GU8: 8.12 | GV8: 14 | HC8: 3 | HD8: 9 | HE8: 3 | HF8: 7 | HG8: 8 | HH8: 1 | HJ8: 6 | HK8: 8 | HL8: 7 | HM8: 7 | HN8: 8 | HO8: 8 | HP8: 38 | HQ8: 38.12 | HR8: 6 | HZ8: 10 | IA8: 18 | IB8: 2 | IC8: 12 | ID8: 11 | IF8: 6 | IG8: 8 | IH8: 7 | II8: 2 | IJ8: 5 | IK8: 0 | IL8: 22 | IM8: 22.12 | IN8: 13 | IV8: 3 | IW8: 4 | IX8: 15 | IY8: 6 | IZ8: 11 | JB8: 6 | JC8: 1 | JD8: 4 | JE8: 2 | JF8: 2 | JG8: 4 | JH8: 13 | JI8: 9.12 | JJ8: 13 | JP8: 2011 | JQ8: JANVIER | JR8: 13 | JS8: 16 | JT8: 17 | JU8: 18 | JV8: 10 | JX8: 6 | JY8: 1 | JZ8: 0 | KA8: 0 | KB8: 4 | KC8: 3 | KD8: 8 | KE8: 8.12 | KF8: 12 | KM8: AVRIL | KN8: 13 | KO8: 3 | KP8: 16 | KQ8: 8 | KR8: 7 | KT8: 6 | KU8: 6 | KV8: 4 | KW8: 4 | KX8: 4 | KY8: 4 | KZ8: 22 | LA8: 22.12 | LB8: 2 | LI8: 3 | LJ8: 6 | LK8: 18 | LL8: 13 | LM8: 5 | LN8: 10 | LP8: 6 | LQ8: 2 | LR8: 4 | LS8: 3 | LT8: 2 | LU8: 4 | LV8: 15 | LW8: 15.12 | LX8: 5 | ME8: 4 | MF8: 14 | MG8: 2 | MH8: 8 | MI8: 16 | MJ8: 9 | ML8: 6 | MM8: 1 | MN8: 2 | MO8: 3 | MP8: 2 | MQ8: 2 | MR8: 10 | MS8: 10.12 | MT8: 5 | MZ8: 2 | NA8: Amiens | NB8: =OQ175 -> 4 | NC8: =OR175 -> 15 | ND8: =OS175 -> 11 | NE8: =OT175 -> 9 | NF8: =OU175 -> 8 | NH8: 6 | NI8: 12 | NJ8: 7 | NK8: 9 | NL8: 10 | NM8: 7 | NN8: 45 | NQ8: 0 | NR8: 6 | NS8: 45 | NT8: 6 | NU8: 6 | NV8: 2014-01-06 | NW8: 8 | NX8: VCS | NY8: 3 | NZ8: 11 | OA8: 15 | OB8: 17 | OC8: 4 | OD8: 6 | OE8: 2014-02-06 | OF8: 8 | OG8: VCS | OH8: 14 | OI8: 11 | OJ8: 13 | OK8: 5 | OL8: 12 | OM8: 6 | ON8: 2014-03-06 | OO8: 9 | OP8: DVE | OQ8: 16 | OR8: 11 | OS8: 6 | OT8: 4 | OU8: 5 | OV8: 6 | OW8: 2014-04-06 | OX8: 8 | OY8: LCP | OZ8: 10 | PA8: 2 | PB8: 16 | PC8: 5 | PD8: 14 | PE8: 6 | PF8: 2014-05-06 | PG8: 8 | PH8: CTY | PI8: 12 | PJ8: 13 | PK8: 15 | PL8: 10 | PM8: 5 | PN8: 6 | PO8: 2014-06-06 | PP8: 8 | PQ8: VCS | PR8: 10 | PS8: 8 | PT8: 7 | PU8: 6 | PV8: 2 | PW8: 6 | PX8: 2014-07-06 | PY8: 8 | PZ8: MLF | QA8: 1 | QB8: 9 | QC8: 2 | QD8: 13 | QE8: 12 | QF8: 6 | QG8: 2014-08-06 | QH8: 8 | QI8: St Malo | QO8: 6 | QP8: 2014-09-06 | QQ8: 8 | QR8: VCS | QX8: 6 | QY8: 2014-10-06 | QZ8: 8 | RA8: Feurs | RG8: 6 | RH8: 2014-11-06 | RI8: 8 | RJ8: VCS | RP8: 6 | RQ8: 2014-12-06 | RR8: 8 | RS8: VCS | RZ8: 18 | SA8: 88 | SB8: 4 | SF8: 7 | SG8: 657.12 | SH8: 70.12 | SI8: 6 | SK8: 3 | SL8: 11 | SM8: 15 | SN8: 17 | SO8: 4 | SP8: 14 | SQ8: 11 | SR8: 13 | SS8: 5 | ST8: 12 | SU8: 16 | SV8: 11 | SW8: 6 | SX8: 4 | SY8: 5 | SZ8: 10 | TA8: 2 | TB8: 16 | TC8: 5 | TD8: 14 | TE8: 12 | TF8: 13 | TG8: 15 | TH8: 10 | TI8: 5 | TJ8: 10 | TK8: 8 | TL8: 7 | TM8: 6 | TN8: 2 | TO8: 1 | TP8: 9 | TQ8: 2 | TR8: 13 | TS8: 12 | TT8: 0 | TU8: 0 | TV8: 0 | TW8: 0 | TX8: 0 | TY8: 0 | TZ8: 0 | UA8: 0 | UB8: 0 | UC8: 0 | UD8: 0 | UE8: 0 | UF8: 0 | UG8: 0 | UH8: 0 | UI8: 0 | UJ8: 0 | UK8: 0 | UL8: 0 | UM8: 0 | UN8: 0 | UO8: 0 | UP8: 0 | UQ8: 0 | UR8: 0
B9: Jun | C9: Déc | E9: Juin | F9: pt1 | H9: MARS | I9: SCLD | L9: 7 | M9: 7 | N9: 16 | O9: 5 | P9: 17 | Q9: 10 | S9: 7 | T9: 28 | U9: 29 | V9: 31 | W9: 31 | X9: 28 | Y9: 147 | Z9: 147.11 | AA9: 9 | AG9: 7 | AH9: 3 | AI9: 11 | AJ9: 5 | AK9: 3 | AL9: 2 | AM9: 15 | AO9: 7 | AP9: 7 | AQ9: 11 | AR9: 10 | AS9: 5 | AT9: 11 | AU9: 44 | AV9: 44.11 | AW9: 8 | BF9: 10 | BG9: 3 | BH9: 7 | BI9: 4 | BJ9: 5 | BL9: 7 | BM9: 4 | BN9: 6 | BO9: 7 | BP9: 4 | BQ9: 7 | BR9: 28 | BS9: 28.11 | BT9: 10 | CB9: 12 | CC9: 6 | CD9: 3 | CE9: 11 | CF9: 9 | CH9: 7 | CI9: 13 | CJ9: 5 | CK9: 9 | CL9: 7 | CM9: 10 | CN9: 44 | CO9: 44.11 | CP9: 1 | CW9: AOUT | CX9: 2 | CY9: 10 | CZ9: 6 | DA9: 8 | DB9: 15 | DD9: 7 | DE9: 7 | DF9: 2 | DG9: 5 | DH9: 7 | DI9: 6 | DJ9: 27 | DK9: 21.11 | DL9: 9 | DT9: 3 | DU9: 10 | DV9: 2 | DW9: 7 | DX9: 14 | DZ9: 7 | EA9: 2 | EB9: 0 | EC9: 3 | ED9: 6 | EE9: 3 | EF9: 14 | EG9: 9.11 | EH9: 9 | EO9: MARS | EP9: 11 | EQ9: 14 | ER9: 10 | ES9: 5 | ET9: 7 | EV9: 7 | EW9: 3 | EX9: 1 | EY9: 0 | EZ9: 0 | FA9: 1 | FB9: 5 | FC9: 5.11 | FD9: 7 | FL9: 5 | FM9: 2 | FN9: 4 | FO9: 6 | FP9: 9 | FR9: 7 | FS9: 7 | FT9: 7 | FU9: 7 | FV9: 3 | FW9: 2 | FX9: 26 | FY9: 15.11 | FZ9: 7 | GH9: 6 | GI9: 8 | GJ9: 15 | GK9: 12 | GL9: 16 | GM9: =PN211 -> 1 | GN9: 7 | GO9: 0 | GP9: 0 | GQ9: 1 | GR9: 0 | GS9: 2 | GT9: 3 | GU9: 3.11 | GV9: 3 | HC9: AVRIL | HD9: 14 | HE9: 18 | HF9: 2 | HG9: 12 | HH9: 10 | HJ9: 7 | HK9: 4 | HL9: 10 | HM9: 6 | HN9: 5 | HO9: 9 | HP9: 34 | HQ9: 34.11 | HR9: 3 | HZ9: 6 | IA9: 5 | IB9: 8 | IC9: 7 | ID9: 16 | IF9: 7 | IG9: 6 | IH9: 5 | II9: 4 | IJ9: 3 | IK9: 4 | IL9: 22 | IM9: 22.11 | IN9: 1 | IU9: 3 | IV9: 12 | IW9: 13 | IX9: 3 | IY9: 15 | IZ9: 2 | JB9: 7 | JC9: 3 | JD9: 5 | JE9: 2 | JF9: 3 | JG9: 2 | JH9: 15 | JI9: 12.11 | JJ9: 14 | JQ9: PAU | JR9: 4 | JS9: 13 | JT9: 9 | JU9: 10 | JV9: 5 | JX9: 7 | JY9: 1 | JZ9: 2 | KA9: 0 | KB9: 1 | KC9: 0 | KD9: 4 | KE9: 4.11 | KF9: 13 | KN9: 6 | KO9: 12 | KP9: 4 | KQ9: 16 | KR9: 2 | KT9: 7 | KU9: 5 | KV9: 6 | KW9: 5 | KX9: 2 | KY9: 6 | KZ9: 24 | LA9: 24.11 | LB9: 14 | LI9: 4 | LJ9: 4 | LK9: 5 | LL9: 17 | LM9: 8 | LN9: 13 | LP9: 7 | LQ9: 3 | LR9: 5 | LS9: 1 | LT9: 3 | LU9: 1 | LV9: 13 | LW9: 13.11 | LX9: 8 | ME9: 5 | MF9: 15 | MG9: 12 | MH9: 3 | MI9: 2 | MJ9: 13 | ML9: 7 | MM9: 2 | MN9: 4 | MO9: 1 | MP9: 1 | MQ9: 5 | MR9: 13 | MS9: 13.11 | MT9: 1 | MZ9: 0 | NB9: =OQ234 -> 1 | NC9: =OR234 -> 10 | ND9: =OS234 -> 6 | NE9: =OT234 -> 12 | NF9: =OU234 -> 5 | NH9: 7 | NI9: 8 | NJ9: 12 | NK9: 12 | NL9: 12 | NM9: 5 | NN9: 49 | NQ9: 0 | NR9: 7 | NS9: 49 | NT9: 7 | NU9: 7 | NV9: 2014-01-07 | NW9: 10 | NX9: VCS | NY9: 12 | NZ9: 19 | OA9: 8 | OB9: 9 | OC9: 6 | OD9: 7 | OE9: 2014-02-07 | OF9: 10 | OG9: C/M | OH9: 12 | OI9: 14 | OJ9: 1 | OK9: 7 | OL9: 8 | OM9: 7 | ON9: 2014-03-07 | OO9: 13 | OP9: DVE | OQ9: 1 | OR9: 9 | OS9: 2 | OT9: 7 | OU9: 14 | OV9: 7 | OW9: 2014-04-07 | OX9: 10 | OY9: EGN | OZ9: 5 | PA9: 2 | PB9: 4 | PC9: 11 | PD9: 8 | PE9: 7 | PF9: 2014-05-07 | PG9: 10 | PH9: CTY | PI9: 5 | PJ9: 3 | PK9: 15 | PL9: 9 | PM9: 14 | PN9: 7 | PO9: 2014-06-07 | PP9: 10 | PQ9: VCS | PR9: 14 | PS9: 8 | PT9: 15 | PU9: 12 | PV9: 2 | PW9: 7 | PX9: 2014-07-07 | PY9: 10 | PZ9: CPGNE | QA9: 15 | QB9: 2 | QC9: 6 | QD9: 14 | QE9: 7 | QF9: 7 | QG9: 2014-08-07 | QH9: 10 | QI9: EGN | QO9: 7 | QP9: 2014-09-07 | QQ9: 10 | QR9: LCP | QX9: 7 | QY9: 2014-10-07 | QZ9: 10 | RA9: MLF | RG9: 7 | RH9: 2014-11-07 | RI9: 10 | RJ9: VCS | RP9: 7 | RQ9: 2014-12-07 | RR9: 10 | RS9: VCS | RZ9: 13 | SA9: 110 | SB9: 12 | SF9: 10 | SG9: 625.11 | SH9: 69.11 | SI9: 7 | SK9: 12 | SL9: 19 | SM9: 8 | SN9: 9 | SO9: 6 | SP9: 12 | SQ9: 14 | SR9: 1 | SS9: 7 | ST9: 8 | SU9: 1 | SV9: 9 | SW9: 2 | SX9: 7 | SY9: 14 | SZ9: 5 | TA9: 2 | TB9: 4 | TC9: 11 | TD9: 8 | TE9: 5 | TF9: 3 | TG9: 15 | TH9: 9 | TI9: 14 | TJ9: 14 | TK9: 8 | TL9: 15 | TM9: 12 | TN9: 2 | TO9: 15 | TP9: 2 | TQ9: 6 | TR9: 14 | TS9: 7 | TT9: 0 | TU9: 0 | TV9: 0 | TW9: 0 | TX9: 0 | TY9: 0 | TZ9: 0 | UA9: 0 | UB9: 0 | UC9: 0 | UD9: 0 | UE9: 0 | UF9: 0 | UG9: 0 | UH9: 0 | UI9: 0 | UJ9: 0 | UK9: 0 | UL9: 0 | UM9: 0 | UN9: 0 | UO9: 0 | UP9: 0 | UQ9: 0 | UR9: 0
